Workbook

Sheet COVER PAGE
B2: REGION | D2: North | I2: DELIVERY DASHBOARD
B3: CCG: | D3: NHS Rotherham CCG | I3: QUARTER 2 2014-15
A4: =VLOOKUP($D$3,Lookup!$B:$D,2,FALSE) -> 03L | B4: AREA TEAM | D4: =VLOOKUP($D$3,Lookup!$B:$F,5,FALSE) -> S Yorkshire & Bassetlaw
K5: LAST REFRESH DATE | M5: 2014-11-13T11:03:50
D21: LONDON REGION | I21: NORTH REGION | J21: MIDLANDS REGION | M21: SOUTH REGION
A31: Please select CCG patch
A32: NCEL
A33: NWL
A34: SL

Sheet NHS CONSTITUTION SECTION
B1: NHS CONSTITUTION SECTION
B2: =IFERROR('COVER PAGE'!$D$3,"") -> NHS Rotherham CCG
B3: =IFERROR('COVER PAGE'!$D$4,"") -> S Yorkshire & Bassetlaw
B4: =IFERROR('COVER PAGE'!$D$2,"") -> North | F4: =VLOOKUP('COVER PAGE'!$D$3,Lookup!$B:$H,6,FALSE) -> Yrkshr Amblnce | G4: =VLOOKUP($B$2,Lookup!$B:$H,7,FALSE) -> YORKSHIRE AMBULANCE SERVICE NHS TRUST
A5: 2014-15 | D5: 14-15 Q1 | E5: 14-15 Q2 | F5: 14-15 Q3 | G5: 14-15 Q4
A6: CCG BASED INDICATORS | B6: OPERATIONAL STANDARD | D6: QUARTER 1 PERFORMANCE | E6: QUARTER 2 PERFORMANCE | F6: QUARTER 3 PERFORMANCE | G6: QUARTER 4 PERFORMANCE | J6: Sep-14 | K6: Dec-14 | L6: Mar-15 | R6: Q1 | S6: Q2 | T6: Q3 | U6: Q4 | V6: Q1 | W6: Q2 | X6: Q3 | Y6: Q4 | Z6: Q3RAG | AA6: Q4 RAG | AE6: Apr-14 | AF6: May-14 | AG6: Jun-14 | AH6: Jul-14 | AI6: Aug-14 | AJ6: Sep-14 | AK6: Oct-14 | AL6: Nov-14 | AM6: Dec-14 | AN6: Jan-15 | AO6: Feb-15 | AP6: Mar-15
A7: Referral to Treatment waiting times for non urgent consultant-led treatment
A8: Admitted patients starting treatment within a maximum of 18 weeks from referral | B8: 0.9 | D8: =CUBEVALUE("PROD_PUBLIC_ONLY","[Commissioners].[Org Name].[All].["&B2&"]","[Date].[Fiscal Q Hierarchy].[All].["&$A5&"].["&$D5&"]","[Measures].[RTT % Within 18 Weeks]","[RTT Pathway Type].[RTT Pathways].[All].[Admitted].[Adjusted Admitted]") -> 0.9340761374 | E8: =CUBEVALUE("PROD_PUBLIC_ONLY","[Commissioners].[Org Name].[All].["&B2&"]","[Date].[Fiscal Q Hierarchy].[All].["&$A5&"].["&$E5&"]","[Measures].[RTT % Within 18 Weeks]","[RTT Pathway Type].[RTT Pathways].[All].[Admitted].[Adjusted Admitted]") -> 0.9293214863 | R8: =IF(D8>=B8,"GREEN",IF(D8=0%,"NA",IF(D8<B8,"RED"))) -> GREEN | S8: =IF(E8>=B8,"GREEN",IF(E8=0%,"NA",IF(E8<B8,"RED"))) -> GREEN | T8: =IF(F8>=B8,"GREEN",IF(F8="","NA",IF(F8<B8,"RED"))) -> NA | U8: =IF(G8="","NA",IF(G8>=B8,"GREEN",IF(G8<B8,"RED"))) -> NA | V8: =IF(AND(AE8="",AF8="",AG8=""),"No Data",IF(AND(AF8="",AG8="",R8="GREEN"),"1 MONTH DATA GREEN",IF(AND(AF8="",AG8="",R8="RED"),"1 MONTH DATA RED",IF(AND(AG8="",R8="GREEN"),"2 MONTH DATA GREEN",IF(AND(AG8="",R8="RED"),"2 MONTH DATA RED",IF(AND(AF8="",AG8=""),"1 MONTH DATA",IF(AND(AG8=""),"2 MONTH DATA",IF(AND(AE8=AE8,AF8=AF8,AG8=AG8,R8="GREEN"),"FULL QUARTER GREEN",IF(AND(AE8=AE8,AF8=AF8,AG8=AG8,R8="RED"),"FULL QUARTER RED",))))))))) -> FULL QUARTER GREEN | W8: =IF(AND(AH8="",AI8="",AJ8=""),"No Data",IF(AND(AI8="",AJ8="",S8="GREEN"),"1 MONTH DATA GREEN",IF(AND(AI8="",AJ8="",S8="RED"),"1 MONTH DATA RED",IF(AND(AJ8="",S8="GREEN"),"2 MONTH DATA GREEN",IF(AND(AJ8="",S8="RED"),"2 MONTH DATA RED",IF(AND(AI8="",AJ8=""),"1 MONTH DATA",IF(AND(AJ8=""),"2 MONTH DATA",IF(AND(AH8=AH8,AI8=AI8,AJ8=AJ8,S8="GREEN"),"FULL QUARTER GREEN",IF(AND(AH8=AH8,AI8=AI8,AJ8=AJ8,S8="RED"),"FULL QUARTER RED",))))))))) -> FULL QUARTER GREEN | X8: =IF(AND(AK8="",AL8="",AM8=""),"No Data",IF(AND(AL8="",AM8="",T8="GREEN"),"1 MONTH DATA GREEN",IF(AND(AL8="",AM8="",T8="RED"),"1 MONTH DATA RED",IF(AND(AM8="",T8="GREEN"),"2 MONTH DATA GREEN",IF(AND(AM8="",T8="RED"),"2 MONTH DATA RED",IF(AND(AL8="",AM8=""),"1 MONTH DATA",IF(AND(AM8=""),"2 MONTH DATA",IF(AND(AK8=AK8,AL8=AL8,AM8=AM8,T8="GREEN"),"FULL QUARTER GREEN",IF(AND(AK8=AK8,AL8=AL8,AM8=AM8,T8="RED"),"FULL QUARTER RED",))))))))) -> No Data | Y8: =IF(AND(AN8="",AO8="",AP8=""),"No Data",IF(AND(AO8="",AP8="",U8="GREEN"),"1 MONTH DATA GREEN",IF(AND(AO8="",AP8="",U8="RED"),"1 MONTH DATA RED",IF(AND(AP8="",U8="GREEN"),"2 MONTH DATA GREEN",IF(AND(AP8="",U8="RED"),"2 MONTH DATA RED",IF(AND(AO8="",AP8=""),"1 MONTH DATA",IF(AND(AP8=""),"2 MONTH DATA",IF(AND(AN8=AN8,AO8=AO8,AP8=AP8,U8="GREEN"),"FULL QUARTER GREEN",IF(AND(AN8=AN8,AO8=AO8,AP8=AP8,U8="RED"),"FULL QUARTER RED",))))))))) -> No Data | Z8: =IF(V8 ="GREEN",1,IF(V8 ="AMBER",2,IF(V8 ="RED",3))) -> FALSE | AA8: =IF(W8 ="GREEN",1,IF(W8 ="AMBER",2,IF(W8 ="RED",3,IF(W8 =" "," ")))) -> FALSE | AE8: =CUBEVALUE("PROD_PUBLIC_ONLY","[Commissioners].[Org Name].[All].["&B2&"]","[Date].[Short Month Year Label].[By Date].["&TEXT(AE$6,"mmm-yy")&"]","[Measures].[RTT % Within 18 Weeks]","[RTT Pathway Type].[RTT Pathways].[All].[Admitted].[Adjusted Admitted]",CUBESET("PROD_PUBLIC_ONLY","[Dim Data Status].[Data Status Hierarchy].[All].[PUBLIC]","Public data only")) -> 0.9323420074 | AF8: =CUBEVALUE("PROD_PUBLIC_ONLY","[Commissioners].[Org Name].[All].["&B2&"]","[Date].[Short Month Year Label].[By Date].["&TEXT(AF$6,"mmm-yy")&"]","[Measures].[RTT % Within 18 Weeks]","[RTT Pathway Type].[RTT Pathways].[All].[Admitted].[Adjusted Admitted]",CUBESET("PROD_PUBLIC_ONLY","[Dim Data Status].[Data Status Hierarchy].[All].[PUBLIC]","Public data only")) -> 0.936109117 | AG8: =CUBEVALUE("PROD_PUBLIC_ONLY","[Commissioners].[Org Name].[All].["&B2&"]","[Date].[Short Month Year Label].[By Date].["&TEXT(AG$6,"mmm-yy")&"]","[Measures].[RTT % Within 18 Weeks]","[RTT Pathway Type].[RTT Pathways].[All].[Admitted].[Adjusted Admitted]",CUBESET("PROD_PUBLIC_ONLY","[Dim Data Status].[Data Status Hierarchy].[All].[PUBLIC]","Public data only")) -> 0.9337579618 | AH8: =CUBEVALUE("PROD_PUBLIC_ONLY","[Commissioners].[Org Name].[All].["&B2&"]","[Date].[Short Month Year Label].[By Date].["&TEXT(AH$6,"mmm-yy")&"]","[Measures].[RTT % Within 18 Weeks]","[RTT Pathway Type].[RTT Pathways].[All].[Admitted].[Adjusted Admitted]") -> 0.94 | AI8: =CUBEVALUE("PROD_PUBLIC_ONLY","[Commissioners].[Org Name].[All].["&B2&"]","[Date].[Short Month Year Label].[By Date].["&TEXT(AI$6,"mmm-yy")&"]","[Measures].[RTT % Within 18 Weeks]","[RTT Pathway Type].[RTT Pathways].[All].[Admitted].[Adjusted Admitted]") -> 0.9213622291 | AJ8: =CUBEVALUE("PROD_PUBLIC_ONLY","[Commissioners].[Org Name].[All].["&B2&"]","[Date].[Short Month Year Label].[By Date].["&TEXT(AJ$6,"mmm-yy")&"]","[Measures].[RTT % Within 18 Weeks]","[RTT Pathway Type].[RTT Pathways].[All].[Admitted].[Adjusted Admitted]") -> 0.9272523783 | AK8: =CUBEVALUE("PROD_PUBLIC_ONLY","[Commissioners].[Org Name].[All].["&B2&"]","[Date].[Short Month Year Label].[By Date].["&TEXT(AK$6,"mmm-yy")&"]","[Measures].[RTT % Within 18 Weeks]","[RTT Pathway Type].[RTT Pathways].[All].[Admitted].[Adjusted Admitted]") ->  | AL8: =CUBEVALUE("PROD_PUBLIC_ONLY","[Commissioners].[Org Name].[All].["&B2&"]","[Date].[Short Month Year Label].[By Date].["&TEXT(AL$6,"mmm-yy")&"]","[Measures].[RTT % Within 18 Weeks]","[RTT Pathway Type].[RTT Pathways].[All].[Admitted].[Adjusted Admitted]") ->  | AM8: =CUBEVALUE("PROD_PUBLIC_ONLY","[Commissioners].[Org Name].[All].["&B2&"]","[Date].[Short Month Year Label].[By Date].["&TEXT(AM$6,"mmm-yy")&"]","[Measures].[RTT % Within 18 Weeks]","[RTT Pathway Type].[RTT Pathways].[All].[Admitted].[Adjusted Admitted]") ->  | AN8: =CUBEVALUE("PROD_PUBLIC_ONLY","[Commissioners].[Org Name].[All].["&B2&"]","[Date].[Short Month Year Label].[By Date].["&TEXT(AN$6,"mmm-yy")&"]","[Measures].[RTT % Within 18 Weeks]","[RTT Pathway Type].[RTT Pathways].[All].[Admitted].[Adjusted Admitted]") ->  | AO8: =CUBEVALUE("PROD_PUBLIC_ONLY","[Commissioners].[Org Name].[All].["&B2&"]","[Date].[Short Month Year Label].[By Date].["&TEXT(AO$6,"mmm-yy")&"]","[Measures].[RTT % Within 18 Weeks]","[RTT Pathway Type].[RTT Pathways].[All].[Admitted].[Adjusted Admitted]") ->  | AP8: =CUBEVALUE("PROD_PUBLIC_ONLY","[Commissioners].[Org Name].[All].["&B2&"]","[Date].[Short Month Year Label].[By Date].["&TEXT(AP$6,"mmm-yy")&"]","[Measures].[RTT % Within 18 Weeks]","[RTT Pathway Type].[RTT Pathways].[All].[Admitted].[Adjusted Admitted]") -> 
A9: Non-admitted patients starting treatment within a maximum of 18 weeks from referral | B9: 0.95 | D9: =CUBEVALUE("PROD_PUBLIC_ONLY","[Commissioners].[Org Name].[All].["&B2&"]","[Date].[Fiscal Q Hierarchy].[All].["&$A5&"].["&$D5&"]","[Measures].[RTT % Within 18 Weeks]","[RTT Pathway Type].[RTT Pathways].[All].[Non-Admitted including Audiology].[Non-Admitted]") -> 0.9852954362 | E9: =CUBEVALUE("PROD_PUBLIC_ONLY","[Commissioners].[Org Name].[All].["&B2&"]","[Date].[Fiscal Q Hierarchy].[All].["&$A5&"].["&$E5&"]","[Measures].[RTT % Within 18 Weeks]","[RTT Pathway Type].[RTT Pathways].[All].[Non-Admitted including Audiology].[Non-Admitted]") -> 0.9822871883 | R9: =IF(D9>=B9,"GREEN",IF(D9=0%,"NA",IF(D9<B9,"RED"))) -> GREEN | S9: =IF(E9>=B9,"GREEN",IF(E9=0%,"NA",IF(E9<B9,"RED"))) -> GREEN | T9: =IF(F9="","NA",IF(F9>=B9,"GREEN",IF(F9<B9,"RED"))) -> NA | U9: =IF(G9="","NA",IF(G9>=B9,"GREEN",IF(G9<B9,"RED"))) -> NA | V9: =IF(AND(AE9="",AF9="",AG9=""),"No Data",IF(AND(AF9="",AG9="",R9="GREEN"),"1 MONTH DATA GREEN",IF(AND(AF9="",AG9="",R9="RED"),"1 MONTH DATA RED",IF(AND(AG9="",R9="GREEN"),"2 MONTH DATA GREEN",IF(AND(AG9="",R9="RED"),"2 MONTH DATA RED",IF(AND(AF9="",AG9=""),"1 MONTH DATA",IF(AND(AG9=""),"2 MONTH DATA",IF(AND(AE9=AE9,AF9=AF9,AG9=AG9,R9="GREEN"),"FULL QUARTER GREEN",IF(AND(AE9=AE9,AF9=AF9,AG9=AG9,R9="RED"),"FULL QUARTER RED",))))))))) -> FULL QUARTER GREEN | W9: =IF(AND(AH9="",AI9="",AJ9=""),"No Data",IF(AND(AI9="",AJ9="",S9="GREEN"),"1 MONTH DATA GREEN",IF(AND(AI9="",AJ9="",S9="RED"),"1 MONTH DATA RED",IF(AND(AJ9="",S9="GREEN"),"2 MONTH DATA GREEN",IF(AND(AJ9="",S9="RED"),"2 MONTH DATA RED",IF(AND(AI9="",AJ9=""),"1 MONTH DATA",IF(AND(AJ9=""),"2 MONTH DATA",IF(AND(AH9=AH9,AI9=AI9,AJ9=AJ9,S9="GREEN"),"FULL QUARTER GREEN",IF(AND(AH9=AH9,AI9=AI9,AJ9=AJ9,S9="RED"),"FULL QUARTER RED",))))))))) -> FULL QUARTER GREEN | X9: =IF(AND(AK9="",AL9="",AM9=""),"No Data",IF(AND(AL9="",AM9="",T9="GREEN"),"1 MONTH DATA GREEN",IF(AND(AL9="",AM9="",T9="RED"),"1 MONTH DATA RED",IF(AND(AM9="",T9="GREEN"),"2 MONTH DATA GREEN",IF(AND(AM9="",T9="RED"),"2 MONTH DATA RED",IF(AND(AL9="",AM9=""),"1 MONTH DATA",IF(AND(AM9=""),"2 MONTH DATA",IF(AND(AK9=AK9,AL9=AL9,AM9=AM9,T9="GREEN"),"FULL QUARTER GREEN",IF(AND(AK9=AK9,AL9=AL9,AM9=AM9,T9="RED"),"FULL QUARTER RED",))))))))) -> No Data | Y9: =IF(AND(AN9="",AO9="",AP9=""),"No Data",IF(AND(AO9="",AP9="",U9="GREEN"),"1 MONTH DATA GREEN",IF(AND(AO9="",AP9="",U9="RED"),"1 MONTH DATA RED",IF(AND(AP9="",U9="GREEN"),"2 MONTH DATA GREEN",IF(AND(AP9="",U9="RED"),"2 MONTH DATA RED",IF(AND(AO9="",AP9=""),"1 MONTH DATA",IF(AND(AP9=""),"2 MONTH DATA",IF(AND(AN9=AN9,AO9=AO9,AP9=AP9,U9="GREEN"),"FULL QUARTER GREEN",IF(AND(AN9=AN9,AO9=AO9,AP9=AP9,U9="RED"),"FULL QUARTER RED",))))))))) -> No Data | Z9: =IF(V9 ="GREEN",1,IF(V9 ="AMBER",2,IF(V9 ="RED",3))) -> FALSE | AA9: =IF(W9 ="GREEN",1,IF(W9 ="AMBER",2,IF(W9 ="RED",3,IF(W9 =" "," ")))) -> FALSE | AE9: =CUBEVALUE("PROD_PUBLIC_ONLY","[Commissioners].[Org Name].[All].["&B2&"]","[Date].[Short Month Year Label].[By Date].["&TEXT(AE6,"mmm-yy")&"]","[Measures].[RTT % Within 18 Weeks]","[RTT Pathway Type].[RTT Pathways].[All].[Non-Admitted including Audiology].[Non-Admitted]",CUBESET("PROD_PUBLIC_ONLY","[Dim Data Status].[Data Status Hierarchy].[All].[PUBLIC]","Public data only")) -> 0.9870354365 | AF9: =CUBEVALUE("PROD_PUBLIC_ONLY","[Commissioners].[Org Name].[All].["&B2&"]","[Date].[Short Month Year Label].[By Date].["&TEXT(AF6,"mmm-yy")&"]","[Measures].[RTT % Within 18 Weeks]","[RTT Pathway Type].[RTT Pathways].[All].[Non-Admitted including Audiology].[Non-Admitted]",CUBESET("PROD_PUBLIC_ONLY","[Dim Data Status].[Data Status Hierarchy].[All].[PUBLIC]","Public data only")) -> 0.982369146 | AG9: =CUBEVALUE("PROD_PUBLIC_ONLY","[Commissioners].[Org Name].[All].["&B2&"]","[Date].[Short Month Year Label].[By Date].["&TEXT(AG6,"mmm-yy")&"]","[Measures].[RTT % Within 18 Weeks]","[RTT Pathway Type].[RTT Pathways].[All].[Non-Admitted including Audiology].[Non-Admitted]",CUBESET("PROD_PUBLIC_ONLY","[Dim Data Status].[Data Status Hierarchy].[All].[PUBLIC]","Public data only")) -> 0.9864264561 | AH9: =CUBEVALUE("PROD_PUBLIC_ONLY","[Commissioners].[Org Name].[All].["&B2&"]","[Date].[Short Month Year Label].[By Date].["&TEXT(AH6,"mmm-yy")&"]","[Measures].[RTT % Within 18 Weeks]","[RTT Pathway Type].[RTT Pathways].[All].[Non-Admitted including Audiology].[Non-Admitted]") -> 0.9786240786 | AI9: =CUBEVALUE("PROD_PUBLIC_ONLY","[Commissioners].[Org Name].[All].["&B2&"]","[Date].[Short Month Year Label].[By Date].["&TEXT(AI6,"mmm-yy")&"]","[Measures].[RTT % Within 18 Weeks]","[RTT Pathway Type].[RTT Pathways].[All].[Non-Admitted including Audiology].[Non-Admitted]") -> 0.9876347495 | AJ9: =CUBEVALUE("PROD_PUBLIC_ONLY","[Commissioners].[Org Name].[All].["&B2&"]","[Date].[Short Month Year Label].[By Date].["&TEXT(AJ6,"mmm-yy")&"]","[Measures].[RTT % Within 18 Weeks]","[RTT Pathway Type].[RTT Pathways].[All].[Non-Admitted including Audiology].[Non-Admitted]") -> 0.9818429414 | AK9: =CUBEVALUE("PROD_PUBLIC_ONLY","[Commissioners].[Org Name].[All].["&B2&"]","[Date].[Short Month Year Label].[By Date].["&TEXT(AK6,"mmm-yy")&"]","[Measures].[RTT % Within 18 Weeks]","[RTT Pathway Type].[RTT Pathways].[All].[Non-Admitted including Audiology].[Non-Admitted]") ->  | AL9: =CUBEVALUE("PROD_PUBLIC_ONLY","[Commissioners].[Org Name].[All].["&B2&"]","[Date].[Short Month Year Label].[By Date].["&TEXT(AL6,"mmm-yy")&"]","[Measures].[RTT % Within 18 Weeks]","[RTT Pathway Type].[RTT Pathways].[All].[Non-Admitted including Audiology].[Non-Admitted]") ->  | AM9: =CUBEVALUE("PROD_PUBLIC_ONLY","[Commissioners].[Org Name].[All].["&B2&"]","[Date].[Short Month Year Label].[By Date].["&TEXT(AM6,"mmm-yy")&"]","[Measures].[RTT % Within 18 Weeks]","[RTT Pathway Type].[RTT Pathways].[All].[Non-Admitted including Audiology].[Non-Admitted]") ->  | AN9: =CUBEVALUE("PROD_PUBLIC_ONLY","[Commissioners].[Org Name].[All].["&B2&"]","[Date].[Short Month Year Label].[By Date].["&TEXT(AN6,"mmm-yy")&"]","[Measures].[RTT % Within 18 Weeks]","[RTT Pathway Type].[RTT Pathways].[All].[Non-Admitted including Audiology].[Non-Admitted]") ->  | AO9: =CUBEVALUE("PROD_PUBLIC_ONLY","[Commissioners].[Org Name].[All].["&B2&"]","[Date].[Short Month Year Label].[By Date].["&TEXT(AO6,"mmm-yy")&"]","[Measures].[RTT % Within 18 Weeks]","[RTT Pathway Type].[RTT Pathways].[All].[Non-Admitted including Audiology].[Non-Admitted]") ->  | AP9: =CUBEVALUE("PROD_PUBLIC_ONLY","[Commissioners].[Org Name].[All].["&B2&"]","[Date].[Short Month Year Label].[By Date].["&TEXT(AP6,"mmm-yy")&"]","[Measures].[RTT % Within 18 Weeks]","[RTT Pathway Type].[RTT Pathways].[All].[Non-Admitted including Audiology].[Non-Admitted]") -> 
A10: Patients on incomplete non-emergency pathways (yet to start treatment) waiting no more than 18 weeks from referral | B10: 0.92 | D10: =CUBEVALUE("PROD_PUBLIC_ONLY","[Commissioners].[Org Name].[All].["&B2&"]","[Date].[Fiscal Q Hierarchy].[All].["&$A5&"].["&$D5&"]","[Measures].[RTT % Within 18 Weeks]","[RTT Pathway Type].[RTT Pathways].[All].[Incomplete including Audiology].[Incomplete]") -> 0.9531835206 | E10: =CUBEVALUE("PROD_PUBLIC_ONLY","[Commissioners].[Org Name].[All].["&B2&"]","[Date].[Fiscal Q Hierarchy].[All].["&$A5&"].["&$E5&"]","[Measures].[RTT % Within 18 Weeks]","[RTT Pathway Type].[RTT Pathways].[All].[Incomplete including Audiology].[Incomplete]") -> 0.9540463228 | R10: =IF(D10>=B10,"GREEN",IF(D10=0%,"NA",IF(D10<B10,"RED"))) -> GREEN | S10: =IF(E10>=B10,"GREEN",IF(E10=0%,"NA",IF(E10<B10,"RED"))) -> GREEN | T10: =IF(F10="","NA",IF(F10>=B10,"GREEN",IF(F10<B10,"RED"))) -> NA | U10: =IF(G10="","NA",IF(G10>=B10,"GREEN",IF(G10<B10,"RED"))) -> NA | V10: =IF(AND(AE10="",AF10="",AG10=""),"No Data",IF(AND(AF10="",AG10="",R10="GREEN"),"1 MONTH DATA GREEN",IF(AND(AF10="",AG10="",R10="RED"),"1 MONTH DATA RED",IF(AND(AG10="",R10="GREEN"),"2 MONTH DATA GREEN",IF(AND(AG10="",R10="RED"),"2 MONTH DATA RED",IF(AND(AF10="",AG10=""),"1 MONTH DATA",IF(AND(AG10=""),"2 MONTH DATA",IF(AND(AE10=AE10,AF10=AF10,AG10=AG10,R10="GREEN"),"FULL QUARTER GREEN",IF(AND(AE10=AE10,AF10=AF10,AG10=AG10,R10="RED"),"FULL QUARTER RED",))))))))) -> FULL QUARTER GREEN | W10: =IF(AND(AH10="",AI10="",AJ10=""),"No Data",IF(AND(AI10="",AJ10="",S10="GREEN"),"1 MONTH DATA GREEN",IF(AND(AI10="",AJ10="",S10="RED"),"1 MONTH DATA RED",IF(AND(AJ10="",S10="GREEN"),"2 MONTH DATA GREEN",IF(AND(AJ10="",S10="RED"),"2 MONTH DATA RED",IF(AND(AI10="",AJ10=""),"1 MONTH DATA",IF(AND(AJ10=""),"2 MONTH DATA",IF(AND(AH10=AH10,AI10=AI10,AJ10=AJ10,S10="GREEN"),"FULL QUARTER GREEN",IF(AND(AH10=AH10,AI10=AI10,AJ10=AJ10,S10="RED"),"FULL QUARTER RED",))))))))) -> FULL QUARTER GREEN | X10: =IF(AND(AK10="",AL10="",AM10=""),"No Data",IF(AND(AL10="",AM10="",T10="GREEN"),"1 MONTH DATA GREEN",IF(AND(AL10="",AM10="",T10="RED"),"1 MONTH DATA RED",IF(AND(AM10="",T10="GREEN"),"2 MONTH DATA GREEN",IF(AND(AM10="",T10="RED"),"2 MONTH DATA RED",IF(AND(AL10="",AM10=""),"1 MONTH DATA",IF(AND(AM10=""),"2 MONTH DATA",IF(AND(AK10=AK10,AL10=AL10,AM10=AM10,T10="GREEN"),"FULL QUARTER GREEN",IF(AND(AK10=AK10,AL10=AL10,AM10=AM10,T10="RED"),"FULL QUARTER RED",))))))))) -> No Data | Y10: =IF(AND(AN10="",AO10="",AP10=""),"No Data",IF(AND(AO10="",AP10="",U10="GREEN"),"1 MONTH DATA GREEN",IF(AND(AO10="",AP10="",U10="RED"),"1 MONTH DATA RED",IF(AND(AP10="",U10="GREEN"),"2 MONTH DATA GREEN",IF(AND(AP10="",U10="RED"),"2 MONTH DATA RED",IF(AND(AO10="",AP10=""),"1 MONTH DATA",IF(AND(AP10=""),"2 MONTH DATA",IF(AND(AN10=AN10,AO10=AO10,AP10=AP10,U10="GREEN"),"FULL QUARTER GREEN",IF(AND(AN10=AN10,AO10=AO10,AP10=AP10,U10="RED"),"FULL QUARTER RED",))))))))) -> No Data | Z10: FALSE | AA10: FALSE | AE10: =CUBEVALUE("PROD_PUBLIC_ONLY","[Commissioners].[Org Name].[All].["&B2&"]","[Date].[Short Month Year Label].[By Date].["&TEXT(AE6,"mmm-yy")&"]","[Measures].[RTT % Within 18 Weeks]","[RTT Pathway Type].[RTT Pathways].[All].[Incomplete including Audiology].[Incomplete]",CUBESET("PROD_PUBLIC_ONLY","[Dim Data Status].[Data Status Hierarchy].[All].[PUBLIC]","Public data only")) -> 0.9525324404 | AF10: =CUBEVALUE("PROD_PUBLIC_ONLY","[Commissioners].[Org Name].[All].["&B2&"]","[Date].[Short Month Year Label].[By Date].["&TEXT(AF6,"mmm-yy")&"]","[Measures].[RTT % Within 18 Weeks]","[RTT Pathway Type].[RTT Pathways].[All].[Incomplete including Audiology].[Incomplete]",CUBESET("PROD_PUBLIC_ONLY","[Dim Data Status].[Data Status Hierarchy].[All].[PUBLIC]","Public data only")) -> 0.9494128275 | AG10: =CUBEVALUE("PROD_PUBLIC_ONLY","[Commissioners].[Org Name].[All].["&B2&"]","[Date].[Short Month Year Label].[By Date].["&TEXT(AG6,"mmm-yy")&"]","[Measures].[RTT % Within 18 Weeks]","[RTT Pathway Type].[RTT Pathways].[All].[Incomplete including Audiology].[Incomplete]",CUBESET("PROD_PUBLIC_ONLY","[Dim Data Status].[Data Status Hierarchy].[All].[PUBLIC]","Public data only")) -> 0.9531835206 | AH10: =CUBEVALUE("PROD_PUBLIC_ONLY","[Commissioners].[Org Name].[All].["&B2&"]","[Date].[Short Month Year Label].[By Date].["&TEXT(AH6,"mmm-yy")&"]","[Measures].[RTT % Within 18 Weeks]","[RTT Pathway Type].[RTT Pathways].[All].[Incomplete including Audiology].[Incomplete]") -> 0.9509941193 | AI10: =CUBEVALUE("PROD_PUBLIC_ONLY","[Commissioners].[Org Name].[All].["&B2&"]","[Date].[Short Month Year Label].[By Date].["&TEXT(AI6,"mmm-yy")&"]","[Measures].[RTT % Within 18 Weeks]","[RTT Pathway Type].[RTT Pathways].[All].[Incomplete including Audiology].[Incomplete]") -> 0.9504351809 | AJ10: =CUBEVALUE("PROD_PUBLIC_ONLY","[Commissioners].[Org Name].[All].["&B2&"]","[Date].[Short Month Year Label].[By Date].["&TEXT(AJ6,"mmm-yy")&"]","[Measures].[RTT % Within 18 Weeks]","[RTT Pathway Type].[RTT Pathways].[All].[Incomplete including Audiology].[Incomplete]") -> 0.9540463228 | AK10: =CUBEVALUE("PROD_PUBLIC_ONLY","[Commissioners].[Org Name].[All].["&B2&"]","[Date].[Short Month Year Label].[By Date].["&TEXT(AK6,"mmm-yy")&"]","[Measures].[RTT % Within 18 Weeks]","[RTT Pathway Type].[RTT Pathways].[All].[Incomplete including Audiology].[Incomplete]") ->  | AL10: =CUBEVALUE("PROD_PUBLIC_ONLY","[Commissioners].[Org Name].[All].["&B2&"]","[Date].[Short Month Year Label].[By Date].["&TEXT(AL6,"mmm-yy")&"]","[Measures].[RTT % Within 18 Weeks]","[RTT Pathway Type].[RTT Pathways].[All].[Incomplete including Audiology].[Incomplete]") ->  | AM10: =CUBEVALUE("PROD_PUBLIC_ONLY","[Commissioners].[Org Name].[All].["&B2&"]","[Date].[Short Month Year Label].[By Date].["&TEXT(AM6,"mmm-yy")&"]","[Measures].[RTT % Within 18 Weeks]","[RTT Pathway Type].[RTT Pathways].[All].[Incomplete including Audiology].[Incomplete]") ->  | AN10: =CUBEVALUE("PROD_PUBLIC_ONLY","[Commissioners].[Org Name].[All].["&B2&"]","[Date].[Short Month Year Label].[By Date].["&TEXT(AN6,"mmm-yy")&"]","[Measures].[RTT % Within 18 Weeks]","[RTT Pathway Type].[RTT Pathways].[All].[Incomplete including Audiology].[Incomplete]") ->  | AO10: =CUBEVALUE("PROD_PUBLIC_ONLY","[Commissioners].[Org Name].[All].["&B2&"]","[Date].[Short Month Year Label].[By Date].["&TEXT(AO6,"mmm-yy")&"]","[Measures].[RTT % Within 18 Weeks]","[RTT Pathway Type].[RTT Pathways].[All].[Incomplete including Audiology].[Incomplete]") ->  | AP10: =CUBEVALUE("PROD_PUBLIC_ONLY","[Commissioners].[Org Name].[All].["&B2&"]","[Date].[Short Month Year Label].[By Date].["&TEXT(AP6,"mmm-yy")&"]","[Measures].[RTT % Within 18 Weeks]","[RTT Pathway Type].[RTT Pathways].[All].[Incomplete including Audiology].[Incomplete]") -> 
A11: Number of patients waiting more than 52 weeks on incomplete pathways | B11: 0 | D11: =CUBEVALUE("PROD_PUBLIC_ONLY","[Commissioners].[Org Name].[All].["&B2&"]","[Date].[Fiscal Q Hierarchy].[All].["&$A5&"].["&$D5&"]","[Measures].[Gt52 Weeks - RTT]","[RTT Pathway Type].[RTT Pathways].[All].[Incomplete including Audiology].[Incomplete]") -> 0 | E11: =CUBEVALUE("PROD_PUBLIC_ONLY","[Commissioners].[Org Name].[All].["&B2&"]","[Date].[Fiscal Q Hierarchy].[All].["&$A5&"].["&$E5&"]","[Measures].[Gt52 Weeks - RTT]","[RTT Pathway Type].[RTT Pathways].[All].[Incomplete including Audiology].[Incomplete]") -> 0 | R11: =IF(D11=B11,"GREEN",IF(D11="NO DATA","NA",IF(D11>B11,"RED"))) -> GREEN | S11: =IF(E11=B11,"GREEN",IF(E11="NO DATA","NA",IF(E11>=B11,"RED"))) -> GREEN | T11: =IF(F11=B11,"GREEN",IF(F11="","NA",IF(F11>=B11,"RED"))) -> GREEN | U11: =IF(G11=B11,"GREEN",IF(G11="","NA",IF(G11>=B11,"RED"))) -> GREEN | V11: FULL QUARTER GREEN | W11: FULL QUARTER GREEN | X11: No Data | Y11: No Data | Z11: FALSE | AA11: FALSE | AE11: =CUBEVALUE("PROD_PUBLIC_ONLY","[Commissioners].[Org Name].[All].["&B2&"]","[Date].[Short Month Year Label].[By Date].["&TEXT(AE6,"mmm-yy")&"]","[Measures].[Gt52 Weeks - RTT]","[RTT Pathway Type].[RTT Pathways].[All].[Incomplete including Audiology].[Incomplete]",CUBESET("PROD_PUBLIC_ONLY","[Dim Data Status].[Data Status Hierarchy].[All].[PUBLIC]","Public data only")) -> 1 | AF11: =CUBEVALUE("PROD_PUBLIC_ONLY","[Commissioners].[Org Name].[All].["&B2&"]","[Date].[Short Month Year Label].[By Date].["&TEXT(AF6,"mmm-yy")&"]","[Measures].[Gt52 Weeks - RTT]","[RTT Pathway Type].[RTT Pathways].[All].[Incomplete including Audiology].[Incomplete]",CUBESET("PROD_PUBLIC_ONLY","[Dim Data Status].[Data Status Hierarchy].[All].[PUBLIC]","Public data only")) -> 0 | AG11: =CUBEVALUE("PROD_PUBLIC_ONLY","[Commissioners].[Org Name].[All].["&B2&"]","[Date].[Short Month Year Label].[By Date].["&TEXT(AG6,"mmm-yy")&"]","[Measures].[Gt52 Weeks - RTT]","[RTT Pathway Type].[RTT Pathways].[All].[Incomplete including Audiology].[Incomplete]",CUBESET("PROD_PUBLIC_ONLY","[Dim Data Status].[Data Status Hierarchy].[All].[PUBLIC]","Public data only")) -> 0 | AH11: =CUBEVALUE("PROD_PUBLIC_ONLY","[Commissioners].[Org Name].[All].["&B2&"]","[Date].[Short Month Year Label].[By Date].["&TEXT(AH6,"mmm-yy")&"]","[Measures].[Gt52 Weeks - RTT]","[RTT Pathway Type].[RTT Pathways].[All].[Incomplete including Audiology].[Incomplete]") -> 0 | AI11: =CUBEVALUE("PROD_PUBLIC_ONLY","[Commissioners].[Org Name].[All].["&B2&"]","[Date].[Short Month Year Label].[By Date].["&TEXT(AI6,"mmm-yy")&"]","[Measures].[Gt52 Weeks - RTT]","[RTT Pathway Type].[RTT Pathways].[All].[Incomplete including Audiology].[Incomplete]") -> 1 | AJ11: =CUBEVALUE("PROD_PUBLIC_ONLY","[Commissioners].[Org Name].[All].["&B2&"]","[Date].[Short Month Year Label].[By Date].["&TEXT(AJ6,"mmm-yy")&"]","[Measures].[Gt52 Weeks - RTT]","[RTT Pathway Type].[RTT Pathways].[All].[Incomplete including Audiology].[Incomplete]") -> 0 | AK11: =CUBEVALUE("PROD_PUBLIC_ONLY","[Commissioners].[Org Name].[All].["&B2&"]","[Date].[Short Month Year Label].[By Date].["&TEXT(AK6,"mmm-yy")&"]","[Measures].[Gt52 Weeks - RTT]","[RTT Pathway Type].[RTT Pathways].[All].[Incomplete including Audiology].[Incomplete]") ->  | AL11: =CUBEVALUE("PROD_PUBLIC_ONLY","[Commissioners].[Org Name].[All].["&B2&"]","[Date].[Short Month Year Label].[By Date].["&TEXT(AL6,"mmm-yy")&"]","[Measures].[Gt52 Weeks - RTT]","[RTT Pathway Type].[RTT Pathways].[All].[Incomplete including Audiology].[Incomplete]") ->  | AM11: =CUBEVALUE("PROD_PUBLIC_ONLY","[Commissioners].[Org Name].[All].["&B2&"]","[Date].[Short Month Year Label].[By Date].["&TEXT(AM6,"mmm-yy")&"]","[Measures].[Gt52 Weeks - RTT]","[RTT Pathway Type].[RTT Pathways].[All].[Incomplete including Audiology].[Incomplete]") ->  | AN11: =CUBEVALUE("PROD_PUBLIC_ONLY","[Commissioners].[Org Name].[All].["&B2&"]","[Date].[Short Month Year Label].[By Date].["&TEXT(AN6,"mmm-yy")&"]","[Measures].[Gt52 Weeks - RTT]","[RTT Pathway Type].[RTT Pathways].[All].[Incomplete including Audiology].[Incomplete]") ->  | AO11: =CUBEVALUE("PROD_PUBLIC_ONLY","[Commissioners].[Org Name].[All].["&B2&"]","[Date].[Short Month Year Label].[By Date].["&TEXT(AO6,"mmm-yy")&"]","[Measures].[Gt52 Weeks - RTT]","[RTT Pathway Type].[RTT Pathways].[All].[Incomplete including Audiology].[Incomplete]") ->  | AP11: =CUBEVALUE("PROD_PUBLIC_ONLY","[Commissioners].[Org Name].[All].["&B2&"]","[Date].[Short Month Year Label].[By Date].["&TEXT(AP6,"mmm-yy")&"]","[Measures].[Gt52 Weeks - RTT]","[RTT Pathway Type].[RTT Pathways].[All].[Incomplete including Audiology].[Incomplete]") -> 
A12: Diagnostic test waiting times | Z12: FALSE | AA12: FALSE
A13: Percentage of patients waiting 6 weeks or more for a diagnostic test (15 key tests) | B13: 0.01 | D13: =CUBEVALUE("PROD_PUBLIC_ONLY","[Commissioners].[Org Name].[All].["&B2&"]","[Date].[Fiscal Q Hierarchy].[All].["&$A5&"].["&$D5&"]","[Measures].[Actual Current Percentage Diagnostic Waits Over 6 weeks]") -> 0.01517825627 | E13: =CUBEVALUE("PROD_PUBLIC_ONLY","[Commissioners].[Org Name].[All].["&B2&"]","[Date].[Fiscal Q Hierarchy].[All].["&$A5&"].["&$E5&"]","[Measures].[Actual Current Percentage Diagnostic Waits Over 6 weeks]") -> 0.006653992395 | R13: =IF(D13>B13,"RED",IF(D13="NO DATA","NA",IF(D13<=B13,"GREEN"))) -> RED | S13: =IF(E13>1%,"RED",IF(E13="NO DATA","NA",IF(E13<=1%,"GREEN",))) -> GREEN | T13: =IF(F13="","NA",IF(F13>B13,"RED",IF(F13<=B13,"GREEN",))) -> NA | U13: =IF(G13="","NA",IF(G13>B13,"RED",IF(G13<=B13,"GREEN",))) -> NA | V13: FULL QUARTER RED | W13: =IF(AND(AH13="",AI13="",AJ13=""),"No Data",IF(AND(AI13="",AJ13="",S13="GREEN"),"1 MONTH DATA GREEN",IF(AND(AI13="",AJ13="",S13="RED"),"1 MONTH DATA RED",IF(AND(AJ13="",S13="GREEN"),"2 MONTH DATA GREEN",IF(AND(AJ13="",S13="RED"),"2 MONTH DATA RED",IF(AND(AI13="",AJ13=""),"1 MONTH DATA",IF(AND(AJ13=""),"2 MONTH DATA",IF(AND(AH13=AH13,AI13=AI13,AJ13=AJ13,S13="GREEN"),"FULL QUARTER GREEN",IF(AND(AH13=AH13,AI13=AI13,AJ13=AJ13,S13="RED"),"FULL QUARTER RED",))))))))) -> FULL QUARTER GREEN | X13: No Data | Y13: No Data | Z13: FALSE | AA13: =IF(W13 ="GREEN",1,IF(W13 ="AMBER",2,IF(W13 ="RED",3,IF(W13 =" "," ")))) -> FALSE | AE13: =CUBEVALUE("PROD_PUBLIC_ONLY","[Commissioners].[Org Name].[All].["&B2&"]","[Date].[Short Month Year Label].[By Date].["&TEXT(AE6,"mmm-yy")&"]","[Measures].[Actual Current Percentage Diagnostic Waits Over 6 weeks]",CUBESET("PROD_PUBLIC_ONLY","[Dim Data Status].[Data Status Hierarchy].[All].[PUBLIC]","Public data only")) -> 0.0103250478 | AF13: =CUBEVALUE("PROD_PUBLIC_ONLY","[Commissioners].[Org Name].[All].["&B2&"]","[Date].[Short Month Year Label].[By Date].["&TEXT(AF6,"mmm-yy")&"]","[Measures].[Actual Current Percentage Diagnostic Waits Over 6 weeks]",CUBESET("PROD_PUBLIC_ONLY","[Dim Data Status].[Data Status Hierarchy].[All].[PUBLIC]","Public data only")) -> 0.02185141041 | AG13: =CUBEVALUE("PROD_PUBLIC_ONLY","[Commissioners].[Org Name].[All].["&B2&"]","[Date].[Short Month Year Label].[By Date].["&TEXT(AG6,"mmm-yy")&"]","[Measures].[Actual Current Percentage Diagnostic Waits Over 6 weeks]") -> 0.01517825627 | AH13: =IFERROR(CUBEVALUE("PROD_PUBLIC_ONLY","[Commissioners].[Org Name].[All].["&$B$2&"]","[Date].[Short Month Year Label].[By Date].["&TEXT(AH6,"mmm-yy")&"]","[Measures].[Actual Current Percentage Diagnostic Waits Over 6 weeks]"),"") -> 0.008774678784 | AI13: =CUBEVALUE("PROD_PUBLIC_ONLY","[Commissioners].[Org Name].[All].["&B2&"]","[Date].[Short Month Year Label].[By Date].["&TEXT(AI6,"mmm-yy")&"]","[Measures].[Actual Current Percentage Diagnostic Waits Over 6 weeks]") -> 0.01836065574 | AJ13: =CUBEVALUE("PROD_PUBLIC_ONLY","[Commissioners].[Org Name].[All].["&B2&"]","[Date].[Short Month Year Label].[By Date].["&TEXT(AJ6,"mmm-yy")&"]","[Measures].[Actual Current Percentage Diagnostic Waits Over 6 weeks]") -> 0.006653992395 | AK13: =CUBEVALUE("PROD_PUBLIC_ONLY","[Commissioners].[Org Name].[All].["&B2&"]","[Date].[Short Month Year Label].[By Date].["&TEXT(AK6,"mmm-yy")&"]","[Measures].[Actual Current Percentage Diagnostic Waits Over 6 weeks]") ->  | AL13: =CUBEVALUE("PROD_PUBLIC_ONLY","[Commissioners].[Org Name].[All].["&B2&"]","[Date].[Short Month Year Label].[By Date].["&TEXT(AL6,"mmm-yy")&"]","[Measures].[Actual Current Percentage Diagnostic Waits Over 6 weeks]") ->  | AM13: =CUBEVALUE("PROD_PUBLIC_ONLY","[Commissioners].[Org Name].[All].["&B2&"]","[Date].[Short Month Year Label].[By Date].["&TEXT(AM6,"mmm-yy")&"]","[Measures].[Actual Current Percentage Diagnostic Waits Over 6 weeks]") ->  | AN13: =CUBEVALUE("PROD_PUBLIC_ONLY","[Commissioners].[Org Name].[All].["&B2&"]","[Date].[Short Month Year Label].[By Date].["&TEXT(AN6,"mmm-yy")&"]","[Measures].[Actual Current Percentage Diagnostic Waits Over 6 weeks]") ->  | AO13: =CUBEVALUE("PROD_PUBLIC_ONLY","[Commissioners].[Org Name].[All].["&B2&"]","[Date].[Short Month Year Label].[By Date].["&TEXT(AO6,"mmm-yy")&"]","[Measures].[Actual Current Percentage Diagnostic Waits Over 6 weeks]") ->  | AP13: =CUBEVALUE("PROD_PUBLIC_ONLY","[Commissioners].[Org Name].[All].["&B2&"]","[Date].[Short Month Year Label].[By Date].["&TEXT(AP6,"mmm-yy")&"]","[Measures].[Actual Current Percentage Diagnostic Waits Over 6 weeks]") -> 
A14: Cancer waits - Two-week waits | Z14: FALSE | AA14: FALSE
A15: Maximum two-week wait for first outpatient appointment for patients referred urgently with suspected cancer by a GP | B15: 0.93 | D15: =CUBEVALUE("PROD_PUBLIC_ONLY","[Commissioners].[Commissioners by Area Team].[Org Name].["&$B2&"]","[Date].[Fiscal Q Hierarchy].[All].["&$A5&"].["&$D5&"]","[Cancer Selections].[Cancer Hierarchy].[Cancer Record Description].&[Seen within 2 weeks of referral]","[Measures].[Actual Current Comm Cancer Percentage Treated within Target - Qtrly]") -> 0.9310148233 | E15: =CUBEVALUE("PROD_PUBLIC_ONLY","[Commissioners].[Commissioners by Area Team].[Org Name].["&$B2&"]","[Date].[Fiscal Q Hierarchy].[All].["&$A5&"].["&$E5&"]","[Cancer Selections].[Cancer Hierarchy].[Cancer Record Description].&[Seen within 2 weeks of referral]","[Measures].[Actual Current Comm Cancer Percentage Treated within Target - Qtrly]") -> 0.9385245902 | K15: =CUBEVALUE("PROD_PUBLIC_ONLY","[Commissioners].[Commissioners by Area Team].[Org Name].["&$B2&"]","[Date].[Fiscal Q Hierarchy].[All].["&$A5&"].["&$E5&"]","[Cancer Selections].[Cancer Hierarchy].[Cancer Record Description].&[Seen within 2 weeks of referral]","[Measures].[Actual Current Comm Cancer Total Treated - Qtrly]") -> 1708 | AH15: =CUBEVALUE("PROD_PUBLIC_ONLY","[Commissioners].[Org Name].[All].["&B2&"]","[Date].[Short Month Year Label].[By Date].["&TEXT(AH6,"mmm-yy")&"]","[Measures].[Actual Current Comm Cancer Percentage Treated within Target - Qtrly]") ->  | AI15: =CUBEVALUE("PROD_PUBLIC_ONLY","[Commissioners].[Org Name].[All].["&B2&"]","[Date].[Short Month Year Label].[By Date].["&TEXT(AI6,"mmm-yy")&"]","[Measures].[Actual Current Comm Cancer Percentage Treated within Target - Qtrly]") ->  | AJ15: =CUBEVALUE("PROD_PUBLIC_ONLY","[Commissioners].[Org Name].[All].["&B2&"]","[Date].[Short Month Year Label].[By Date].["&TEXT(AJ6,"mmm-yy")&"]","[Measures].[Actual Current Comm Cancer Percentage Treated within Target - Qtrly]") -> 0.9407937541 | AK15: =CUBEVALUE("PROD_PUBLIC_ONLY","[Commissioners].[Org Name].[All].["&B2&"]","[Date].[Short Month Year Label].[By Date].["&TEXT(AK6,"mmm-yy")&"]","[Measures].[Actual Current Comm Cancer Percentage Treated within Target - Qtrly]") ->  | AL15: =CUBEVALUE("PROD_PUBLIC_ONLY","[Commissioners].[Org Name].[All].["&B2&"]","[Date].[Short Month Year Label].[By Date].["&TEXT(AL6,"mmm-yy")&"]","[Measures].[Actual Current Comm Cancer Percentage Treated within Target - Qtrly]") ->  | AM15: =CUBEVALUE("PROD_PUBLIC_ONLY","[Commissioners].[Org Name].[All].["&B2&"]","[Date].[Short Month Year Label].[By Date].["&TEXT(AM6,"mmm-yy")&"]","[Measures].[Actual Current Comm Cancer Percentage Treated within Target - Qtrly]") ->  | AN15: =CUBEVALUE("PROD_PUBLIC_ONLY","[Commissioners].[Org Name].[All].["&B2&"]","[Date].[Short Month Year Label].[By Date].["&TEXT(AN6,"mmm-yy")&"]","[Measures].[Actual Current Comm Cancer Percentage Treated within Target - Qtrly]") ->  | AO15: =CUBEVALUE("PROD_PUBLIC_ONLY","[Commissioners].[Org Name].[All].["&B2&"]","[Date].[Short Month Year Label].[By Date].["&TEXT(AO6,"mmm-yy")&"]","[Measures].[Actual Current Comm Cancer Percentage Treated within Target - Qtrly]") ->  | AP15: =CUBEVALUE("PROD_PUBLIC_ONLY","[Commissioners].[Org Name].[All].["&B2&"]","[Date].[Short Month Year Label].[By Date].["&TEXT(AP6,"mmm-yy")&"]","[Measures].[Actual Current Comm Cancer Percentage Treated within Target - Qtrly]") -> 
A16: Maximum two-week wait for first outpatient appointment for patients referred urgently with breast symptoms (where cancer was not initially suspected) | B16: 0.93 | D16: =CUBEVALUE("PROD_PUBLIC_ONLY","[Commissioners].[Commissioners by Area Team].[Org Name].["&$B2&"]","[Date].[Fiscal Q Hierarchy].[All].["&$A5&"].["&$D5&"]","[Cancer Selections].[Cancer Hierarchy].[Cancer Record Description].&[Seen within 2 weeks of referral - Breast Symptoms]","[Measures].[Actual Current Comm Cancer Percentage Treated within Target - Qtrly]") -> 0.933908046 | E16: =CUBEVALUE("PROD_PUBLIC_ONLY","[Commissioners].[Commissioners by Area Team].[Org Name].["&$B2&"]","[Date].[Fiscal Q Hierarchy].[All].["&$A5&"].["&$E5&"]","[Cancer Selections].[Cancer Hierarchy].[Cancer Record Description].&[Seen within 2 weeks of referral - Breast Symptoms]","[Measures].[Actual Current Comm Cancer Percentage Treated within Target - Qtrly]") -> 0.9446254072 | K16: =CUBEVALUE("PROD_PUBLIC_ONLY","[Commissioners].[Commissioners by Area Team].[Org Name].["&$B2&"]","[Date].[Fiscal Q Hierarchy].[All].["&$A5&"].["&$E5&"]","[Cancer Selections].[Cancer Hierarchy].[Cancer Record Description].&[Seen within 2 weeks of referral - Breast Symptoms]","[Measures].[Actual Current Comm Cancer Total Treated - Qtrly]") -> 307 | AH16: =CUBEVALUE("PROD_PUBLIC_ONLY","[Commissioners].[Org Name].[All].["&B2&"]","[Date].[Short Month Year Label].[By Date].["&TEXT(AH6,"mmm-yy")&"]","[Measures].[Actual Current Comm Cancer Percentage Treated within Target - Qtrly]") ->  | AI16: =CUBEVALUE("PROD_PUBLIC_ONLY","[Commissioners].[Org Name].[All].["&B2&"]","[Date].[Short Month Year Label].[By Date].["&TEXT(AI6,"mmm-yy")&"]","[Measures].[Actual Current Comm Cancer Percentage Treated within Target - Qtrly]") ->  | AJ16: =CUBEVALUE("PROD_PUBLIC_ONLY","[Commissioners].[Org Name].[All].["&B2&"]","[Date].[Short Month Year Label].[By Date].["&TEXT(AJ6,"mmm-yy")&"]","[Measures].[Actual Current Comm Cancer Percentage Treated within Target - Qtrly]") -> 0.9407937541 | AK16: =CUBEVALUE("PROD_PUBLIC_ONLY","[Commissioners].[Org Name].[All].["&B2&"]","[Date].[Short Month Year Label].[By Date].["&TEXT(AK6,"mmm-yy")&"]","[Measures].[Actual Current Comm Cancer Percentage Treated within Target - Qtrly]") ->  | AL16: =CUBEVALUE("PROD_PUBLIC_ONLY","[Commissioners].[Org Name].[All].["&B2&"]","[Date].[Short Month Year Label].[By Date].["&TEXT(AL6,"mmm-yy")&"]","[Measures].[Actual Current Comm Cancer Percentage Treated within Target - Qtrly]") ->  | AM16: =CUBEVALUE("PROD_PUBLIC_ONLY","[Commissioners].[Org Name].[All].["&B2&"]","[Date].[Short Month Year Label].[By Date].["&TEXT(AM6,"mmm-yy")&"]","[Measures].[Actual Current Comm Cancer Percentage Treated within Target - Qtrly]") ->  | AN16: =CUBEVALUE("PROD_PUBLIC_ONLY","[Commissioners].[Org Name].[All].["&B2&"]","[Date].[Short Month Year Label].[By Date].["&TEXT(AN6,"mmm-yy")&"]","[Measures].[Actual Current Comm Cancer Percentage Treated within Target - Qtrly]") ->  | AO16: =CUBEVALUE("PROD_PUBLIC_ONLY","[Commissioners].[Org Name].[All].["&B2&"]","[Date].[Short Month Year Label].[By Date].["&TEXT(AO6,"mmm-yy")&"]","[Measures].[Actual Current Comm Cancer Percentage Treated within Target - Qtrly]") ->  | AP16: =CUBEVALUE("PROD_PUBLIC_ONLY","[Commissioners].[Org Name].[All].["&B2&"]","[Date].[Short Month Year Label].[By Date].["&TEXT(AP6,"mmm-yy")&"]","[Measures].[Actual Current Comm Cancer Percentage Treated within Target - Qtrly]") -> 
A17: Cancer waits - one month (31 days) wait
A18: Maximum 31-day wait from diagnosis to first definitive treatment for all cancers | B18: 0.96 | D18: =CUBEVALUE("PROD_PUBLIC_ONLY","[Commissioners].[Commissioners by Area Team].[Org Name].["&$B2&"]","[Date].[Fiscal Q Hierarchy].[All].["&$A5&"].["&$D5&"]","[Cancer Selections].[Cancer Hierarchy].[All].[Treated < 31 Days by Treatment Type]","[Measures].[Actual Current Comm Cancer Percentage Treated within Target - Qtrly]") -> 0.9781931464 | E18: =CUBEVALUE("PROD_PUBLIC_ONLY","[Commissioners].[Commissioners by Area Team].[Org Name].["&$B2&"]","[Date].[Fiscal Q Hierarchy].[All].["&$A5&"].["&$E5&"]","[Cancer Selections].[Cancer Hierarchy].[All].[Treated < 31 Days by Treatment Type]","[Measures].[Actual Current Comm Cancer Percentage Treated within Target - Qtrly]") -> 0.9789156627 | K18: =CUBEVALUE("PROD_PUBLIC_ONLY","[Commissioners].[Commissioners by Area Team].[Org Name].["&$B2&"]","[Date].[Fiscal Q Hierarchy].[All].["&$A5&"].["&$E5&"]","[Cancer Selections].[Cancer Hierarchy].[All].[Treated < 31 Days by Treatment Type]","[Measures].[Actual Current Comm Cancer Total Treated - Qtrly]") -> 332 | AH18: =CUBEVALUE("PROD_PUBLIC_ONLY","[Commissioners].[Org Name].[All].["&B2&"]","[Date].[Short Month Year Label].[By Date].["&TEXT(AH6,"mmm-yy")&"]","[Measures].[Actual Current Comm Cancer Percentage Treated within Target - Qtrly]") ->  | AI18: =CUBEVALUE("PROD_PUBLIC_ONLY","[Commissioners].[Org Name].[All].["&B2&"]","[Date].[Short Month Year Label].[By Date].["&TEXT(AI6,"mmm-yy")&"]","[Measures].[Actual Current Comm Cancer Percentage Treated within Target - Qtrly]") ->  | AJ18: =CUBEVALUE("PROD_PUBLIC_ONLY","[Commissioners].[Org Name].[All].["&B2&"]","[Date].[Short Month Year Label].[By Date].["&TEXT(AJ6,"mmm-yy")&"]","[Measures].[Actual Current Comm Cancer Percentage Treated within Target - Qtrly]") -> 0.9407937541 | AK18: =CUBEVALUE("PROD_PUBLIC_ONLY","[Commissioners].[Org Name].[All].["&B2&"]","[Date].[Short Month Year Label].[By Date].["&TEXT(AK6,"mmm-yy")&"]","[Measures].[Actual Current Comm Cancer Percentage Treated within Target - Qtrly]") ->  | AL18: =CUBEVALUE("PROD_PUBLIC_ONLY","[Commissioners].[Org Name].[All].["&B2&"]","[Date].[Short Month Year Label].[By Date].["&TEXT(AL6,"mmm-yy")&"]","[Measures].[Actual Current Comm Cancer Percentage Treated within Target - Qtrly]") ->  | AM18: =CUBEVALUE("PROD_PUBLIC_ONLY","[Commissioners].[Org Name].[All].["&B2&"]","[Date].[Short Month Year Label].[By Date].["&TEXT(AM6,"mmm-yy")&"]","[Measures].[Actual Current Comm Cancer Percentage Treated within Target - Qtrly]") ->  | AN18: =CUBEVALUE("PROD_PUBLIC_ONLY","[Commissioners].[Org Name].[All].["&B2&"]","[Date].[Short Month Year Label].[By Date].["&TEXT(AN6,"mmm-yy")&"]","[Measures].[Actual Current Comm Cancer Percentage Treated within Target - Qtrly]") ->  | AO18: =CUBEVALUE("PROD_PUBLIC_ONLY","[Commissioners].[Org Name].[All].["&B2&"]","[Date].[Short Month Year Label].[By Date].["&TEXT(AO6,"mmm-yy")&"]","[Measures].[Actual Current Comm Cancer Percentage Treated within Target - Qtrly]") ->  | AP18: =CUBEVALUE("PROD_PUBLIC_ONLY","[Commissioners].[Org Name].[All].["&B2&"]","[Date].[Short Month Year Label].[By Date].["&TEXT(AP6,"mmm-yy")&"]","[Measures].[Actual Current Comm Cancer Percentage Treated within Target - Qtrly]") -> 
A19: Maximum 31-day wait for subsequent treatment where that treatment is surgery | B19: 0.94 | D19: =CUBEVALUE("PROD_PUBLIC_ONLY","[Commissioners].[Commissioners by Area Team].[Org Name].["&$B2&"]","[Date].[Fiscal Q Hierarchy].[All].["&$A5&"].["&$D5&"]","[Cancer Selections].[Cancer Hierarchy].[All].[Treated < 31 Days Subsequent Treatment].[ Surgery]","[Measures].[Actual Current Comm Cancer Percentage Treated within Target - Qtrly]") -> 0.9285714286 | E19: =CUBEVALUE("PROD_PUBLIC_ONLY","[Commissioners].[Commissioners by Area Team].[Org Name].["&$B2&"]","[Date].[Fiscal Q Hierarchy].[All].["&$A5&"].["&$E5&"]","[Cancer Selections].[Cancer Hierarchy].[All].[Treated < 31 Days Subsequent Treatment].[ Surgery]","[Measures].[Actual Current Comm Cancer Percentage Treated within Target - Qtrly]") -> 0.9807692308 | K19: =CUBEVALUE("PROD_PUBLIC_ONLY","[Commissioners].[Commissioners by Area Team].[Org Name].["&$B2&"]","[Date].[Fiscal Q Hierarchy].[All].["&$A5&"].["&$E5&"]","[Cancer Selections].[Cancer Hierarchy].[Selection Key].&[405]","[Measures].[Actual Current Comm Cancer Total Treated - Qtrly]") -> 52 | AH19: =CUBEVALUE("PROD_PUBLIC_ONLY","[Commissioners].[Org Name].[All].["&B2&"]","[Date].[Short Month Year Label].[By Date].["&TEXT(AH6,"mmm-yy")&"]","[Measures].[Actual Current Comm Cancer Percentage Treated within Target - Qtrly]") ->  | AI19: =CUBEVALUE("PROD_PUBLIC_ONLY","[Commissioners].[Org Name].[All].["&B2&"]","[Date].[Short Month Year Label].[By Date].["&TEXT(AI6,"mmm-yy")&"]","[Measures].[Actual Current Comm Cancer Percentage Treated within Target - Qtrly]") ->  | AJ19: =CUBEVALUE("PROD_PUBLIC_ONLY","[Commissioners].[Org Name].[All].["&B2&"]","[Date].[Short Month Year Label].[By Date].["&TEXT(AJ6,"mmm-yy")&"]","[Measures].[Actual Current Comm Cancer Percentage Treated within Target - Qtrly]") -> 0.9407937541 | AK19: =CUBEVALUE("PROD_PUBLIC_ONLY","[Commissioners].[Org Name].[All].["&B2&"]","[Date].[Short Month Year Label].[By Date].["&TEXT(AK6,"mmm-yy")&"]","[Measures].[Actual Current Comm Cancer Percentage Treated within Target - Qtrly]") ->  | AL19: =CUBEVALUE("PROD_PUBLIC_ONLY","[Commissioners].[Org Name].[All].["&B2&"]","[Date].[Short Month Year Label].[By Date].["&TEXT(AL6,"mmm-yy")&"]","[Measures].[Actual Current Comm Cancer Percentage Treated within Target - Qtrly]") ->  | AM19: =CUBEVALUE("PROD_PUBLIC_ONLY","[Commissioners].[Org Name].[All].["&B2&"]","[Date].[Short Month Year Label].[By Date].["&TEXT(AM6,"mmm-yy")&"]","[Measures].[Actual Current Comm Cancer Percentage Treated within Target - Qtrly]") ->  | AN19: =CUBEVALUE("PROD_PUBLIC_ONLY","[Commissioners].[Org Name].[All].["&B2&"]","[Date].[Short Month Year Label].[By Date].["&TEXT(AN6,"mmm-yy")&"]","[Measures].[Actual Current Comm Cancer Percentage Treated within Target - Qtrly]") ->  | AO19: =CUBEVALUE("PROD_PUBLIC_ONLY","[Commissioners].[Org Name].[All].["&B2&"]","[Date].[Short Month Year Label].[By Date].["&TEXT(AO6,"mmm-yy")&"]","[Measures].[Actual Current Comm Cancer Percentage Treated within Target - Qtrly]") ->  | AP19: =CUBEVALUE("PROD_PUBLIC_ONLY","[Commissioners].[Org Name].[All].["&B2&"]","[Date].[Short Month Year Label].[By Date].["&TEXT(AP6,"mmm-yy")&"]","[Measures].[Actual Current Comm Cancer Percentage Treated within Target - Qtrly]") -> 
A20: Maximum 31-day wait for subsequent treatment where the treatment is an anti-cancer drug regimen | B20: 0.98 | D20: =CUBEVALUE("PROD_PUBLIC_ONLY","[Commissioners].[Commissioners by Area Team].[Org Name].["&$B2&"]","[Date].[Fiscal Q Hierarchy].[All].["&$A5&"].["&$D5&"]","[Cancer Selections].[Cancer Hierarchy].[All].[Treated < 31 Days Subsequent Treatment].[ Drug Treatments]","[Measures].[Actual Current Comm Cancer Percentage Treated within Target - Qtrly]") -> 1 | E20: =CUBEVALUE("PROD_PUBLIC_ONLY","[Commissioners].[Commissioners by Area Team].[Org Name].["&$B2&"]","[Date].[Fiscal Q Hierarchy].[All].["&$A5&"].["&$E5&"]","[Cancer Selections].[Cancer Hierarchy].[All].[Treated < 31 Days Subsequent Treatment].[ Drug Treatments]","[Measures].[Actual Current Comm Cancer Percentage Treated within Target - Qtrly]") -> 1 | K20: =CUBEVALUE("PROD_PUBLIC_ONLY","[Commissioners].[Commissioners by Area Team].[Org Name].["&$B2&"]","[Date].[Fiscal Q Hierarchy].[All].["&$A5&"].["&$E5&"]","[Cancer Selections].[Cancer Hierarchy].[All].[Treated < 31 Days Subsequent Treatment].[ Drug Treatments]","[Measures].[Actual Current Comm Cancer Total Treated - Qtrly]") -> 110 | AH20: =CUBEVALUE("PROD_PUBLIC_ONLY","[Commissioners].[Org Name].[All].["&B2&"]","[Date].[Short Month Year Label].[By Date].["&TEXT(AH6,"mmm-yy")&"]","[Measures].[Actual Current Comm Cancer Percentage Treated within Target - Qtrly]") ->  | AI20: =CUBEVALUE("PROD_PUBLIC_ONLY","[Commissioners].[Org Name].[All].["&B2&"]","[Date].[Short Month Year Label].[By Date].["&TEXT(AI6,"mmm-yy")&"]","[Measures].[Actual Current Comm Cancer Percentage Treated within Target - Qtrly]") ->  | AJ20: =CUBEVALUE("PROD_PUBLIC_ONLY","[Commissioners].[Org Name].[All].["&B2&"]","[Date].[Short Month Year Label].[By Date].["&TEXT(AJ6,"mmm-yy")&"]","[Measures].[Actual Current Comm Cancer Percentage Treated within Target - Qtrly]") -> 0.9407937541 | AK20: =CUBEVALUE("PROD_PUBLIC_ONLY","[Commissioners].[Org Name].[All].["&B2&"]","[Date].[Short Month Year Label].[By Date].["&TEXT(AK6,"mmm-yy")&"]","[Measures].[Actual Current Comm Cancer Percentage Treated within Target - Qtrly]") ->  | AL20: =CUBEVALUE("PROD_PUBLIC_ONLY","[Commissioners].[Org Name].[All].["&B2&"]","[Date].[Short Month Year Label].[By Date].["&TEXT(AL6,"mmm-yy")&"]","[Measures].[Actual Current Comm Cancer Percentage Treated within Target - Qtrly]") ->  | AM20: =CUBEVALUE("PROD_PUBLIC_ONLY","[Commissioners].[Org Name].[All].["&B2&"]","[Date].[Short Month Year Label].[By Date].["&TEXT(AM6,"mmm-yy")&"]","[Measures].[Actual Current Comm Cancer Percentage Treated within Target - Qtrly]") ->  | AN20: =CUBEVALUE("PROD_PUBLIC_ONLY","[Commissioners].[Org Name].[All].["&B2&"]","[Date].[Short Month Year Label].[By Date].["&TEXT(AN6,"mmm-yy")&"]","[Measures].[Actual Current Comm Cancer Percentage Treated within Target - Qtrly]") ->  | AO20: =CUBEVALUE("PROD_PUBLIC_ONLY","[Commissioners].[Org Name].[All].["&B2&"]","[Date].[Short Month Year Label].[By Date].["&TEXT(AO6,"mmm-yy")&"]","[Measures].[Actual Current Comm Cancer Percentage Treated within Target - Qtrly]") ->  | AP20: =CUBEVALUE("PROD_PUBLIC_ONLY","[Commissioners].[Org Name].[All].["&B2&"]","[Date].[Short Month Year Label].[By Date].["&TEXT(AP6,"mmm-yy")&"]","[Measures].[Actual Current Comm Cancer Percentage Treated within Target - Qtrly]") -> 
A21: Maximum 31-day wait for subsequent treatment where the treatment is a course of radiotherapy | B21: 0.94 | D21: =CUBEVALUE("PROD_PUBLIC_ONLY","[Commissioners].[Commissioners by Area Team].[Org Name].["&$B2&"]","[Date].[Fiscal Q Hierarchy].[All].["&$A5&"].["&$D5&"]","[Cancer Selections].[Cancer Hierarchy].[All].[Treated < 31 Days Subsequent Treatment].[ Radiotherapy Treatments]","[Measures].[Actual Current Comm Cancer Percentage Treated within Target - Qtrly]") -> 1 | E21: =CUBEVALUE("PROD_PUBLIC_ONLY","[Commissioners].[Commissioners by Area Team].[Org Name].["&$B2&"]","[Date].[Fiscal Q Hierarchy].[All].["&$A5&"].["&$E5&"]","[Cancer Selections].[Cancer Hierarchy].[All].[Treated < 31 Days Subsequent Treatment].[ Radiotherapy Treatments]","[Measures].[Actual Current Comm Cancer Percentage Treated within Target - Qtrly]") -> 0.9708737864 | K21: =CUBEVALUE("PROD_PUBLIC_ONLY","[Commissioners].[Commissioners by Area Team].[Org Name].["&$B2&"]","[Date].[Fiscal Q Hierarchy].[All].["&$A5&"].["&$E5&"]","[Cancer Selections].[Cancer Hierarchy].[Selection Key].&[404]","[Measures].[Actual Current Comm Cancer Total Treated - Qtrly]") -> 103 | AH21: =CUBEVALUE("PROD_PUBLIC_ONLY","[Commissioners].[Org Name].[All].["&B2&"]","[Date].[Short Month Year Label].[By Date].["&TEXT(AH6,"mmm-yy")&"]","[Measures].[Actual Current Comm Cancer Percentage Treated within Target - Qtrly]") ->  | AI21: =CUBEVALUE("PROD_PUBLIC_ONLY","[Commissioners].[Org Name].[All].["&B2&"]","[Date].[Short Month Year Label].[By Date].["&TEXT(AI6,"mmm-yy")&"]","[Measures].[Actual Current Comm Cancer Percentage Treated within Target - Qtrly]") ->  | AJ21: =CUBEVALUE("PROD_PUBLIC_ONLY","[Commissioners].[Org Name].[All].["&B2&"]","[Date].[Short Month Year Label].[By Date].["&TEXT(AJ6,"mmm-yy")&"]","[Measures].[Actual Current Comm Cancer Percentage Treated within Target - Qtrly]") -> 0.9407937541 | AK21: =CUBEVALUE("PROD_PUBLIC_ONLY","[Commissioners].[Org Name].[All].["&B2&"]","[Date].[Short Month Year Label].[By Date].["&TEXT(AK6,"mmm-yy")&"]","[Measures].[Actual Current Comm Cancer Percentage Treated within Target - Qtrly]") ->  | AL21: =CUBEVALUE("PROD_PUBLIC_ONLY","[Commissioners].[Org Name].[All].["&B2&"]","[Date].[Short Month Year Label].[By Date].["&TEXT(AL6,"mmm-yy")&"]","[Measures].[Actual Current Comm Cancer Percentage Treated within Target - Qtrly]") ->  | AM21: =CUBEVALUE("PROD_PUBLIC_ONLY","[Commissioners].[Org Name].[All].["&B2&"]","[Date].[Short Month Year Label].[By Date].["&TEXT(AM6,"mmm-yy")&"]","[Measures].[Actual Current Comm Cancer Percentage Treated within Target - Qtrly]") ->  | AN21: =CUBEVALUE("PROD_PUBLIC_ONLY","[Commissioners].[Org Name].[All].["&B2&"]","[Date].[Short Month Year Label].[By Date].["&TEXT(AN6,"mmm-yy")&"]","[Measures].[Actual Current Comm Cancer Percentage Treated within Target - Qtrly]") ->  | AO21: =CUBEVALUE("PROD_PUBLIC_ONLY","[Commissioners].[Org Name].[All].["&B2&"]","[Date].[Short Month Year Label].[By Date].["&TEXT(AO6,"mmm-yy")&"]","[Measures].[Actual Current Comm Cancer Percentage Treated within Target - Qtrly]") ->  | AP21: =CUBEVALUE("PROD_PUBLIC_ONLY","[Commissioners].[Org Name].[All].["&B2&"]","[Date].[Short Month Year Label].[By Date].["&TEXT(AP6,"mmm-yy")&"]","[Measures].[Actual Current Comm Cancer Percentage Treated within Target - Qtrly]") -> 
A22: Cancer waits - 2 month (62 days) waits
A23: Maximum 62-day wait from urgent GP referral to first definitive treatment for cancer | B23: 0.85 | D23: =CUBEVALUE("PROD_PUBLIC_ONLY","[Commissioners].[Commissioners by Area Team].[Org Name].["&$B2&"]","[Date].[Fiscal Q Hierarchy].[All].["&$A5&"].["&$D5&"]","[Cancer Selections].[Cancer Hierarchy].[Cancer Record Description].&[Treated < 62 Days - including rare cancers]","[Measures].[Actual Current Comm Cancer Percentage Treated within Target - Qtrly]") -> 0.9064327485 | E23: =CUBEVALUE("PROD_PUBLIC_ONLY","[Commissioners].[Commissioners by Area Team].[Org Name].["&$B2&"]","[Date].[Fiscal Q Hierarchy].[All].["&$A5&"].["&$E5&"]","[Cancer Selections].[Cancer Hierarchy].[Cancer Record Description].&[Treated < 62 Days - including rare cancers]","[Measures].[Actual Current Comm Cancer Percentage Treated within Target - Qtrly]") -> 0.8768115942 | K23: =CUBEVALUE("PROD_PUBLIC_ONLY","[Commissioners].[Commissioners by Area Team].[Org Name].["&$B2&"]","[Date].[Fiscal Q Hierarchy].[All].["&$A5&"].["&$E5&"]","[Cancer Selections].[Cancer Hierarchy].[Cancer Record Description].&[Treated < 62 Days - including rare cancers]","[Measures].[Actual Current Comm Cancer Total Treated - Qtrly]") -> 138 | AH23: =CUBEVALUE("PROD_PUBLIC_ONLY","[Commissioners].[Org Name].[All].["&B2&"]","[Date].[Short Month Year Label].[By Date].["&TEXT(AH6,"mmm-yy")&"]","[Measures].[Actual Current Comm Cancer Percentage Treated within Target - Qtrly]") ->  | AI23: =CUBEVALUE("PROD_PUBLIC_ONLY","[Commissioners].[Org Name].[All].["&B2&"]","[Date].[Short Month Year Label].[By Date].["&TEXT(AI6,"mmm-yy")&"]","[Measures].[Actual Current Comm Cancer Percentage Treated within Target - Qtrly]") ->  | AJ23: =CUBEVALUE("PROD_PUBLIC_ONLY","[Commissioners].[Org Name].[All].["&B2&"]","[Date].[Short Month Year Label].[By Date].["&TEXT(AJ6,"mmm-yy")&"]","[Measures].[Actual Current Comm Cancer Percentage Treated within Target - Qtrly]") -> 0.9407937541 | AK23: =CUBEVALUE("PROD_PUBLIC_ONLY","[Commissioners].[Org Name].[All].["&B2&"]","[Date].[Short Month Year Label].[By Date].["&TEXT(AK6,"mmm-yy")&"]","[Measures].[Actual Current Comm Cancer Percentage Treated within Target - Qtrly]") ->  | AL23: =CUBEVALUE("PROD_PUBLIC_ONLY","[Commissioners].[Org Name].[All].["&B2&"]","[Date].[Short Month Year Label].[By Date].["&TEXT(AL6,"mmm-yy")&"]","[Measures].[Actual Current Comm Cancer Percentage Treated within Target - Qtrly]") ->  | AM23: =CUBEVALUE("PROD_PUBLIC_ONLY","[Commissioners].[Org Name].[All].["&B2&"]","[Date].[Short Month Year Label].[By Date].["&TEXT(AM6,"mmm-yy")&"]","[Measures].[Actual Current Comm Cancer Percentage Treated within Target - Qtrly]") ->  | AN23: =CUBEVALUE("PROD_PUBLIC_ONLY","[Commissioners].[Org Name].[All].["&B2&"]","[Date].[Short Month Year Label].[By Date].["&TEXT(AN6,"mmm-yy")&"]","[Measures].[Actual Current Comm Cancer Percentage Treated within Target - Qtrly]") ->  | AO23: =CUBEVALUE("PROD_PUBLIC_ONLY","[Commissioners].[Org Name].[All].["&B2&"]","[Date].[Short Month Year Label].[By Date].["&TEXT(AO6,"mmm-yy")&"]","[Measures].[Actual Current Comm Cancer Percentage Treated within Target - Qtrly]") ->  | AP23: =CUBEVALUE("PROD_PUBLIC_ONLY","[Commissioners].[Org Name].[All].["&B2&"]","[Date].[Short Month Year Label].[By Date].["&TEXT(AP6,"mmm-yy")&"]","[Measures].[Actual Current Comm Cancer Percentage Treated within Target - Qtrly]") -> 
A24: Maximum 62-day wait from referral from an NHS screening service to first definitive treatment for all cancers | B24: 0.9 | D24: =CUBEVALUE("PROD_PUBLIC_ONLY","[Commissioners].[Commissioners by Area Team].[Org Name].["&$B2&"]","[Date].[Fiscal Q Hierarchy].[All].["&$A5&"].["&$D5&"]","[Cancer Selections].[Cancer Hierarchy].[Cancer Record Description].&[Treated <62 Days - Screening]","[Measures].[Actual Current Comm Cancer Percentage Treated within Target - Qtrly]") -> 0.9230769231 | E24: =CUBEVALUE("PROD_PUBLIC_ONLY","[Commissioners].[Commissioners by Area Team].[Org Name].["&$B2&"]","[Date].[Fiscal Q Hierarchy].[All].["&$A5&"].["&$E5&"]","[Cancer Selections].[Cancer Hierarchy].[Cancer Record Description].&[Treated <62 Days - Screening]","[Measures].[Actual Current Comm Cancer Percentage Treated within Target - Qtrly]") -> 1 | K24: =CUBEVALUE("PROD_PUBLIC_ONLY","[Commissioners].[Commissioners by Area Team].[Org Name].["&$B2&"]","[Date].[Fiscal Q Hierarchy].[All].["&$A5&"].["&$E5&"]","[Cancer Selections].[Cancer Hierarchy].[Cancer Record Description].&[Treated <62 Days - Screening]","[Measures].[Actual Current Comm Cancer Total Treated - Qtrly]") -> 21 | AH24: =CUBEVALUE("PROD_PUBLIC_ONLY","[Commissioners].[Org Name].[All].["&B2&"]","[Date].[Short Month Year Label].[By Date].["&TEXT(AH6,"mmm-yy")&"]","[Measures].[Actual Current Comm Cancer Percentage Treated within Target - Qtrly]") ->  | AI24: =CUBEVALUE("PROD_PUBLIC_ONLY","[Commissioners].[Org Name].[All].["&B2&"]","[Date].[Short Month Year Label].[By Date].["&TEXT(AI6,"mmm-yy")&"]","[Measures].[Actual Current Comm Cancer Percentage Treated within Target - Qtrly]") ->  | AJ24: =CUBEVALUE("PROD_PUBLIC_ONLY","[Commissioners].[Org Name].[All].["&B2&"]","[Date].[Short Month Year Label].[By Date].["&TEXT(AJ6,"mmm-yy")&"]","[Measures].[Actual Current Comm Cancer Percentage Treated within Target - Qtrly]") -> 0.9407937541 | AK24: =CUBEVALUE("PROD_PUBLIC_ONLY","[Commissioners].[Org Name].[All].["&B2&"]","[Date].[Short Month Year Label].[By Date].["&TEXT(AK6,"mmm-yy")&"]","[Measures].[Actual Current Comm Cancer Percentage Treated within Target - Qtrly]") ->  | AL24: =CUBEVALUE("PROD_PUBLIC_ONLY","[Commissioners].[Org Name].[All].["&B2&"]","[Date].[Short Month Year Label].[By Date].["&TEXT(AL6,"mmm-yy")&"]","[Measures].[Actual Current Comm Cancer Percentage Treated within Target - Qtrly]") ->  | AM24: =CUBEVALUE("PROD_PUBLIC_ONLY","[Commissioners].[Org Name].[All].["&B2&"]","[Date].[Short Month Year Label].[By Date].["&TEXT(AM6,"mmm-yy")&"]","[Measures].[Actual Current Comm Cancer Percentage Treated within Target - Qtrly]") ->  | AN24: =CUBEVALUE("PROD_PUBLIC_ONLY","[Commissioners].[Org Name].[All].["&B2&"]","[Date].[Short Month Year Label].[By Date].["&TEXT(AN6,"mmm-yy")&"]","[Measures].[Actual Current Comm Cancer Percentage Treated within Target - Qtrly]") ->  | AO24: =CUBEVALUE("PROD_PUBLIC_ONLY","[Commissioners].[Org Name].[All].["&B2&"]","[Date].[Short Month Year Label].[By Date].["&TEXT(AO6,"mmm-yy")&"]","[Measures].[Actual Current Comm Cancer Percentage Treated within Target - Qtrly]") ->  | AP24: =CUBEVALUE("PROD_PUBLIC_ONLY","[Commissioners].[Org Name].[All].["&B2&"]","[Date].[Short Month Year Label].[By Date].["&TEXT(AP6,"mmm-yy")&"]","[Measures].[Actual Current Comm Cancer Percentage Treated within Target - Qtrly]") -> 
A25: Maximum 62-day wait for first definitive treatment following a consultants decision to upgrade the priority of the patients (all cancers) | B25: No operational standard | D25: =IFERROR(CUBEVALUE("PROD_PUBLIC_ONLY","[Commissioners].[Commissioners by Area Team].[Org Name].["&$B2&"]","[Date].[Fiscal Q Hierarchy].[All].["&$A5&"].["&$D5&"]","[Cancer Selections].[Cancer Hierarchy].[Cancer Record Description].&[Treated <62 Days - Consultant Upgrade]","[Measures].[Actual Current Comm Cancer Percentage Treated within Target - Qtrly]"),"") -> 0.9175257732 | E25: =IFERROR(CUBEVALUE("PROD_PUBLIC_ONLY","[Commissioners].[Commissioners by Area Team].[Org Name].["&$B2&"]","[Date].[Fiscal Q Hierarchy].[All].["&$A5&"].["&$E5&"]","[Cancer Selections].[Cancer Hierarchy].[Cancer Record Description].&[Treated <62 Days - Consultant Upgrade]","[Measures].[Actual Current Comm Cancer Percentage Treated within Target - Qtrly]"),"") -> 0.8939393939
A26: Mixed-Sex Accommodation
A27: Breaches of Mixed-Sex Accommodation | B27: 0 | D27: =IFERROR(IF(CUBEMEMBER("PROD_PUBLIC_ONLY","[Date].[Working Days].[Short Month Year Label].["&CUBEVALUE("PROD_PUBLIC_ONLY","[Measures].[Period Current MSA]")&"].lastchild") < CUBEMEMBER("PROD_PUBLIC_ONLY","[Date].[Working Days].[Fiscal Year Qtr Name].["&D$5&"].lastchild.lastchild"),"",CUBEVALUE("PROD_PUBLIC_ONLY","[Commissioners].[Org Name].[All].["&$B$2&"]","[Date].[Fiscal Q Hierarchy].[All].["&$A5&"].["&D$5&"]","[Measures].[Mixed Sex Breaches]")*1),0) -> 0 | E27: =IFERROR(IF(CUBEMEMBER("PROD_PUBLIC_ONLY","[Date].[Working Days].[Short Month Year Label].["&CUBEVALUE("PROD_PUBLIC_ONLY","[Measures].[Period Current MSA]")&"].lastchild") < CUBEMEMBER("PROD_PUBLIC_ONLY","[Date].[Working Days].[Fiscal Year Qtr Name].["&E$5&"].lastchild.lastchild"),"",CUBEVALUE("PROD_PUBLIC_ONLY","[Commissioners].[Org Name].[All].["&$B$2&"]","[Date].[Fiscal Q Hierarchy].[All].["&$A5&"].["&E$5&"]","[Measures].[Mixed Sex Breaches]")*1),0) -> 0 | F27: =IFERROR(IF(CUBEMEMBER("PROD_PUBLIC_ONLY","[Date].[Working Days].[Short Month Year Label].["&CUBEVALUE("PROD_PUBLIC_ONLY","[Measures].[Period Current MSA]")&"].lastchild") < CUBEMEMBER("PROD_PUBLIC_ONLY","[Date].[Working Days].[Fiscal Year Qtr Name].["&F$5&"].lastchild.lastchild"),"",CUBEVALUE("PROD_PUBLIC_ONLY","[Commissioners].[Org Name].[All].["&$B$2&"]","[Date].[Fiscal Q Hierarchy].[All].["&$A5&"].["&F$5&"]","[Measures].[Mixed Sex Breaches]")*1),0) ->  | G27: =IFERROR(IF(CUBEMEMBER("PROD_PUBLIC_ONLY","[Date].[Working Days].[Short Month Year Label].["&CUBEVALUE("PROD_PUBLIC_ONLY","[Measures].[Period Current MSA]")&"].lastchild") < CUBEMEMBER("PROD_PUBLIC_ONLY","[Date].[Working Days].[Fiscal Year Qtr Name].["&G$5&"].lastchild.lastchild"),"",CUBEVALUE("PROD_PUBLIC_ONLY","[Commissioners].[Org Name].[All].["&$B$2&"]","[Date].[Fiscal Q Hierarchy].[All].["&$A5&"].["&G$5&"]","[Measures].[Mixed Sex Breaches]")*1),0) ->  | R27: =IF(D27="","GREEN",IF(D27=B27,"GREEN",IF(D27>B27,"RED"))) -> GREEN | S27: =IF(E27="","",IF(E27=B27,"GREEN",IF(E27>B5,"RED"))) -> GREEN | T27: =IF(F27="","",IF(F27=B27,"GREEN",IF(F27>B27,"RED"))) ->  | U27: =IF(G27="","",IF(G27=B27,"GREEN",IF(G27>B27,"RED"))) ->  | V27: =IF(AND(AE27="",AF27="",AG27=""),"No Data",IF(AND(AF27="",AG27="",R27="GREEN"),"1 MONTH DATA GREEN",IF(AND(AF27="",AG27="",R27="RED"),"1 MONTH DATA RED",IF(AND(AG27="",R27="GREEN"),"2 MONTH DATA GREEN",IF(AND(AG27="",R27="RED"),"2 MONTH DATA RED",IF(AND(AF27="",AG27=""),"1 MONTH DATA",IF(AND(AG27=""),"2 MONTH DATA",IF(AND(AE27=AE27,AF27=AF27,AG27=AG27,R27="GREEN"),"FULL QUARTER GREEN",IF(AND(AE27=AE27,AF27=AF27,AG27=AG27,R27="RED"),"FULL QUARTER RED",))))))))) -> FULL QUARTER GREEN | W27: =IF(AND(AH27="",AI27="",AJ27=""),"No Data",IF(AND(AI27="",AJ27="",S27="GREEN"),"1 MONTH DATA GREEN",IF(AND(AI27="",AJ27="",S27="RED"),"1 MONTH DATA RED",IF(AND(AJ27="",S27="GREEN"),"2 MONTH DATA GREEN",IF(AND(AJ27="",S27="RED"),"2 MONTH DATA RED",IF(AND(AI27="",AJ27=""),"1 MONTH DATA",IF(AND(AJ27=""),"2 MONTH DATA",IF(AND(AH27=AH27,AI27=AI27,AJ27=AJ27,S27="GREEN"),"FULL QUARTER GREEN",IF(AND(AH27=AH27,AI27=AI27,AJ27=AJ27,S27="RED"),"FULL QUARTER RED",))))))))) -> 2 MONTH DATA GREEN | X27: =IF(AND(AK27="",AL27="",AM27=""),"No Data",IF(AND(AL27="",AM27="",T27="GREEN"),"1 MONTH DATA GREEN",IF(AND(AL27="",AM27="",T27="RED"),"1 MONTH DATA RED",IF(AND(AM27="",T27="GREEN"),"2 MONTH DATA GREEN",IF(AND(AM27="",T27="RED"),"2 MONTH DATA RED",IF(AND(AL27="",AM27=""),"1 MONTH DATA",IF(AND(AM27=""),"2 MONTH DATA",IF(AND(AK27=AK27,AL27=AL27,AM27=AM27,T27="GREEN"),"FULL QUARTER GREEN",IF(AND(AK27=AK27,AL27=AL27,AM27=AM27,T27="RED"),"FULL QUARTER RED",))))))))) -> 0 | Y27: =IF(AND(AN27="",AO27="",AP27=""),"No Data",IF(AND(AO27="",AP27="",U27="GREEN"),"1 MONTH DATA GREEN",IF(AND(AO27="",AP27="",U27="RED"),"1 MONTH DATA RED",IF(AND(AP27="",U27="GREEN"),"2 MONTH DATA GREEN",IF(AND(AP27="",U27="RED"),"2 MONTH DATA RED",IF(AND(AO27="",AP27=""),"1 MONTH DATA",IF(AND(AP27=""),"2 MONTH DATA",IF(AND(AN27=AN27,AO27=AO27,AP27=AP27,U27="GREEN"),"FULL QUARTER GREEN",IF(AND(AN27=AN27,AO27=AO27,AP27=AP27,U27="RED"),"FULL QUARTER RED",))))))))) -> 0 | Z27: FALSE | AA27: FALSE | AE27: =IFERROR(CUBEVALUE("PROD_PUBLIC_ONLY","[Commissioners].[Org Name].[All].["&B2&"]","[Date].[Short Month Year Label].[By Date].["&TEXT(AE6,"mmm-yy")&"]","[Measures].[Mixed Sex Breaches]","[Dim Data Status].[Data Status Hierarchy].[All].[PUBLIC]")*1,0) -> 0 | AF27: =IFERROR(CUBEVALUE("PROD_PUBLIC_ONLY","[Commissioners].[Org Name].[All].["&B2&"]","[Date].[Short Month Year Label].[By Date].["&TEXT(AF6,"mmm-yy")&"]","[Measures].[Mixed Sex Breaches]","[Dim Data Status].[Data Status Hierarchy].[All].[PUBLIC]")*1,0) -> 0 | AG27: =IFERROR(CUBEVALUE("PROD_PUBLIC_ONLY","[Commissioners].[Org Name].[All].["&B2&"]","[Date].[Short Month Year Label].[By Date].["&TEXT(AG6,"mmm-yy")&"]","[Measures].[Mixed Sex Breaches]","[Dim Data Status].[Data Status Hierarchy].[All].[PUBLIC]")*1,0) -> 0 | AH27: =IFERROR(CUBEVALUE("PROD_PUBLIC_ONLY","[Commissioners].[Org Name].[All].["&B2&"]","[Date].[Short Month Year Label].[By Date].["&TEXT(AH6,"mmm-yy")&"]","[Measures].[Mixed Sex Breaches]","[Dim Data Status].[Data Status Hierarchy].[All].[PUBLIC]")*1,0) -> 0 | AI27: =IFERROR(CUBEVALUE("PROD_PUBLIC_ONLY","[Commissioners].[Org Name].[All].["&B2&"]","[Date].[Short Month Year Label].[By Date].["&TEXT(AI6,"mmm-yy")&"]","[Measures].[Mixed Sex Breaches]","[Dim Data Status].[Data Status Hierarchy].[All].[PUBLIC]")*1,0) -> 0 | AJ27: =CUBEVALUE("PROD_PUBLIC_ONLY","[Commissioners].[Org Name].[All].["&B2&"]","[Date].[Short Month Year Label].[By Date].["&TEXT(AJ6,"mmm-yy")&"]","[Measures].[Mixed Sex Breaches]","[Dim Data Status].[Data Status Hierarchy].[All].[PUBLIC]") ->  | AK27: =IFERROR(CUBEVALUE("PROD_PUBLIC_ONLY","[Commissioners].[Org Name].[All].["&B2&"]","[Date].[Short Month Year Label].[By Date].["&TEXT(AK6,"mmm-yy")&"]","[Measures].[Mixed Sex Breaches]","[Dim Data Status].[Data Status Hierarchy].[All].[PUBLIC]")*1,0) -> 0 | AL27: =IFERROR(CUBEVALUE("PROD_PUBLIC_ONLY","[Commissioners].[Org Name].[All].["&B2&"]","[Date].[Short Month Year Label].[By Date].["&TEXT(AL6,"mmm-yy")&"]","[Measures].[Mixed Sex Breaches]","[Dim Data Status].[Data Status Hierarchy].[All].[PUBLIC]")*1,0) -> 0 | AM27: =IFERROR(CUBEVALUE("PROD_PUBLIC_ONLY","[Commissioners].[Org Name].[All].["&B2&"]","[Date].[Short Month Year Label].[By Date].["&TEXT(AM6,"mmm-yy")&"]","[Measures].[Mixed Sex Breaches]","[Dim Data Status].[Data Status Hierarchy].[All].[PUBLIC]")*1,0) -> 0 | AN27: =IFERROR(CUBEVALUE("PROD_PUBLIC_ONLY","[Commissioners].[Org Name].[All].["&B2&"]","[Date].[Short Month Year Label].[By Date].["&TEXT(AN6,"mmm-yy")&"]","[Measures].[Mixed Sex Breaches]","[Dim Data Status].[Data Status Hierarchy].[All].[PUBLIC]")*1,0) -> 0 | AO27: =IFERROR(CUBEVALUE("PROD_PUBLIC_ONLY","[Commissioners].[Org Name].[All].["&B2&"]","[Date].[Short Month Year Label].[By Date].["&TEXT(AO6,"mmm-yy")&"]","[Measures].[Mixed Sex Breaches]","[Dim Data Status].[Data Status Hierarchy].[All].[PUBLIC]")*1,0) -> 0 | AP27: =IFERROR(CUBEVALUE("PROD_PUBLIC_ONLY","[Commissioners].[Org Name].[All].["&B2&"]","[Date].[Short Month Year Label].[By Date].["&TEXT(AP6,"mmm-yy")&"]","[Measures].[Mixed Sex Breaches]","[Dim Data Status].[Data Status Hierarchy].[All].[PUBLIC]")*1,0) -> 0
A28: Mental Health | Z28: FALSE | AA28: FALSE
A29: Care Programme Approach (CPA): Percentage of people under adult mental illness specialities on CPA who were followed up within 7 days of discharge from psychiatric inpatient care during the period | B29: 0.95 | D29: =IFERROR(CUBEVALUE("PROD_PUBLIC_ONLY","[Commissioners].[Org Name].["&B2&"]","[Date].[Fiscal Q Hierarchy].[All].["&$A5&"].["&$D5&"]", "[Measures].[CPA Percentage Follow up in 7 days]"),"") -> 0.9692307692 | E29: =IFERROR(CUBEVALUE("PROD_PUBLIC_ONLY","[Commissioners].[Org Name].["&B2&"]","[Date].[Fiscal Q Hierarchy].[All].["&$A5&"].["&$E5&"]", "[Measures].[CPA Percentage Follow up in 7 days]"),"") -> 0.9508196721 | AE29: =IFERROR(CUBEVALUE("PROD_PUBLIC_ONLY","[Commissioners].[Org Name].[All].["&#REF!&"]","[Date].[Short Month Year Label].[By Date].["&TEXT(AE6,"mmm-yy")&"]","[Measures].[CPA Percentage Follow up in 7 days]",CUBESET("PROD_PUBLIC_ONLY","[Dim Data Status].[Data Status Hierarchy].[All].[PUBLIC]")),"") ->  | AF29: =IFERROR(CUBEVALUE("PROD_PUBLIC_ONLY","[Commissioners].[Org Name].[All].["&#REF!&"]","[Date].[Short Month Year Label].[By Date].["&TEXT(AF6,"mmm-yy")&"]","[Measures].[CPA Percentage Follow up in 7 days]",CUBESET("PROD_PUBLIC_ONLY","[Dim Data Status].[Data Status Hierarchy].[All].[PUBLIC]")),"") ->  | AG29: =IFERROR(CUBEVALUE("PROD_PUBLIC_ONLY","[Commissioners].[Org Name].[All].["&#REF!&"]","[Date].[Short Month Year Label].[By Date].["&TEXT(AG6,"mmm-yy")&"]","[Measures].[CPA Percentage Follow up in 7 days]",CUBESET("PROD_PUBLIC_ONLY","[Dim Data Status].[Data Status Hierarchy].[All].[PUBLIC]")),"") ->  | AH29: =IFERROR(CUBEVALUE("PROD_PUBLIC_ONLY","[Commissioners].[Org Name].[All].["&#REF!&"]","[Date].[Short Month Year Label].[By Date].["&TEXT(AH6,"mmm-yy")&"]","[Measures].[CPA Percentage Follow up in 7 days]",CUBESET("PROD_PUBLIC_ONLY","[Dim Data Status].[Data Status Hierarchy].[All].[PUBLIC]")),"") ->  | AI29: =IFERROR(CUBEVALUE("PROD_PUBLIC_ONLY","[Commissioners].[Org Name].[All].["&#REF!&"]","[Date].[Short Month Year Label].[By Date].["&TEXT(AI6,"mmm-yy")&"]","[Measures].[CPA Percentage Follow up in 7 days]",CUBESET("PROD_PUBLIC_ONLY","[Dim Data Status].[Data Status Hierarchy].[All].[PUBLIC]")),"") ->  | AJ29: =IFERROR(CUBEVALUE("PROD_PUBLIC_ONLY","[Commissioners].[Org Name].[All].["&#REF!&"]","[Date].[Short Month Year Label].[By Date].["&TEXT(AJ6,"mmm-yy")&"]","[Measures].[CPA Percentage Follow up in 7 days]",CUBESET("PROD_PUBLIC_ONLY","[Dim Data Status].[Data Status Hierarchy].[All].[PUBLIC]")),"") ->  | AK29: =IFERROR(CUBEVALUE("PROD_PUBLIC_ONLY","[Commissioners].[Org Name].[All].["&#REF!&"]","[Date].[Short Month Year Label].[By Date].["&TEXT(AK6,"mmm-yy")&"]","[Measures].[CPA Percentage Follow up in 7 days]",CUBESET("PROD_PUBLIC_ONLY","[Dim Data Status].[Data Status Hierarchy].[All].[PUBLIC]")),"") ->  | AL29: =IFERROR(CUBEVALUE("PROD_PUBLIC_ONLY","[Commissioners].[Org Name].[All].["&#REF!&"]","[Date].[Short Month Year Label].[By Date].["&TEXT(AL6,"mmm-yy")&"]","[Measures].[CPA Percentage Follow up in 7 days]",CUBESET("PROD_PUBLIC_ONLY","[Dim Data Status].[Data Status Hierarchy].[All].[PUBLIC]")),"") ->  | AM29: =IFERROR(CUBEVALUE("PROD_PUBLIC_ONLY","[Commissioners].[Org Name].[All].["&#REF!&"]","[Date].[Short Month Year Label].[By Date].["&TEXT(AM6,"mmm-yy")&"]","[Measures].[CPA Percentage Follow up in 7 days]",CUBESET("PROD_PUBLIC_ONLY","[Dim Data Status].[Data Status Hierarchy].[All].[PUBLIC]")),"") ->  | AN29: =IFERROR(CUBEVALUE("PROD_PUBLIC_ONLY","[Commissioners].[Org Name].[All].["&#REF!&"]","[Date].[Short Month Year Label].[By Date].["&TEXT(AN6,"mmm-yy")&"]","[Measures].[CPA Percentage Follow up in 7 days]",CUBESET("PROD_PUBLIC_ONLY","[Dim Data Status].[Data Status Hierarchy].[All].[PUBLIC]")),"") ->  | AO29: =IFERROR(CUBEVALUE("PROD_PUBLIC_ONLY","[Commissioners].[Org Name].[All].["&#REF!&"]","[Date].[Short Month Year Label].[By Date].["&TEXT(AO6,"mmm-yy")&"]","[Measures].[CPA Percentage Follow up in 7 days]",CUBESET("PROD_PUBLIC_ONLY","[Dim Data Status].[Data Status Hierarchy].[All].[PUBLIC]")),"") ->  | AP29: =IFERROR(CUBEVALUE("PROD_PUBLIC_ONLY","[Commissioners].[Org Name].[All].["&#REF!&"]","[Date].[Short Month Year Label].[By Date].["&TEXT(AP6,"mmm-yy")&"]","[Measures].[CPA Percentage Follow up in 7 days]",CUBESET("PROD_PUBLIC_ONLY","[Dim Data Status].[Data Status Hierarchy].[All].[PUBLIC]")),"") -> 
D30: 2014-15 Q1 | E30: 2014-15 Q2 | F30: 2014-15 Q3 | G30: 2014-15 Q4
A33: PROVIDER BASED INDICATORS | B33: OPERATIONAL STANDARD | D33: QUARTER 1 PERFORMANCE | E33: QUARTER 2 PERFORMANCE | F33: QUARTER 3 PERFORMANCE | G33: QUARTER 4 PERFORMANCE
F34: =VLOOKUP('COVER PAGE'!$A$3,Lookup!$A:$H,7,FALSE) ->  | G34: =VLOOKUP('COVER PAGE'!$A$3,Lookup!$A:$H,8,FALSE) ->  | AE34: April | AI34: May | AM34: June | AR34: July | AV34: August | AZ34: September | BE34: October | BI34: November | BM34: December | BR34: January | BV34: February | BZ34: March
AE35: 2014-04-06 | AF35: =AE35+7 -> 2014-04-13 | AG35: =AF35+7 -> 2014-04-20 | AH35: =AG35+7 -> 2014-04-27 | AI35: =AH35+7 -> 2014-05-04 | AJ35: =AI35+7 -> 2014-05-11 | AK35: 2014-05-18 | AL35: 2014-05-25 | AM35: 2014-06-01 | AN35: 2014-06-08 | AO35: 2014-06-15 | AP35: 2014-06-22 | AQ35: 2014-06-29 | AR35: 2014-07-06 | AS35: 2014-07-13 | AT35: 2014-07-20 | AU35: 2014-07-27 | AV35: 2014-08-03 | AW35: 2014-08-10 | AX35: 2014-08-17 | AY35: 2014-08-24 | AZ35: 2014-08-31 | BA35: 2014-09-07 | BB35: 2014-09-14 | BC35: 2014-09-21 | BD35: 2014-09-28 | BE35: 2014-10-05 | BF35: 2014-10-12 | BG35: 2014-10-19 | BH35: 2014-10-26 | BI35: 2014-11-02 | BJ35: 2014-11-09 | BK35: 2014-11-16 | BL35: 2014-11-23 | BM35: 2014-11-30 | BN35: 2014-12-07 | BO35: 2014-12-14 | BP35: 2014-12-21 | BQ35: 2014-12-28 | BR35: 2015-01-04 | BS35: 2015-01-11 | BT35: 2015-01-18 | BU35: 2015-01-25 | BV35: 2015-02-01 | BW35: 2015-02-08 | BX35: 2015-02-15 | BY35: 2015-02-22 | BZ35: 2015-03-01 | CA35: 2015-03-08 | CB35: 2015-03-15 | CC35: 2015-03-22 | CD35: 2015-03-29
A36: A&E waits -Percentage of A&E attendances where the patient spent 4 hours or less in A&E from arrival to transfer, admission or discharge | V36: Q1 | W36: Q2 | X36: Q3 | Y36: Q4
A37: =IFERROR(VLOOKUP($B$2,'TOP 3 PROVIDER LIST'!$B:$S,10,FALSE),"") -> THE ROTHERHAM NHS FOUNDATION TRUST | B37: 0.95 | D37: =IFERROR(CUBEVALUE("PROD_PUBLIC_ONLY","[Providers].[Org Name].["&$A$37&"]","[Date].[Sitrep Qtr Hierarchy].[All].["&$A$5&"].["&D$30&"]","[Measures].[Actual Current A+E All Types Percentage within 4 Hrs] "),"") -> 0.9551397078 | E37: =IFERROR(CUBEVALUE("PROD_PUBLIC_ONLY","[Providers].[Org Name].["&$A$37&"]","[Date].[Sitrep Qtr Hierarchy].[All].["&$A$5&"].["&E$30&"]","[Measures].[Actual Current A+E All Types Percentage within 4 Hrs] "),"") -> 0.9526215394 | R37: =IF(D37="","NA",IF(D37>=B37,"GREEN",IF(D37<B37,"RED"))) -> GREEN | S37: =IF(E37="","NA",IF(E37>=C37,"GREEN",IF(E37<C37,"RED"))) -> GREEN | T37: =IF(F37="","NA",IF(F37>=D37,"GREEN",IF(F37<D37,"RED"))) -> NA | U37: =IF(G37="","NA",IF(G37>=E37,"GREEN",IF(G37<E37,"RED"))) -> NA | V37: =IF(AND(AE37="",AF37="",AG37="",AH37="",AI37="",AJ37="",AK37="",AL37="",AM37="",AN37="",AO37="",AP37="",AQ37=""),"No Data",IF(AND(AF37="",AG37="",R37="GREEN"),"1 MONTH DATA GREEN",IF(AND(AF37="",AG37="",R37="RED"),"1 MONTH DATA RED",IF(AND(AG37="",R37="GREEN"),"2 MONTH DATA GREEN",IF(AND(AG37="",R37="RED"),"2 MONTH DATA RED",IF(AND(AF37="",AG37=""),"1 MONTH DATA",IF(AND(AG37=""),"2 MONTH DATA",IF(AND(AE37=AE37,AF37=AF37,AG37=AG37,R37="GREEN"),"FULL QUARTER GREEN",IF(AND(AE37=AE37,AF37=AF37,AG37=AG37,R37="RED"),"FULL QUARTER RED",))))))))) -> FULL QUARTER GREEN | W37: =IF(AND(AR37,AS37,AT37,AU37,AV37,AW37,AX37,AY37,AZ37,BA37,BB37,BC37,BD37<>"",S37="GREEN"),"FULL QUARTER GREEN",IF(AND(AR37,AS37,AT37,AU37,AV37,AW37,AX37,AY37,AZ37,BA37,BB37,BC37,BD37<>"",S37="RED"),"FULL QUARTER RED",IF(AND(AR37,AS37,AT37,AU37=""),"No Data",IF(AND(AR37,AS37,AT37,AU37<>"",S37="GREEN"),"1 MONTH DATA GREEN",IF(AND(AR37,AS37,AT37,AU37<>"",S37="RED"),"1 MONTH DATA RED",IF(AND(AV37,AW37,AX37,AY37,AZ37<>"",S37="GREEN"),"2 MONTH DATA GREEN",IF(AND(AV37,AW37,AX37,AY37,AZ37<>"",S37="RED"),"2 MONTH DATA RED",))))) )) -> FULL QUARTER GREEN | AE37: =IFERROR(CUBEVALUE("PROD_PUBLIC_ONLY","[Providers].[Org Name].["&$A$37&"]","[Date].[Sitrep Week Hierarchy].[All].[2014-15].[w-e "&TEXT(AE35,"dd mmm yy")&"]","[Measures].[Actual Current A+E All Types Percentage within 4 Hrs] "),"") -> 0.9364435429 | AF37: 0.9334229993 | AG37: 0.9886039886 | AH37: 0.9111111111 | AI37: 0.9507422402 | AJ37: 0.9253028264 | AK37: 0.9681787407 | AL37: 0.9484808454 | AM37: 0.9533333333 | AN37: 0.9494007989 | AO37: 0.9834355828 | AP37: 0.9759949463 | AQ37: 0.9881656805 | AR37: 0.9701017812 | AS37: 0.9604449938 | AT37: 0.9710610932 | AU37: 0.9725310661 | AV37: 0.9680781759 | AW37: 0.9165535957 | AX37: 0.9463519313 | AY37: 0.9722846442 | AZ37: 0.9403508772 | BA37: 0.91249165 | BB37: 0.9494344644 | BC37: 0.9371196755 | BD37: 0.9647935003 | BE37: 0.9460338101 | BF37: 0.9538670285 | BG37: 0.891684137 | BH37: 0.9451505017 | BI37: 0.9205110007 | BK37: =IFERROR(CUBEVALUE("PROD_PUBLIC_ONLY","[Providers].[Org Name].["&$A$37&"]","[Date].[Sitrep Week Hierarchy].[All].[2014-15].[w-e "&TEXT(BK35,"dd mmm yy")&"]","[Measures].[Actual Current A+E All Types Percentage within 4 Hrs] "),"") -> 
A38: =IFERROR(VLOOKUP($B$2,'TOP 3 PROVIDER LIST'!$B:$S,12,FALSE),"") -> DONCASTER AND BASSETLAW HOSPITALS NHS FOUNDATION TRUST | B38: =IF(A38="CARE UK","NO DATA FOR CURRENT QUATER",IF(A38="SIRONA CARE & HEALTH","NO DATA FOR CURRENT QUATER",IF(A38="VIRGIN CARE SERVICES LTD","NO DATA FOR CURRENT QUATER",IF(A38="ANGLIAN COMMUNITY ENTERPRISE COMMUNITY INTEREST COMPANY (ACE CIC) (NQ1)","NO DATA FOR CURRENT QUATER",IF(A38="CITY HEALTH CARE PARTNERSHIP CIC","NO DATA FOR CURRENT QUATER",IF(A38="ASSURA LEA VALLEY LLP","NO DATA FOR CURRENT QUATER",IF(A38="","","95%"))))))) -> 95% | D38: =IFERROR(CUBEVALUE("PROD_PUBLIC_ONLY","[Providers].[Org Name].["&$A38&"]","[Date].[Sitrep Qtr Hierarchy].[All].["&$A$5&"].["&D$30&"]","[Measures].[Actual Current A+E All Types Percentage within 4 Hrs] "),"") -> 0.9512873281 | E38: =IFERROR(CUBEVALUE("PROD_PUBLIC_ONLY","[Providers].[Org Name].["&$A38&"]","[Date].[Sitrep Qtr Hierarchy].[All].["&$A$5&"].["&E$30&"]","[Measures].[Actual Current A+E All Types Percentage within 4 Hrs] "),"") -> 0.9189706459 | I38: =IFERROR(VLOOKUP('COVER PAGE'!$A$4,#REF!,8,FALSE),"") ->  | R38: =IF(D38="","NA",IF(D38>=95%,"GREEN",IF(D38<95%,"RED"))) -> GREEN | S38: RED | T38: NA | U38: NA | V38: =IF(AND(AE38="",AF38="",AG38="",AH38="",AI38="",AJ38="",AK38="",AL38="",AM38="",AN38="",AO38="",AP38="",AQ38=""),"No Data",IF(AND(AF38="",AG38="",R38="GREEN"),"1 MONTH DATA GREEN",IF(AND(AF38="",AG38="",R38="RED"),"1 MONTH DATA RED",IF(AND(AG38="",R38="GREEN"),"2 MONTH DATA GREEN",IF(AND(AG38="",R38="RED"),"2 MONTH DATA RED",IF(AND(AF38="",AG38=""),"1 MONTH DATA",IF(AND(AG38=""),"2 MONTH DATA",IF(AND(AE38=AE38,AF38=AF38,AG38=AG38,R38="GREEN"),"FULL QUARTER GREEN",IF(AND(AE38=AE38,AF38=AF38,AG38=AG38,R38="RED"),"FULL QUARTER RED",))))))))) -> FULL QUARTER GREEN | W38: =IF(AND(AR38,AS38,AT38,AU38,AV38,AW38,AX38,AY38,AZ38,BA38,BB38,BC38,BD38<>"",S38="GREEN"),"FULL QUARTER GREEN",IF(AND(AR38,AS38,AT38,AU38,AV38,AW38,AX38,AY38,AZ38,BA38,BB38,BC38,BD38<>"",S38="RED"),"FULL QUARTER RED",IF(AND(AR38,AS38,AT38,AU38=""),"No Data",IF(AND(AR38,AS38,AT38,AU38<>"",S38="GREEN"),"1 MONTH DATA GREEN",IF(AND(AR38,AS38,AT38,AU38<>"",S38="RED"),"1 MONTH DATA RED",IF(AND(AV38,AW38,AX38,AY38,AZ38<>"",S38="GREEN"),"2 MONTH DATA GREEN",IF(AND(AV38,AW38,AX38,AY38,AZ38<>"",S38="RED"),"2 MONTH DATA RED",))))) )) -> FULL QUARTER RED | AE38: =IFERROR(CUBEVALUE("PROD_PUBLIC_ONLY","[Providers].[Org Name].["&$A$38&"]","[Date].[Sitrep Week Hierarchy].[All].[2014-15].[w-e "&TEXT(AE35,"dd mmm yy")&"]","[Measures].[Actual Current A+E All Types Percentage within 4 Hrs] "),"") -> 0.9508383063 | AF38: 0.9658753709 | AG38: 0.9732431638 | AH38: 0.9484942302 | AI38: 0.9492671928 | AJ38: 0.9601880011 | AK38: 0.9503311258 | AL38: 0.9537556803 | AM38: 0.9507531866 | AN38: 0.9320332664 | AO38: 0.950991832 | AP38: 0.950991832 | AQ38: 0.9307297605 | AR38: 0.8795782464 | AS38: 0.8928870293 | AT38: 0.9212976023 | AU38: 0.9553493766 | AV38: 0.9072446196 | AW38: 0.9093740268 | AX38: 0.9503942181 | AY38: 0.9506697158 | AZ38: 0.937017598 | BA38: 0.9254278729 | BB38: 0.9122340426 | BC38: 0.9216166565 | BD38: 0.8934859155 | BE38: 0.9452269171 | BF38: 0.9545020681 | BG38: 0.8965738072 | BH38: 0.9402573529 | BI38: 0.9072327044 | BK38: =IFERROR(CUBEVALUE("PROD_PUBLIC_ONLY","[Providers].[Org Name].["&$A$38&"]","[Date].[Sitrep Week Hierarchy].[All].[2014-15].[w-e "&TEXT(BK35,"dd mmm yy")&"]","[Measures].[Actual Current A+E All Types Percentage within 4 Hrs] "),"") -> 
A39: =IFERROR(VLOOKUP($B$2,'TOP 3 PROVIDER LIST'!$B:$S,14,FALSE),"") -> SHEFFIELD TEACHING HOSPITALS NHS FOUNDATION TRUST | B39: =IF(A39="CARE UK","NO DATA FOR CURRENT QUATER",IF(A39="SIRONA CARE & HEALTH","NO DATA FOR CURRENT QUATER",IF(A39="VIRGIN CARE SERVICES LTD","NO DATA FOR CURRENT QUATER",IF(A39="ANGLIAN COMMUNITY ENTERPRISE COMMUNITY INTEREST COMPANY (ACE CIC) (NQ1)","NO DATA FOR CURRENT QUATER",IF(A39="CITY HEALTH CARE PARTNERSHIP CIC","NO DATA FOR CURRENT QUATER",IF(A39="ASSURA LEA VALLEY LLP","NO DATA FOR CURRENT QUATER",IF(A39="","","95%"))))))) -> 95% | D39: =IFERROR(CUBEVALUE("PROD_PUBLIC_ONLY","[Providers].[Org Name].["&$A39&"]","[Date].[Sitrep Qtr Hierarchy].[All].["&$A$5&"].["&D$30&"]","[Measures].[Actual Current A+E All Types Percentage within 4 Hrs] "),"") -> 0.9587780254 | E39: =IFERROR(CUBEVALUE("PROD_PUBLIC_ONLY","[Providers].[Org Name].["&$A39&"]","[Date].[Sitrep Qtr Hierarchy].[All].["&$A$5&"].["&E$30&"]","[Measures].[Actual Current A+E All Types Percentage within 4 Hrs] "),"") -> 0.9541703155 | I39: =IFERROR(VLOOKUP('COVER PAGE'!$A$4,#REF!,9,FALSE),"") ->  | R39: GREEN | S39: GREEN | T39: NA | U39: NA | V39: =IF(AND(AE39="",AF39="",AG39="",AH39="",AI39="",AJ39="",AK39="",AL39="",AM39="",AN39="",AO39="",AP39="",AQ39=""),"No Data",IF(AND(AF39="",AG39="",R39="GREEN"),"1 MONTH DATA GREEN",IF(AND(AF39="",AG39="",R39="RED"),"1 MONTH DATA RED",IF(AND(AG39="",R39="GREEN"),"2 MONTH DATA GREEN",IF(AND(AG39="",R39="RED"),"2 MONTH DATA RED",IF(AND(AF39="",AG39=""),"1 MONTH DATA",IF(AND(AG39=""),"2 MONTH DATA",IF(AND(AE39=AE39,AF39=AF39,AG39=AG39,R39="GREEN"),"FULL QUARTER GREEN",IF(AND(AE39=AE39,AF39=AF39,AG39=AG39,R39="RED"),"FULL QUARTER RED",))))))))) -> FULL QUARTER GREEN | W39: FULL QUARTER GREEN | Z39: =IF(V39 ="GREEN",1,IF(V39 ="AMBER",2,IF(V39 ="RED",3))) -> FALSE | AA39: =IF(W39 ="GREEN",1,IF(W39 ="AMBER",2,IF(W39 ="RED",3,IF(W39 =" "," ")))) -> FALSE | AE39: =IFERROR(CUBEVALUE("PROD_PUBLIC_ONLY","[Providers].[Org Name].["&$A$39&"]","[Date].[Sitrep Week Hierarchy].[All].[2014-15].[w-e "&TEXT(AE35,"dd mmm yy")&"]","[Measures].[Actual Current A+E All Types Percentage within 4 Hrs] "),"") -> 0.9795570698 | AF39: 0.9748555895 | AG39: 0.9851694915 | AH39: 0.9414462081 | AI39: 0.9563944029 | AJ39: 0.9761010584 | AK39: 0.9419703104 | AL39: 0.9194480103 | AM39: 0.9469476744 | AN39: 0.9669794925 | AO39: 0.9538409704 | AP39: 0.9609218437 | AQ39: 0.9629756599 | AR39: 0.9550052319 | AS39: 0.9549934297 | AT39: 0.9514529915 | AU39: 0.9411184211 | AV39: 0.9093686354 | AW39: 0.9747666782 | AX39: 0.9820473644 | AY39: 0.971304032 | AZ39: 0.944016795 | BA39: 0.9592529711 | BB39: 0.9465463381 | BC39: 0.9648397104 | BD39: 0.9541832669 | BE39: 0.9727364524 | BF39: 0.9034364261 | BG39: 0.9047940581 | BH39: 0.9067684141 | BI39: 0.9355909695 | BK39: =IFERROR(CUBEVALUE("PROD_PUBLIC_ONLY","[Providers].[Org Name].["&$A$39&"]","[Date].[Sitrep Week Hierarchy].[All].[2014-15].[w-e "&TEXT(BK35,"dd mmm yy")&"]","[Measures].[Actual Current A+E All Types Percentage within 4 Hrs] "),"") -> 
A40: Category A Ambulance Calls | D40: =G4 -> YORKSHIRE AMBULANCE SERVICE NHS TRUST
A41: Category A (Red 1) calls resulting in an emergency response arriving within 8 minutes | B41: =IF(A41="","","75%") -> 75% | D41: =CUBEVALUE("PROD_PUBLIC_ONLY","[Providers].[Org Short Name].["&F4&"]","[Date].[Fiscal Q Hierarchy].[All].["&$A5&"].["&$D5&"]", "[Measures].[Percentage Red1 Responded To Within 8 Minutes]") -> 0.6910502656 | E41: =CUBEVALUE("PROD_PUBLIC_ONLY","[Providers].[Org Short Name].["&F4&"]","[Date].[Fiscal Q Hierarchy].[All].["&$A5&"].["&$E5&"]", "[Measures].[Percentage Red1 Responded To Within 8 Minutes]") -> 0.6975639967 | R41: =IF(D41="","NA",IF(D41>=75%,"GREEN",IF(D41<75%,"RED"))) -> RED | S41: =IF(E41="","NA",IF(E41>=75%,"GREEN",IF(E41<75%,"RED"))) -> RED | T41: NA | U41: NA | W41: =IF(AND(AH41,AI41,AJ41<>"",S41="GREEN"),"FULL QUARTER GREEN",IF(AND(AH41,AI41,AJ41<>"",S41="RED"),"FULL QUARTER RED",IF(AND(AH41<>"",S41="GREEN"),"1 MONTH DATA GREEN",IF(AND(AH41<>"",S41="RED"),"1 MONTH DATA RED",IF(AND(AI41<>"",S41="GREEN"),"2 MONTH DATA GREEN",IF(AND(AI<>"",S41="RED"),"2 MONTH DATA RED",IF(AND(AH41,AI41,AJ41=""),"No Data",))))) )) -> FULL QUARTER RED | AE41: =IFERROR(CUBEVALUE("PROD_PUBLIC_ONLY","[Providers].[Org Name]","["&$F$4&"]","[Date].[Short Month Year Label].[By Date].["&TEXT(AE6,"mmm-yy")&"]","[Measures].[Percentage Red1 Responded To Within 8 Minutes]",CUBESET("PROD_PUBLIC_ONLY","[Dim Data Status].[Data Status Hierarchy].[All].[PUBLIC]","Public data only")),) -> 0.6977777778 | AF41: 0.6957047792 | AG41: 0.6800720288 | AH41: 0.6922615477 | AI41: 0.7133168927 | AJ41: 0.6868167203
A42: Category A (Red 2) calls resulting in an emergency response arriving within 8 minutes | B42: =IF(A42="","","75%") -> 75% | D42: =CUBEVALUE("PROD_PUBLIC_ONLY","[Providers].[Org Short Name].["&F4&"]","[Date].[Fiscal Q Hierarchy].[All].["&$A5&"].["&$D5&"]","[Measures].[Percentage Red2 Responded To Within 8 Minutes]") -> 0.6949540952 | E42: =CUBEVALUE("PROD_PUBLIC_ONLY","[Providers].[Org Short Name].["&F4&"]","[Date].[Fiscal Q Hierarchy].[All].["&$A5&"].["&$E5&"]","[Measures].[Percentage Red2 Responded To Within 8 Minutes]") -> 0.6962700091 | R42: =IF(D42="","NA",IF(D42>=75%,"GREEN",IF(D42<75%,"RED"))) -> RED | S42: RED | T42: NA | U42: NA | W42: =IF(AND(AH42,AI42,AJ42<>"",S42="GREEN"),"FULL QUARTER GREEN",IF(AND(AH42,AI42,AJ42<>"",S42="RED"),"FULL QUARTER RED",IF(AND(AH42<>"",S42="GREEN"),"1 MONTH DATA GREEN",IF(AND(AH42<>"",S42="RED"),"1 MONTH DATA RED",IF(AND(AI42<>"",S42="GREEN"),"2 MONTH DATA GREEN",IF(AND(AI<>"",S42="RED"),"2 MONTH DATA RED",IF(AND(AH42,AI42,AJ42=""),"No Data",))))) )) -> FULL QUARTER RED | AE42: =IFERROR(CUBEVALUE("PROD_PUBLIC_ONLY","[Providers].[Org Name]","["&$F$4&"]","[Date].[Short Month Year Label].[By Date].["&TEXT(AE6,"mmm-yy")&"]","[Measures].[Percentage Red2 Responded To Within 8 Minutes]",CUBESET("PROD_PUBLIC_ONLY","[Dim Data Status].[Data Status Hierarchy].[All].[PUBLIC]","Public data only")),) -> 0.7064607991 | AF42: 0.6945369753 | AG42: 0.6838847575 | AH42: 0.6795745242 | AI42: 0.7029834355 | AJ42: 0.7070552857
A43: Category A calls resulting in an ambulance arriving at the scene within 19 minutes | B43: =IF(A43="","","95%") -> 95% | D43: =CUBEVALUE("PROD_PUBLIC_ONLY","[Providers].[Org Short Name].["&F4&"]","[Date].[Fiscal Q Hierarchy].[All].["&$A5&"].["&$D5&"]","[Measures].[Percentage Responded To Within 19 Minutes]") -> 0.9587686213 | E43: =CUBEVALUE("PROD_PUBLIC_ONLY","[Providers].[Org Short Name].["&F4&"]","[Date].[Fiscal Q Hierarchy].[All].["&$A5&"].["&$E5&"]","[Measures].[Percentage Responded To Within 19 Minutes]") -> 0.958786717 | R43: =IF(D43="","NA",IF(D43>=95%,"GREEN",IF(D43<95%,"RED"))) -> GREEN | S43: =IF(E43="","NA",IF(E43>=95%,"GREEN",IF(E43<95%,"RED"))) -> GREEN | T43: NA | U43: NA | W43: =IF(AND(AH43,AI43,AJ43<>"",S43="GREEN"),"FULL QUARTER GREEN",IF(AND(AH43,AI43,AJ43<>"",S43="RED"),"FULL QUARTER RED",IF(AND(AH43<>"",S43="GREEN"),"1 MONTH DATA GREEN",IF(AND(AH43<>"",S43="RED"),"1 MONTH DATA RED",IF(AND(AI43<>"",S43="GREEN"),"2 MONTH DATA GREEN",IF(AND(AI<>"",S43="RED"),"2 MONTH DATA RED",IF(AND(AH43,AI43,AJ43=""),"No Data",))))) )) -> FULL QUARTER GREEN | AE43: =IFERROR(CUBEVALUE("PROD_PUBLIC_ONLY","[Providers].[Org Name]","["&$F$4&"]","[Date].[Short Month Year Label].[By Date].["&TEXT(AE6,"mmm-yy")&"]","[Measures].[Percentage Responded To Within 19 Minutes]",CUBESET("PROD_PUBLIC_ONLY","[Dim Data Status].[Data Status Hierarchy].[All].[PUBLIC]","Public data only")),) -> 0.961855928 | AF43: 0.9590259892 | AG43: 0.9554208866 | AH43: 0.9505499015 | AI43: 0.9614072495 | AJ43: 0.9648076092
A44: Cancelled Elective Operations: Number of elective operations that are cancelled at the last minute for non-clinical reasons and not re-booked within 28 days
A45: =IFERROR(VLOOKUP($B$2,'TOP 3 PROVIDER LIST'!$B:$S,2,FALSE),"") -> THE ROTHERHAM NHS FOUNDATION TRUST | B45: =IF(A45="","","No operational standard") -> No operational standard | D45: =IFERROR(CUBEVALUE("PROD_PUBLIC_ONLY","[Providers].[Org Name].["&A45&"]","[Date].[Fiscal Q Hierarchy].[All].["&$A$5&"].["&$D$5&"]","[Measures].[Breaches Of Standard]"),"") -> 0 | E45: =IFERROR(CUBEVALUE("PROD_PUBLIC_ONLY","[Providers].[Org Name].["&A45&"]","[Date].[Fiscal Q Hierarchy].[All].["&$A$5&"].["&$E$5&"]","[Measures].[Breaches Of Standard]"),"") -> 0 | I45: =IFERROR(VLOOKUP('COVER PAGE'!$A$4,#REF!,3,FALSE),"") -> 
A46: =IFERROR(VLOOKUP($B$2,'TOP 3 PROVIDER LIST'!$B:$S,4,FALSE),"") -> SHEFFIELD TEACHING HOSPITALS NHS FOUNDATION TRUST | B46: =IF(A46="","","No operational standard") -> No operational standard | D46: =IFERROR(CUBEVALUE("PROD_PUBLIC_ONLY","[Providers].[Org Name].["&A46&"]","[Date].[Fiscal Q Hierarchy].[All].["&$A$5&"].["&$D$5&"]","[Measures].[Breaches Of Standard]"),"") -> 8 | E46: =IFERROR(CUBEVALUE("PROD_PUBLIC_ONLY","[Providers].[Org Name].["&A46&"]","[Date].[Fiscal Q Hierarchy].[All].["&$A$5&"].["&$E$5&"]","[Measures].[Breaches Of Standard]"),"") -> 1 | I46: =IFERROR(VLOOKUP('COVER PAGE'!$A$4,#REF!,4,FALSE),"") -> 
A47: =IFERROR(VLOOKUP($B$2,'TOP 3 PROVIDER LIST'!$B:$S,6,FALSE),"") ->  | B47: =IF(A47="","","No operational standard") ->  | D47: =IFERROR(CUBEVALUE("PROD_PUBLIC_ONLY","[Providers].[Org Name].["&A47&"]","[Date].[Fiscal Q Hierarchy].[All].["&$A$5&"].["&$D$5&"]","[Measures].[Breaches Of Standard]"),"") ->  | E47: =IFERROR(CUBEVALUE("PROD_PUBLIC_ONLY","[Providers].[Org Name].["&A47&"]","[Date].[Fiscal Q Hierarchy].[All].["&$A$5&"].["&$E$5&"]","[Measures].[Breaches Of Standard]"),"") ->  | I47: =IFERROR(VLOOKUP('COVER PAGE'!$A$4,#REF!,5,FALSE),"") -> 
A95: =IF(ISERROR(INDEX(A8:G8,MATCH("RED",W8,FALSE),1)),"",INDEX(A8:G8,MATCH("RED",W8,FALSE),1)) ->  | C95: =A95 -> 
A96: =IF(ISERROR(INDEX(A9:G9,MATCH("RED",W9,FALSE),1)),"",INDEX(A9:G9,MATCH("RED",W9,FALSE),1)) ->  | C96: =A96 -> 
A97: =IF(ISERROR(INDEX(A10:G10,MATCH("RED",W10,FALSE),1)),"",INDEX(A10:G10,MATCH("RED",W10,FALSE),1)) -> 
A98: =IF(ISERROR(INDEX(A11:G11,MATCH("RED",W11,FALSE),1)),"",INDEX(A11:G11,MATCH("RED",W11,FALSE),1)) -> 
A99: =IF(ISERROR(INDEX(A13:G13,MATCH("RED",W13,FALSE),1)),"",INDEX(A13:G13,MATCH("RED",W13,FALSE),1)) -> 
A100: =IF(ISERROR(INDEX(#REF!,MATCH("RED",#REF!,FALSE),1)),"",INDEX(#REF!,MATCH("RED",#REF!,FALSE),1)) ->  | C100: =A100 -> 
A101: =IF(ISERROR(INDEX(#REF!,MATCH("RED",#REF!,FALSE),1)),"",INDEX(#REF!,MATCH("RED",#REF!,FALSE),1)) -> 
A102: =IF(ISERROR(INDEX(#REF!,MATCH("RED",#REF!,FALSE),1)),"",INDEX(#REF!,MATCH("RED",#REF!,FALSE),1)) -> 
A103: =IF(ISERROR(INDEX(A15:G15,MATCH("RED",W15,FALSE),1)),"",INDEX(A15:G15,MATCH("RED",W15,FALSE),1)) -> 
A104: =IF(ISERROR(INDEX(A16:G16,MATCH("RED",W16,FALSE),1)),"",INDEX(A16:G16,MATCH("RED",W16,FALSE),1)) -> 
A105: =IF(ISERROR(INDEX(A18:G18,MATCH("RED",W18,FALSE),1)),"",INDEX(A18:G18,MATCH("RED",W18,FALSE),1)) -> 
A106: =IF(ISERROR(INDEX(A19:G19,MATCH("RED",W19,FALSE),1)),"",INDEX(A19:G19,MATCH("RED",W19,FALSE),1)) -> 
A107: =IF(ISERROR(INDEX(A20:G20,MATCH("RED",W20,FALSE),1)),"",INDEX(A20:G20,MATCH("RED",W20,FALSE),1)) -> 
A108: =IF(ISERROR(INDEX(A21:G21,MATCH("RED",W21,FALSE),1)),"",INDEX(A21:G21,MATCH("RED",W21,FALSE),1)) -> 
A109: =IF(ISERROR(INDEX(A23:G23,MATCH("RED",W23,FALSE),1)),"",INDEX(A23:G23,MATCH("RED",W23,FALSE),1)) -> 
A110: =IF(ISERROR(INDEX(A24:G24,MATCH("RED",W24,FALSE),1)),"",INDEX(A24:G24,MATCH("RED",W24,FALSE),1)) -> 
A111: =IF(ISERROR(INDEX(A25:G25,MATCH("RED",W25,FALSE),1)),"",INDEX(A25:G25,MATCH("RED",W25,FALSE),1)) -> 
A112: =IF(ISERROR(INDEX(#REF!,MATCH("RED",#REF!,FALSE),1)),"",INDEX(#REF!,MATCH("RED",#REF!,FALSE),1)) -> 
A113: =IF(ISERROR(INDEX(#REF!,MATCH("RED",#REF!,FALSE),1)),"",INDEX(#REF!,MATCH("RED",#REF!,FALSE),1)) -> 
A114: =IF(ISERROR(INDEX(#REF!,MATCH("RED",#REF!,FALSE),1)),"",INDEX(#REF!,MATCH("RED",#REF!,FALSE),1)) -> 
A115: =IF(ISERROR(INDEX(A27:G27,MATCH("RED",W27,FALSE),1)),"",INDEX(A27:G27,MATCH("RED",W27,FALSE),1)) -> 
A116: =IF(ISERROR(INDEX(#REF!,MATCH("RED",#REF!,FALSE),1)),"",INDEX(#REF!,MATCH("RED",#REF!,FALSE),1)) -> 
A117: =IF(ISERROR(INDEX(A29:G29,MATCH("RED",W29,FALSE),1)),"",INDEX(A29:G29,MATCH("RED",W29,FALSE),1)) -> 

Sheet QUALITY AND OUTCOME SECTION
B1: QUALITY AND OUTCOMES SECTION
B2: =IFERROR('COVER PAGE'!$D$3,"") -> NHS Rotherham CCG
B3: =IFERROR('COVER PAGE'!$D$4,"") -> S Yorkshire & Bassetlaw
B4: =IFERROR('COVER PAGE'!$D$2,"") -> North
G8: =CUBEVALUE("PROD_PUBLIC_ONLY","[Measures].[Period Current MRSA]") -> Sep-14
A12: ANNUAL - CCG BASED INDICATORS
A13: Preventing people from dying prematurely | B13: BASELINE (2013) | C13: 2013 | D13: 2014 | E13: 2015 | F13: UpperConfidenceInterval2012 | G13: LowerConfidenceInterval2012 | H13: UpperConfidenceInterval2011
A14: Potential years of life lost (PYLL) from causes considered amenable to healthcare (rate per 100,000 population) | B14: =IFERROR(VLOOKUP($B$2 &"_" &$C$13,PYLL!$A:$B,2,FALSE),"") -> 6637 | C14: PERFORMANCE | F14: =IFERROR(VLOOKUP('COVER PAGE'!$A$4&"_"&"2012",PYLL!$A:$F,4,FALSE),"") ->  | G14: =IFERROR(VLOOKUP('COVER PAGE'!$A$4&"_"&"2012",PYLL!$A:$F,5,FALSE),"") ->  | H14: =IFERROR(VLOOKUP('COVER PAGE'!$A$4&"_"&"2011",PYLL!$A:$F,4,FALSE),"") -> 
A16: Enhancing quality of life for people with long term conditions | B16: BASELINE (2013-14) | C16: 2013-14 | D16: 2014-15 | E16: 2015-16
A17: Health-related quality of life for people with long term conditions (EQ-5D score) (Per 100 people) | B17: =IFERROR(100*VLOOKUP('COVER PAGE'!$A$4 &"_" &$C$16,'LONG TERM CONDITION'!$A:$E,5,FALSE),"") -> 70 | C17: PLAN | D17: =IFERROR(VLOOKUP($B$2&"_"&D$16,'LONG TERM CONDITION PLAN'!$A:$E,5,FALSE),"") -> 70.78 | E17: =IFERROR(VLOOKUP($B$2&"_"&E$16,'LONG TERM CONDITION PLAN'!$A:$E,5,FALSE),"") -> 71.36
C18: PERFORMANCE
A21: Positive experience of care | B21: BASELINE (2013-14) | D21: 2014-15 | E21: 2015-16
A22: Composite indicator of patient experience of primary care (i) GP Services and (ii) GP Out of Hours service (average negative responses per 100 patients) | C22: PLAN | D22: =IFERROR(VLOOKUP($B$2&"_"&D$21,'POSITIVE EXP OF GP CARE PLANS'!$A:$E,5,FALSE),"") -> 4.7 | E22: =IFERROR(VLOOKUP($B$2&"_"&E$21,'POSITIVE EXP OF GP CARE PLANS'!$A:$E,5,FALSE),"") -> 4.7
C23: PERFORMANCE
A24: Patient experience of hospital care (average negative responses per 100 patients) | C24: PLAN | D24: =IFERROR(VLOOKUP($B$2 & "_" &D$21,'POSITIVE EXP OF HOSP CARE PLANS'!$A:$E,5,FALSE),"") -> 123.08 | E24: =IFERROR(VLOOKUP($B$2 & "_" &E$21,'POSITIVE EXP OF HOSP CARE PLANS'!$A:$E,5,FALSE),"") -> 121.96
C25: PERFORMANCE
B27: 2014-15 | D27: 14-15 Q1 | E27: 14-15 Q2 | F27: 14-15 Q3 | G27: 14-15 Q4 | H27: =CUBEVALUE("PROD_PUBLIC_ONLY","[Measures].[Period Current CDiff]") -> Sep-14
A28: QUARTERLY - CCG BASED INDICATORS | D28: Jun14 | E28: Sep14 | F28: Dec14 | G28: Mar15
A29: Enhancing quality of life for people with long term conditions | B29: BASELINE (2013-14) | D29: QUARTER 1 | E29: QUARTER 2 | F29: QUARTER 3 | G29: QUARTER 4
A30: Esitmated diagnosis rate for people with dementia | B30: =IFERROR(VLOOKUP('COVER PAGE'!$A$4,'Dementia13-14'!$A:$E,5,FALSE),"") -> 0.6615870944 | C30: PLAN | G30: =CUBEVALUE("PROD_PUBLIC_ONLY","[Commissioners].[Org Name].["&$B$2&"]","[Date].[Fiscal Year Name].["&$B$27&"]","[Measures].[Plan Dementia Diagnosis Rate]") -> 0.6702294876
C31: PERFORMANCE | D31: =IFERROR(VLOOKUP('COVER PAGE'!$A$4 & "_" &'QUALITY AND OUTCOME SECTION'!D$28,Dementia!$A:$E,5,FALSE)/100,"") -> 0.70737 | E31: =IFERROR(VLOOKUP('COVER PAGE'!$A$4 & "_" &'QUALITY AND OUTCOME SECTION'!E$28,Dementia!$A:$E,5,FALSE)/100,"") -> 0.6968 | F31: =IFERROR(VLOOKUP('COVER PAGE'!$A$4 & "_" &'QUALITY AND OUTCOME SECTION'!F$28,Dementia!$A:$E,5,FALSE)/100,"") ->  | G31: =IFERROR(VLOOKUP('COVER PAGE'!$A$4 & "_" &'QUALITY AND OUTCOME SECTION'!G$28,Dementia!$A:$E,5,FALSE)/100,"") -> 
A32: Reducing the time people unnecessarily spend in hospital | B32: BASELINE (2013-14) | D32: =CUBEVALUE("PROD_PUBLIC_ONLY","[Commissioners].[Org Name].["&$B$2&"]","[Date].[Fiscal Q Hierarchy].["&$B$27&"].["&D$27&"].lag(4)","[Measures].[Avoidable Emergency Admissions Indirectly Standardised Rate per 100,000]") -> 586.4434726 | E32: =CUBEVALUE("PROD_PUBLIC_ONLY","[Commissioners].[Org Name].["&$B$2&"]","[Date].[Fiscal Q Hierarchy].["&$B$27&"].["&E$27&"].lag(4)","[Measures].[Avoidable Emergency Admissions Indirectly Standardised Rate per 100,000]") -> 549.6961805 | F32: 678.5880307 | G32: 639.4051383
A33: Avoidable emergency admissions per 100,000 population (Composite measure) | B33: PLAN (2014-15) | D33: =CUBEVALUE("PROD_PUBLIC_ONLY","[Commissioners].[Org Name].["&$B$2&"]","[Date].[Fiscal Q Hierarchy].["&$B$27&"].["&D$27&"]","[Measures].[Plan Avoidable Emergency Admissions]") -> 596 | E33: =CUBEVALUE("PROD_PUBLIC_ONLY","[Commissioners].[Org Name].["&$B$2&"]","[Date].[Fiscal Q Hierarchy].["&$B$27&"].["&E$27&"]","[Measures].[Plan Avoidable Emergency Admissions]") -> 588 | F33: =CUBEVALUE("PROD_PUBLIC_ONLY","[Commissioners].[Org Name].["&$B$2&"]","[Date].[Fiscal Q Hierarchy].["&$B$27&"].["&F$27&"]","[Measures].[Plan Avoidable Emergency Admissions]") -> 626 | G33: 655
B34: PERFORMANCE (2014-15) | D34: =CUBEVALUE("PROD_PUBLIC_ONLY","[Commissioners].[Org Name].["&$B$2&"]","[Date].[Fiscal Q Hierarchy].["&$B$27&"].["&D$27&"]","[Measures].[Avoidable Emergency Admissions Indirectly Standardised Rate per 100,000]") -> 597.0799423 | E34: =CUBEVALUE("PROD_PUBLIC_ONLY","[Commissioners].[Org Name].["&$B$2&"]","[Date].[Fiscal Q Hierarchy].["&$B$27&"].["&E$27&"]","[Measures].[Avoidable Emergency Admissions Indirectly Standardised Rate per 100,000]") -> 
B35: Comparison to same period in previous year | D35: =IF(H35="00","¬",IF(H35="GD","È",IF(H35="RU","Ç",""))) -> ¬ | E35: =IF(I35="00","¬",IF(I35="GD","È",IF(I35="RU","Ç",""))) ->  | F35: =IF(J35="00","¬",IF(J35="GD","È",IF(J35="RU","Ç",""))) ->  | G35: =IF(K35="00","¬",IF(K35="GD","È",IF(K35="RU","Ç",""))) ->  | H35: =CUBEVALUE("PROD_PUBLIC_ONLY","[Commissioners].[Org Name].["&$B$2&"]","[Date].[Fiscal Q Hierarchy].["&$B$27&"].["&D$27&"]","[Measures].[Statistically Significant Change Avoidable Emergency Admissions]") -> 00 | I35: =CUBEVALUE("PROD_PUBLIC_ONLY","[Commissioners].[Org Name].["&$B$2&"]","[Date].[Fiscal Q Hierarchy].["&$B$27&"].["&E$27&"]","[Measures].[Statistically Significant Change Avoidable Emergency Admissions]") -> 
L36: 2014-15 | M36: 14-15 Q1 | N36: 14-15 Q2 | O36: 14-15 Q3 | P36: 14-15 Q4
A37: Treating and caring for people in a safe environment and protecting them from avoidable harm | B37: BASELINE (2013-14) | D37: QUARTER 1 | E37: QUARTER 2 | F37: QUARTER 3 | G37: QUARTER 4
A38: Incidence of healthcare associated infection (HCAI) i) MRSA - Cases which have been assigned to the CCG following a Post Infection Review | B38: =CUBEVALUE("PROD_PUBLIC_ONLY","[Commissioners].[Org Name].["&B2&"]","[Date].[Fiscal Q Hierarchy].[All].[2013-14]","[Measures].[Actual Current MRSA Cases]") -> 0 | C38: CEILING | D38: 0 | E38: 0 | F38: 0 | G38: 0
C39: PERFORMANCE | D39: =IF(CUBEMEMBER("PROD_PUBLIC_ONLY","[Date].[Working Days].[Short Month Year Label].["&CUBEVALUE("PROD_PUBLIC_ONLY","[Measures].[Period Current MRSA]")&"].lastchild") < CUBEMEMBER("PROD_PUBLIC_ONLY","[Date].[Working Days].[Fiscal Year Qtr Name].["&D$27&"].lastchild.lastchild"),"",CUBEVALUE("PROD_PUBLIC_ONLY","[Commissioners].[Org Name].["&$B$2&"]","[Date].[Fiscal Year Qtr Name].["&D$27&"]","[Measures].[Actual Current MRSA Cases]")) -> 0 | E39: =IF(CUBEMEMBER("PROD_PUBLIC_ONLY","[Date].[Working Days].[Short Month Year Label].["&CUBEVALUE("PROD_PUBLIC_ONLY","[Measures].[Period Current MRSA]")&"].lastchild") < CUBEMEMBER("PROD_PUBLIC_ONLY","[Date].[Working Days].[Fiscal Year Qtr Name].["&E$27&"].lastchild.lastchild"),"",CUBEVALUE("PROD_PUBLIC_ONLY","[Commissioners].[Org Name].["&$B$2&"]","[Date].[Fiscal Year Qtr Name].["&E$27&"]","[Measures].[Actual Current MRSA Cases]")) -> 0 | F39: =IF(CUBEMEMBER("PROD_PUBLIC_ONLY","[Date].[Working Days].[Short Month Year Label].["&CUBEVALUE("PROD_PUBLIC_ONLY","[Measures].[Period Current MRSA]")&"].lastchild") < CUBEMEMBER("PROD_PUBLIC_ONLY","[Date].[Working Days].[Fiscal Year Qtr Name].["&F$27&"].lastchild.lastchild"),"",CUBEVALUE("PROD_PUBLIC_ONLY","[Commissioners].[Org Name].["&$B$2&"]","[Date].[Fiscal Year Qtr Name].["&F$27&"]","[Measures].[Actual Current MRSA Cases]")) ->  | G39: =IF(CUBEMEMBER("PROD_PUBLIC_ONLY","[Date].[Working Days].[Short Month Year Label].["&CUBEVALUE("PROD_PUBLIC_ONLY","[Measures].[Period Current MRSA]")&"].lastchild") < CUBEMEMBER("PROD_PUBLIC_ONLY","[Date].[Working Days].[Fiscal Year Qtr Name].["&G$27&"].lastchild.lastchild"),"",CUBEVALUE("PROD_PUBLIC_ONLY","[Commissioners].[Org Name].["&$B$2&"]","[Date].[Fiscal Year Qtr Name].["&G$27&"]","[Measures].[Actual Current MRSA Cases]")) -> 
A40: Incidence of healthcare associated infection (HCAI) ii) C.difficile (Year-to-date) | B40: =CUBEVALUE("PROD_PUBLIC_ONLY","[Commissioners].[Org Name].["&B2&"]","[Date].[Fiscal Q Hierarchy].[All].[2013-14]","[Measures].[Actual Current CDiff Cases]") -> 67 | C40: CEILING | D40: =CUBEVALUE("PROD_PUBLIC_ONLY","[Commissioners].[Org Name].["&$B$2&"]","[Date].[Fiscal Year Qtr Name].["&D$27&"]","[Measures].[Plan Current CDiff Cases]") -> 19 | E40: =CUBEVALUE("PROD_PUBLIC_ONLY","[Commissioners].[Org Name].["&$B$2&"]","[Date].[Fiscal Year Qtr Name].["&E$27&"]","[Measures].[Plan Current CDiff Cases]") + D40 -> 36 | F40: =CUBEVALUE("PROD_PUBLIC_ONLY","[Commissioners].[Org Name].["&$B$2&"]","[Date].[Fiscal Year Qtr Name].["&F$27&"]","[Measures].[Plan Current CDiff Cases]") + E40 -> 51 | G40: =CUBEVALUE("PROD_PUBLIC_ONLY","[Commissioners].[Org Name].["&$B$2&"]","[Date].[Fiscal Year Qtr Name].["&G$27&"]","[Measures].[Plan Current CDiff Cases]") + F40 -> 66
C41: PERFORMANCE | D41: =IF(CUBEMEMBER("PROD_PUBLIC_ONLY","[Date].[Working Days].[Short Month Year Label].["&CUBEVALUE("PROD_PUBLIC_ONLY","[Measures].[Period Current CDiff]")&"].lastchild") < CUBEMEMBER("PROD_PUBLIC_ONLY","[Date].[Working Days].[Fiscal Year Qtr Name].["&D$27&"].lastchild.lastchild"),"",CUBEVALUE("PROD_PUBLIC_ONLY","[Commissioners].[Org Name].["&$B$2&"]","[Date].[Fiscal Year Qtr Name].["&D$27&"]","[Measures].[Actual YTD CDiff Cases]")) -> 24 | E41: =IF(CUBEMEMBER("PROD_PUBLIC_ONLY","[Date].[Working Days].[Short Month Year Label].["&CUBEVALUE("PROD_PUBLIC_ONLY","[Measures].[Period Current CDiff]")&"].lastchild") < CUBEMEMBER("PROD_PUBLIC_ONLY","[Date].[Working Days].[Fiscal Year Qtr Name].["&E$27&"].lastchild.lastchild"),"",CUBEVALUE("PROD_PUBLIC_ONLY","[Commissioners].[Org Name].["&$B$2&"]","[Date].[Fiscal Year Qtr Name].["&E$27&"]","[Measures].[Actual YTD CDiff Cases]")) -> 37
A43: Improving Access to Psychological Therapies (IAPT) | B43: BASELINE (2013-14 Q4) | D43: QUARTER 1 | E43: QUARTER 2 | F43: QUARTER 3 | G43: QUARTER 4
A44: Access: the proportion of people entering treatment against the level of need in the general population | B44: =CUBEVALUE("PROD_PUBLIC_ONLY","[Commissioners].[Org Name].["&$B$2&"]","[Date].[Fiscal Q Hierarchy].["&$B$27&"].["&$D$27&"].lag(1)","[Measures].[Actual Comm IAPT Receiving Therapies Rate]") -> 0.0425343358 | C44: PLAN | D44: =CUBEVALUE("PROD_PUBLIC_ONLY","[Commissioners].[Org Name].[All].["&$B$2&"]","[Date].[Fiscal Q Hierarchy].["&$B$27&"].["&D$27&"]","[Measures].[Plan IAPT Receiving Therapies Rate]") -> 0.0349846259 | E44: =CUBEVALUE("PROD_PUBLIC_ONLY","[Commissioners].[Org Name].[All].["&$B$2&"]","[Date].[Fiscal Q Hierarchy].["&$B$27&"].["&E$27&"]","[Measures].[Plan IAPT Receiving Therapies Rate]") -> 0.03635121285 | F44: =CUBEVALUE("PROD_PUBLIC_ONLY","[Commissioners].[Org Name].[All].["&$B$2&"]","[Date].[Fiscal Q Hierarchy].["&$B$27&"].["&F$27&"]","[Measures].[Plan IAPT Receiving Therapies Rate]") -> 0.03874274001 | G44: =CUBEVALUE("PROD_PUBLIC_ONLY","[Commissioners].[Org Name].[All].["&$B$2&"]","[Date].[Fiscal Q Hierarchy].["&$B$27&"].["&G$27&"]","[Measures].[Plan IAPT Receiving Therapies Rate]") -> 0.04000683293 | H44: =CUBEVALUE("PROD_PUBLIC_ONLY","[Commissioners].[Org Name].[All].["&$B$2&"]","[Date].[Fiscal Q Hierarchy].["&$B$27&"]","[Measures].[Plan IAPT Receiving Therapies Rate]") -> 0.1500854117
C45: PERFORMANCE | D45: =CUBEVALUE("PROD_PUBLIC_ONLY","[Commissioners].[Org Name].["&$B$2&"]","[Date].[Fiscal Q Hierarchy].["&$B$27&"].["&D$27&"]","[Measures].[Actual Comm IAPT Receiving Therapies Rate]") -> 0.02596515203 | E45: =CUBEVALUE("PROD_PUBLIC_ONLY","[Commissioners].[Org Name].[All].["&$B$2&"]","[Date].[Fiscal Q Hierarchy].["&$B$27&"].["&E$27&"]","[Measures].[Actual Comm IAPT Receiving Therapies Rate]") ->  | F45: =CUBEVALUE("PROD_PUBLIC_ONLY","[Commissioners].[Org Name].[All].["&$B$2&"]","[Date].[Fiscal Q Hierarchy].["&$B$27&"].["&F$27&"]","[Measures].[Actual Comm IAPT Receiving Therapies Rate]") -> 
A46: Recovery: the proportion of people who complete treatment who are moving to recovery | B46: =CUBEVALUE("PROD_PUBLIC_ONLY","[Commissioners].[Org Name].[All].["&B2&"]","[Date].[Fiscal Q Hierarchy].["&$B$27&"].["&$D$27&"].lag(1)","[Measures].[Actual Comm IAPT Recovery Rate]") -> 0.5384615385 | C46: PLAN | D46: =CUBEVALUE("PROD_PUBLIC_ONLY","[Commissioners].[Org Name].[All].["&$B$2&"]","[Date].[Fiscal Year Name].["&$B$27&"]","[Measures].[Plan IAPT Recovery Rate]") -> 0.5001335827
C47: PERFORMANCE | D47: =CUBEVALUE("PROD_PUBLIC_ONLY","[Commissioners].[Org Name].[All].["&$B$2&"]","[Date].[Fiscal Q Hierarchy].["&$B$27&"].["&D$27&"]","[Measures].[Actual Comm IAPT Recovery Rate]") -> 0.5942028986 | E47: =CUBEVALUE("PROD_PUBLIC_ONLY","[Commissioners].[Org Name].[All].["&$B$2&"]","[Date].[Fiscal Q Hierarchy].["&$B$27&"].["&E$27&"]","[Measures].[Actual Comm IAPT Recovery Rate]") -> 
A52: QUARTERLY - PROVIDER BASED INDICATORS
A53: Friends and Family Test (FFT)
A54: PERCENTAGE WHO WOULD RECOMMEND A&E | B54: QUARTER 1 | C54: QUARTER 2 | D54: QUARTER 3 | E54: QUARTER 4
A55: =IFERROR(VLOOKUP($B$2,'TOP 3 PROVIDER LIST'!$B:$S,10,FALSE),"") -> THE ROTHERHAM NHS FOUNDATION TRUST | B55: =IFERROR(IF(CUBEMEMBER("PROD_PUBLIC_ONLY","[Date].[Working Days].[Short Month Year Label].["&CUBEVALUE("PROD_PUBLIC_ONLY","[Measures].[Period Current FFT Scores]")&"].lastchild") < CUBEMEMBER("PROD_PUBLIC_ONLY","[Date].[Working Days].[Fiscal Year Qtr Name].["&D$27&"].lastchild.lastchild"),"",CUBEVALUE("PROD_PUBLIC_ONLY","[Providers].[Org Name].["&$A55&"]","[Date].[Fiscal Q Hierarchy].[All].["&$B$27&"].["&D$27&"]","[Measures].[FFT Percent who recommend]","[Friends And Family Type].&[A&E]")),"") -> 0.8647158609 | C55: =IFERROR(IF(CUBEMEMBER("PROD_PUBLIC_ONLY","[Date].[Working Days].[Short Month Year Label].["&CUBEVALUE("PROD_PUBLIC_ONLY","[Measures].[Period Current FFT Scores]")&"].lastchild") < CUBEMEMBER("PROD_PUBLIC_ONLY","[Date].[Working Days].[Fiscal Year Qtr Name].["&E$27&"].lastchild.lastchild"),"",CUBEVALUE("PROD_PUBLIC_ONLY","[Providers].[Org Name].["&$A$55&"]","[Date].[Fiscal Q Hierarchy].[All].["&$B$27&"].["&E$27&"]","[Measures].[FFT Percent who recommend]","[Friends And Family Type].&[A&E]")),"") -> 0.9023491479 | D55: =IFERROR(IF(CUBEMEMBER("PROD_PUBLIC_ONLY","[Date].[Working Days].[Short Month Year Label].["&CUBEVALUE("PROD_PUBLIC_ONLY","[Measures].[Period Current FFT Scores]")&"].lastchild") < CUBEMEMBER("PROD_PUBLIC_ONLY","[Date].[Working Days].[Fiscal Year Qtr Name].["&F$27&"].lastchild.lastchild"),"",CUBEVALUE("PROD_PUBLIC_ONLY","[Providers].[Org Name].["&$A$55&"]","[Date].[Fiscal Q Hierarchy].[All].["&$B$27&"].["&F$27&"]","[Measures].[FFT Percent who recommend]","[Friends And Family Type].&[A&E]")),"") -> 
A56: =IFERROR(VLOOKUP($B$2,'TOP 3 PROVIDER LIST'!$B:$S,12,FALSE),"") -> DONCASTER AND BASSETLAW HOSPITALS NHS FOUNDATION TRUST | B56: =IFERROR(IF(CUBEMEMBER("PROD_PUBLIC_ONLY","[Date].[Working Days].[Short Month Year Label].["&CUBEVALUE("PROD_PUBLIC_ONLY","[Measures].[Period Current FFT Scores]")&"].lastchild") < CUBEMEMBER("PROD_PUBLIC_ONLY","[Date].[Working Days].[Fiscal Year Qtr Name].["&D$27&"].lastchild.lastchild"),"",CUBEVALUE("PROD_PUBLIC_ONLY","[Providers].[Org Name].["&$A56&"]","[Date].[Fiscal Q Hierarchy].[All].["&$B$27&"].["&D$27&"]","[Measures].[FFT Percent who recommend]","[Friends And Family Type].&[A&E]")),"") -> 0.6460311432 | C56: =IFERROR(IF(CUBEMEMBER("PROD_PUBLIC_ONLY","[Date].[Working Days].[Short Month Year Label].["&CUBEVALUE("PROD_PUBLIC_ONLY","[Measures].[Period Current FFT Scores]")&"].lastchild") < CUBEMEMBER("PROD_PUBLIC_ONLY","[Date].[Working Days].[Fiscal Year Qtr Name].["&E$27&"].lastchild.lastchild"),"",CUBEVALUE("PROD_PUBLIC_ONLY","[Providers].[Org Name].["&$A56&"]","[Date].[Fiscal Q Hierarchy].[All].["&$B$27&"].["&E$27&"]","[Measures].[FFT Percent who recommend]","[Friends And Family Type].&[A&E]")),"") -> 0.8232104121 | D56: =IFERROR(IF(CUBEMEMBER("PROD_PUBLIC_ONLY","[Date].[Working Days].[Short Month Year Label].["&CUBEVALUE("PROD_PUBLIC_ONLY","[Measures].[Period Current FFT Scores]")&"].lastchild") < CUBEMEMBER("PROD_PUBLIC_ONLY","[Date].[Working Days].[Fiscal Year Qtr Name].["&F$27&"].lastchild.lastchild"),"",CUBEVALUE("PROD_PUBLIC_ONLY","[Providers].[Org Name].["&$A56&"]","[Date].[Fiscal Q Hierarchy].[All].["&$B$27&"].["&F$27&"]","[Measures].[FFT Percent who recommend]","[Friends And Family Type].&[A&E]")),"") -> 
A57: =IFERROR(VLOOKUP($B$2,'TOP 3 PROVIDER LIST'!$B:$S,14,FALSE),"") -> SHEFFIELD TEACHING HOSPITALS NHS FOUNDATION TRUST | B57: =IFERROR(IF(CUBEMEMBER("PROD_PUBLIC_ONLY","[Date].[Working Days].[Short Month Year Label].["&CUBEVALUE("PROD_PUBLIC_ONLY","[Measures].[Period Current FFT Scores]")&"].lastchild") < CUBEMEMBER("PROD_PUBLIC_ONLY","[Date].[Working Days].[Fiscal Year Qtr Name].["&D$27&"].lastchild.lastchild"),"",CUBEVALUE("PROD_PUBLIC_ONLY","[Providers].[Org Name].["&$A57&"]","[Date].[Fiscal Q Hierarchy].[All].["&$B$27&"].["&D$27&"]","[Measures].[FFT Percent who recommend]","[Friends And Family Type].&[A&E]")),"") -> 0.8346121057 | C57: =IFERROR(IF(CUBEMEMBER("PROD_PUBLIC_ONLY","[Date].[Working Days].[Short Month Year Label].["&CUBEVALUE("PROD_PUBLIC_ONLY","[Measures].[Period Current FFT Scores]")&"].lastchild") < CUBEMEMBER("PROD_PUBLIC_ONLY","[Date].[Working Days].[Fiscal Year Qtr Name].["&E$27&"].lastchild.lastchild"),"",CUBEVALUE("PROD_PUBLIC_ONLY","[Providers].[Org Name].["&$A57&"]","[Date].[Fiscal Q Hierarchy].[All].["&$B$27&"].["&E$27&"]","[Measures].[FFT Percent who recommend]","[Friends And Family Type].&[A&E]")),"") -> 0.8208484848
A58: PERCENTAGE WHO WOULD RECOMMEND INPATIENT | B58: QUARTER 1 | C58: QUARTER 2 | D58: QUARTER 3 | E58: QUARTER 4
A59: =IFERROR(VLOOKUP($B$2,'TOP 3 PROVIDER LIST'!$B:$S,2,FALSE),"") -> THE ROTHERHAM NHS FOUNDATION TRUST | B59: =IFERROR(IF(CUBEMEMBER("PROD_PUBLIC_ONLY","[Date].[Working Days].[Short Month Year Label].["&CUBEVALUE("PROD_PUBLIC_ONLY","[Measures].[Period Current FFT Scores]")&"].lastchild") < CUBEMEMBER("PROD_PUBLIC_ONLY","[Date].[Working Days].[Fiscal Year Qtr Name].["&D$27&"].lastchild.lastchild"),"",CUBEVALUE("PROD_PUBLIC_ONLY","[Providers].[Org Name].["&$A59&"]","[Date].[Fiscal Q Hierarchy].[All].["&$B$27&"].["&D$27&"]","[Measures].[FFT Percent who recommend]","[Friends And Family Type].&[Inpatients]")),"") -> 0.9693094629 | C59: 0.9617422013 | D59: =IFERROR(IF(CUBEMEMBER("PROD_PUBLIC_ONLY","[Date].[Working Days].[Short Month Year Label].["&CUBEVALUE("PROD_PUBLIC_ONLY","[Measures].[Period Current FFT Scores]")&"].lastchild") < CUBEMEMBER("PROD_PUBLIC_ONLY","[Date].[Working Days].[Fiscal Year Qtr Name].["&F$27&"].lastchild.lastchild"),"",CUBEVALUE("PROD_PUBLIC_ONLY","[Providers].[Org Name].["&$A59&"]","[Date].[Fiscal Q Hierarchy].[All].["&$B$27&"].["&F$27&"]","[Measures].[FFT Percent who recommend]","[Friends And Family Type].&[Inpatients]")),"") -> 
A60: =IFERROR(VLOOKUP($B$2,'TOP 3 PROVIDER LIST'!$B:$S,4,FALSE),"") -> SHEFFIELD TEACHING HOSPITALS NHS FOUNDATION TRUST | B60: 0.9627512447 | C60: 0.9692190766
A61: =IFERROR(VLOOKUP($B$2,'TOP 3 PROVIDER LIST'!$B:$S,6,FALSE),"") -> 
A63: HALF YEARLY - PROVIDER BASED INDICATOR
A64: Improving the reporting of medication-related safety incidents
A65: MEDICATION-RELATED PATIENT SAFETY INCIDENTS | B65: April - September 2013-14 - Incidents Count | C65: April - September 2013-14 - Percentage of Total Safety Incidents | D65: October- March 2013-14 - Incidents Count | E65: October- March 2013-14 - Percentage of Total Safety Incidents | F65: April - September 2014-15 - Incidents Count | G65: April - September 2014-15 - Percentage of Total Safety Incidents | H65: October- March 2014-15 - Incidents Count | I65: October- March 2014-15 - Percentage of Total Safety Incidents
A66: =IFERROR(VLOOKUP($B$2,'TOP 3 PROVIDER LIST'!$B:$S,16,FALSE),"") -> THE ROTHERHAM NHS FOUNDATION TRUST | B66: =IFERROR(CUBEVALUE("PROD_PUBLIC_ONLY","[Providers].[Org Name].["&A66&"]","[Date].[Fiscal H Hierachy].[All].[2013-14].[2013-14 1st Half]","[Measures].[Number Of Safety Incidents]","[Dim Safety Incident Category].[Safety Incident Category].[All].[Medication]"),"") -> 367 | C66: =IFERROR(CUBEVALUE("PROD_PUBLIC_ONLY","[Providers].[Org Name].["&A66&"]","[Date].[Fiscal H Hierachy].[All].[2013-14].[2013-14 1st Half]","[Measures].[Safety Incident Type as percentage of Total Safety Incidents]","[Dim Safety Incident Category].[Incident Category].[All].[Medication]"),"") -> 0.1213624339 | D66: =IFERROR(CUBEVALUE("PROD_PUBLIC_ONLY","[Providers].[Org Name].["&A66&"]","[Date].[Fiscal H Hierachy].[All].[2013-14].[2013-14 2nd Half]","[Measures].[Number Of Safety Incidents]","[Dim Safety Incident Category].[Safety Incident Category].[All].[Medication]"),"") -> 427 | E66: =IFERROR(CUBEVALUE("PROD_PUBLIC_ONLY","[Providers].[Org Name].["&A66&"]","[Date].[Fiscal H Hierachy].[All].[2013-14].[2013-14 2nd Half]","[Measures].[Safety Incident Type as percentage of Total Safety Incidents]","[Dim Safety Incident Category].[Incident Category].[All].[Medication]"),"") -> 0.1705271565
A67: =IFERROR(VLOOKUP($B$2,'TOP 3 PROVIDER LIST'!$B:$S,17,FALSE),"") -> SHEFFIELD TEACHING HOSPITALS NHS FOUNDATION TRUST | B67: =IFERROR(CUBEVALUE("PROD_PUBLIC_ONLY","[Providers].[Org Name].["&A67&"]","[Date].[Fiscal H Hierachy].[All].[2013-14].[2013-14 1st Half]","[Measures].[Number Of Safety Incidents]","[Dim Safety Incident Category].[Safety Incident Category].[All].[Medication]"),"") -> 645 | C67: =IFERROR(CUBEVALUE("PROD_PUBLIC_ONLY","[Providers].[Org Name].["&A67&"]","[Date].[Fiscal H Hierachy].[All].[2013-14].[2013-14 1st Half]","[Measures].[Safety Incident Type as percentage of Total Safety Incidents]","[Dim Safety Incident Category].[Incident Category].[All].[Medication]"),"") -> 0.1288968825 | D67: =IFERROR(CUBEVALUE("PROD_PUBLIC_ONLY","[Providers].[Org Name].["&A67&"]","[Date].[Fiscal H Hierachy].[All].[2013-14].[2013-14 2nd Half]","[Measures].[Number Of Safety Incidents]","[Dim Safety Incident Category].[Safety Incident Category].[All].[Medication]"),"") -> 784 | E67: =IFERROR(CUBEVALUE("PROD_PUBLIC_ONLY","[Providers].[Org Name].["&A67&"]","[Date].[Fiscal H Hierachy].[All].[2013-14].[2013-14 2nd Half]","[Measures].[Safety Incident Type as percentage of Total Safety Incidents]","[Dim Safety Incident Category].[Incident Category].[All].[Medication]"),"") -> 0.1647751156
A68: =IFERROR(VLOOKUP($B$2,'TOP 3 PROVIDER LIST'!$B:$S,18,FALSE),"") -> DONCASTER AND BASSETLAW HOSPITALS NHS FOUNDATION TRUST | B68: =IFERROR(CUBEVALUE("PROD_PUBLIC_ONLY","[Providers].[Org Name].["&A68&"]","[Date].[Fiscal H Hierachy].[All].[2013-14].[2013-14 1st Half]","[Measures].[Number Of Safety Incidents]","[Dim Safety Incident Category].[Safety Incident Category].[All].[Medication]"),"") -> 286 | C68: =IFERROR(CUBEVALUE("PROD_PUBLIC_ONLY","[Providers].[Org Name].["&A68&"]","[Date].[Fiscal H Hierachy].[All].[2013-14].[2013-14 1st Half]","[Measures].[Safety Incident Type as percentage of Total Safety Incidents]","[Dim Safety Incident Category].[Incident Category].[All].[Medication]"),"") -> 0.1062407132 | D68: =IFERROR(CUBEVALUE("PROD_PUBLIC_ONLY","[Providers].[Org Name].["&A68&"]","[Date].[Fiscal H Hierachy].[All].[2013-14].[2013-14 2nd Half]","[Measures].[Number Of Safety Incidents]","[Dim Safety Incident Category].[Safety Incident Category].[All].[Medication]"),"") -> 348 | E68: =IFERROR(CUBEVALUE("PROD_PUBLIC_ONLY","[Providers].[Org Name].["&A68&"]","[Date].[Fiscal H Hierachy].[All].[2013-14].[2013-14 2nd Half]","[Measures].[Safety Incident Type as percentage of Total Safety Incidents]","[Dim Safety Incident Category].[Incident Category].[All].[Medication]"),"") -> 0.08911651729
G69: =IFERROR(CUBEVALUE("PROD_PUBLIC_ONLY","[Providers].[Org Name].["&A69&"]","[Date].[Fiscal Q Hierarchy].[All].["&$B$8&"]","[Measures].[FFT Test Score]","[Friends And Family Type].[FFT Source].[All types].[Combined A&E and Inpatients]")*1,"") -> 
E71: =IFERROR(CUBEVALUE("PROD_PUBLIC_ONLY","[Providers].[Org Name].["&A71&"]","[Date].[Fiscal Q Hierarchy].[All].["&$B$8&"].["&$E$8&"]","[Measures].[FFT Test Score]","[Friends And Family Type].[FFT Source].[All types].[Combined A&E and Inpatients]")*1,"") ->  | F71: =IFERROR(CUBEVALUE("PROD_PUBLIC_ONLY","[Providers].[Org Name].["&A71&"]","[Date].[Fiscal Q Hierarchy].[All].["&$B$8&"].["&$F$8&"]","[Measures].[FFT Test Score]","[Friends And Family Type].[FFT Source].[All types].[Combined A&E and Inpatients]")*1,"") ->  | G71: =IFERROR(CUBEVALUE("PROD_PUBLIC_ONLY","[Providers].[Org Name].["&A71&"]","[Date].[Fiscal Q Hierarchy].[All].["&$B$8&"]","[Measures].[FFT Test Score]","[Friends And Family Type].[FFT Source].[All types].[Combined A&E and Inpatients]")*1,"") -> 
E72: =IFERROR(CUBEVALUE("PROD_PUBLIC_ONLY","[Providers].[Org Name].["&A72&"]","[Date].[Fiscal Q Hierarchy].[All].["&$B$8&"].["&$E$8&"]","[Measures].[FFT Test Score]","[Friends And Family Type].[FFT Source].[All types].[Combined A&E and Inpatients]")*1,"") ->  | F72: =IFERROR(CUBEVALUE("PROD_PUBLIC_ONLY","[Providers].[Org Name].["&A72&"]","[Date].[Fiscal Q Hierarchy].[All].["&$B$8&"].["&$F$8&"]","[Measures].[FFT Test Score]","[Friends And Family Type].[FFT Source].[All types].[Combined A&E and Inpatients]")*1,"") ->  | G72: =IFERROR(CUBEVALUE("PROD_PUBLIC_ONLY","[Providers].[Org Name].["&A72&"]","[Date].[Short Month Year Label].[By Date].["&TEXT(#REF!,"mmm-yy")&"]","[Measures].[FFT Test Score]","[Friends And Family Type].[FFT Source].[All types].[Combined A&E and Inpatients]")*1,"") -> 
E209: TOTAL INDICATOR
E210: =A210 -> 0
E211: =A211 -> 0
E212: 0
E213: 0
E214: 0
E215: 0
E216: 0
E217: 0
E218: 0
E219: 0
E220: 0
E221: 0
E222: 0
E223: 0
E224: 0
E225: 0
E226: 0
E227: 0
E228: 0
E229: 0
E230: 0
E231: 0
E232: 0
E233: 0
E234: 0

Sheet BETTER CARE FUND
B1: BETTER CARE FUND SECTION
B2: =IFERROR('COVER PAGE'!$D$3,"") -> NHS Rotherham CCG
B3: =IFERROR('COVER PAGE'!$D$4,"") -> S Yorkshire & Bassetlaw
B4: =IFERROR('COVER PAGE'!$D$2,"") -> North
B5: No Data for
A6: ANNUAL | B6: =$A$98 -> Rotherham
A7: Health and Well-Being Board: 1 | B7: =IF(B6="Bournemouth","Bournemouth & Poole",B6) -> Rotherham | D7: 13-14 Q1 | G7: 13-14 Q4 | H7: =CUBEVALUE("PROD_PUBLIC_ONLY","[Measures].[Period Current CDiff]") -> Sep-14
A8: INDICATOR | B8: ="BASELINE ("&C8&")" -> BASELINE (2013-14) | C8: 2013-14 | D8: 2014-15
A9: Permanent admissions of older people (aged 65 and over) to residential and nursing care homes, per 100,000 population | B9: =IFERROR(IF($B$6="Bournemouth",(VLOOKUP($C$8&"_Bournemouth",'PERMANENT ADMISSIONS '!$A:$F,5,FALSE)*VLOOKUP($C$8&"_Bournemouth",'PERMANENT ADMISSIONS '!$A:$G,7,FALSE)+VLOOKUP($C$8&"_Poole",'PERMANENT ADMISSIONS '!$A:$F,5,FALSE)*VLOOKUP($C$8&"_Poole",'PERMANENT ADMISSIONS '!$A:$G,7,FALSE))/(VLOOKUP($C$8&"_Bournemouth",'PERMANENT ADMISSIONS '!$A:$G,7,FALSE)+VLOOKUP($C$8&"_Poole",'PERMANENT ADMISSIONS '!$A:$G,7,FALSE)),IF(VLOOKUP($C$8&"_"&$B$6,'PERMANENT ADMISSIONS '!$A:$E,5,FALSE)="","No data",VLOOKUP($C$8&"_"&$B$6,'PERMANENT ADMISSIONS '!$A:$E,5,FALSE))),"") -> 694.6 | C9: PLAN | D9: =IFERROR(CUBEVALUE("PROD_PUBLIC_ONLY","[Local Authorities].[Local Authorities].["&B6&"]","[Date].[Fiscal Year Name].["&D8&"]","[Measures].[Plan BCF Permanent Admissions]")*100000,"") -> 649.0315712
C10: PERFORMANCE
A11: Proportion of older people (65 and over) still at home 91 days after discharge from hospital into reablement / rehabilitation services | B11: =IFERROR(IF($B$6="Bournemouth",(VLOOKUP($C$8&"_Bournemouth",'OLDER PEOPLE STILL AT HOME'!A:F,5,FALSE)*VLOOKUP($C$8&"_Bournemouth",'OLDER PEOPLE STILL AT HOME'!A:G,7,FALSE)+VLOOKUP($C$8&"_Poole",'OLDER PEOPLE STILL AT HOME'!$A:$F,5,FALSE)*VLOOKUP($C$8&"_Poole",'OLDER PEOPLE STILL AT HOME'!$A:$G,7,FALSE))/(VLOOKUP($C$8&"_Bournemouth",'OLDER PEOPLE STILL AT HOME'!$A:$G,7,FALSE)+VLOOKUP($C$8&"_Poole",'OLDER PEOPLE STILL AT HOME'!$A:$G,7,FALSE)),IF(VLOOKUP($C$8&"_"&$B$6,'OLDER PEOPLE STILL AT HOME'!$A:$E,5,FALSE)="","No data",VLOOKUP($C$8&"_"&$B$6,'OLDER PEOPLE STILL AT HOME'!$A:$E,5,FALSE))),"") -> 87.7 | C11: PLAN | D11: =IFERROR(CUBEVALUE("PROD_PUBLIC_ONLY","[Local Authorities].[Org Name].["&B6&"]","[Date].[Fiscal Year Name].["&D8&"]","[Measures].[Plan BCF Reablement]")*100,"") -> 88.46153846
C12: PERFORMANCE
A13: bed days | C13: PLAN
C14: PERFORMANCE
A15: QUARTERLY | B15: =$A$98 -> Rotherham | C15: 2014-15 | D15: 14-15 Q1 | E15: 14-15 Q2 | F15: 14-15 Q3 | G15: 14-15 Q4
A16: Health and Well-Being Board: 1 | B16: =IF(B15="Bournemouth","Bournemouth & Poole",B15) -> Rotherham | C16: 2013-14 | D16: 13-14 Q1 | E16: 13-14 Q2 | F16: 13-14 Q3 | G16: 13-14 Q4
A17: INDICATOR | D17: QUARTER 1 | E17: QUARTER 2 | F17: QUARTER 3 | G17: QUARTER 4
A18: Delayed transfers of care (delayed days) from hospital per 100,000 population | B18: BASELINE (2013-14) | D18: =IFERROR(CUBEVALUE("PROD_PUBLIC_ONLY","[Local Authorities].[Local Authorities].["&$B15&"]","[Date].[Fiscal Q Hierarchy].["&$C$16&"].["&D$16&"]","[Measures].[Bed Delays per 100,000 Population over 18 by Local Authority]"),"") -> 405.2559875 | E18: =IFERROR(CUBEVALUE("PROD_PUBLIC_ONLY","[Local Authorities].[Local Authorities].["&$B15&"]","[Date].[Fiscal Q Hierarchy].["&$C$16&"].["&E$16&"]","[Measures].[Bed Delays per 100,000 Population over 18 by Local Authority]"),"") -> 332.201315 | F18: =IFERROR(CUBEVALUE("PROD_PUBLIC_ONLY","[Local Authorities].[Local Authorities].["&$B15&"]","[Date].[Fiscal Q Hierarchy].["&$C$16&"].["&F$16&"]","[Measures].[Bed Delays per 100,000 Population over 18 by Local Authority]"),"") -> 388.96677 | G18: =IFERROR(CUBEVALUE("PROD_PUBLIC_ONLY","[Local Authorities].[Local Authorities].["&$B15&"]","[Date].[Fiscal Q Hierarchy].["&$C$16&"].["&G$16&"]","[Measures].[Bed Delays per 100,000 Population over 18 by Local Authority]"),"") -> 537.6064149
B19: PLAN (2014-15 | D19: =IFERROR(CUBEVALUE("PROD_PUBLIC_ONLY","[Local Authorities].[Local Authorities].["&$B15&"]","[Date].[Fiscal Q Hierarchy].["&$C$15&"].["&D$15&"]","[Measures].[Plan BCF DToC per 100,000 population Over 18]"),"") -> 537.6064149 | E19: =IFERROR(CUBEVALUE("PROD_PUBLIC_ONLY","[Local Authorities].[Local Authorities].["&$B15&"]","[Date].[Fiscal Q Hierarchy].["&$C$15&"].["&E$15&"]","[Measures].[Plan BCF DToC per 100,000 population Over 18]"),"") -> 537.6064149 | F19: =IFERROR(CUBEVALUE("PROD_PUBLIC_ONLY","[Local Authorities].[Local Authorities].["&$B15&"]","[Date].[Fiscal Q Hierarchy].["&$C$15&"].["&F$15&"]","[Measures].[Plan BCF DToC per 100,000 population Over 18]"),"") -> 537.6064149 | G19: =IFERROR(CUBEVALUE("PROD_PUBLIC_ONLY","[Local Authorities].[Local Authorities].["&$B15&"]","[Date].[Fiscal Q Hierarchy].["&$C$15&"].["&G$15&"]","[Measures].[Plan BCF DToC per 100,000 population Over 18]"),"") -> 535.1712442
B20: PERFORMANCE (2014-15) | D20: =IFERROR(IF(CUBEMEMBER("PROD_PUBLIC_ONLY","[Date].[Working Days].[Short Month Year Label].["&CUBEVALUE("PROD_PUBLIC_ONLY","[Measures].[Period Current DTOC]")&"].lastchild") < CUBEMEMBER("PROD_PUBLIC_ONLY","[Date].[Working Days].[Fiscal Year Qtr Name].["&D$15&"].lastchild.lastchild"),"",CUBEVALUE("PROD_PUBLIC_ONLY","[Local Authorities].[Local Authorities].["&$B15&"]","[Date].[Fiscal Q Hierarchy].["&$C$15&"].["&D$15&"]","[Measures].[Bed Delays per 100,000 Population over 18 by Local Authority]")),"") -> 672.9890522 | E20: =IFERROR(IF(CUBEMEMBER("PROD_PUBLIC_ONLY","[Date].[Working Days].[Short Month Year Label].["&CUBEVALUE("PROD_PUBLIC_ONLY","[Measures].[Period Current DTOC]")&"].lastchild") < CUBEMEMBER("PROD_PUBLIC_ONLY","[Date].[Working Days].[Fiscal Year Qtr Name].["&E$15&"].lastchild.lastchild"),"",CUBEVALUE("PROD_PUBLIC_ONLY","[Local Authorities].[Local Authorities].["&$B15&"]","[Date].[Fiscal Q Hierarchy].["&$C$15&"].["&E$15&"]","[Measures].[Bed Delays per 100,000 Population over 18 by Local Authority]")),"") -> 825.5397776 | F20: =IFERROR(IF(CUBEMEMBER("PROD_PUBLIC_ONLY","[Date].[Working Days].[Short Month Year Label].["&CUBEVALUE("PROD_PUBLIC_ONLY","[Measures].[Period Current DTOC]")&"].lastchild") < CUBEMEMBER("PROD_PUBLIC_ONLY","[Date].[Working Days].[Fiscal Year Qtr Name].["&F$15&"].lastchild.lastchild"),"",CUBEVALUE("PROD_PUBLIC_ONLY","[Local Authorities].[Local Authorities].["&$B15&"]","[Date].[Fiscal Q Hierarchy].["&$C$15&"].["&F$15&"]","[Measures].[Bed Delays per 100,000 Population over 18 by Local Authority]")),"") ->  | G20: =IFERROR(IF(CUBEMEMBER("PROD_PUBLIC_ONLY","[Date].[Working Days].[Short Month Year Label].["&CUBEVALUE("PROD_PUBLIC_ONLY","[Measures].[Period Current DTOC]")&"].lastchild") < CUBEMEMBER("PROD_PUBLIC_ONLY","[Date].[Working Days].[Fiscal Year Qtr Name].["&G$15&"].lastchild.lastchild"),"",CUBEVALUE("PROD_PUBLIC_ONLY","[Local Authorities].[Local Authorities].["&$B15&"]","[Date].[Fiscal Q Hierarchy].["&$C$15&"].["&G$15&"]","[Measures].[Bed Delays per 100,000 Population over 18 by Local Authority]")),"") -> 
A21: Non-Elective Admissions (general and acute) per 100,000 population | B21: BASELINE (2013-14) | D21: =IFERROR(CUBEVALUE("PROD_PUBLIC_ONLY","[Date].[Fiscal Q Hierarchy].["&$C$16&"].["&D$16&"]","[Local Authorities].[Org Name].["&$B15&"]","[Measures].[Actual Current HWB Non Elective per 100,000 Population]"),"") -> 2799.298391 | E21: =IFERROR(CUBEVALUE("PROD_PUBLIC_ONLY","[Date].[Fiscal Q Hierarchy].["&$C$16&"].["&E$16&"]","[Local Authorities].[Org Name].["&$B15&"]","[Measures].[Actual Current HWB Non Elective per 100,000 Population]"),"") -> 2817.18289 | F21: =CUBEVALUE("PROD_PUBLIC_ONLY","[Date].[Fiscal Q Hierarchy].["&$C$16&"].["&F$16&"]","[Local Authorities].[Org Name].["&$B15&"]","[Measures].[Actual Current HWB Non Elective per 100,000 Population]") -> 2993.576129 | G21: =IFERROR(CUBEVALUE("PROD_PUBLIC_ONLY","[Date].[Fiscal Q Hierarchy].["&$C$16&"].["&G$16&"]","[Local Authorities].[Org Name].["&$B15&"]","[Measures].[Actual Current HWB Non Elective per 100,000 Population]"),"") -> 2865.413649
B22: PLAN (2014-15 | D22: =IFERROR(CUBEVALUE("PROD_PUBLIC_ONLY","[Local Authorities].[Local Authorities].["&$B15&"]","[Date].[Fiscal Q Hierarchy].["&$C$15&"].["&D$15&"]","[Measures].[Plan BCF NonElectives per 100,000 population]"),"") -> 2912.782197 | E22: =IFERROR(CUBEVALUE("PROD_PUBLIC_ONLY","[Local Authorities].[Local Authorities].["&$B15&"]","[Date].[Fiscal Q Hierarchy].["&$C$15&"].["&E$15&"]","[Measures].[Plan BCF NonElectives per 100,000 population]"),"") -> 2834.287142 | F22: 2842.367515 | G22: 2855.646367
B23: PERFORMANCE (2014-15) | D23: =IFERROR(IF(CUBEMEMBER("PROD_PUBLIC_ONLY","[Date].[Working Days].[Short Month Year Label].["&CUBEVALUE("PROD_PUBLIC_ONLY","[Measures].[Period Current Activity]")&"].lastchild") < CUBEMEMBER("PROD_PUBLIC_ONLY","[Date].[Working Days].[Fiscal Year Qtr Name].["&D$15&"].lastchild.lastchild"),"",CUBEVALUE("PROD_PUBLIC_ONLY","[Date].[Fiscal Q Hierarchy].["&$C$15&"].["&D$15&"]","[Local Authorities].[Org Name].["&$B15&"]","[Measures].[Actual Current HWB Non Elective per 100,000 Population]")),"") -> 2912.86815 | E23: =IFERROR(IF(CUBEMEMBER("PROD_PUBLIC_ONLY","[Date].[Working Days].[Short Month Year Label].["&CUBEVALUE("PROD_PUBLIC_ONLY","[Measures].[Period Current Activity]")&"].lastchild") < CUBEMEMBER("PROD_PUBLIC_ONLY","[Date].[Working Days].[Fiscal Year Qtr Name].["&E$15&"].lastchild.lastchild"),"",CUBEVALUE("PROD_PUBLIC_ONLY","[Date].[Fiscal Q Hierarchy].["&$C$15&"].["&E$15&"]","[Local Authorities].[Org Name].["&$B15&"]","[Measures].[Actual Current HWB Non Elective per 100,000 Population]")),"") -> 2871.288993
A27: ANNUAL | B27: =$A$99 -> 
A28: Health and Well-Being Board: 2 | B28: =IF(B27="Bournemouth","Bournemouth & Poole",B27) ->  | H28: =CUBEVALUE("PROD_PUBLIC_ONLY","[Measures].[Period Current CDiff]") -> Sep-14
A29: INDICATOR | B29: ="BASELINE ("&C29&")" -> BASELINE (2013-14) | C29: 2013-14 | D29: 2014-15 | E29: 2015-16
A30: Permanent admissions of older people (aged 65 and over) to residential and nursing care homes, per 100,000 population | B30: =IFERROR(IF($B$27="Bournemouth",(VLOOKUP($C$29&"_Bournemouth",'PERMANENT ADMISSIONS '!$A:$F,5,FALSE)*VLOOKUP($C$29&"_Bournemouth",'PERMANENT ADMISSIONS '!$A:$G,7,FALSE)+VLOOKUP($C$29&"_Poole",'PERMANENT ADMISSIONS '!$A:$F,5,FALSE)*VLOOKUP($C$29&"_Poole",'PERMANENT ADMISSIONS '!$A:$G,7,FALSE))/(VLOOKUP($C$29&"_Bournemouth",'PERMANENT ADMISSIONS '!$A:$G,7,FALSE)+VLOOKUP($C$29&"_Poole",'PERMANENT ADMISSIONS '!$A:$G,7,FALSE)),IF(VLOOKUP($C$29&"_"&$B$27,'PERMANENT ADMISSIONS '!$A:$E,5,FALSE)="","No data",VLOOKUP($C$29&"_"&$B$27,'PERMANENT ADMISSIONS '!$A:$E,5,FALSE))),"") ->  | C30: PLAN | D30: =IFERROR(CUBEVALUE("PROD_PUBLIC_ONLY","[Local Authorities].[Local Authorities].["&B27&"]","[Date].[Fiscal Year Name].["&D29&"]","[Measures].[Plan BCF Permanent Admissions]")*100000,"") ->  | E30: =IFERROR(VLOOKUP("2012-13"&"_"&$B$27&"_"&$B$28,'PERMANENT ADMISSIONS '!#REF!,7,FALSE),"") -> 
C31: PERFORMANCE
A32: Proportion of older people (65 and over) still at home 91 days after discharge from hospital into reablement / rehabilitation services | B32: =IFERROR(IF($B$27="Bournemouth",(VLOOKUP($C$29&"_Bournemouth",'OLDER PEOPLE STILL AT HOME'!A:F,5,FALSE)*VLOOKUP($C$29&"_Bournemouth",'OLDER PEOPLE STILL AT HOME'!A:G,7,FALSE)+VLOOKUP($C$29&"_Poole",'OLDER PEOPLE STILL AT HOME'!$A:$F,5,FALSE)*VLOOKUP($C$29&"_Poole",'OLDER PEOPLE STILL AT HOME'!$A:$G,7,FALSE))/(VLOOKUP($C$29&"_Bournemouth",'OLDER PEOPLE STILL AT HOME'!$A:$G,7,FALSE)+VLOOKUP($C$29&"_Poole",'OLDER PEOPLE STILL AT HOME'!$A:$G,7,FALSE)),IF(VLOOKUP($C$29&"_"&$B$27,'OLDER PEOPLE STILL AT HOME'!$A:$E,5,FALSE)="","No data",VLOOKUP($C$29&"_"&$B$27,'OLDER PEOPLE STILL AT HOME'!$A:$E,5,FALSE))),"") ->  | C32: PLAN | D32: =IFERROR(CUBEVALUE("PROD_PUBLIC_ONLY","[Local Authorities].[Org Name].["&B27&"]","[Date].[Fiscal Year Name].["&D29&"]","[Measures].[Plan BCF Reablement]")*100,"") -> 
C33: PERFORMANCE | D33: =IFERROR(VLOOKUP("2012-13"&"_"&$B$27&"_"&$B$28,'OLDER PEOPLE STILL AT HOME'!$A:$D,2,FALSE),"") -> 
A34: bed days | C34: PLAN
C35: PERFORMANCE
A36: QUARTERLY | B36: =$A$99 -> 
A37: Health and Well-Being Board: 2 | B37: =IF(B36="Bournemouth","Bournemouth & Poole",B36) ->  | C37: 2013-14 | D37: 13-14 Q1 | E37: 13-14 Q2 | F37: 13-14 Q3 | G37: 13-14 Q4
A38: INDICATOR | D38: QUARTER 1 | E38: QUARTER 2 | F38: QUARTER 3 | G38: QUARTER 4
A39: Delayed transfers of care (delayed days) from hospital per 100,000 population | B39: BASELINE (2013-14) | D39: =IFERROR(CUBEVALUE("PROD_PUBLIC_ONLY","[Local Authorities].[Local Authorities].["&$B36&"]","[Date].[Fiscal Q Hierarchy].["&$C$37&"].["&D$37&"]","[Measures].[Bed Delays per 100,000 Population over 18 by Local Authority]"),"") ->  | E39: =IFERROR(CUBEVALUE("PROD_PUBLIC_ONLY","[Local Authorities].[Local Authorities].["&$B36&"]","[Date].[Fiscal Q Hierarchy].["&$C$37&"].["&E$37&"]","[Measures].[Bed Delays per 100,000 Population over 18 by Local Authority]"),"") ->  | G39: =IFERROR(CUBEVALUE("PROD_PUBLIC_ONLY","[Local Authorities].[Local Authorities].["&$B36&"]","[Date].[Fiscal Q Hierarchy].["&$C$37&"].["&G$37&"]","[Measures].[Bed Delays per 100,000 Population over 18 by Local Authority]"),"") -> 
B40: PLAN (2014-15 | D40: =IFERROR(CUBEVALUE("PROD_PUBLIC_ONLY","[Local Authorities].[Local Authorities].["&$B36&"]","[Date].[Fiscal Q Hierarchy].["&$C$15&"].["&D$15&"]","[Measures].[Plan BCF DToC per 100,000 population Over 18]"),"") ->  | E40: =IFERROR(CUBEVALUE("PROD_PUBLIC_ONLY","[Local Authorities].[Local Authorities].["&$B36&"]","[Date].[Fiscal Q Hierarchy].["&$C$15&"].["&E$15&"]","[Measures].[Plan BCF DToC per 100,000 population Over 18]"),"") ->  | F40: =IFERROR(CUBEVALUE("PROD_PUBLIC_ONLY","[Local Authorities].[Local Authorities].["&$B36&"]","[Date].[Fiscal Q Hierarchy].["&$C$15&"].["&F$15&"]","[Measures].[Plan BCF DToC per 100,000 population Over 18]"),"") ->  | G40: =IFERROR(CUBEVALUE("PROD_PUBLIC_ONLY","[Local Authorities].[Local Authorities].["&$B36&"]","[Date].[Fiscal Q Hierarchy].["&$C$15&"].["&G$15&"]","[Measures].[Plan BCF DToC per 100,000 population Over 18]"),"") -> 
B41: PERFORMANCE (2014-15) | D41: =IFERROR(IF(CUBEMEMBER("PROD_PUBLIC_ONLY","[Date].[Working Days].[Short Month Year Label].["&CUBEVALUE("PROD_PUBLIC_ONLY","[Measures].[Period Current DTOC]")&"].lastchild") < CUBEMEMBER("PROD_PUBLIC_ONLY","[Date].[Working Days].[Fiscal Year Qtr Name].["&D$15&"].lastchild.lastchild"),"",CUBEVALUE("PROD_PUBLIC_ONLY","[Local Authorities].[Local Authorities].["&$B36&"]","[Date].[Fiscal Q Hierarchy].["&$C$15&"].["&D$15&"]","[Measures].[Bed Delays per 100,000 Population over 18 by Local Authority]")),"") ->  | E41: =IFERROR(IF(CUBEMEMBER("PROD_PUBLIC_ONLY","[Date].[Working Days].[Short Month Year Label].["&CUBEVALUE("PROD_PUBLIC_ONLY","[Measures].[Period Current DTOC]")&"].lastchild") < CUBEMEMBER("PROD_PUBLIC_ONLY","[Date].[Working Days].[Fiscal Year Qtr Name].["&E$15&"].lastchild.lastchild"),"",CUBEVALUE("PROD_PUBLIC_ONLY","[Local Authorities].[Local Authorities].["&$B36&"]","[Date].[Fiscal Q Hierarchy].["&$C$15&"].["&E$15&"]","[Measures].[Bed Delays per 100,000 Population over 18 by Local Authority]")),"") ->  | F41: =IFERROR(IF(CUBEMEMBER("PROD_PUBLIC_ONLY","[Date].[Working Days].[Short Month Year Label].["&CUBEVALUE("PROD_PUBLIC_ONLY","[Measures].[Period Current DTOC]")&"].lastchild") < CUBEMEMBER("PROD_PUBLIC_ONLY","[Date].[Working Days].[Fiscal Year Qtr Name].["&F$15&"].lastchild.lastchild"),"",CUBEVALUE("PROD_PUBLIC_ONLY","[Local Authorities].[Local Authorities].["&$B36&"]","[Date].[Fiscal Q Hierarchy].["&$C$15&"].["&F$15&"]","[Measures].[Bed Delays per 100,000 Population over 18 by Local Authority]")),"") ->  | G41: =IFERROR(IF(CUBEMEMBER("PROD_PUBLIC_ONLY","[Date].[Working Days].[Short Month Year Label].["&CUBEVALUE("PROD_PUBLIC_ONLY","[Measures].[Period Current DTOC]")&"].lastchild") < CUBEMEMBER("PROD_PUBLIC_ONLY","[Date].[Working Days].[Fiscal Year Qtr Name].["&G$15&"].lastchild.lastchild"),"",CUBEVALUE("PROD_PUBLIC_ONLY","[Local Authorities].[Local Authorities].["&$B36&"]","[Date].[Fiscal Q Hierarchy].["&$C$15&"].["&G$15&"]","[Measures].[Bed Delays per 100,000 Population over 18 by Local Authority]")),"") -> 
A42: Non-Elective Admissions (general and acute) per 100,000 population | B42: BASELINE (2013-14) | D42: =IFERROR(CUBEVALUE("PROD_PUBLIC_ONLY","[Date].[Fiscal Q Hierarchy].["&$C$37&"].["&D$37&"]","[Local Authorities].[Org Name].["&$B36&"]","[Measures].[Actual Current HWB Non Elective per 100,000 Population]"),"") ->  | E42: =IFERROR(CUBEVALUE("PROD_PUBLIC_ONLY","[Date].[Fiscal Q Hierarchy].["&$C$37&"].["&E$37&"]","[Local Authorities].[Org Name].["&$B36&"]","[Measures].[Actual Current HWB Non Elective per 100,000 Population]"),"") ->  | F42: =IFERROR(CUBEVALUE("PROD_PUBLIC_ONLY","[Date].[Fiscal Q Hierarchy].["&$C$37&"].["&F$37&"]","[Local Authorities].[Org Name].["&$B36&"]","[Measures].[Actual Current HWB Non Elective per 100,000 Population]"),"") -> 
B43: PLAN (2014-15 | D43: =IFERROR(CUBEVALUE("PROD_PUBLIC_ONLY","[Local Authorities].[Local Authorities].["&$B36&"]","[Date].[Fiscal Q Hierarchy].["&$C$15&"].["&D$15&"]","[Measures].[Plan BCF NonElectives per 100,000 population]"),"") ->  | E43: =IFERROR(CUBEVALUE("PROD_PUBLIC_ONLY","[Local Authorities].[Local Authorities].["&$B36&"]","[Date].[Fiscal Q Hierarchy].["&$C$15&"].["&E$15&"]","[Measures].[Plan BCF NonElectives per 100,000 population]"),"") ->  | F43: =IFERROR(CUBEVALUE("PROD_PUBLIC_ONLY","[Local Authorities].[Local Authorities].["&$B36&"]","[Date].[Fiscal Q Hierarchy].["&$C$15&"].["&F$15&"]","[Measures].[Plan BCF NonElectives per 100,000 population]"),"") ->  | G43: =IFERROR(CUBEVALUE("PROD_PUBLIC_ONLY","[Local Authorities].[Local Authorities].["&$B36&"]","[Date].[Fiscal Q Hierarchy].["&$C$15&"].["&G$15&"]","[Measures].[Plan BCF NonElectives per 100,000 population]"),"") -> 
B44: PERFORMANCE (2014-15) | D44: =IFERROR(IF(CUBEMEMBER("PROD_PUBLIC_ONLY","[Date].[Working Days].[Short Month Year Label].["&CUBEVALUE("PROD_PUBLIC_ONLY","[Measures].[Period Current Activity]")&"].lastchild") < CUBEMEMBER("PROD_PUBLIC_ONLY","[Date].[Working Days].[Fiscal Year Qtr Name].["&D$15&"].lastchild.lastchild"),"",CUBEVALUE("PROD_PUBLIC_ONLY","[Date].[Fiscal Q Hierarchy].["&$C$15&"].["&D$15&"]","[Local Authorities].[Org Name].["&$B36&"]","[Measures].[Actual Current HWB Non Elective per 100,000 Population]")),"") ->  | E44: =IFERROR(IF(CUBEMEMBER("PROD_PUBLIC_ONLY","[Date].[Working Days].[Short Month Year Label].["&CUBEVALUE("PROD_PUBLIC_ONLY","[Measures].[Period Current Activity]")&"].lastchild") < CUBEMEMBER("PROD_PUBLIC_ONLY","[Date].[Working Days].[Fiscal Year Qtr Name].["&E$15&"].lastchild.lastchild"),"",CUBEVALUE("PROD_PUBLIC_ONLY","[Date].[Fiscal Q Hierarchy].["&$C$15&"].["&E$15&"]","[Local Authorities].[Org Name].["&$B36&"]","[Measures].[Actual Current HWB Non Elective per 100,000 Population]")),"") ->  | F44: =IFERROR(IF(CUBEMEMBER("PROD_PUBLIC_ONLY","[Date].[Working Days].[Short Month Year Label].["&CUBEVALUE("PROD_PUBLIC_ONLY","[Measures].[Period Current Activity]")&"].lastchild") < CUBEMEMBER("PROD_PUBLIC_ONLY","[Date].[Working Days].[Fiscal Year Qtr Name].["&F$15&"].lastchild.lastchild"),"",CUBEVALUE("PROD_PUBLIC_ONLY","[Date].[Fiscal Q Hierarchy].["&$C$15&"].["&F$15&"]","[Local Authorities].[Org Name].["&$B36&"]","[Measures].[Actual Current HWB Non Elective per 100,000 Population]")),"") ->  | G44: =IFERROR(IF(CUBEMEMBER("PROD_PUBLIC_ONLY","[Date].[Working Days].[Short Month Year Label].["&CUBEVALUE("PROD_PUBLIC_ONLY","[Measures].[Period Current Activity]")&"].lastchild") < CUBEMEMBER("PROD_PUBLIC_ONLY","[Date].[Working Days].[Fiscal Year Qtr Name].["&G$15&"].lastchild.lastchild"),"",CUBEVALUE("PROD_PUBLIC_ONLY","[Date].[Fiscal Q Hierarchy].["&$C$15&"].["&G$15&"]","[Local Authorities].[Org Name].["&$B36&"]","[Measures].[Actual Current HWB Non Elective per 100,000 Population]")),"") -> 
A48: ANNUAL | B48: =$A$100 -> 
A49: Health and Well-Being Board: 3 | B49: =IF(B48="Bournemouth","Bournemouth & Poole",B48) ->  | D49: 13-14 Q1 | E49: 13-14 Q2 | F49: 13-14 Q3 | G49: 13-14 Q4 | H49: =CUBEVALUE("PROD_PUBLIC_ONLY","[Measures].[Period Current CDiff]") -> Sep-14
A50: INDICATOR | B50: ="BASELINE ("&C50&")" -> BASELINE (2013-14) | C50: 2013-14 | D50: 2014-15
A51: Permanent admissions of older people (aged 65 and over) to residential and nursing care homes, per 100,000 population | B51: =IFERROR(IF($B$48="Bournemouth",(VLOOKUP($C$50&"_Bournemouth",'PERMANENT ADMISSIONS '!$A:$F,5,FALSE)*VLOOKUP($C$50&"_Bournemouth",'PERMANENT ADMISSIONS '!$A:$G,7,FALSE)+VLOOKUP($C$50&"_Poole",'PERMANENT ADMISSIONS '!$A:$F,5,FALSE)*VLOOKUP($C$50&"_Poole",'PERMANENT ADMISSIONS '!$A:$G,7,FALSE))/(VLOOKUP($C$50&"_Bournemouth",'PERMANENT ADMISSIONS '!$A:$G,7,FALSE)+VLOOKUP($C$50&"_Poole",'PERMANENT ADMISSIONS '!$A:$G,7,FALSE)),IF(VLOOKUP($C$50&"_"&$B$48,'PERMANENT ADMISSIONS '!$A:$E,5,FALSE)="","No data",VLOOKUP($C$50&"_"&$B$48,'PERMANENT ADMISSIONS '!$A:$E,5,FALSE))),"") ->  | C51: PLAN | D51: =IFERROR(CUBEVALUE("PROD_PUBLIC_ONLY","[Local Authorities].[Local Authorities].["&B48&"]","[Date].[Fiscal Year Name].["&D50&"]","[Measures].[Plan BCF Permanent Admissions]")*100000,"") ->  | E51: =IFERROR(VLOOKUP("2012-13"&"_"&$B$48&"_"&$B$49,'PERMANENT ADMISSIONS '!#REF!,7,FALSE),"") -> 
C52: PERFORMANCE
A53: Proportion of older people (65 and over) still at home 91 days after discharge from hospital into reablement / rehabilitation services | B53: =IFERROR(IF($B$48="Bournemouth",(VLOOKUP($C$50&"_Bournemouth",'OLDER PEOPLE STILL AT HOME'!A:F,5,FALSE)*VLOOKUP($C$50&"_Bournemouth",'OLDER PEOPLE STILL AT HOME'!A:G,7,FALSE)+VLOOKUP($C$50&"_Poole",'OLDER PEOPLE STILL AT HOME'!$A:$F,5,FALSE)*VLOOKUP($C$50&"_Poole",'OLDER PEOPLE STILL AT HOME'!$A:$G,7,FALSE))/(VLOOKUP($C$50&"_Bournemouth",'OLDER PEOPLE STILL AT HOME'!$A:$G,7,FALSE)+VLOOKUP($C$50&"_Poole",'OLDER PEOPLE STILL AT HOME'!$A:$G,7,FALSE)),IF(VLOOKUP($C$50&"_"&$B$48,'OLDER PEOPLE STILL AT HOME'!$A:$E,5,FALSE)="","No data",VLOOKUP($C$50&"_"&$B$48,'OLDER PEOPLE STILL AT HOME'!$A:$E,5,FALSE))),"") ->  | C53: PLAN | D53: =IFERROR(CUBEVALUE("PROD_PUBLIC_ONLY","[Local Authorities].[Org Name].["&B48&"]","[Date].[Fiscal Year Name].["&D50&"]","[Measures].[Plan BCF Reablement]")*100,"") -> 
C54: PERFORMANCE
C55: PLAN
C56: PERFORMANCE
A57: QUARTERLY | B57: =$A$100 -> 
A58: Health and Well-Being Board: 3 | B58: =IF(B57="Bournemouth","Bournemouth & Poole",B57) ->  | C58: 2013-14 | D58: 13-14 Q1 | E58: 13-14 Q2 | F58: 13-14 Q3 | G58: 13-14 Q4
A59: INDICATOR | D59: QUARTER 1 | E59: QUARTER 2 | F59: QUARTER 3 | G59: QUARTER 4
A60: Delayed transfers of care (delayed days) from hospital per 100,000 population | B60: BASELINE (2013-14) | D60: =IFERROR(CUBEVALUE("PROD_PUBLIC_ONLY","[Local Authorities].[Local Authorities].["&$B57&"]","[Date].[Fiscal Q Hierarchy].["&$C$58&"].["&D$58&"]","[Measures].[Bed Delays per 100,000 Population over 18 by Local Authority]"),"") ->  | E60: =IFERROR(CUBEVALUE("PROD_PUBLIC_ONLY","[Local Authorities].[Local Authorities].["&$B57&"]","[Date].[Fiscal Q Hierarchy].["&$C$58&"].["&E$58&"]","[Measures].[Bed Delays per 100,000 Population over 18 by Local Authority]"),"") -> 
B61: PLAN (2014-15 | D61: =IFERROR(CUBEVALUE("PROD_PUBLIC_ONLY","[Local Authorities].[Local Authorities].["&$B57&"]","[Date].[Fiscal Q Hierarchy].["&$C$15&"].["&D$15&"]","[Measures].[Plan BCF DToC per 100,000 population Over 18]"),"") ->  | E61: =IFERROR(CUBEVALUE("PROD_PUBLIC_ONLY","[Local Authorities].[Local Authorities].["&$B57&"]","[Date].[Fiscal Q Hierarchy].["&$C$15&"].["&E$15&"]","[Measures].[Plan BCF DToC per 100,000 population Over 18]"),"") ->  | F61: =IFERROR(CUBEVALUE("PROD_PUBLIC_ONLY","[Local Authorities].[Local Authorities].["&$B57&"]","[Date].[Fiscal Q Hierarchy].["&$C$15&"].["&F$15&"]","[Measures].[Plan BCF DToC per 100,000 population Over 18]"),"") ->  | G61: =IFERROR(CUBEVALUE("PROD_PUBLIC_ONLY","[Local Authorities].[Local Authorities].["&$B57&"]","[Date].[Fiscal Q Hierarchy].["&$C$15&"].["&G$15&"]","[Measures].[Plan BCF DToC per 100,000 population Over 18]"),"") -> 
B62: PERFORMANCE (2014-15) | D62: =IFERROR(IF(CUBEMEMBER("PROD_PUBLIC_ONLY","[Date].[Working Days].[Short Month Year Label].["&CUBEVALUE("PROD_PUBLIC_ONLY","[Measures].[Period Current DTOC]")&"].lastchild") < CUBEMEMBER("PROD_PUBLIC_ONLY","[Date].[Working Days].[Fiscal Year Qtr Name].["&D$15&"].lastchild.lastchild"),"",CUBEVALUE("PROD_PUBLIC_ONLY","[Local Authorities].[Local Authorities].["&$B57&"]","[Date].[Fiscal Q Hierarchy].["&$C$15&"].["&D$15&"]","[Measures].[Bed Delays per 100,000 Population over 18 by Local Authority]")),"") ->  | E62: =IFERROR(IF(CUBEMEMBER("PROD_PUBLIC_ONLY","[Date].[Working Days].[Short Month Year Label].["&CUBEVALUE("PROD_PUBLIC_ONLY","[Measures].[Period Current DTOC]")&"].lastchild") < CUBEMEMBER("PROD_PUBLIC_ONLY","[Date].[Working Days].[Fiscal Year Qtr Name].["&E$15&"].lastchild.lastchild"),"",CUBEVALUE("PROD_PUBLIC_ONLY","[Local Authorities].[Local Authorities].["&$B57&"]","[Date].[Fiscal Q Hierarchy].["&$C$15&"].["&E$15&"]","[Measures].[Bed Delays per 100,000 Population over 18 by Local Authority]")),"") ->  | F62: =IFERROR(IF(CUBEMEMBER("PROD_PUBLIC_ONLY","[Date].[Working Days].[Short Month Year Label].["&CUBEVALUE("PROD_PUBLIC_ONLY","[Measures].[Period Current DTOC]")&"].lastchild") < CUBEMEMBER("PROD_PUBLIC_ONLY","[Date].[Working Days].[Fiscal Year Qtr Name].["&F$15&"].lastchild.lastchild"),"",CUBEVALUE("PROD_PUBLIC_ONLY","[Local Authorities].[Local Authorities].["&$B57&"]","[Date].[Fiscal Q Hierarchy].["&$C$15&"].["&F$15&"]","[Measures].[Bed Delays per 100,000 Population over 18 by Local Authority]")),"") ->  | G62: =IFERROR(IF(CUBEMEMBER("PROD_PUBLIC_ONLY","[Date].[Working Days].[Short Month Year Label].["&CUBEVALUE("PROD_PUBLIC_ONLY","[Measures].[Period Current DTOC]")&"].lastchild") < CUBEMEMBER("PROD_PUBLIC_ONLY","[Date].[Working Days].[Fiscal Year Qtr Name].["&G$15&"].lastchild.lastchild"),"",CUBEVALUE("PROD_PUBLIC_ONLY","[Local Authorities].[Local Authorities].["&$B57&"]","[Date].[Fiscal Q Hierarchy].["&$C$15&"].["&G$15&"]","[Measures].[Bed Delays per 100,000 Population over 18 by Local Authority]")),"") -> 
A63: Non-Elective Admissions (general and acute) per 100,000 population | B63: BASELINE (2013-14) | D63: =IFERROR(CUBEVALUE("PROD_PUBLIC_ONLY","[Date].[Fiscal Q Hierarchy].["&$C$58&"].["&D$58&"]","[Local Authorities].[Org Name].["&$B57&"]","[Measures].[Actual Current HWB Non Elective per 100,000 Population]"),"") ->  | E63: =IFERROR(CUBEVALUE("PROD_PUBLIC_ONLY","[Date].[Fiscal Q Hierarchy].["&$C$58&"].["&E$58&"]","[Local Authorities].[Org Name].["&$B57&"]","[Measures].[Actual Current HWB Non Elective per 100,000 Population]"),"") ->  | F63: =IFERROR(CUBEVALUE("PROD_PUBLIC_ONLY","[Date].[Fiscal Q Hierarchy].["&$C$58&"].["&F$58&"]","[Local Authorities].[Org Name].["&$B57&"]","[Measures].[Actual Current HWB Non Elective per 100,000 Population]"),"") -> 
B64: PLAN (2014-15 | D64: =IFERROR(CUBEVALUE("PROD_PUBLIC_ONLY","[Local Authorities].[Local Authorities].["&$B57&"]","[Date].[Fiscal Q Hierarchy].["&$C$15&"].["&D$15&"]","[Measures].[Plan BCF NonElectives per 100,000 population]"),"") ->  | E64: =IFERROR(CUBEVALUE("PROD_PUBLIC_ONLY","[Local Authorities].[Local Authorities].["&$B57&"]","[Date].[Fiscal Q Hierarchy].["&$C$15&"].["&E$15&"]","[Measures].[Plan BCF NonElectives per 100,000 population]"),"") -> 
B65: PERFORMANCE (2014-15) | D65: =IFERROR(IF(CUBEMEMBER("PROD_PUBLIC_ONLY","[Date].[Working Days].[Short Month Year Label].["&CUBEVALUE("PROD_PUBLIC_ONLY","[Measures].[Period Current Activity]")&"].lastchild") < CUBEMEMBER("PROD_PUBLIC_ONLY","[Date].[Working Days].[Fiscal Year Qtr Name].["&D$15&"].lastchild.lastchild"),"",CUBEVALUE("PROD_PUBLIC_ONLY","[Date].[Fiscal Q Hierarchy].["&$C$15&"].["&D$15&"]","[Local Authorities].[Org Name].["&$B57&"]","[Measures].[Actual Current HWB Non Elective per 100,000 Population]")),"") ->  | E65: =IFERROR(IF(CUBEMEMBER("PROD_PUBLIC_ONLY","[Date].[Working Days].[Short Month Year Label].["&CUBEVALUE("PROD_PUBLIC_ONLY","[Measures].[Period Current Activity]")&"].lastchild") < CUBEMEMBER("PROD_PUBLIC_ONLY","[Date].[Working Days].[Fiscal Year Qtr Name].["&E$15&"].lastchild.lastchild"),"",CUBEVALUE("PROD_PUBLIC_ONLY","[Date].[Fiscal Q Hierarchy].["&$C$15&"].["&E$15&"]","[Local Authorities].[Org Name].["&$B57&"]","[Measures].[Actual Current HWB Non Elective per 100,000 Population]")),"") -> 
A69: ANNUAL | B69: =$A$101 -> 
A70: Health and Well-Being Board: 4 | B70: =IF(B69="Bournemouth","Bournemouth & Poole",B69) ->  | D70: 13-14 Q1 | F70: 13-14 Q3 | G70: 13-14 Q4 | H70: =CUBEVALUE("PROD_PUBLIC_ONLY","[Measures].[Period Current CDiff]") -> Sep-14
A71: INDICATOR | B71: ="BASELINE ("&C71&")" -> BASELINE (2013-14) | C71: 2013-14 | D71: 2014-15 | E71: 2015-16
A72: Permanent admissions of older people (aged 65 and over) to residential and nursing care homes, per 100,000 population | B72: =IFERROR(IF($B$69="Bournemouth",(VLOOKUP($C$71&"_Bournemouth",'PERMANENT ADMISSIONS '!$A:$F,5,FALSE)*VLOOKUP($C$71&"_Bournemouth",'PERMANENT ADMISSIONS '!$A:$G,7,FALSE)+VLOOKUP($C$71&"_Poole",'PERMANENT ADMISSIONS '!$A:$F,5,FALSE)*VLOOKUP($C$71&"_Poole",'PERMANENT ADMISSIONS '!$A:$G,7,FALSE))/(VLOOKUP($C$71&"_Bournemouth",'PERMANENT ADMISSIONS '!$A:$G,7,FALSE)+VLOOKUP($C$71&"_Poole",'PERMANENT ADMISSIONS '!$A:$G,7,FALSE)),IF(VLOOKUP($C$71&"_"&$B$69,'PERMANENT ADMISSIONS '!$A:$E,5,FALSE)="","No data",VLOOKUP($C$71&"_"&$B$69,'PERMANENT ADMISSIONS '!$A:$E,5,FALSE))),"") ->  | C72: PLAN | D72: =IFERROR(CUBEVALUE("PROD_PUBLIC_ONLY","[Local Authorities].[Local Authorities].["&B69&"]","[Date].[Fiscal Year Name].["&D71&"]","[Measures].[Plan BCF Permanent Admissions]")*100000,"") ->  | E72: =IFERROR(VLOOKUP("2012-13"&"_"&$B$69&"_"&$B$70,'PERMANENT ADMISSIONS '!#REF!,7,FALSE),"") -> 
C73: PERFORMANCE
A74: Proportion of older people (65 and over) still at home 91 days after discharge from hospital into reablement / rehabilitation services | B74: =IFERROR(IF($B$69="Bournemouth",(VLOOKUP($C$71&"_Bournemouth",'OLDER PEOPLE STILL AT HOME'!A:F,5,FALSE)*VLOOKUP($C$71&"_Bournemouth",'OLDER PEOPLE STILL AT HOME'!A:G,7,FALSE)+VLOOKUP($C$71&"_Poole",'OLDER PEOPLE STILL AT HOME'!$A:$F,5,FALSE)*VLOOKUP($C$71&"_Poole",'OLDER PEOPLE STILL AT HOME'!$A:$G,7,FALSE))/(VLOOKUP($C$71&"_Bournemouth",'OLDER PEOPLE STILL AT HOME'!$A:$G,7,FALSE)+VLOOKUP($C$71&"_Poole",'OLDER PEOPLE STILL AT HOME'!$A:$G,7,FALSE)),IF(VLOOKUP($C$71&"_"&$B$69,'OLDER PEOPLE STILL AT HOME'!$A:$E,5,FALSE)="","No data",VLOOKUP($C$71&"_"&$B$69,'OLDER PEOPLE STILL AT HOME'!$A:$E,5,FALSE))),"") ->  | C74: PLAN | D74: =IFERROR(CUBEVALUE("PROD_PUBLIC_ONLY","[Local Authorities].[Org Name].["&B69&"]","[Date].[Fiscal Year Name].["&D71&"]","[Measures].[Plan BCF Reablement]")*100,"") -> 
C75: PERFORMANCE
A78: QUARTERLY | B78: =$A$101 -> 
A79: Health and Well-Being Board: 4 | B79: =IF(B78="Bournemouth","Bournemouth & Poole",B78) ->  | C79: 2013-14 | D79: 13-14 Q1 | E79: 13-14 Q2 | F79: 13-14 Q3 | G79: 13-14 Q4
A80: INDICATOR | D80: QUARTER 1 | E80: QUARTER 2 | F80: QUARTER 3 | G80: QUARTER 4
A81: Delayed transfers of care (delayed days) from hospital per 100,000 population | B81: BASELINE (2013-14) | D81: =IFERROR(CUBEVALUE("PROD_PUBLIC_ONLY","[Local Authorities].[Local Authorities].["&$B78&"]","[Date].[Fiscal Q Hierarchy].["&$C$79&"].["&D$79&"]","[Measures].[Bed Delays per 100,000 Population over 18 by Local Authority]"),"") ->  | E81: =IFERROR(CUBEVALUE("PROD_PUBLIC_ONLY","[Local Authorities].[Local Authorities].["&$B78&"]","[Date].[Fiscal Q Hierarchy].["&$C$79&"].["&E$79&"]","[Measures].[Bed Delays per 100,000 Population over 18 by Local Authority]"),"") ->  | G81: =IFERROR(CUBEVALUE("PROD_PUBLIC_ONLY","[Local Authorities].[Local Authorities].["&$B78&"]","[Date].[Fiscal Q Hierarchy].["&$C$79&"].["&G$79&"]","[Measures].[Bed Delays per 100,000 Population over 18 by Local Authority]"),"") -> 
B82: PLAN (2014-15 | D82: =IFERROR(CUBEVALUE("PROD_PUBLIC_ONLY","[Local Authorities].[Local Authorities].["&$B78&"]","[Date].[Fiscal Q Hierarchy].["&$C$15&"].["&D$15&"]","[Measures].[Plan BCF DToC per 100,000 population Over 18]"),"") ->  | E82: =IFERROR(CUBEVALUE("PROD_PUBLIC_ONLY","[Local Authorities].[Local Authorities].["&$B78&"]","[Date].[Fiscal Q Hierarchy].["&$C$15&"].["&E$15&"]","[Measures].[Plan BCF DToC per 100,000 population Over 18]"),"") ->  | F82: =IFERROR(CUBEVALUE("PROD_PUBLIC_ONLY","[Local Authorities].[Local Authorities].["&$B78&"]","[Date].[Fiscal Q Hierarchy].["&$C$15&"].["&F$15&"]","[Measures].[Plan BCF DToC per 100,000 population Over 18]"),"") ->  | G82: =IFERROR(CUBEVALUE("PROD_PUBLIC_ONLY","[Local Authorities].[Local Authorities].["&$B78&"]","[Date].[Fiscal Q Hierarchy].["&$C$15&"].["&G$15&"]","[Measures].[Plan BCF DToC per 100,000 population Over 18]"),"") -> 
B83: PERFORMANCE (2014-15) | D83: =IFERROR(IF(CUBEMEMBER("PROD_PUBLIC_ONLY","[Date].[Working Days].[Short Month Year Label].["&CUBEVALUE("PROD_PUBLIC_ONLY","[Measures].[Period Current DTOC]")&"].lastchild") < CUBEMEMBER("PROD_PUBLIC_ONLY","[Date].[Working Days].[Fiscal Year Qtr Name].["&D$15&"].lastchild.lastchild"),"",CUBEVALUE("PROD_PUBLIC_ONLY","[Local Authorities].[Local Authorities].["&$B78&"]","[Date].[Fiscal Q Hierarchy].["&$C$15&"].["&D$15&"]","[Measures].[Bed Delays per 100,000 Population over 18 by Local Authority]")),"") ->  | E83: =IFERROR(IF(CUBEMEMBER("PROD_PUBLIC_ONLY","[Date].[Working Days].[Short Month Year Label].["&CUBEVALUE("PROD_PUBLIC_ONLY","[Measures].[Period Current DTOC]")&"].lastchild") < CUBEMEMBER("PROD_PUBLIC_ONLY","[Date].[Working Days].[Fiscal Year Qtr Name].["&E$15&"].lastchild.lastchild"),"",CUBEVALUE("PROD_PUBLIC_ONLY","[Local Authorities].[Local Authorities].["&$B78&"]","[Date].[Fiscal Q Hierarchy].["&$C$15&"].["&E$15&"]","[Measures].[Bed Delays per 100,000 Population over 18 by Local Authority]")),"") ->  | F83: =IFERROR(IF(CUBEMEMBER("PROD_PUBLIC_ONLY","[Date].[Working Days].[Short Month Year Label].["&CUBEVALUE("PROD_PUBLIC_ONLY","[Measures].[Period Current DTOC]")&"].lastchild") < CUBEMEMBER("PROD_PUBLIC_ONLY","[Date].[Working Days].[Fiscal Year Qtr Name].["&F$15&"].lastchild.lastchild"),"",CUBEVALUE("PROD_PUBLIC_ONLY","[Local Authorities].[Local Authorities].["&$B78&"]","[Date].[Fiscal Q Hierarchy].["&$C$15&"].["&F$15&"]","[Measures].[Bed Delays per 100,000 Population over 18 by Local Authority]")),"") ->  | G83: =IFERROR(IF(CUBEMEMBER("PROD_PUBLIC_ONLY","[Date].[Working Days].[Short Month Year Label].["&CUBEVALUE("PROD_PUBLIC_ONLY","[Measures].[Period Current DTOC]")&"].lastchild") < CUBEMEMBER("PROD_PUBLIC_ONLY","[Date].[Working Days].[Fiscal Year Qtr Name].["&G$15&"].lastchild.lastchild"),"",CUBEVALUE("PROD_PUBLIC_ONLY","[Local Authorities].[Local Authorities].["&$B78&"]","[Date].[Fiscal Q Hierarchy].["&$C$15&"].["&G$15&"]","[Measures].[Bed Delays per 100,000 Population over 18 by Local Authority]")),"") -> 
A84: Non-Elective Admissions (general and acute) per 100,000 population | B84: BASELINE (2013-14) | D84: =IFERROR(CUBEVALUE("PROD_PUBLIC_ONLY","[Date].[Fiscal Q Hierarchy].["&$C$79&"].["&D$79&"]","[Local Authorities].[Org Name].["&$B78&"]","[Measures].[Actual Current HWB Non Elective per 100,000 Population]"),"") ->  | E84: =IFERROR(CUBEVALUE("PROD_PUBLIC_ONLY","[Date].[Fiscal Q Hierarchy].["&$C$79&"].["&E$79&"]","[Local Authorities].[Org Name].["&$B78&"]","[Measures].[Actual Current HWB Non Elective per 100,000 Population]"),"") ->  | F84: =IFERROR(CUBEVALUE("PROD_PUBLIC_ONLY","[Date].[Fiscal Q Hierarchy].["&$C$79&"].["&F$79&"]","[Local Authorities].[Org Name].["&$B78&"]","[Measures].[Actual Current HWB Non Elective per 100,000 Population]"),"") -> 
B85: PLAN (2014-15 | D85: =IFERROR(CUBEVALUE("PROD_PUBLIC_ONLY","[Local Authorities].[Local Authorities].["&$B78&"]","[Date].[Fiscal Q Hierarchy].["&$C$15&"].["&D$15&"]","[Measures].[Plan BCF NonElectives per 100,000 population]"),"") ->  | E85: =IFERROR(CUBEVALUE("PROD_PUBLIC_ONLY","[Local Authorities].[Local Authorities].["&$B78&"]","[Date].[Fiscal Q Hierarchy].["&$C$15&"].["&E$15&"]","[Measures].[Plan BCF NonElectives per 100,000 population]"),"") -> 
B86: PERFORMANCE (2014-15) | D86: =IFERROR(IF(CUBEMEMBER("PROD_PUBLIC_ONLY","[Date].[Working Days].[Short Month Year Label].["&CUBEVALUE("PROD_PUBLIC_ONLY","[Measures].[Period Current Activity]")&"].lastchild") < CUBEMEMBER("PROD_PUBLIC_ONLY","[Date].[Working Days].[Fiscal Year Qtr Name].["&D$15&"].lastchild.lastchild"),"",CUBEVALUE("PROD_PUBLIC_ONLY","[Date].[Fiscal Q Hierarchy].["&$C$15&"].["&D$15&"]","[Local Authorities].[Org Name].["&$B78&"]","[Measures].[Actual Current HWB Non Elective per 100,000 Population]")),"") ->  | E86: =IFERROR(IF(CUBEMEMBER("PROD_PUBLIC_ONLY","[Date].[Working Days].[Short Month Year Label].["&CUBEVALUE("PROD_PUBLIC_ONLY","[Measures].[Period Current Activity]")&"].lastchild") < CUBEMEMBER("PROD_PUBLIC_ONLY","[Date].[Working Days].[Fiscal Year Qtr Name].["&E$15&"].lastchild.lastchild"),"",CUBEVALUE("PROD_PUBLIC_ONLY","[Date].[Fiscal Q Hierarchy].["&$C$15&"].["&E$15&"]","[Local Authorities].[Org Name].["&$B78&"]","[Measures].[Actual Current HWB Non Elective per 100,000 Population]")),"") -> 
C87: PLAN
A98: =IFERROR(VLOOKUP(D98,'CCG MAPPING TO HWBB'!$C$5:$G$246,4,FALSE),"") -> Rotherham | B98: 1 | C98: ='COVER PAGE'!A4 -> 03L | D98: =B98&C98 -> 103L | E98: =IFERROR(VLOOKUP(D98,'CCG MAPPING TO HWBB'!C:E,3,FALSE),"") -> E08000018
A99: =IFERROR(VLOOKUP(D99,'CCG MAPPING TO HWBB'!$C$5:$G$246,4,FALSE),"") ->  | B99: 2 | C99: ='COVER PAGE'!A4 -> 03L | D99: =B99&C99 -> 203L | E99: =IFERROR(VLOOKUP(D99,'CCG MAPPING TO HWBB'!C:E,3,FALSE),"") -> 
A100: =IFERROR(VLOOKUP(D100,'CCG MAPPING TO HWBB'!$C$5:$G$246,4,FALSE),"") ->  | B100: 3 | C100: ='COVER PAGE'!A4 -> 03L | D100: =B100&C100 -> 303L | E100: =IFERROR(VLOOKUP(D100,'CCG MAPPING TO HWBB'!C:E,3,FALSE),"") -> 
A101: =IFERROR(VLOOKUP(D101,'CCG MAPPING TO HWBB'!$C$5:$G$246,4,FALSE),"") ->  | B101: 4 | C101: ='COVER PAGE'!A4 -> 03L | D101: =B101&C101 -> 403L | E101: =IFERROR(VLOOKUP(D101,'CCG MAPPING TO HWBB'!C:E,3,FALSE),"") -> 

Sheet FINANCE SECTION
C1: FINANCE SECTION
C2: =IFERROR('COVER PAGE'!$D$3,"") -> NHS Rotherham CCG
C3: =IFERROR('COVER PAGE'!$D$4,"") -> S Yorkshire & Bassetlaw
C4: =IFERROR('COVER PAGE'!$D$2,"") -> North | P4: June | Q4: September | R4: December | S4: March
A6: 2014-15 | C6: JUNE | D6: SEPTEMBER | E6: DECEMBER | F6: MARCH | G6: INDIVIDUAL INDICATOR RAG RATING THRESHOLD
A7: CCG BASED INDICATOR | B7: PRIMARY/SUPPORTING INDICATOR | C7: QUARTER 1 PERFORMANCE | D7: QUARTER 2 PERFORMANCE | E7: QUARTER 3 PERFORMANCE | F7: QUARTER 4 PERFORMANCE | G7: GREEN | H7: AMBER | I7: RED | J7: GUIDANCE
A8: Plan - year to date (variance to plan as % of YTD allocation) | B8: Primary | C8: =IFERROR(VLOOKUP('COVER PAGE'!$A$4&"_"&'FINANCE SECTION'!$A$6&"_"&'FINANCE SECTION'!C6,FINANCE!$A:$L,9,FALSE),"") -> G | D8: =IFERROR(VLOOKUP('COVER PAGE'!$A$4&"_"&'FINANCE SECTION'!$A$6&"_"&'FINANCE SECTION'!D6,FINANCE!$A:$L,9,FALSE),"") -> G | G8: Positive variance to plan or negative variance <= 0.1% | H8: 0.1% > variance <0.5% (negative variance) | I8: Negative variance => 0.5% | J8: Calculate CCG year to date variance to surplus/(deficit) plan as a % of the CCG year to date allocation and then RAG rate accordingly
A9: Plan - full year (variance to plan as % of allocation) | B9: Primary | C9: =IFERROR(VLOOKUP('COVER PAGE'!$A$4&"_"&'FINANCE SECTION'!$A$6&"_"&'FINANCE SECTION'!C6,FINANCE!$A:$L,8,FALSE),"") -> G | D9: =IFERROR(VLOOKUP('COVER PAGE'!$A$4&"_"&'FINANCE SECTION'!$A$6&"_"&'FINANCE SECTION'!D6,FINANCE!$A:$L,8,FALSE),"") -> G | G9: Positive variance to plan or negative variance <= 0.1% | H9: 0.1% > variance <0.5% (negative variance) | I9: Negative variance => 0.5% | J9: Calculate CCG full year variance to surplus/(deficit) plan as a % of the CCG annual allocation and then RAG rate accordingly
A10: QIPP - year to date delivery | B10: Primary | C10: =IFERROR(VLOOKUP('COVER PAGE'!$A$4&"_"&'FINANCE SECTION'!$A$6&"_"&'FINANCE SECTION'!C6,FINANCE!$A:$L,6,FALSE),"") -> A | D10: =IFERROR(VLOOKUP('COVER PAGE'!$A$4&"_"&'FINANCE SECTION'!$A$6&"_"&'FINANCE SECTION'!D6,FINANCE!$A:$L,6,FALSE),"") -> G | G10: >= 95% of plan | H10: >95% of plan>= 75% of plan | I10: < 75% of plan | J10: Utilise the submitted non ISFE returns and RAG rating generated to complete (covering transactional and transformational schemes)
A11: QIPP - full year forecast | B11: Primary | C11: =IFERROR(VLOOKUP('COVER PAGE'!$A$4&"_"&'FINANCE SECTION'!$A$6&"_"&'FINANCE SECTION'!C6,FINANCE!$A:$L,5,FALSE),"") -> G | D11: =IFERROR(VLOOKUP('COVER PAGE'!$A$4&"_"&'FINANCE SECTION'!$A$6&"_"&'FINANCE SECTION'!D6,FINANCE!$A:$L,5,FALSE),"") -> A | G11: >= 95% of plan | H11: >95% of plan>= 75% of plan | I11: < 75% of plan | J11: Utilise the submitted non ISFE returns and RAG rating generated to complete (covering transactional and transformational schemes)
A12: Clear identification of risks against financial delivery and mitigations | B12: Primary | C12: =IFERROR(VLOOKUP('COVER PAGE'!$A$4&"_"&'FINANCE SECTION'!$A$6&"_"&'FINANCE SECTION'!C6,FINANCE!$A:$L,3,FALSE),"") -> G | D12: =IFERROR(VLOOKUP('COVER PAGE'!$A$4&"_"&'FINANCE SECTION'!$A$6&"_"&'FINANCE SECTION'!D6,FINANCE!$A:$L,3,FALSE),"") -> G | G12: Mitigations equal to or greater than risks | H12: Risks not fully mitigated and, if they were to materialise, the CCG would not be in deficit or would be in deficit up to 1% of allocation | I12: Risks not fully mitigated and, if they were to materialise, the CCG would be in deficit greater than 1% of allocation | J12: Utilise information from the submitted non ISFE returns
A13: Running costs | B13: Primary | C13: =IFERROR(VLOOKUP('COVER PAGE'!$A$4&"_"&'FINANCE SECTION'!$A$6&"_"&'FINANCE SECTION'!C6,FINANCE!$A:$L,4,FALSE),"") -> G | D13: =IFERROR(VLOOKUP('COVER PAGE'!$A$4&"_"&'FINANCE SECTION'!$A$6&"_"&'FINANCE SECTION'!D6,FINANCE!$A:$L,4,FALSE),"") -> G | G13: <= RCA | I13: > RCA | J13: Assess if CCG full year running costs breach annual allocation and RAG rate accordingly
A14: Underlying recurrent surplus on exit of 2014/15 | B14: Primary | C14: =IFERROR(VLOOKUP('COVER PAGE'!$A$4&"_"&'FINANCE SECTION'!$A$6&"_"&'FINANCE SECTION'!C6,FINANCE!$A:$L,10,FALSE),"") -> G | D14: =IFERROR(VLOOKUP('COVER PAGE'!$A$4&"_"&'FINANCE SECTION'!$A$6&"_"&'FINANCE SECTION'!D6,FINANCE!$A:$L,10,FALSE),"") -> G | G14: >= 2.5% | H14: 2.5% > surplus >=0% | I14: < 0% | J14: Rate the underlying position the CCG will exit 14/15 (as % of allocation) as populated on the underlying surplus template.
A15: Financial Performance and Management - Supporting Indicators
A16: Financial position meets the 2014/15 surplus planning requirement | B16: Supporting | C16: =IFERROR(VLOOKUP('COVER PAGE'!$A$4&"_"&'FINANCE SECTION'!$A$6&"_"&'FINANCE SECTION'!C6,FINANCE!$A:$L,2,FALSE),"") -> G | D16: =IFERROR(VLOOKUP('COVER PAGE'!$A$4&"_"&'FINANCE SECTION'!$A$6&"_"&'FINANCE SECTION'!D6,FINANCE!$A:$L,2,FALSE),"") -> G | G16: >=1% surplus forecast | H16: >= breakeven and <1% surplus forecast | I16: Deficit forecast | J16: Assesses forecast delivery against the planning criteria of a 1% surplus.
A17: Planned usage of non-recurrent headroom funds in line with business rules | B17: Supporting | C17: =IFERROR(VLOOKUP('COVER PAGE'!$A$4&"_"&'FINANCE SECTION'!$A$6&"_"&'FINANCE SECTION'!C6,FINANCE!$A:$L,7,FALSE),"") -> G | D17: =IFERROR(VLOOKUP('COVER PAGE'!$A$4&"_"&'FINANCE SECTION'!$A$6&"_"&'FINANCE SECTION'!D6,FINANCE!$A:$L,7,FALSE),"") -> G | G17: >=2.5% | H17: 2.5% > funds committed non recurrently >=1% | I17: <1% committed or set aside for investment | J17: Assesses the % committed or set aside for investment in planning stage(rather than used to support the bottom line CCG position). Local assurance will be given the option to override the generated rating is exception was made at planning stage to utilise to support bottom line position.
A18: BPPC performance - invoices paid within Better Payment Practice Code. | B18: Supporting | C18: =IFERROR(VLOOKUP('COVER PAGE'!$A$4&"_"&'FINANCE SECTION'!$A$6&"_"&'FINANCE SECTION'!C6,FINANCE!$A:$L,11,FALSE),"") -> G | D18: =IFERROR(VLOOKUP('COVER PAGE'!$A$4&"_"&'FINANCE SECTION'!$A$6&"_"&'FINANCE SECTION'!D6,FINANCE!$A:$L,11,FALSE),"") -> G | G18: >=95% paid within target. | H18: 95% > paid within target >=75% | I18: < 75% paid within target. | J18: Weighted percentage of both volume and value of invoices. BI report to be adapted by central team to capture information quarterly.
A19: Cash utilisation | B19: Supporting | C19: =IFERROR(VLOOKUP('COVER PAGE'!$A$4&"_"&'FINANCE SECTION'!$A$6&"_"&'FINANCE SECTION'!C6,FINANCE!$A:$L,12,FALSE),"") -> 0 | D19: =IFERROR(VLOOKUP('COVER PAGE'!$A$4&"_"&'FINANCE SECTION'!$A$6&"_"&'FINANCE SECTION'!D6,FINANCE!$A:$L,12,FALSE),"") -> 0 | G19: TBC | H19: TBC | I19: TBC | J19: Metric to be developed on cash drawdown.

Sheet Guidance (hidden)

Sheet Lookup (hidden)
A1: Numbers | B1: Org_Name_Original | C1: OrgCode | D1: Region | E1: Area Team Code | F1: Area Team | G1: Ambulance Short name | H1: Ambulance long name
A2: 1 | B2: NHS Barking And Dagenham CCG | C2: 07L | D2: LONDON | E2: NEL | F2: NE London AT | G2: Lndn Amblnce | H2: LONDON AMBULANCE SERVICE NHS TRUST
A3: 2 | B3: NHS Barnet CCG | C3: 07M | D3: LONDON | E3: NEL | F3: NE London AT | G3: Lndn Amblnce | H3: LONDON AMBULANCE SERVICE NHS TRUST
A4: 3 | B4: NHS Camden CCG | C4: 07R | D4: LONDON | E4: NEL | F4: NE London AT | G4: Lndn Amblnce | H4: LONDON AMBULANCE SERVICE NHS TRUST
A5: 4 | B5: NHS City And Hackney CCG | C5: 07T | D5: LONDON | E5: NEL | F5: NE London AT | G5: Lndn Amblnce | H5: LONDON AMBULANCE SERVICE NHS TRUST
A6: 5 | B6: NHS Enfield CCG | C6: 07X | D6: LONDON | E6: NEL | F6: NE London AT | G6: Lndn Amblnce | H6: LONDON AMBULANCE SERVICE NHS TRUST
A7: 6 | B7: NHS Haringey CCG | C7: 08D | D7: LONDON | E7: NEL | F7: NE London AT | G7: Lndn Amblnce | H7: LONDON AMBULANCE SERVICE NHS TRUST
A8: 7 | B8: NHS Havering CCG | C8: 08F | D8: LONDON | E8: NEL | F8: NE London AT | G8: Lndn Amblnce | H8: LONDON AMBULANCE SERVICE NHS TRUST
A9: 8 | B9: NHS Islington CCG | C9: 08H | D9: LONDON | E9: NEL | F9: NE London AT | G9: Lndn Amblnce | H9: LONDON AMBULANCE SERVICE NHS TRUST
A10: 9 | B10: NHS Newham CCG | C10: 08M | D10: LONDON | E10: NEL | F10: NE London AT | G10: Lndn Amblnce | H10: LONDON AMBULANCE SERVICE NHS TRUST
A11: 10 | B11: NHS Redbridge CCG | C11: 08N | D11: LONDON | E11: NEL | F11: NE London AT | G11: Lndn Amblnce | H11: LONDON AMBULANCE SERVICE NHS TRUST
A12: 11 | B12: NHS Tower Hamlets CCG | C12: 08V | D12: LONDON | E12: NEL | F12: NE London AT | G12: Lndn Amblnce | H12: LONDON AMBULANCE SERVICE NHS TRUST
A13: 12 | B13: NHS Waltham Forest CCG | C13: 08W | D13: LONDON | E13: NEL | F13: NE London AT | G13: Lndn Amblnce | H13: LONDON AMBULANCE SERVICE NHS TRUST
A14: 13 | B14: NHS Brent CCG | C14: 07P | D14: LONDON | E14: NWL | F14: NW London AT | G14: Lndn Amblnce | H14: LONDON AMBULANCE SERVICE NHS TRUST
A15: 14 | B15: NHS Central London (Westminster) CCG | C15: 09A | D15: LONDON | E15: NWL | F15: NW London AT | G15: Lndn Amblnce | H15: LONDON AMBULANCE SERVICE NHS TRUST
A16: 15 | B16: NHS Ealing CCG | C16: 07W | D16: LONDON | E16: NWL | F16: NW London AT | G16: Lndn Amblnce | H16: LONDON AMBULANCE SERVICE NHS TRUST
A17: 16 | B17: NHS Hammersmith And Fulham CCG | C17: 08C | D17: LONDON | E17: NWL | F17: NW London AT | G17: Lndn Amblnce | H17: LONDON AMBULANCE SERVICE NHS TRUST
A18: 17 | B18: NHS Harrow CCG | C18: 08E | D18: LONDON | E18: NWL | F18: NW London AT | G18: Lndn Amblnce | H18: LONDON AMBULANCE SERVICE NHS TRUST
A19: 18 | B19: NHS Hillingdon CCG | C19: 08G | D19: LONDON | E19: NWL | F19: NW London AT | G19: Lndn Amblnce | H19: LONDON AMBULANCE SERVICE NHS TRUST
A20: 19 | B20: NHS Hounslow CCG | C20: 07Y | D20: LONDON | E20: NWL | F20: NW London AT | G20: Lndn Amblnce | H20: LONDON AMBULANCE SERVICE NHS TRUST
A21: 20 | B21: NHS West London CCG | C21: 08Y | D21: LONDON | E21: NWL | F21: NW London AT | G21: Lndn Amblnce | H21: LONDON AMBULANCE SERVICE NHS TRUST
A22: 21 | B22: NHS Bexley CCG | C22: 07N | D22: LONDON | E22: SL | F22: South London AT | G22: Lndn Amblnce | H22: LONDON AMBULANCE SERVICE NHS TRUST
A23: 22 | B23: NHS Bromley CCG | C23: 07Q | D23: LONDON | E23: SL | F23: South London AT | G23: Lndn Amblnce | H23: LONDON AMBULANCE SERVICE NHS TRUST
A24: 23 | B24: NHS Croydon CCG | C24: 07V | D24: LONDON | E24: SL | F24: South London AT | G24: Lndn Amblnce | H24: LONDON AMBULANCE SERVICE NHS TRUST
A25: 24 | B25: NHS Greenwich CCG | C25: 08A | D25: LONDON | E25: SL | F25: South London AT | G25: Lndn Amblnce | H25: LONDON AMBULANCE SERVICE NHS TRUST
A26: 25 | B26: NHS Kingston CCG | C26: 08J | D26: LONDON | E26: SL | F26: South London AT | G26: Lndn Amblnce | H26: LONDON AMBULANCE SERVICE NHS TRUST
A27: 26 | B27: NHS Lambeth CCG | C27: 08K | D27: LONDON | E27: SL | F27: South London AT | G27: Lndn Amblnce | H27: LONDON AMBULANCE SERVICE NHS TRUST
A28: 27 | B28: NHS Lewisham CCG | C28: 08L | D28: LONDON | E28: SL | F28: South London AT | G28: Lndn Amblnce | H28: LONDON AMBULANCE SERVICE NHS TRUST
A29: 28 | B29: NHS Merton CCG | C29: 08R | D29: LONDON | E29: SL | F29: South London AT | G29: Lndn Amblnce | H29: LONDON AMBULANCE SERVICE NHS TRUST
A30: 29 | B30: NHS Richmond CCG | C30: 08P | D30: LONDON | E30: SL | F30: South London AT | G30: Lndn Amblnce | H30: LONDON AMBULANCE SERVICE NHS TRUST
A31: 30 | B31: NHS Southwark CCG | C31: 08Q | D31: LONDON | E31: SL | F31: South London AT | G31: Lndn Amblnce | H31: LONDON AMBULANCE SERVICE NHS TRUST
A32: 31 | B32: NHS Sutton CCG | C32: 08T | D32: LONDON | E32: SL | F32: South London AT | G32: Lndn Amblnce | H32: LONDON AMBULANCE SERVICE NHS TRUST
A33: 32 | B33: NHS Wandsworth CCG | C33: 08X | D33: LONDON | E33: SL | F33: South London AT | G33: Lndn Amblnce | H33: LONDON AMBULANCE SERVICE NHS TRUST
A34: 33 | B34: NHS Bath and North East Somerset CCG | C34: 11E | D34: SOUTH | F34: Bath Glos Swndn & Wilts | G34: S Wstrn Amblnce | H34: SOUTH WESTERN AMBULANCE SERVICE NHS FOUNDATION TRUST
A35: 34 | B35: NHS Gloucestershire CCG | C35: 11M | D35: SOUTH | F35: Bath Glos Swndn & Wilts | G35: S Wstrn Amblnce | H35: SOUTH WESTERN AMBULANCE SERVICE NHS FOUNDATION TRUST
A36: 35 | B36: NHS Swindon CCG | C36: 12D | D36: SOUTH | F36: Bath Glos Swndn & Wilts | G36: S Wstrn Amblnce | H36: SOUTH WESTERN AMBULANCE SERVICE NHS FOUNDATION TRUST
A37: 36 | B37: NHS Wiltshire CCG | C37: 99N | D37: SOUTH | F37: Bath Glos Swndn & Wilts | G37: S Wstrn Amblnce | H37: SOUTH WESTERN AMBULANCE SERVICE NHS FOUNDATION TRUST
A38: 37 | B38: NHS Bristol CCG | C38: 11H | D38: SOUTH | F38: Bristol Smrset & Sth Glos | G38: S Wstrn Amblnce | H38: SOUTH WESTERN AMBULANCE SERVICE NHS FOUNDATION TRUST
A39: 38 | B39: NHS North Somerset CCG | C39: 11T | D39: SOUTH | F39: Bristol Smrset & Sth Glos | G39: S Wstrn Amblnce | H39: SOUTH WESTERN AMBULANCE SERVICE NHS FOUNDATION TRUST
A40: 39 | B40: NHS Somerset CCG | C40: 11X | D40: SOUTH | F40: Bristol Smrset & Sth Glos | G40: S Wstrn Amblnce | H40: SOUTH WESTERN AMBULANCE SERVICE NHS FOUNDATION TRUST
A41: 40 | B41: NHS South Gloucestershire CCG | C41: 12A | D41: SOUTH | F41: Bristol Smrset & Sth Glos | G41: S Wstrn Amblnce | H41: SOUTH WESTERN AMBULANCE SERVICE NHS FOUNDATION TRUST
A42: 41 | B42: NHS Kernow CCG | C42: 11N | D42: SOUTH | F42: Devon Cornwall & IoSc | G42: S Wstrn Amblnce | H42: SOUTH WESTERN AMBULANCE SERVICE NHS FOUNDATION TRUST
A43: 42 | B43: NHS Northern, Eastern and Western Devon CCG | C43: 99P | D43: SOUTH | F43: Devon Cornwall & IoSc | G43: S Wstrn Amblnce | H43: SOUTH WESTERN AMBULANCE SERVICE NHS FOUNDATION TRUST
A44: 43 | B44: NHS South Devon and Torbay CCG | C44: 99Q | D44: SOUTH | F44: Devon Cornwall & IoSc | G44: S Wstrn Amblnce | H44: SOUTH WESTERN AMBULANCE SERVICE NHS FOUNDATION TRUST
A45: 44 | B45: NHS Ashford CCG | C45: 09C | D45: SOUTH | F45: Kent & Medway | G45: SE Cst Amblnce | H45: SOUTH EAST COAST AMBULANCE SERVICE NHS FOUNDATION TRUST
A46: 45 | B46: NHS Canterbury and Coastal CCG | C46: 09E | D46: SOUTH | F46: Kent & Medway | G46: SE Cst Amblnce | H46: SOUTH EAST COAST AMBULANCE SERVICE NHS FOUNDATION TRUST
A47: 46 | B47: NHS Dartford, Gravesham and Swanley CCG | C47: 09J | D47: SOUTH | F47: Kent & Medway | G47: SE Cst Amblnce | H47: SOUTH EAST COAST AMBULANCE SERVICE NHS FOUNDATION TRUST
A48: 47 | B48: NHS Medway CCG | C48: 09W | D48: SOUTH | F48: Kent & Medway | G48: SE Cst Amblnce | H48: SOUTH EAST COAST AMBULANCE SERVICE NHS FOUNDATION TRUST
A49: 48 | B49: NHS South Kent Coast CCG | C49: 10A | D49: SOUTH | F49: Kent & Medway | G49: SE Cst Amblnce | H49: SOUTH EAST COAST AMBULANCE SERVICE NHS FOUNDATION TRUST
A50: 49 | B50: NHS Swale CCG | C50: 10D | D50: SOUTH | F50: Kent & Medway | G50: SE Cst Amblnce | H50: SOUTH EAST COAST AMBULANCE SERVICE NHS FOUNDATION TRUST
A51: 50 | B51: NHS Thanet CCG | C51: 10E | D51: SOUTH | F51: Kent & Medway | G51: SE Cst Amblnce | H51: SOUTH EAST COAST AMBULANCE SERVICE NHS FOUNDATION TRUST
A52: 51 | B52: NHS West Kent CCG | C52: 99J | D52: SOUTH | F52: Kent & Medway | G52: SE Cst Amblnce | H52: SOUTH EAST COAST AMBULANCE SERVICE NHS FOUNDATION TRUST
A53: 52 | B53: NHS Brighton And Hove CCG | C53: 09D | D53: SOUTH | F53: Surrey & Sussex | G53: SE Cst Amblnce | H53: SOUTH EAST COAST AMBULANCE SERVICE NHS FOUNDATION TRUST
A54: 53 | B54: NHS Coastal West Sussex CCG | C54: 09G | D54: SOUTH | F54: Surrey & Sussex | G54: SE Cst Amblnce | H54: SOUTH EAST COAST AMBULANCE SERVICE NHS FOUNDATION TRUST
A55: 54 | B55: NHS Crawley CCG | C55: 09H | D55: SOUTH | F55: Surrey & Sussex | G55: SE Cst Amblnce | H55: SOUTH EAST COAST AMBULANCE SERVICE NHS FOUNDATION TRUST
A56: 55 | B56: NHS East Surrey CCG | C56: 09L | D56: SOUTH | F56: Surrey & Sussex | G56: SE Cst Amblnce | H56: SOUTH EAST COAST AMBULANCE SERVICE NHS FOUNDATION TRUST
A57: 56 | B57: NHS Eastbourne, Hailsham and Seaford CCG | C57: 09F | D57: SOUTH | F57: Surrey & Sussex | G57: SE Cst Amblnce | H57: SOUTH EAST COAST AMBULANCE SERVICE NHS FOUNDATION TRUST
A58: 57 | B58: NHS Guildford and Waverley CCG | C58: 09N | D58: SOUTH | F58: Surrey & Sussex | G58: SE Cst Amblnce | H58: SOUTH EAST COAST AMBULANCE SERVICE NHS FOUNDATION TRUST
A59: 58 | B59: NHS Hastings And Rother CCG | C59: 09P | D59: SOUTH | F59: Surrey & Sussex | G59: SE Cst Amblnce | H59: SOUTH EAST COAST AMBULANCE SERVICE NHS FOUNDATION TRUST
A60: 59 | B60: NHS High Weald Lewes Havens CCG | C60: 99K | D60: SOUTH | F60: Surrey & Sussex | G60: SE Cst Amblnce | H60: SOUTH EAST COAST AMBULANCE SERVICE NHS FOUNDATION TRUST
A61: 60 | B61: NHS Horsham and Mid Sussex CCG | C61: 09X | D61: SOUTH | F61: Surrey & Sussex | G61: SE Cst Amblnce | H61: SOUTH EAST COAST AMBULANCE SERVICE NHS FOUNDATION TRUST
A62: 61 | B62: NHS North West Surrey CCG | C62: 09Y | D62: SOUTH | F62: Surrey & Sussex | G62: SE Cst Amblnce | H62: SOUTH EAST COAST AMBULANCE SERVICE NHS FOUNDATION TRUST
A63: 62 | B63: NHS Surrey Downs CCG | C63: 99H | D63: SOUTH | F63: Surrey & Sussex | G63: SE Cst Amblnce | H63: SOUTH EAST COAST AMBULANCE SERVICE NHS FOUNDATION TRUST
A64: 63 | B64: NHS Surrey Heath CCG | C64: 10C | D64: SOUTH | F64: Surrey & Sussex | G64: SE Cst Amblnce | H64: SOUTH EAST COAST AMBULANCE SERVICE NHS FOUNDATION TRUST
A65: 64 | B65: NHS Aylesbury Vale CCG | C65: 10Y | D65: SOUTH | F65: Thames Valley | G65: S Cntrl Amblnce | H65: SOUTH CENTRAL AMBULANCE SERVICE NHS FOUNDATION TRUST
A66: 65 | B66: NHS Bracknell and Ascot CCG | C66: 10G | D66: SOUTH | F66: Thames Valley | G66: S Cntrl Amblnce | H66: SOUTH CENTRAL AMBULANCE SERVICE NHS FOUNDATION TRUST
A67: 66 | B67: NHS Chiltern CCG | C67: 10H | D67: SOUTH | F67: Thames Valley | G67: S Cntrl Amblnce | H67: SOUTH CENTRAL AMBULANCE SERVICE NHS FOUNDATION TRUST
A68: 67 | B68: NHS Newbury and District CCG | C68: 10M | D68: SOUTH | F68: Thames Valley | G68: S Cntrl Amblnce | H68: SOUTH CENTRAL AMBULANCE SERVICE NHS FOUNDATION TRUST
A69: 68 | B69: NHS North & West Reading CCG | C69: 10N | D69: SOUTH | F69: Thames Valley | G69: S Cntrl Amblnce | H69: SOUTH CENTRAL AMBULANCE SERVICE NHS FOUNDATION TRUST
A70: 69 | B70: NHS Oxfordshire CCG | C70: 10Q | D70: SOUTH | F70: Thames Valley | G70: S Cntrl Amblnce | H70: SOUTH CENTRAL AMBULANCE SERVICE NHS FOUNDATION TRUST
A71: 70 | B71: NHS Slough CCG | C71: 10T | D71: SOUTH | F71: Thames Valley | G71: S Cntrl Amblnce | H71: SOUTH CENTRAL AMBULANCE SERVICE NHS FOUNDATION TRUST
A72: 71 | B72: NHS South Reading CCG | C72: 10W | D72: SOUTH | F72: Thames Valley | G72: S Cntrl Amblnce | H72: SOUTH CENTRAL AMBULANCE SERVICE NHS FOUNDATION TRUST
A73: 72 | B73: NHS Windsor, Ascot and Maidenhead CCG | C73: 11C | D73: SOUTH | F73: Thames Valley | G73: S Cntrl Amblnce | H73: SOUTH CENTRAL AMBULANCE SERVICE NHS FOUNDATION TRUST
A74: 73 | B74: NHS Wokingham CCG | C74: 11D | D74: SOUTH | F74: Thames Valley | G74: S Cntrl Amblnce | H74: SOUTH CENTRAL AMBULANCE SERVICE NHS FOUNDATION TRUST
A75: 74 | B75: NHS Dorset CCG | C75: 11J | D75: SOUTH | F75: Wessex | G75: S Wstrn Amblnce | H75: SOUTH WESTERN AMBULANCE SERVICE NHS FOUNDATION TRUST
A76: 75 | B76: NHS Fareham and Gosport CCG | C76: 10K | D76: SOUTH | F76: Wessex | G76: S Cntrl Amblnce | H76: SOUTH CENTRAL AMBULANCE SERVICE NHS FOUNDATION TRUST
A77: 76 | B77: NHS Isle of Wight CCG | C77: 10L | D77: SOUTH | F77: Wessex | G77: Isle of Wight | H77: ISLE OF WIGHT NHS TRUST
A78: 77 | B78: NHS North East Hampshire and Farnham CCG | C78: 99M | D78: SOUTH | F78: Wessex | G78: SE Cst Amblnce | H78: SOUTH EAST COAST AMBULANCE SERVICE NHS FOUNDATION TRUST
A79: 78 | B79: NHS North Hampshire CCG | C79: 10J | D79: SOUTH | F79: Wessex | G79: S Cntrl Amblnce | H79: SOUTH CENTRAL AMBULANCE SERVICE NHS FOUNDATION TRUST
A80: 79 | B80: NHS Portsmouth CCG | C80: 10R | D80: SOUTH | F80: Wessex | G80: S Cntrl Amblnce | H80: SOUTH CENTRAL AMBULANCE SERVICE NHS FOUNDATION TRUST
A81: 80 | B81: NHS South Eastern Hampshire CCG | C81: 10V | D81: SOUTH | F81: Wessex | G81: S Cntrl Amblnce | H81: SOUTH CENTRAL AMBULANCE SERVICE NHS FOUNDATION TRUST
A82: 81 | B82: NHS Southampton CCG | C82: 10X | D82: SOUTH | F82: Wessex | G82: S Cntrl Amblnce | H82: SOUTH CENTRAL AMBULANCE SERVICE NHS FOUNDATION TRUST
A83: 82 | B83: NHS West Hampshire CCG | C83: 11A | D83: SOUTH | F83: Wessex | G83: S Cntrl Amblnce | H83: SOUTH CENTRAL AMBULANCE SERVICE NHS FOUNDATION TRUST
A84: 83 | B84: NHS Eastern Cheshire CCG | C84: 01C | D84: NORTH | F84: Cheshire Wrrgtn & Wirral | G84: NW Amblnce | H84: NORTH WEST AMBULANCE SERVICE NHS TRUST
A85: 84 | B85: NHS South Cheshire CCG | C85: 01R | D85: NORTH | F85: Cheshire Wrrgtn & Wirral | G85: NW Amblnce | H85: NORTH WEST AMBULANCE SERVICE NHS TRUST
A86: 85 | B86: NHS Vale Royal CCG | C86: 02D | D86: NORTH | F86: Cheshire Wrrgtn & Wirral | G86: NW Amblnce | H86: NORTH WEST AMBULANCE SERVICE NHS TRUST
A87: 86 | B87: NHS Warrington CCG | C87: 02E | D87: NORTH | F87: Cheshire Wrrgtn & Wirral | G87: NW Amblnce | H87: NORTH WEST AMBULANCE SERVICE NHS TRUST
A88: 87 | B88: NHS West Cheshire CCG | C88: 02F | D88: NORTH | F88: Cheshire Wrrgtn & Wirral | G88: NW Amblnce | H88: NORTH WEST AMBULANCE SERVICE NHS TRUST
A89: 88 | B89: NHS Wirral CCG | C89: 12F | D89: NORTH | F89: Cheshire Wrrgtn & Wirral | G89: NW Amblnce | H89: NORTH WEST AMBULANCE SERVICE NHS TRUST
A90: 89 | B90: NHS Cumbria CCG | C90: 01H | D90: NORTH | F90: Cumbria Northumbrld T&W | G90: NW Amblnce | H90: NORTH WEST AMBULANCE SERVICE NHS TRUST
A91: 90 | B91: NHS Gateshead CCG | C91: 00F | D91: NORTH | F91: Cumbria Northumbrld T&W | G91: NE Amblnce | H91: NORTH EAST AMBULANCE SERVICE NHS FOUNDATION TRUST
A92: 91 | B92: NHS Newcastle North and East CCG | C92: 00G | D92: NORTH | F92: Cumbria Northumbrld T&W | G92: NE Amblnce | H92: NORTH EAST AMBULANCE SERVICE NHS FOUNDATION TRUST
A93: 92 | B93: NHS Newcastle West CCG | C93: 00H | D93: NORTH | F93: Cumbria Northumbrld T&W | G93: NE Amblnce | H93: NORTH EAST AMBULANCE SERVICE NHS FOUNDATION TRUST
A94: 93 | B94: NHS North Tyneside CCG | C94: 99C | D94: NORTH | F94: Cumbria Northumbrld T&W | G94: NE Amblnce | H94: NORTH EAST AMBULANCE SERVICE NHS FOUNDATION TRUST
A95: 94 | B95: NHS Northumberland CCG | C95: 00L | D95: NORTH | F95: Cumbria Northumbrld T&W | G95: NE Amblnce | H95: NORTH EAST AMBULANCE SERVICE NHS FOUNDATION TRUST
A96: 95 | B96: NHS South Tyneside CCG | C96: 00N | D96: NORTH | F96: Cumbria Northumbrld T&W | G96: NE Amblnce | H96: NORTH EAST AMBULANCE SERVICE NHS FOUNDATION TRUST
A97: 96 | B97: NHS Sunderland CCG | C97: 00P | D97: NORTH | F97: Cumbria Northumbrld T&W | G97: NE Amblnce | H97: NORTH EAST AMBULANCE SERVICE NHS FOUNDATION TRUST
A98: 97 | B98: NHS Darlington CCG | C98: 00C | D98: NORTH | F98: Durham Darlington & Tees | G98: NE Amblnce | H98: NORTH EAST AMBULANCE SERVICE NHS FOUNDATION TRUST
A99: 98 | B99: NHS Durham Dales, Easington and Sedgefield CCG | C99: 00D | D99: NORTH | F99: Durham Darlington & Tees | G99: NE Amblnce | H99: NORTH EAST AMBULANCE SERVICE NHS FOUNDATION TRUST
A100: 99 | B100: NHS Hartlepool and Stockton-on-Tees CCG | C100: 00K | D100: NORTH | F100: Durham Darlington & Tees | G100: NE Amblnce | H100: NORTH EAST AMBULANCE SERVICE NHS FOUNDATION TRUST
A101: 100 | B101: NHS North Durham CCG | C101: 00J | D101: NORTH | F101: Durham Darlington & Tees | G101: NE Amblnce | H101: NORTH EAST AMBULANCE SERVICE NHS FOUNDATION TRUST
A102: 101 | B102: NHS South Tees CCG | C102: 00M | D102: NORTH | F102: Durham Darlington & Tees | G102: NE Amblnce | H102: NORTH EAST AMBULANCE SERVICE NHS FOUNDATION TRUST
A103: 102 | B103: NHS Bolton CCG | C103: 00T | D103: NORTH | F103: Greater Manchester | G103: NW Amblnce | H103: NORTH WEST AMBULANCE SERVICE NHS TRUST
A104: 103 | B104: NHS Bury CCG | C104: 00V | D104: NORTH | F104: Greater Manchester | G104: NW Amblnce | H104: NORTH WEST AMBULANCE SERVICE NHS TRUST
A105: 104 | B105: NHS Central Manchester CCG | C105: 00W | D105: NORTH | F105: Greater Manchester | G105: NW Amblnce | H105: NORTH WEST AMBULANCE SERVICE NHS TRUST
A106: 105 | B106: NHS Heywood, Middleton And Rochdale CCG | C106: 01D | D106: NORTH | F106: Greater Manchester | G106: NW Amblnce | H106: NORTH WEST AMBULANCE SERVICE NHS TRUST
A107: 106 | B107: NHS North Manchester CCG | C107: 01M | D107: NORTH | F107: Greater Manchester | G107: NW Amblnce | H107: NORTH WEST AMBULANCE SERVICE NHS TRUST
A108: 107 | B108: NHS Oldham CCG | C108: 00Y | D108: NORTH | F108: Greater Manchester | G108: NW Amblnce | H108: NORTH WEST AMBULANCE SERVICE NHS TRUST
A109: 108 | B109: NHS Salford CCG | C109: 01G | D109: NORTH | F109: Greater Manchester | G109: NW Amblnce | H109: NORTH WEST AMBULANCE SERVICE NHS TRUST
A110: 109 | B110: NHS South Manchester CCG | C110: 01N | D110: NORTH | F110: Greater Manchester | G110: NW Amblnce | H110: NORTH WEST AMBULANCE SERVICE NHS TRUST
A111: 110 | B111: NHS Stockport CCG | C111: 01W | D111: NORTH | F111: Greater Manchester | G111: NW Amblnce | H111: NORTH WEST AMBULANCE SERVICE NHS TRUST
A112: 111 | B112: NHS Tameside and Glossop CCG | C112: 01Y | D112: NORTH | F112: Greater Manchester | G112: NW Amblnce | H112: NORTH WEST AMBULANCE SERVICE NHS TRUST
A113: 112 | B113: NHS Trafford CCG | C113: 02A | D113: NORTH | F113: Greater Manchester | G113: NW Amblnce | H113: NORTH WEST AMBULANCE SERVICE NHS TRUST
A114: 113 | B114: NHS Wigan Borough CCG | C114: 02H | D114: NORTH | F114: Greater Manchester | G114: NW Amblnce | H114: NORTH WEST AMBULANCE SERVICE NHS TRUST
A115: 114 | B115: NHS Blackburn with Darwen CCG | C115: 00Q | D115: NORTH | F115: Lancashire | G115: NW Amblnce | H115: NORTH WEST AMBULANCE SERVICE NHS TRUST
A116: 115 | B116: NHS Blackpool CCG | C116: 00R | D116: NORTH | F116: Lancashire | G116: NW Amblnce | H116: NORTH WEST AMBULANCE SERVICE NHS TRUST
A117: 116 | B117: NHS Chorley and South Ribble CCG | C117: 00X | D117: NORTH | F117: Lancashire | G117: NW Amblnce | H117: NORTH WEST AMBULANCE SERVICE NHS TRUST
A118: 117 | B118: NHS East Lancashire CCG | C118: 01A | D118: NORTH | F118: Lancashire | G118: NW Amblnce | H118: NORTH WEST AMBULANCE SERVICE NHS TRUST
A119: 118 | B119: NHS Fylde & Wyre CCG | C119: 02M | D119: NORTH | F119: Lancashire | G119: NW Amblnce | H119: NORTH WEST AMBULANCE SERVICE NHS TRUST
A120: 119 | B120: NHS Greater Preston CCG | C120: 01E | D120: NORTH | F120: Lancashire | G120: NW Amblnce | H120: NORTH WEST AMBULANCE SERVICE NHS TRUST
A121: 120 | B121: NHS Lancashire North CCG | C121: 01K | D121: NORTH | F121: Lancashire | G121: NW Amblnce | H121: NORTH WEST AMBULANCE SERVICE NHS TRUST
A122: 121 | B122: NHS West Lancashire CCG | C122: 02G | D122: NORTH | F122: Lancashire | G122: NW Amblnce | H122: NORTH WEST AMBULANCE SERVICE NHS TRUST
A123: 122 | B123: NHS Halton CCG | C123: 01F | D123: NORTH | F123: Merseyside | G123: NW Amblnce | H123: NORTH WEST AMBULANCE SERVICE NHS TRUST
A124: 123 | B124: NHS Knowsley CCG | C124: 01J | D124: NORTH | F124: Merseyside | G124: NW Amblnce | H124: NORTH WEST AMBULANCE SERVICE NHS TRUST
A125: 124 | B125: NHS Liverpool CCG | C125: 99A | D125: NORTH | F125: Merseyside | G125: NW Amblnce | H125: NORTH WEST AMBULANCE SERVICE NHS TRUST
A126: 125 | B126: NHS South Sefton CCG | C126: 01T | D126: NORTH | F126: Merseyside | G126: NW Amblnce | H126: NORTH WEST AMBULANCE SERVICE NHS TRUST
A127: 126 | B127: NHS Southport and Formby CCG | C127: 01V | D127: NORTH | F127: Merseyside | G127: NW Amblnce | H127: NORTH WEST AMBULANCE SERVICE NHS TRUST
A128: 127 | B128: NHS St Helens CCG | C128: 01X | D128: NORTH | F128: Merseyside | G128: NW Amblnce | H128: NORTH WEST AMBULANCE SERVICE NHS TRUST
A129: 128 | B129: NHS East Riding of Yorkshire CCG | C129: 02Y | D129: NORTH | F129: N Yorkshire & Humber | G129: Yrkshr Amblnce | H129: YORKSHIRE AMBULANCE SERVICE NHS TRUST
A130: 129 | B130: NHS Hambleton, Richmondshire and Whitby CCG | C130: 03D | D130: NORTH | F130: N Yorkshire & Humber | G130: Yrkshr Amblnce | H130: YORKSHIRE AMBULANCE SERVICE NHS TRUST
A131: 130 | B131: NHS Harrogate and Rural District CCG | C131: 03E | D131: NORTH | F131: N Yorkshire & Humber | G131: Yrkshr Amblnce | H131: YORKSHIRE AMBULANCE SERVICE NHS TRUST
A132: 131 | B132: NHS Hull CCG | C132: 03F | D132: NORTH | F132: N Yorkshire & Humber | G132: Yrkshr Amblnce | H132: YORKSHIRE AMBULANCE SERVICE NHS TRUST
A133: 132 | B133: NHS North East Lincolnshire CCG | C133: 03H | D133: NORTH | F133: N Yorkshire & Humber | G133: E Mdlnds Amblnce | H133: EAST MIDLANDS AMBULANCE SERVICE NHS TRUST
A134: 133 | B134: NHS North Lincolnshire CCG | C134: 03K | D134: NORTH | F134: N Yorkshire & Humber | G134: E Mdlnds Amblnce | H134: EAST MIDLANDS AMBULANCE SERVICE NHS TRUST
A135: 134 | B135: NHS Scarborough and Ryedale CCG | C135: 03M | D135: NORTH | F135: N Yorkshire & Humber | G135: Yrkshr Amblnce | H135: YORKSHIRE AMBULANCE SERVICE NHS TRUST
A136: 135 | B136: NHS Vale of York CCG | C136: 03Q | D136: NORTH | F136: N Yorkshire & Humber | G136: Yrkshr Amblnce | H136: YORKSHIRE AMBULANCE SERVICE NHS TRUST
A137: 136 | B137: NHS Barnsley CCG | C137: 02P | D137: NORTH | F137: S Yorkshire & Bassetlaw | G137: Yrkshr Amblnce | H137: YORKSHIRE AMBULANCE SERVICE NHS TRUST
A138: 137 | B138: NHS Bassetlaw CCG | C138: 02Q | D138: NORTH | F138: S Yorkshire & Bassetlaw | G138: E Mdlnds Amblnce | H138: EAST MIDLANDS AMBULANCE SERVICE NHS TRUST
A139: 138 | B139: NHS Doncaster CCG | C139: 02X | D139: NORTH | F139: S Yorkshire & Bassetlaw | G139: Yrkshr Amblnce | H139: YORKSHIRE AMBULANCE SERVICE NHS TRUST
A140: 139 | B140: NHS Rotherham CCG | C140: 03L | D140: NORTH | F140: S Yorkshire & Bassetlaw | G140: Yrkshr Amblnce | H140: YORKSHIRE AMBULANCE SERVICE NHS TRUST
A141: 140 | B141: NHS Sheffield CCG | C141: 03N | D141: NORTH | F141: S Yorkshire & Bassetlaw | G141: Yrkshr Amblnce | H141: YORKSHIRE AMBULANCE SERVICE NHS TRUST
A142: 141 | B142: NHS Airedale, Wharfedale and Craven CCG | C142: 02N | D142: NORTH | F142: West Yorkshire | G142: Yrkshr Amblnce | H142: YORKSHIRE AMBULANCE SERVICE NHS TRUST
A143: 142 | B143: NHS Bradford City CCG | C143: 02W | D143: NORTH | F143: West Yorkshire | G143: Yrkshr Amblnce | H143: YORKSHIRE AMBULANCE SERVICE NHS TRUST
A144: 143 | B144: NHS Bradford Districts CCG | C144: 02R | D144: NORTH | F144: West Yorkshire | G144: Yrkshr Amblnce | H144: YORKSHIRE AMBULANCE SERVICE NHS TRUST
A145: 144 | B145: NHS Calderdale CCG | C145: 02T | D145: NORTH | F145: West Yorkshire | G145: Yrkshr Amblnce | H145: YORKSHIRE AMBULANCE SERVICE NHS TRUST
A146: 145 | B146: NHS Greater Huddersfield CCG | C146: 03A | D146: NORTH | F146: West Yorkshire | G146: Yrkshr Amblnce | H146: YORKSHIRE AMBULANCE SERVICE NHS TRUST
A147: 146 | B147: NHS Leeds North CCG | C147: 02V | D147: NORTH | F147: West Yorkshire | G147: Yrkshr Amblnce | H147: YORKSHIRE AMBULANCE SERVICE NHS TRUST
A148: 147 | B148: NHS Leeds South and East CCG | C148: 03G | D148: NORTH | F148: West Yorkshire | G148: Yrkshr Amblnce | H148: YORKSHIRE AMBULANCE SERVICE NHS TRUST
A149: 148 | B149: NHS Leeds West CCG | C149: 03C | D149: NORTH | F149: West Yorkshire | G149: Yrkshr Amblnce | H149: YORKSHIRE AMBULANCE SERVICE NHS TRUST
A150: 149 | B150: NHS North Kirklees CCG | C150: 03J | D150: NORTH | F150: West Yorkshire | G150: Yrkshr Amblnce | H150: YORKSHIRE AMBULANCE SERVICE NHS TRUST
A151: 150 | B151: NHS Wakefield CCG | C151: 03R | D151: NORTH | F151: West Yorkshire | G151: Yrkshr Amblnce | H151: YORKSHIRE AMBULANCE SERVICE NHS TRUST
A152: 151 | B152: NHS Coventry and Rugby CCG | C152: 05A | D152: MIDLANDS & EAST | F152: Arden Herefs & Worcs | G152: W Mdlnds Amblnce | H152: WEST MIDLANDS AMBULANCE SERVICE NHS FOUNDATION TRUST
A153: 152 | B153: NHS Herefordshire CCG | C153: 05F | D153: MIDLANDS & EAST | F153: Arden Herefs & Worcs | G153: W Mdlnds Amblnce | H153: WEST MIDLANDS AMBULANCE SERVICE NHS FOUNDATION TRUST
A154: 153 | B154: NHS Redditch and Bromsgrove CCG | C154: 05J | D154: MIDLANDS & EAST | F154: Arden Herefs & Worcs | G154: W Mdlnds Amblnce | H154: WEST MIDLANDS AMBULANCE SERVICE NHS FOUNDATION TRUST
A155: 154 | B155: NHS South Warwickshire CCG | C155: 05R | D155: MIDLANDS & EAST | F155: Arden Herefs & Worcs | G155: W Mdlnds Amblnce | H155: WEST MIDLANDS AMBULANCE SERVICE NHS FOUNDATION TRUST
A156: 155 | B156: NHS South Worcestershire CCG | C156: 05T | D156: MIDLANDS & EAST | F156: Arden Herefs & Worcs | G156: W Mdlnds Amblnce | H156: WEST MIDLANDS AMBULANCE SERVICE NHS FOUNDATION TRUST
A157: 156 | B157: NHS Warwickshire North CCG | C157: 05H | D157: MIDLANDS & EAST | F157: Arden Herefs & Worcs | G157: W Mdlnds Amblnce | H157: WEST MIDLANDS AMBULANCE SERVICE NHS FOUNDATION TRUST
A158: 157 | B158: NHS Wyre Forest CCG | C158: 06D | D158: MIDLANDS & EAST | F158: Arden Herefs & Worcs | G158: W Mdlnds Amblnce | H158: WEST MIDLANDS AMBULANCE SERVICE NHS FOUNDATION TRUST
A159: 158 | B159: NHS Birmingham CrossCity CCG | C159: 13P | D159: MIDLANDS & EAST | F159: B'ham & Black Country | G159: W Mdlnds Amblnce | H159: WEST MIDLANDS AMBULANCE SERVICE NHS FOUNDATION TRUST
A160: 159 | B160: NHS Birmingham South and Central CCG | C160: 04X | D160: MIDLANDS & EAST | F160: B'ham & Black Country | G160: W Mdlnds Amblnce | H160: WEST MIDLANDS AMBULANCE SERVICE NHS FOUNDATION TRUST
A161: 160 | B161: NHS Dudley CCG | C161: 05C | D161: MIDLANDS & EAST | F161: B'ham & Black Country | G161: W Mdlnds Amblnce | H161: WEST MIDLANDS AMBULANCE SERVICE NHS FOUNDATION TRUST
A162: 161 | B162: NHS Sandwell and West Birmingham CCG | C162: 05L | D162: MIDLANDS & EAST | F162: B'ham & Black Country | G162: W Mdlnds Amblnce | H162: WEST MIDLANDS AMBULANCE SERVICE NHS FOUNDATION TRUST
A163: 162 | B163: NHS Solihull CCG | C163: 05P | D163: MIDLANDS & EAST | F163: B'ham & Black Country | G163: W Mdlnds Amblnce | H163: WEST MIDLANDS AMBULANCE SERVICE NHS FOUNDATION TRUST
A164: 163 | B164: NHS Walsall CCG | C164: 05Y | D164: MIDLANDS & EAST | F164: B'ham & Black Country | G164: W Mdlnds Amblnce | H164: WEST MIDLANDS AMBULANCE SERVICE NHS FOUNDATION TRUST
A165: 164 | B165: NHS Wolverhampton CCG | C165: 06A | D165: MIDLANDS & EAST | F165: B'ham & Black Country | G165: W Mdlnds Amblnce | H165: WEST MIDLANDS AMBULANCE SERVICE NHS FOUNDATION TRUST
A166: 165 | B166: NHS Erewash CCG | C166: 03X | D166: MIDLANDS & EAST | F166: Derbyshire & Notts | G166: E Mdlnds Amblnce | H166: EAST MIDLANDS AMBULANCE SERVICE NHS TRUST
A167: 166 | B167: NHS Hardwick CCG | C167: 03Y | D167: MIDLANDS & EAST | F167: Derbyshire & Notts | G167: E Mdlnds Amblnce | H167: EAST MIDLANDS AMBULANCE SERVICE NHS TRUST
A168: 167 | B168: NHS Mansfield And Ashfield CCG | C168: 04E | D168: MIDLANDS & EAST | F168: Derbyshire & Notts | G168: E Mdlnds Amblnce | H168: EAST MIDLANDS AMBULANCE SERVICE NHS TRUST
A169: 168 | B169: NHS Newark & Sherwood CCG | C169: 04H | D169: MIDLANDS & EAST | F169: Derbyshire & Notts | G169: E Mdlnds Amblnce | H169: EAST MIDLANDS AMBULANCE SERVICE NHS TRUST
A170: 169 | B170: NHS North Derbyshire CCG | C170: 04J | D170: MIDLANDS & EAST | F170: Derbyshire & Notts | G170: E Mdlnds Amblnce | H170: EAST MIDLANDS AMBULANCE SERVICE NHS TRUST
A171: 170 | B171: NHS Nottingham City CCG | C171: 04K | D171: MIDLANDS & EAST | F171: Derbyshire & Notts | G171: E Mdlnds Amblnce | H171: EAST MIDLANDS AMBULANCE SERVICE NHS TRUST
A172: 171 | B172: NHS Nottingham North And East CCG | C172: 04L | D172: MIDLANDS & EAST | F172: Derbyshire & Notts | G172: E Mdlnds Amblnce | H172: EAST MIDLANDS AMBULANCE SERVICE NHS TRUST
A173: 172 | B173: NHS Nottingham West CCG | C173: 04M | D173: MIDLANDS & EAST | F173: Derbyshire & Notts | G173: E Mdlnds Amblnce | H173: EAST MIDLANDS AMBULANCE SERVICE NHS TRUST
A174: 173 | B174: NHS Rushcliffe CCG | C174: 04N | D174: MIDLANDS & EAST | F174: Derbyshire & Notts | G174: E Mdlnds Amblnce | H174: EAST MIDLANDS AMBULANCE SERVICE NHS TRUST
A175: 174 | B175: NHS Southern Derbyshire CCG | C175: 04R | D175: MIDLANDS & EAST | F175: Derbyshire & Notts | G175: E Mdlnds Amblnce | H175: EAST MIDLANDS AMBULANCE SERVICE NHS TRUST
A176: 175 | B176: NHS Cambridgeshire and Peterborough CCG | C176: 06H | D176: MIDLANDS & EAST | F176: East Anglia | G176: E Englnd Amblnce | H176: EAST OF ENGLAND AMBULANCE SERVICE NHS TRUST
A177: 176 | B177: NHS Great Yarmouth And Waveney CCG | C177: 06M | D177: MIDLANDS & EAST | F177: East Anglia | G177: E Englnd Amblnce | H177: EAST OF ENGLAND AMBULANCE SERVICE NHS TRUST
A178: 177 | B178: NHS Ipswich and East Suffolk CCG | C178: 06L | D178: MIDLANDS & EAST | F178: East Anglia | G178: E Englnd Amblnce | H178: EAST OF ENGLAND AMBULANCE SERVICE NHS TRUST
A179: 178 | B179: NHS North Norfolk CCG | C179: 06V | D179: MIDLANDS & EAST | F179: East Anglia | G179: E Englnd Amblnce | H179: EAST OF ENGLAND AMBULANCE SERVICE NHS TRUST
A180: 179 | B180: NHS Norwich CCG | C180: 06W | D180: MIDLANDS & EAST | F180: East Anglia | G180: E Englnd Amblnce | H180: EAST OF ENGLAND AMBULANCE SERVICE NHS TRUST
A181: 180 | B181: NHS South Norfolk CCG | C181: 06Y | D181: MIDLANDS & EAST | F181: East Anglia | G181: E Englnd Amblnce | H181: EAST OF ENGLAND AMBULANCE SERVICE NHS TRUST
A182: 181 | B182: NHS West Norfolk CCG | C182: 07J | D182: MIDLANDS & EAST | F182: East Anglia | G182: E Englnd Amblnce | H182: EAST OF ENGLAND AMBULANCE SERVICE NHS TRUST
A183: 182 | B183: NHS West Suffolk CCG | C183: 07K | D183: MIDLANDS & EAST | F183: East Anglia | G183: E Englnd Amblnce | H183: EAST OF ENGLAND AMBULANCE SERVICE NHS TRUST
A184: 183 | B184: NHS Basildon and Brentwood CCG | C184: 99E | D184: MIDLANDS & EAST | F184: Essex | G184: E Englnd Amblnce | H184: EAST OF ENGLAND AMBULANCE SERVICE NHS TRUST
A185: 184 | B185: NHS Castle Point And Rochford CCG | C185: 99F | D185: MIDLANDS & EAST | F185: Essex | G185: E Englnd Amblnce | H185: EAST OF ENGLAND AMBULANCE SERVICE NHS TRUST
A186: 185 | B186: NHS Mid Essex CCG | C186: 06Q | D186: MIDLANDS & EAST | F186: Essex | G186: E Englnd Amblnce | H186: EAST OF ENGLAND AMBULANCE SERVICE NHS TRUST
A187: 186 | B187: NHS North East Essex CCG | C187: 06T | D187: MIDLANDS & EAST | F187: Essex | G187: E Englnd Amblnce | H187: EAST OF ENGLAND AMBULANCE SERVICE NHS TRUST
A188: 187 | B188: NHS Southend CCG | C188: 99G | D188: MIDLANDS & EAST | F188: Essex | G188: E Englnd Amblnce | H188: EAST OF ENGLAND AMBULANCE SERVICE NHS TRUST
A189: 188 | B189: NHS Thurrock CCG | C189: 07G | D189: MIDLANDS & EAST | F189: Essex | G189: E Englnd Amblnce | H189: EAST OF ENGLAND AMBULANCE SERVICE NHS TRUST
A190: 189 | B190: NHS West Essex CCG | C190: 07H | D190: MIDLANDS & EAST | F190: Essex | G190: E Englnd Amblnce | H190: EAST OF ENGLAND AMBULANCE SERVICE NHS TRUST
A191: 190 | B191: NHS Bedfordshire CCG | C191: 06F | D191: MIDLANDS & EAST | F191: Herts & South Midlands | G191: E Englnd Amblnce | H191: EAST OF ENGLAND AMBULANCE SERVICE NHS TRUST
A192: 191 | B192: NHS Corby CCG | C192: 03V | D192: MIDLANDS & EAST | F192: Herts & South Midlands | G192: E Mdlnds Amblnce | H192: EAST MIDLANDS AMBULANCE SERVICE NHS TRUST
A193: 192 | B193: NHS East and North Hertfordshire CCG | C193: 06K | D193: MIDLANDS & EAST | F193: Herts & South Midlands | G193: E Englnd Amblnce | H193: EAST OF ENGLAND AMBULANCE SERVICE NHS TRUST
A194: 193 | B194: NHS Herts Valleys CCG | C194: 06N | D194: MIDLANDS & EAST | F194: Herts & South Midlands | G194: E Englnd Amblnce | H194: EAST OF ENGLAND AMBULANCE SERVICE NHS TRUST
A195: 194 | B195: NHS Luton CCG | C195: 06P | D195: MIDLANDS & EAST | F195: Herts & South Midlands | G195: E Englnd Amblnce | H195: EAST OF ENGLAND AMBULANCE SERVICE NHS TRUST
A196: 195 | B196: NHS Milton Keynes CCG | C196: 04F | D196: MIDLANDS & EAST | F196: Herts & South Midlands | G196: S Cntrl Amblnce | H196: SOUTH CENTRAL AMBULANCE SERVICE NHS FOUNDATION TRUST
A197: 196 | B197: NHS Nene CCG | C197: 04G | D197: MIDLANDS & EAST | F197: Herts & South Midlands | G197: E Mdlnds Amblnce | H197: EAST MIDLANDS AMBULANCE SERVICE NHS TRUST
A198: 197 | B198: NHS East Leicestershire and Rutland CCG | C198: 03W | D198: MIDLANDS & EAST | F198: Leicestershire & Lincs | G198: E Mdlnds Amblnce | H198: EAST MIDLANDS AMBULANCE SERVICE NHS TRUST
A199: 198 | B199: NHS Leicester City CCG | C199: 04C | D199: MIDLANDS & EAST | F199: Leicestershire & Lincs | G199: E Mdlnds Amblnce | H199: EAST MIDLANDS AMBULANCE SERVICE NHS TRUST
A200: 199 | B200: NHS Lincolnshire East CCG | C200: 03T | D200: MIDLANDS & EAST | F200: Leicestershire & Lincs | G200: E Mdlnds Amblnce | H200: EAST MIDLANDS AMBULANCE SERVICE NHS TRUST
... 12 more rows

Sheet FINANCE (hidden)
A1: ID | B1: Surplus planning requirements | C1: Risk adjusted surplus | D1: Running costs delivery | E1: QIPP Delivery FOT | F1: QIPP Delivery YTD | G1: NR headroom use | H1: Var to Plan FOT | I1: Var to Plan YTD | J1: Underlying position FY | K1: BPPC performance | L1: Cash utilisation
A2: 00C_2014-15_June | B2: G | C2: G | D2: G | E2: G | F2: A | G2: G | H2: G | I2: G | J2: G | K2: G
A3: 00D_2014-15_June | B3: G | C3: G | D3: G | E3: G | F3: A | G3: G | H3: G | I3: G | J3: G | K3: G
A4: 00F_2014-15_June | B4: G | C4: G | D4: G | E4: G | F4: G | G4: G | H4: G | I4: G | J4: G | K4: G
A5: 00G_2014-15_June | B5: G | C5: G | D5: G | E5: G | F5: G | G5: G | H5: G | I5: G | J5: G | K5: G
A6: 00H_2014-15_June | B6: G | C6: G | D6: G | E6: G | F6: G | G6: G | H6: G | I6: G | J6: G | K6: G
A7: 00J_2014-15_June | B7: G | C7: G | D7: G | E7: G | F7: G | G7: G | H7: G | I7: G | J7: G | K7: G
A8: 00K_2014-15_June | B8: G | C8: G | D8: G | E8: G | F8: G | G8: G | H8: G | I8: G | J8: G | K8: G
A9: 00L_2014-15_June | B9: A | C9: G | D9: G | E9: G | F9: G | G9: R | H9: G | I9: G | J9: A | K9: G
A10: 00M_2014-15_June | B10: G | C10: G | D10: G | E10: G | F10: G | G10: G | H10: G | I10: G | J10: G | K10: G
A11: 00N_2014-15_June | B11: A | C11: G | D11: G | E11: G | F11: G | G11: G | H11: G | I11: G | J11: G | K11: G
A12: 00P_2014-15_June | B12: G | C12: G | D12: G | E12: G | F12: G | G12: G | H12: G | I12: G | J12: G | K12: G
A13: 99C_2014-15_June | B13: A | C13: G | D13: G | E13: G | F13: G | G13: G | H13: G | I13: G | J13: A | K13: G
A14: 00Q_2014-15_June | B14: G | C14: G | D14: G | E14: G | F14: G | G14: G | H14: G | I14: G | J14: G | K14: G
A15: 00R_2014-15_June | B15: G | C15: A | D15: G | E15: G | F15: G | G15: G | H15: G | I15: G | J15: A | K15: G
A16: 00T_2014-15_June | B16: G | C16: G | D16: G | E16: G | F16: R | G16: G | H16: G | I16: G | J16: G | K16: G
A17: 00V_2014-15_June | B17: A | C17: A | D17: G | E17: G | F17: G | G17: G | H17: G | I17: G | J17: A | K17: G
A18: 00W_2014-15_June | B18: G | C18: G | D18: G | E18: G | F18: G | G18: G | H18: G | I18: G | J18: A | K18: G
A19: 01C_2014-15_June | B19: R | C19: G | D19: G | E19: G | F19: G | G19: R | H19: G | I19: G | J19: R | K19: A
A20: 01R_2014-15_June | B20: A | C20: A | D20: G | E20: G | F20: G | G20: R | H20: G | I20: G | J20: A | K20: G
A21: 02D_2014-15_June | B21: G | C21: A | D21: G | E21: G | F21: G | G21: R | H21: G | I21: G | J21: A | K21: A
A22: 02E_2014-15_June | B22: A | C22: G | D22: G | E22: G | F22: G | G22: G | H22: G | I22: G | J22: G | K22: G
A23: 02F_2014-15_June | B23: G | C23: G | D23: G | E23: G | F23: G | G23: G | H23: G | I23: G | J23: G | K23: A
A24: 02H_2014-15_June | B24: G | C24: G | D24: G | E24: G | F24: G | G24: G | H24: G | I24: G | J24: G | K24: G
A25: 01Y_2014-15_June | B25: G | C25: G | D25: G | E25: G | F25: G | G25: G | H25: G | I25: G | J25: G | K25: G
A26: 02A_2014-15_June | B26: G | C26: G | D26: G | E26: G | F26: G | G26: G | H26: G | I26: G | J26: G | K26: G
A27: 01W_2014-15_June | B27: G | C27: A | D27: G | E27: R | F27: G | G27: G | H27: G | I27: G | J27: A | K27: G
A28: 01M_2014-15_June | B28: G | C28: G | D28: G | E28: G | F28: G | G28: G | H28: G | I28: G | J28: G | K28: A
A29: 01N_2014-15_June | B29: G | C29: G | D29: G | E29: G | F29: G | G29: G | H29: G | I29: G | J29: A | K29: G
A30: 01D_2014-15_June | B30: G | C30: G | D30: G | E30: R | F30: G | G30: G | H30: G | I30: G | J30: G | K30: G
A31: 00Y_2014-15_June | B31: G | C31: G | D31: G | E31: G | F31: R | G31: G | H31: G | I31: G | J31: G | K31: G
A32: 01G_2014-15_June | B32: G | C32: G | D32: G | E32: G | F32: G | G32: G | H32: G | I32: G | J32: G | K32: G
A33: 01A_2014-15_June | B33: G | C33: G | D33: G | E33: G | F33: G | G33: G | H33: G | I33: G | J33: G | K33: G
A34: 01E_2014-15_June | B34: G | C34: G | D34: G | E34: G | F34: G | G34: G | H34: G | I34: G | J34: G | K34: G
A35: 00X_2014-15_June | B35: G | C35: G | D35: G | E35: G | F35: G | G35: G | H35: G | I35: G | J35: G | K35: G
A36: 01K_2014-15_June | B36: G | C36: G | D36: G | E36: G | F36: R | G36: G | H36: G | I36: G | J36: G | K36: G
A37: 02M_2014-15_June | B37: G | C37: G | D37: G | E37: G | F37: G | G37: G | H37: G | I37: G | J37: G | K37: G
A38: 02G_2014-15_June | B38: G | C38: G | D38: G | E38: G | F38: G | G38: G | H38: G | I38: G | J38: G | K38: G
A39: 99A_2014-15_June | B39: G | C39: G | D39: G | E39: G | F39: G | G39: G | H39: G | I39: G | J39: G | K39: A
A40: 01J_2014-15_June | B40: G | C40: G | D40: G | E40: G | F40: R | G40: G | H40: G | I40: G | J40: G | K40: G
A41: 01X_2014-15_June | B41: G | C41: G | D41: G | E41: G | F41: R | G41: G | H41: G | I41: G | J41: G | K41: G
A42: 01T_2014-15_June | B42: G | C42: G | D42: G | E42: G | F42: G | G42: G | H42: G | I42: G | J42: G | K42: A
A43: 01V_2014-15_June | B43: G | C43: G | D43: G | E43: A | F43: A | G43: G | H43: G | I43: G | J43: G | K43: A
A44: 01F_2014-15_June | B44: G | C44: G | D44: G | E44: G | F44: G | G44: G | H44: G | I44: A | J44: G | K44: A
A45: 01H_2014-15_June | B45: A | C45: G | D45: G | E45: G | F45: G | G45: G | H45: G | I45: G | J45: G | K45: G
A46: 02P_2014-15_June | B46: G | C46: G | D46: G | E46: G | F46: G | G46: G | H46: G | I46: G | J46: G | K46: G
A47: 02Q_2014-15_June | B47: G | C47: G | D47: G | E47: G | F47: G | G47: G | H47: G | I47: G | J47: G | K47: G
A48: 02R_2014-15_June | B48: G | C48: G | D48: G | E48: R | F48: G | G48: G | H48: G | I48: G | J48: G | K48: G
A49: 02T_2014-15_June | B49: G | C49: G | D49: G | E49: G | F49: G | G49: G | H49: G | I49: G | J49: G | K49: G
A50: 02V_2014-15_June | B50: G | C50: G | D50: G | E50: G | F50: G | G50: G | H50: G | I50: G | J50: G | K50: G
A51: 02W_2014-15_June | B51: G | C51: G | D51: G | E51: G | F51: G | G51: G | H51: G | I51: G | J51: G | K51: A
A52: 02N_2014-15_June | B52: G | C52: G | D52: G | E52: G | F52: G | G52: G | H52: G | I52: G | J52: G | K52: G
A53: 03D_2014-15_June | B53: G | C53: G | D53: G | E53: G | F53: G | G53: A | H53: G | I53: G | J53: G | K53: A
A54: 03E_2014-15_June | B54: G | C54: G | D54: G | E54: G | F54: G | G54: A | H54: G | I54: G | J54: G | K54: G
A55: 03F_2014-15_June | B55: G | C55: G | D55: G | E55: G | F55: G | G55: A | H55: G | I55: G | J55: G | K55: A
A56: 02Y_2014-15_June | B56: G | C56: A | D56: G | E56: G | F56: G | G56: G | H56: G | I56: G | J56: A | K56: A
A57: 03H_2014-15_June | B57: G | C57: G | D57: G | E57: G | F57: G | G57: G | H57: G | I57: G | J57: G | K57: G
A58: 03K_2014-15_June | B58: G | C58: G | D58: G | E58: G | F58: R | G58: G | H58: G | I58: G | J58: G | K58: A
A59: 03M_2014-15_June | B59: G | C59: G | D59: G | E59: G | F59: R | G59: G | H59: G | I59: G | J59: G | K59: R
A60: 03Q_2014-15_June | B60: A | C60: G | D60: G | E60: R | F60: R | G60: A | H60: G | I60: G | J60: A | K60: A
A61: 03N_2014-15_June | B61: G | C61: G | D61: G | E61: G | F61: A | G61: G | H61: G | I61: G | J61: G | K61: G
A62: 03L_2014-15_June | B62: G | C62: G | D62: G | E62: G | F62: A | G62: G | H62: G | I62: G | J62: G | K62: G
A63: 02X_2014-15_June | B63: G | C63: G | D63: G | E63: G | F63: G | G63: G | H63: G | I63: G | J63: G | K63: G
A64: 03R_2014-15_June | B64: G | C64: G | D64: G | E64: G | F64: G | G64: G | H64: G | I64: G | J64: G | K64: A
A65: 03J_2014-15_June | B65: G | C65: A | D65: G | E65: G | F65: G | G65: G | H65: G | I65: G | J65: G | K65: A
A66: 03A_2014-15_June | B66: G | C66: G | D66: G | E66: G | F66: G | G66: G | H66: G | I66: G | J66: G | K66: A
A67: 03C_2014-15_June | B67: G | C67: G | D67: G | E67: G | F67: G | G67: G | H67: G | I67: G | J67: G | K67: G
A68: 03G_2014-15_June | B68: G | C68: G | D68: G | E68: G | F68: G | G68: G | H68: G | I68: G | J68: G | K68: G
A69: 05A_2014-15_June | B69: G | C69: G | D69: G | E69: A | F69: A | G69: G | H69: G | I69: G | J69: G | K69: A
A70: 05H_2014-15_June | B70: G | C70: G | D70: G | E70: G | F70: G | G70: G | H70: G | I70: G | J70: G | K70: A
A71: 05J_2014-15_June | B71: G | C71: G | D71: G | E71: G | F71: G | G71: G | H71: G | I71: G | J71: G | K71: A
A72: 05F_2014-15_June | B72: G | C72: G | D72: G | E72: G | F72: G | G72: G | H72: G | I72: G | J72: G | K72: A
A73: 05R_2014-15_June | B73: G | C73: G | D73: G | E73: G | F73: G | G73: G | H73: G | I73: G | J73: G | K73: A
A74: 05T_2014-15_June | B74: G | C74: A | D74: G | E74: A | F74: A | G74: A | H74: G | I74: G | J74: G | K74: A
A75: 06D_2014-15_June | B75: G | C75: G | D75: G | E75: G | F75: G | G75: G | H75: G | I75: G | J75: G | K75: A
A76: 05Y_2014-15_June | B76: G | C76: G | D76: G | E76: G | F76: G | G76: G | H76: G | I76: G | J76: G | K76: A
A77: 06A_2014-15_June | B77: G | C77: G | D77: G | E77: G | F77: R | G77: G | H77: G | I77: R | J77: A | K77: A
A78: 05P_2014-15_June | B78: R | C78: G | D78: G | E78: G | F78: G | G78: A | H78: G | I78: G | J78: R | K78: A
A79: 05L_2014-15_June | B79: G | C79: G | D79: G | E79: G | F79: G | G79: G | H79: G | I79: G | J79: G | K79: A
A80: 05C_2014-15_June | B80: G | C80: G | D80: G | E80: G | F80: G | G80: G | H80: G | I80: G | J80: G | K80: R
A81: 04X_2014-15_June | B81: G | C81: G | D81: G | E81: G | F81: G | G81: G | H81: G | I81: G | J81: G | K81: A
A82: 04E_2014-15_June | B82: G | C82: G | D82: G | E82: G | F82: G | G82: G | H82: G | I82: G | J82: G | K82: A
A83: 04R_2014-15_June | B83: G | C83: G | D83: G | E83: G | F83: G | G83: G | H83: G | I83: G | J83: G | K83: G
A84: 03X_2014-15_June | B84: G | C84: G | D84: G | E84: G | F84: R | G84: G | H84: G | I84: G | J84: G | K84: A
A85: 03Y_2014-15_June | B85: G | C85: G | D85: G | E85: G | F85: G | G85: G | H85: G | I85: A | J85: G | K85: A
A86: 04H_2014-15_June | B86: G | C86: G | D86: G | E86: G | F86: G | G86: G | H86: G | I86: G | J86: G | K86: A
A87: 04J_2014-15_June | B87: G | C87: G | D87: G | E87: G | F87: G | G87: G | H87: G | I87: G | J87: G | K87: A
A88: 04K_2014-15_June | B88: G | C88: G | D88: G | E88: G | F88: G | G88: G | H88: G | I88: G | J88: G | K88: G
A89: 04L_2014-15_June | B89: G | C89: G | D89: G | E89: G | F89: G | G89: G | H89: G | I89: G | J89: G | K89: A
A90: 04M_2014-15_June | B90: G | C90: G | D90: G | E90: G | F90: G | G90: G | H90: G | I90: G | J90: G | K90: A
A91: 04N_2014-15_June | B91: G | C91: G | D91: G | E91: G | F91: G | G91: G | H91: G | I91: G | J91: G | K91: G
A92: 06V_2014-15_June | B92: G | C92: G | D92: G | E92: G | F92: G | G92: G | H92: G | I92: G | J92: G | K92: G
A93: 06W_2014-15_June | B93: G | C93: G | D93: G | E93: G | F93: G | G93: G | H93: G | I93: G | J93: A | K93: G
A94: 06L_2014-15_June | B94: G | C94: G | D94: G | E94: G | F94: A | G94: G | H94: G | I94: G | J94: G | K94: G
A95: 06M_2014-15_June | B95: G | C95: G | D95: G | E95: G | F95: G | G95: G | H95: G | I95: G | J95: G | K95: A
A96: 06H_2014-15_June | B96: A | C96: A | D96: G | E96: A | F96: G | G96: A | H96: G | I96: G | J96: A | K96: A
A97: 06Q_2014-15_June | B97: R | C97: R | D97: G | E97: G | F97: A | G97: R | H97: G | I97: G | J97: R | K97: A
A98: 06T_2014-15_June | B98: G | C98: G | D98: G | E98: A | F98: G | G98: G | H98: G | I98: G | J98: G | K98: A
A99: 06K_2014-15_June | B99: G | C99: G | D99: G | E99: G | F99: G | G99: G | H99: G | I99: G | J99: G | K99: A
A100: 06N_2014-15_June | B100: G | C100: G | D100: G | E100: G | F100: R | G100: G | H100: G | I100: G | J100: G | K100: A
A101: 06P_2014-15_June | B101: R | C101: R | D101: G | E101: G | F101: G | G101: R | H101: G | I101: G | J101: A | K101: A
A102: 06F_2014-15_June | B102: G | C102: A | D102: G | E102: G | F102: G | G102: R | H102: G | I102: G | J102: A | K102: A
A103: 04F_2014-15_June | B103: A | C103: G | D103: G | E103: A | F103: A | G103: A | H103: G | I103: G | J103: G | K103: A
A104: 04G_2014-15_June | B104: A | C104: G | D104: G | E104: A | F104: R | G104: G | H104: G | I104: G | J104: A | K104: A
A105: 03V_2014-15_June | B105: G | C105: G | D105: G | E105: G | F105: G | G105: G | H105: G | I105: G | J105: A | K105: G
A106: 03W_2014-15_June | B106: G | C106: G | D106: G | E106: G | F106: G | G106: G | H106: G | I106: G | J106: G | K106: A
A107: 03T_2014-15_June | B107: G | C107: G | D107: G | E107: G | F107: A | G107: G | H107: G | I107: G | J107: G | K107: A
A108: 04V_2014-15_June | B108: G | C108: G | D108: G | E108: G | F108: G | G108: G | H108: G | I108: G | J108: G | K108: A
A109: 99D_2014-15_June | B109: G | C109: G | D109: G | E109: G | F109: G | G109: G | H109: G | I109: G | J109: G | K109: A
A110: 04Q_2014-15_June | B110: G | C110: G | D110: G | E110: G | F110: G | G110: G | H110: G | I110: G | J110: G | K110: A
A111: 04C_2014-15_June | B111: G | C111: G | D111: G | E111: G | F111: G | G111: G | H111: G | I111: G | J111: G | K111: A
A112: 04D_2014-15_June | B112: G | C112: G | D112: G | E112: G | F112: G | G112: G | H112: G | I112: G | J112: G | K112: A
A113: 04Y_2014-15_June | B113: R | C113: G | D113: G | E113: G | F113: G | G113: R | H113: G | I113: R | J113: R | K113: A
A114: 05D_2014-15_June | B114: R | C114: G | D114: G | E114: G | F114: R | G114: R | H114: G | I114: G | J114: R | K114: R
A115: 05V_2014-15_June | B115: R | C115: G | D115: G | E115: G | F115: G | G115: R | H115: G | I115: R | J115: R | K115: A
A116: 05W_2014-15_June | B116: R | C116: G | D116: G | E116: R | F116: R | G116: G | H116: R | I116: R | J116: R | K116: A
A117: 05X_2014-15_June | B117: A | C117: G | D117: G | E117: G | F117: R | G117: G | H117: G | I117: G | J117: G | K117: R
A118: 05N_2014-15_June | B118: G | C118: G | D118: G | E118: G | F118: G | G118: G | H118: G | I118: A | J118: G | K118: A
A119: 05Q_2014-15_June | B119: R | C119: R | D119: G | E119: G | F119: R | G119: R | H119: G | I119: R | J119: R | K119: R
A120: 05G_2014-15_June | B120: R | C120: G | D120: G | E120: R | F120: R | G120: G | H120: R | I120: R | J120: R | K120: A
A121: 01C_2014-15_September | B121: R | C121: G | D121: G | E121: G | F121: G | G121: R | H121: G | I121: G | J121: R | K121: G
A122: 01R_2014-15_September | B122: A | C122: A | D122: G | E122: G | F122: G | G122: R | H122: G | I122: G | J122: A | K122: G
A123: 02D_2014-15_September | B123: G | C123: G | D123: G | E123: G | F123: G | G123: R | H123: G | I123: G | J123: A | K123: G
A124: 02E_2014-15_September | B124: A | C124: G | D124: G | E124: R | F124: R | G124: G | H124: A | I124: A | J124: A | K124: G
A125: 02F_2014-15_September | B125: G | C125: G | D125: G | E125: G | F125: G | G125: G | H125: G | I125: G | J125: G | K125: G
A126: 12F_2014-15_June | B126: G | C126: G | D126: G | E126: G | F126: G | G126: G | H126: G | I126: G | J126: G | K126: G
A127: 00C_2014-15_September | B127: G | C127: A | D127: G | E127: G | F127: A | G127: G | H127: G | I127: G | J127: G | K127: A
A128: 00D_2014-15_September | B128: G | C128: G | D128: G | E128: G | F128: G | G128: G | H128: G | I128: G | J128: G | K128: A
A129: 00M_2014-15_September | B129: G | C129: G | D129: G | E129: A | F129: G | G129: G | H129: G | I129: G | J129: G | K129: G
A130: 00J_2014-15_September | B130: G | C130: G | D130: G | E130: G | F130: G | G130: G | H130: G | I130: G | J130: G | K130: A
A131: 00K_2014-15_September | B131: G | C131: G | D131: G | E131: G | F131: R | G131: G | H131: G | I131: G | J131: G | K131: G
A132: 00T_2014-15_September | B132: G | C132: G | D132: G | E132: G | F132: G | G132: G | H132: G | I132: G | J132: G | K132: G
A133: 00V_2014-15_September | B133: A | C133: A | D133: G | E133: R | F133: A | G133: G | H133: G | I133: R | J133: A | K133: G
A134: 00W_2014-15_September | B134: G | C134: G | D134: G | E134: R | F134: A | G134: G | H134: G | I134: G | J134: A | K134: G
A135: 01W_2014-15_September | B135: A | C135: A | D135: G | E135: R | F135: G | G135: G | H135: A | I135: A | J135: R | K135: G
A136: 01M_2014-15_September | B136: G | C136: G | D136: G | E136: G | F136: G | G136: G | H136: G | I136: G | J136: A | K136: A
A137: 01N_2014-15_September | B137: G | C137: G | D137: G | E137: R | F137: A | G137: G | H137: G | I137: G | J137: R | K137: G
A138: 01D_2014-15_September | B138: G | C138: G | D138: G | E138: G | F138: G | G138: G | H138: G | I138: G | J138: G | K138: G
A139: 00Y_2014-15_September | B139: G | C139: G | D139: G | E139: G | F139: G | G139: G | H139: G | I139: G | J139: G | K139: G
A140: 01G_2014-15_September | B140: G | C140: G | D140: G | E140: G | F140: G | G140: G | H140: G | I140: G | J140: G | K140: G
A141: 02H_2014-15_September | B141: G | C141: G | D141: G | E141: G | F141: G | G141: G | H141: G | I141: G | J141: G | K141: G
A142: 01Y_2014-15_September | B142: G | C142: G | D142: G | E142: G | F142: G | G142: G | H142: G | I142: G | J142: G | K142: G
A143: 02A_2014-15_September | B143: G | C143: G | D143: G | E143: G | F143: G | G143: G | H143: G | I143: G | J143: G | K143: G
A144: 02M_2014-15_September | B144: G | C144: G | D144: G | E144: G | F144: G | G144: G | H144: G | I144: G | J144: G | K144: G
A145: 02G_2014-15_September | B145: G | C145: G | D145: G | E145: G | F145: G | G145: G | H145: G | I145: G | J145: G | K145: G
A146: 01A_2014-15_September | B146: G | C146: G | D146: G | E146: G | F146: G | G146: G | H146: G | I146: G | J146: G | K146: G
A147: 01E_2014-15_September | B147: G | C147: G | D147: G | E147: G | F147: A | G147: G | H147: G | I147: G | J147: G | K147: G
A148: 01K_2014-15_September | B148: G | C148: G | D148: G | E148: G | F148: R | G148: G | H148: G | I148: G | J148: G | K148: G
A149: 00X_2014-15_September | B149: G | C149: G | D149: G | E149: G | F149: G | G149: G | H149: G | I149: G | J149: G | K149: G
A150: 00Q_2014-15_September | B150: G | C150: G | D150: G | E150: G | F150: G | G150: G | H150: G | I150: G | J150: G | K150: G
A151: 00R_2014-15_September | B151: G | C151: G | D151: G | E151: G | F151: G | G151: G | H151: G | I151: G | J151: A | K151: G
A152: 01J_2014-15_September | B152: G | C152: G | D152: G | E152: G | F152: R | G152: G | H152: G | I152: G | J152: G | K152: G
A153: 01X_2014-15_September | B153: A | C153: A | D153: G | E153: G | F153: G | G153: G | H153: R | I153: R | J153: A | K153: G
A154: 01T_2014-15_September | B154: G | C154: G | D154: G | E154: G | F154: G | G154: G | H154: G | I154: G | J154: G | K154: G
A155: 01V_2014-15_September | B155: G | C155: G | D155: G | E155: A | F155: A | G155: G | H155: G | I155: G | J155: G | K155: G
A156: 01F_2014-15_September | B156: A | C156: G | D156: G | E156: G | F156: G | G156: G | H156: R | I156: A | J156: A | K156: A
A157: 99A_2014-15_September | B157: G | C157: G | D157: G | E157: G | F157: G | G157: G | H157: G | I157: G | J157: G | K157: G
A158: 01H_2014-15_September | B158: A | C158: A | D158: G | E158: G | F158: G | G158: G | H158: G | I158: A | J158: G | K158: G
A159: 00L_2014-15_September | B159: A | C159: G | D159: G | E159: G | F159: G | G159: R | H159: G | I159: G | J159: A | K159: A
A160: 00N_2014-15_September | B160: A | C160: G | D160: G | E160: G | F160: G | G160: G | H160: G | I160: G | J160: G | K160: A
A161: 00P_2014-15_September | B161: G | C161: G | D161: G | E161: A | F161: A | G161: G | H161: G | I161: G | J161: G | K161: A
A162: 99C_2014-15_September | B162: A | C162: A | D162: G | E162: G | F162: G | G162: G | H162: G | I162: R | J162: A | K162: A
A163: 00F_2014-15_September | B163: G | C163: G | D163: G | E163: G | F163: G | G163: G | H163: G | I163: G | J163: G | K163: A
A164: 00G_2014-15_September | B164: G | C164: G | D164: G | E164: G | F164: G | G164: G | H164: G | I164: G | J164: G | K164: A
A165: 00H_2014-15_September | B165: G | C165: G | D165: G | E165: G | F165: G | G165: G | H165: G | I165: G | J165: G | K165: A
A166: 13P_2014-15_June | B166: G | C166: G | D166: G | E166: G | F166: G | G166: G | H166: G | I166: G | J166: A | K166: A
A167: 06Y_2014-15_June | B167: G | C167: G | D167: G | E167: G | F167: G | G167: A | H167: G | I167: A | J167: A | K167: G
A168: 07J_2014-15_June | B168: G | C168: G | D168: G | E168: G | F168: A | G168: G | H168: G | I168: G | J168: G | K168: A
A169: 07K_2014-15_June | B169: G | C169: A | D169: G | E169: G | F169: R | G169: G | H169: G | I169: G | J169: A | K169: G
A170: 99E_2014-15_June | B170: G | C170: G | D170: G | E170: G | F170: R | G170: G | H170: G | I170: G | J170: G | K170: A
A171: 99F_2014-15_June | B171: A | C171: G | D171: G | E171: R | F171: R | G171: A | H171: G | I171: R | J171: G | K171: A
A172: 99G_2014-15_June | B172: R | C172: R | D172: R | E172: R | F172: R | G172: R | H172: G | I172: G | J172: R | K172: A
A173: 07G_2014-15_June | B173: G | C173: G | D173: G | E173: G | F173: G | G173: G | H173: G | I173: G | J173: G | K173: A
A174: 07H_2014-15_June | B174: G | C174: G | D174: G | E174: A | F174: R | G174: G | H174: G | I174: G | J174: G | K174: A
A175: 07L_2014-15_June | B175: G | C175: G | D175: G | E175: G | F175: G | G175: G | H175: G | I175: A | J175: G | K175: A
A176: 07M_2014-15_June | B176: R | C176: G | D176: G | E176: A | F176: R | G176: R | H176: G | I176: G | J176: R | K176: A
A177: 07R_2014-15_June | B177: G | C177: G | D177: G | E177: G | F177: G | G177: G | H177: G | I177: G | J177: A | K177: A
A178: 07T_2014-15_June | B178: G | C178: G | D178: G | E178: G | F178: G | G178: G | H178: G | I178: G | J178: G | K178: A
A179: 07X_2014-15_June | B179: R | C179: R | D179: G | E179: G | F179: G | G179: R | H179: G | I179: G | J179: A | K179: G
A180: 08D_2014-15_June | B180: A | C180: R | D180: G | E180: G | F180: G | G180: A | H180: G | I180: R | J180: R | K180: A
A181: 08H_2014-15_June | B181: G | C181: G | D181: G | E181: G | F181: A | G181: G | H181: G | I181: G | J181: G | K181: A
A182: 08M_2014-15_June | B182: G | C182: G | D182: G | E182: G | F182: G | G182: G | H182: G | I182: G | J182: G | K182: A
A183: 08N_2014-15_June | B183: G | C183: A | D183: G | E183: G | F183: G | G183: G | H183: G | I183: R | J183: A | K183: A
A184: 08F_2014-15_June | B184: G | C184: G | D184: G | E184: G | F184: G | G184: G | H184: G | I184: A | J184: G | K184: A
A185: 08V_2014-15_June | B185: G | C185: G | D185: G | E185: G | F185: G | G185: G | H185: G | I185: G | J185: G | K185: A
A186: 08W_2014-15_June | B186: G | C186: G | D186: G | E186: A | F186: A | G186: A | H186: G | I186: G | J186: A | K186: A
A187: 08G_2014-15_June | B187: A | C187: G | D187: G | E187: A | F187: R | G187: R | H187: G | I187: G | J187: R | K187: A
A188: 08Y_2014-15_June | B188: G | C188: G | D188: G | E188: G | F188: G | G188: G | H188: G | I188: G | J188: G | K188: A
A189: 09A_2014-15_June | B189: G | C189: G | D189: G | E189: A | F189: R | G189: G | H189: G | I189: G | J189: G | K189: A
A190: 08E_2014-15_June | B190: A | C190: A | D190: G | E190: A | F190: R | G190: R | H190: G | I190: R | J190: R | K190: G
A191: 07W_2014-15_June | B191: G | C191: G | D191: G | E191: G | F191: G | G191: G | H191: G | I191: G | J191: G | K191: G
A192: 08C_2014-15_June | B192: G | C192: G | D192: G | E192: G | F192: A | G192: G | H192: G | I192: G | J192: G | K192: A
A193: 07Y_2014-15_June | B193: G | C193: G | D193: G | E193: A | F193: G | G193: R | H193: G | I193: G | J193: R | K193: A
A194: 07P_2014-15_June | B194: G | C194: G | D194: G | E194: A | F194: A | G194: G | H194: G | I194: G | J194: G | K194: G
A195: 07Q_2014-15_June | B195: G | C195: G | D195: G | E195: G | F195: G | G195: G | H195: G | I195: G | J195: G | K195: A
A196: 08A_2014-15_June | B196: G | C196: G | D196: G | E196: G | F196: G | G196: G | H196: G | I196: G | J196: G | K196: A
A197: 07V_2014-15_June | B197: R | C197: R | D197: G | E197: G | F197: G | G197: A | H197: G | I197: G | J197: R | K197: A
A198: 08J_2014-15_June | B198: G | C198: G | D198: G | E198: G | F198: G | G198: G | H198: G | I198: G | J198: G | K198: A
A199: 08K_2014-15_June | B199: G | C199: G | D199: G | E199: G | F199: G | G199: G | H199: G | I199: G | J199: A | K199: A
A200: 08L_2014-15_June | B200: G | C200: G | D200: G | E200: G | F200: G | G200: G | H200: G | I200: G | J200: G | K200: R
... 223 more rows

Sheet BREACH REPORT NHS-CONS (hidden)
B1: =CONCATENATE("NHS CONSTITUTION SECTION - Operational standard not achieved - ", 'NHS CONSTITUTION SECTION'!B2:F2) -> NHS CONSTITUTION SECTION - Operational standard not achieved - NHS Rotherham CCG | C1: ='NHS CONSTITUTION SECTION'!D6 -> QUARTER 1 PERFORMANCE | D1: ='NHS CONSTITUTION SECTION'!E6 -> QUARTER 2 PERFORMANCE | E1: ='NHS CONSTITUTION SECTION'!F6 -> QUARTER 3 PERFORMANCE | F1: ='NHS CONSTITUTION SECTION'!G6 -> QUARTER 4 PERFORMANCE
B2: ='NHS CONSTITUTION SECTION'!A8 -> Admitted patients starting treatment within a maximum of 18 weeks from referral | C2: =IF(ISERROR(INDEX('NHS CONSTITUTION SECTION'!A8:G8,MATCH("RED",'NHS CONSTITUTION SECTION'!R8,FALSE),4)),"",INDEX('NHS CONSTITUTION SECTION'!A8:G8,MATCH("RED",'NHS CONSTITUTION SECTION'!R8,FALSE),4)) ->  | D2: =IF(ISERROR(INDEX('NHS CONSTITUTION SECTION'!A8:G8,MATCH("RED",'NHS CONSTITUTION SECTION'!S8,FALSE),5)),"",INDEX('NHS CONSTITUTION SECTION'!A8:G8,MATCH("RED",'NHS CONSTITUTION SECTION'!S8,FALSE),5)) ->  | E2: =IF(ISERROR(INDEX('NHS CONSTITUTION SECTION'!A8:G8,MATCH("RED",'NHS CONSTITUTION SECTION'!T8,FALSE),6)),"",INDEX('NHS CONSTITUTION SECTION'!A8:G8,MATCH("RED",'NHS CONSTITUTION SECTION'!T8,FALSE),6)) ->  | F2: =IF(ISERROR(INDEX('NHS CONSTITUTION SECTION'!A8:G8,MATCH("RED",'NHS CONSTITUTION SECTION'!U8,FALSE),7)),"",INDEX('NHS CONSTITUTION SECTION'!A8:G8,MATCH("RED",'NHS CONSTITUTION SECTION'!U8,FALSE),7)) -> 
B3: ='NHS CONSTITUTION SECTION'!A9 -> Non-admitted patients starting treatment within a maximum of 18 weeks from referral | C3: =IF(ISERROR(INDEX('NHS CONSTITUTION SECTION'!A9:G9,MATCH("RED",'NHS CONSTITUTION SECTION'!R9,FALSE),4)),"",INDEX('NHS CONSTITUTION SECTION'!A9:G9,MATCH("RED",'NHS CONSTITUTION SECTION'!R9,FALSE),4)) ->  | D3: =IF(ISERROR(INDEX('NHS CONSTITUTION SECTION'!A9:G9,MATCH("RED",'NHS CONSTITUTION SECTION'!S9,FALSE),5)),"",INDEX('NHS CONSTITUTION SECTION'!A9:G9,MATCH("RED",'NHS CONSTITUTION SECTION'!S9,FALSE),5)) ->  | E3: =IF(ISERROR(INDEX('NHS CONSTITUTION SECTION'!A9:G9,MATCH("RED",'NHS CONSTITUTION SECTION'!T9,FALSE),6)),"",INDEX('NHS CONSTITUTION SECTION'!A9:G9,MATCH("RED",'NHS CONSTITUTION SECTION'!T9,FALSE),6)) ->  | F3: =IF(ISERROR(INDEX('NHS CONSTITUTION SECTION'!A9:G9,MATCH("RED",'NHS CONSTITUTION SECTION'!U9,FALSE),7)),"",INDEX('NHS CONSTITUTION SECTION'!A9:G9,MATCH("RED",'NHS CONSTITUTION SECTION'!U9,FALSE),7)) -> 
B4: ='NHS CONSTITUTION SECTION'!A10 -> Patients on incomplete non-emergency pathways (yet to start treatment) waiting no more than 18 weeks from referral | C4: =IF(ISERROR(INDEX('NHS CONSTITUTION SECTION'!A10:G10,MATCH("RED",'NHS CONSTITUTION SECTION'!R10,FALSE),4)),"",INDEX('NHS CONSTITUTION SECTION'!A10:G10,MATCH("RED",'NHS CONSTITUTION SECTION'!R10,FALSE),4)) ->  | D4: =IF(ISERROR(INDEX('NHS CONSTITUTION SECTION'!A10:G10,MATCH("RED",'NHS CONSTITUTION SECTION'!S10,FALSE),5)),"",INDEX('NHS CONSTITUTION SECTION'!A10:G10,MATCH("RED",'NHS CONSTITUTION SECTION'!S10,FALSE),5)) ->  | E4: =IF(ISERROR(INDEX('NHS CONSTITUTION SECTION'!A10:G10,MATCH("RED",'NHS CONSTITUTION SECTION'!T10,FALSE),6)),"",INDEX('NHS CONSTITUTION SECTION'!A10:G10,MATCH("RED",'NHS CONSTITUTION SECTION'!T10,FALSE),6)) ->  | F4: =IF(ISERROR(INDEX('NHS CONSTITUTION SECTION'!A10:G10,MATCH("RED",'NHS CONSTITUTION SECTION'!U10,FALSE),7)),"",INDEX('NHS CONSTITUTION SECTION'!A10:G10,MATCH("RED",'NHS CONSTITUTION SECTION'!U10,FALSE),7)) -> 
B5: ='NHS CONSTITUTION SECTION'!A11 -> Number of patients waiting more than 52 weeks on incomplete pathways | C5: =IF(ISERROR(INDEX('NHS CONSTITUTION SECTION'!A11:G11,MATCH("RED",'NHS CONSTITUTION SECTION'!R11,FALSE),4)),"",INDEX('NHS CONSTITUTION SECTION'!A11:G11,MATCH("RED",'NHS CONSTITUTION SECTION'!R11,FALSE),4)) ->  | D5: =IF(ISERROR(INDEX('NHS CONSTITUTION SECTION'!A11:G11,MATCH("RED",'NHS CONSTITUTION SECTION'!S11,FALSE),5)),"",INDEX('NHS CONSTITUTION SECTION'!A11:G11,MATCH("RED",'NHS CONSTITUTION SECTION'!S11,FALSE),5)) ->  | E5: =IF(ISERROR(INDEX('NHS CONSTITUTION SECTION'!A11:G11,MATCH("RED",'NHS CONSTITUTION SECTION'!T11,FALSE),6)),"",INDEX('NHS CONSTITUTION SECTION'!A11:G11,MATCH("RED",'NHS CONSTITUTION SECTION'!T11,FALSE),6)) ->  | F5: =IF(ISERROR(INDEX('NHS CONSTITUTION SECTION'!A11:G11,MATCH("RED",'NHS CONSTITUTION SECTION'!U11,FALSE),7)),"",INDEX('NHS CONSTITUTION SECTION'!A11:G11,MATCH("RED",'NHS CONSTITUTION SECTION'!U11,FALSE),7)) -> 
B6: ='NHS CONSTITUTION SECTION'!A13 -> Percentage of patients waiting 6 weeks or more for a diagnostic test (15 key tests) | C6: =IF(ISERROR(INDEX('NHS CONSTITUTION SECTION'!A13:G13,MATCH("RED",'NHS CONSTITUTION SECTION'!R13,FALSE),4)),"",INDEX('NHS CONSTITUTION SECTION'!A13:G13,MATCH("RED",'NHS CONSTITUTION SECTION'!R13,FALSE),4)) -> 0.01517825627 | D6: =IF(ISERROR(INDEX('NHS CONSTITUTION SECTION'!A13:G13,MATCH("RED",'NHS CONSTITUTION SECTION'!S13,FALSE),5)),"",INDEX('NHS CONSTITUTION SECTION'!A13:G13,MATCH("RED",'NHS CONSTITUTION SECTION'!S13,FALSE),5)) ->  | E6: =IF(ISERROR(INDEX('NHS CONSTITUTION SECTION'!A13:G13,MATCH("RED",'NHS CONSTITUTION SECTION'!T13,FALSE),6)),"",INDEX('NHS CONSTITUTION SECTION'!A13:G13,MATCH("RED",'NHS CONSTITUTION SECTION'!T13,FALSE),6)) ->  | F6: =IF(ISERROR(INDEX('NHS CONSTITUTION SECTION'!A13:G13,MATCH("RED",'NHS CONSTITUTION SECTION'!U13,FALSE),7)),"",INDEX('NHS CONSTITUTION SECTION'!A13:G13,MATCH("RED",'NHS CONSTITUTION SECTION'!U13,FALSE),7)) -> 
B7: ='NHS CONSTITUTION SECTION'!A15 -> Maximum two-week wait for first outpatient appointment for patients referred urgently with suspected cancer by a GP | C7: =IF('NHS CONSTITUTION SECTION'!D$15="","",IF('NHS CONSTITUTION SECTION'!D$15<'NHS CONSTITUTION SECTION'!$B$15,'NHS CONSTITUTION SECTION'!D$15,"")) ->  | D7: =IF('NHS CONSTITUTION SECTION'!E$15="","",IF('NHS CONSTITUTION SECTION'!E$15<'NHS CONSTITUTION SECTION'!$B$15,'NHS CONSTITUTION SECTION'!E$15,"")) ->  | E7: =IF('NHS CONSTITUTION SECTION'!F$15="","",IF('NHS CONSTITUTION SECTION'!F$15<'NHS CONSTITUTION SECTION'!$B$15,'NHS CONSTITUTION SECTION'!F$15,"")) ->  | F7: =IF('NHS CONSTITUTION SECTION'!G$15="","",IF('NHS CONSTITUTION SECTION'!G$15<'NHS CONSTITUTION SECTION'!$B$15,'NHS CONSTITUTION SECTION'!G$15,"")) -> 
B8: ='NHS CONSTITUTION SECTION'!A16 -> Maximum two-week wait for first outpatient appointment for patients referred urgently with breast symptoms (where cancer was not initially suspected) | C8: =IF('NHS CONSTITUTION SECTION'!D16="","",IF('NHS CONSTITUTION SECTION'!D16<'NHS CONSTITUTION SECTION'!$B16,'NHS CONSTITUTION SECTION'!D16,"")) ->  | D8: =IF('NHS CONSTITUTION SECTION'!E$16="","",IF('NHS CONSTITUTION SECTION'!E$16<'NHS CONSTITUTION SECTION'!$B$16,'NHS CONSTITUTION SECTION'!E$16,"")) ->  | E8: =IF('NHS CONSTITUTION SECTION'!F$16="","",IF('NHS CONSTITUTION SECTION'!F$16<'NHS CONSTITUTION SECTION'!$B$16,'NHS CONSTITUTION SECTION'!F$16,"")) ->  | F8: =IF('NHS CONSTITUTION SECTION'!G$16="","",IF('NHS CONSTITUTION SECTION'!G$16<'NHS CONSTITUTION SECTION'!$B$16,'NHS CONSTITUTION SECTION'!G$16,"")) -> 
B9: ='NHS CONSTITUTION SECTION'!A18 -> Maximum 31-day wait from diagnosis to first definitive treatment for all cancers | C9: =IF('NHS CONSTITUTION SECTION'!D18="","",IF('NHS CONSTITUTION SECTION'!D18<'NHS CONSTITUTION SECTION'!$B18,'NHS CONSTITUTION SECTION'!D18,"")) ->  | D9: =IF('NHS CONSTITUTION SECTION'!E18="","",IF('NHS CONSTITUTION SECTION'!E18<'NHS CONSTITUTION SECTION'!$B18,'NHS CONSTITUTION SECTION'!E18,"")) ->  | E9: =IF('NHS CONSTITUTION SECTION'!F18="","",IF('NHS CONSTITUTION SECTION'!F18<'NHS CONSTITUTION SECTION'!$B18,'NHS CONSTITUTION SECTION'!F18,"")) ->  | F9: =IF('NHS CONSTITUTION SECTION'!G18="","",IF('NHS CONSTITUTION SECTION'!G18<'NHS CONSTITUTION SECTION'!$B18,'NHS CONSTITUTION SECTION'!G18,"")) -> 
B10: ='NHS CONSTITUTION SECTION'!A19 -> Maximum 31-day wait for subsequent treatment where that treatment is surgery | C10: =IF('NHS CONSTITUTION SECTION'!D19="","",IF('NHS CONSTITUTION SECTION'!D19<'NHS CONSTITUTION SECTION'!$B19,'NHS CONSTITUTION SECTION'!D19,"")) -> 0.9285714286 | D10: =IF('NHS CONSTITUTION SECTION'!E19="","",IF('NHS CONSTITUTION SECTION'!E19<'NHS CONSTITUTION SECTION'!$B19,'NHS CONSTITUTION SECTION'!E19,"")) ->  | E10: =IF('NHS CONSTITUTION SECTION'!F19="","",IF('NHS CONSTITUTION SECTION'!F19<'NHS CONSTITUTION SECTION'!$B19,'NHS CONSTITUTION SECTION'!F19,"")) ->  | F10: =IF('NHS CONSTITUTION SECTION'!G19="","",IF('NHS CONSTITUTION SECTION'!G19<'NHS CONSTITUTION SECTION'!$B19,'NHS CONSTITUTION SECTION'!G19,"")) -> 
B11: ='NHS CONSTITUTION SECTION'!A20 -> Maximum 31-day wait for subsequent treatment where the treatment is an anti-cancer drug regimen | C11: =IF('NHS CONSTITUTION SECTION'!D20="","",IF('NHS CONSTITUTION SECTION'!D20<'NHS CONSTITUTION SECTION'!$B20,'NHS CONSTITUTION SECTION'!D20,"")) ->  | D11: =IF('NHS CONSTITUTION SECTION'!E20="","",IF('NHS CONSTITUTION SECTION'!E20<'NHS CONSTITUTION SECTION'!$B20,'NHS CONSTITUTION SECTION'!E20,"")) ->  | E11: =IF('NHS CONSTITUTION SECTION'!F20="","",IF('NHS CONSTITUTION SECTION'!F20<'NHS CONSTITUTION SECTION'!$B20,'NHS CONSTITUTION SECTION'!F20,"")) ->  | F11: =IF('NHS CONSTITUTION SECTION'!G20="","",IF('NHS CONSTITUTION SECTION'!G20<'NHS CONSTITUTION SECTION'!$B20,'NHS CONSTITUTION SECTION'!G20,"")) -> 
B12: ='NHS CONSTITUTION SECTION'!A21 -> Maximum 31-day wait for subsequent treatment where the treatment is a course of radiotherapy | C12: =IF('NHS CONSTITUTION SECTION'!D21="","",IF('NHS CONSTITUTION SECTION'!D21<'NHS CONSTITUTION SECTION'!$B21,'NHS CONSTITUTION SECTION'!D21,"")) ->  | D12: =IF('NHS CONSTITUTION SECTION'!E21="","",IF('NHS CONSTITUTION SECTION'!E21<'NHS CONSTITUTION SECTION'!$B21,'NHS CONSTITUTION SECTION'!E21,"")) ->  | E12: =IF('NHS CONSTITUTION SECTION'!F21="","",IF('NHS CONSTITUTION SECTION'!F21<'NHS CONSTITUTION SECTION'!$B21,'NHS CONSTITUTION SECTION'!F21,"")) ->  | F12: =IF('NHS CONSTITUTION SECTION'!G21="","",IF('NHS CONSTITUTION SECTION'!G21<'NHS CONSTITUTION SECTION'!$B21,'NHS CONSTITUTION SECTION'!G21,"")) -> 
B13: ='NHS CONSTITUTION SECTION'!A23 -> Maximum 62-day wait from urgent GP referral to first definitive treatment for cancer | C13: =IF('NHS CONSTITUTION SECTION'!D23="","",IF('NHS CONSTITUTION SECTION'!D23<'NHS CONSTITUTION SECTION'!$B23,'NHS CONSTITUTION SECTION'!D23,"")) ->  | D13: =IF('NHS CONSTITUTION SECTION'!E23="","",IF('NHS CONSTITUTION SECTION'!E23<'NHS CONSTITUTION SECTION'!$B23,'NHS CONSTITUTION SECTION'!E23,"")) ->  | E13: =IF('NHS CONSTITUTION SECTION'!F23="","",IF('NHS CONSTITUTION SECTION'!F23<'NHS CONSTITUTION SECTION'!$B23,'NHS CONSTITUTION SECTION'!F23,"")) ->  | F13: =IF('NHS CONSTITUTION SECTION'!G23="","",IF('NHS CONSTITUTION SECTION'!G23<'NHS CONSTITUTION SECTION'!$B23,'NHS CONSTITUTION SECTION'!G23,"")) -> 
B14: ='NHS CONSTITUTION SECTION'!A24 -> Maximum 62-day wait from referral from an NHS screening service to first definitive treatment for all cancers | C14: =IF('NHS CONSTITUTION SECTION'!D24="","",IF('NHS CONSTITUTION SECTION'!D24<'NHS CONSTITUTION SECTION'!$B24,'NHS CONSTITUTION SECTION'!D24,"")) ->  | D14: =IF('NHS CONSTITUTION SECTION'!E24="","",IF('NHS CONSTITUTION SECTION'!E24<'NHS CONSTITUTION SECTION'!$B24,'NHS CONSTITUTION SECTION'!E24,"")) ->  | E14: =IF('NHS CONSTITUTION SECTION'!F24="","",IF('NHS CONSTITUTION SECTION'!F24<'NHS CONSTITUTION SECTION'!$B24,'NHS CONSTITUTION SECTION'!F24,"")) ->  | F14: =IF('NHS CONSTITUTION SECTION'!G24="","",IF('NHS CONSTITUTION SECTION'!G24<'NHS CONSTITUTION SECTION'!$B24,'NHS CONSTITUTION SECTION'!G24,"")) -> 
B15: ='NHS CONSTITUTION SECTION'!A25 -> Maximum 62-day wait for first definitive treatment following a consultants decision to upgrade the priority of the patients (all cancers) | C15: =IF(ISERROR(INDEX('NHS CONSTITUTION SECTION'!A25:G25,MATCH("RED",'NHS CONSTITUTION SECTION'!R25,FALSE),4)),"",INDEX('NHS CONSTITUTION SECTION'!A25:G25,MATCH("RED",'NHS CONSTITUTION SECTION'!R25,FALSE),4)) ->  | D15: =IF(ISERROR(INDEX('NHS CONSTITUTION SECTION'!A25:G25,MATCH("RED",'NHS CONSTITUTION SECTION'!S25,FALSE),5)),"",INDEX('NHS CONSTITUTION SECTION'!A25:G25,MATCH("RED",'NHS CONSTITUTION SECTION'!S25,FALSE),5)) ->  | E15: =IF(ISERROR(INDEX('NHS CONSTITUTION SECTION'!A25:G25,MATCH("RED",'NHS CONSTITUTION SECTION'!T25,FALSE),6)),"",INDEX('NHS CONSTITUTION SECTION'!A25:G25,MATCH("RED",'NHS CONSTITUTION SECTION'!T25,FALSE),6)) ->  | F15: =IF(ISERROR(INDEX('NHS CONSTITUTION SECTION'!A25:G25,MATCH("RED",'NHS CONSTITUTION SECTION'!U25,FALSE),7)),"",INDEX('NHS CONSTITUTION SECTION'!A25:G25,MATCH("RED",'NHS CONSTITUTION SECTION'!U25,FALSE),7)) -> 
B16: ='NHS CONSTITUTION SECTION'!A27 -> Breaches of Mixed-Sex Accommodation | C16: =IF(OR('NHS CONSTITUTION SECTION'!D27="",'NHS CONSTITUTION SECTION'!D27=0),"",'NHS CONSTITUTION SECTION'!D27) ->  | D16: =IF(OR('NHS CONSTITUTION SECTION'!E27="",'NHS CONSTITUTION SECTION'!E27=0),"",'NHS CONSTITUTION SECTION'!E27) ->  | E16: =IF(OR('NHS CONSTITUTION SECTION'!F27="",'NHS CONSTITUTION SECTION'!F27=0),"",'NHS CONSTITUTION SECTION'!F27) ->  | F16: =IF(OR('NHS CONSTITUTION SECTION'!G27="",'NHS CONSTITUTION SECTION'!G27=0),"",'NHS CONSTITUTION SECTION'!G27) -> 
B17: ='NHS CONSTITUTION SECTION'!A29 -> Care Programme Approach (CPA): Percentage of people under adult mental illness specialities on CPA who were followed up within 7 days of discharge from psychiatric inpatient care during the period | C17: =IF('NHS CONSTITUTION SECTION'!D29="","",IF('NHS CONSTITUTION SECTION'!D29<'NHS CONSTITUTION SECTION'!$B29*1,'NHS CONSTITUTION SECTION'!D29,"")) ->  | D17: =IF('NHS CONSTITUTION SECTION'!E29="","",IF('NHS CONSTITUTION SECTION'!E29<'NHS CONSTITUTION SECTION'!$B29*1,'NHS CONSTITUTION SECTION'!E29,"")) ->  | E17: =IF('NHS CONSTITUTION SECTION'!F29="","",IF('NHS CONSTITUTION SECTION'!F29<'NHS CONSTITUTION SECTION'!$B29*1,'NHS CONSTITUTION SECTION'!F29,"")) ->  | F17: =IF('NHS CONSTITUTION SECTION'!G29="","",IF('NHS CONSTITUTION SECTION'!G29<'NHS CONSTITUTION SECTION'!$B29*1,'NHS CONSTITUTION SECTION'!G29,"")) -> 
B18: ='NHS CONSTITUTION SECTION'!A37 -> THE ROTHERHAM NHS FOUNDATION TRUST | C18: =IF('NHS CONSTITUTION SECTION'!D37="","",IF('NHS CONSTITUTION SECTION'!D37<'NHS CONSTITUTION SECTION'!$B37*1,'NHS CONSTITUTION SECTION'!D37,"")) ->  | D18: =IF('NHS CONSTITUTION SECTION'!E37="","",IF('NHS CONSTITUTION SECTION'!E37<'NHS CONSTITUTION SECTION'!$B37*1,'NHS CONSTITUTION SECTION'!E37,"")) ->  | E18: =IF('NHS CONSTITUTION SECTION'!F37="","",IF('NHS CONSTITUTION SECTION'!F37<'NHS CONSTITUTION SECTION'!$B37*1,'NHS CONSTITUTION SECTION'!F37,"")) ->  | F18: =IF('NHS CONSTITUTION SECTION'!G37="","",IF('NHS CONSTITUTION SECTION'!G37<'NHS CONSTITUTION SECTION'!$B37*1,'NHS CONSTITUTION SECTION'!G37,"")) -> 
B19: ='NHS CONSTITUTION SECTION'!A38 -> DONCASTER AND BASSETLAW HOSPITALS NHS FOUNDATION TRUST | C19: =IF('NHS CONSTITUTION SECTION'!D38="","",IF('NHS CONSTITUTION SECTION'!D38<'NHS CONSTITUTION SECTION'!$B38*1,'NHS CONSTITUTION SECTION'!D38,"")) ->  | D19: =IF('NHS CONSTITUTION SECTION'!E38="","",IF('NHS CONSTITUTION SECTION'!E38<'NHS CONSTITUTION SECTION'!$B38*1,'NHS CONSTITUTION SECTION'!E38,"")) -> 0.9189706459 | E19: =IF('NHS CONSTITUTION SECTION'!F38="","",IF('NHS CONSTITUTION SECTION'!F38<'NHS CONSTITUTION SECTION'!$B38*1,'NHS CONSTITUTION SECTION'!F38,"")) ->  | F19: =IF('NHS CONSTITUTION SECTION'!G38="","",IF('NHS CONSTITUTION SECTION'!G38<'NHS CONSTITUTION SECTION'!$B38*1,'NHS CONSTITUTION SECTION'!G38,"")) -> 
B20: ='NHS CONSTITUTION SECTION'!A39 -> SHEFFIELD TEACHING HOSPITALS NHS FOUNDATION TRUST | C20: =IF('NHS CONSTITUTION SECTION'!D39="","",IF('NHS CONSTITUTION SECTION'!D39<'NHS CONSTITUTION SECTION'!$B39*1,'NHS CONSTITUTION SECTION'!D39,"")) ->  | D20: =IF('NHS CONSTITUTION SECTION'!E39="","",IF('NHS CONSTITUTION SECTION'!E39<'NHS CONSTITUTION SECTION'!$B39*1,'NHS CONSTITUTION SECTION'!E39,"")) ->  | E20: =IF('NHS CONSTITUTION SECTION'!F39="","",IF('NHS CONSTITUTION SECTION'!F39<'NHS CONSTITUTION SECTION'!$B39*1,'NHS CONSTITUTION SECTION'!F39,"")) ->  | F20: =IF('NHS CONSTITUTION SECTION'!G39="","",IF('NHS CONSTITUTION SECTION'!G39<'NHS CONSTITUTION SECTION'!$B39*1,'NHS CONSTITUTION SECTION'!G39,"")) -> 
B21: ='NHS CONSTITUTION SECTION'!A41 -> Category A (Red 1) calls resulting in an emergency response arriving within 8 minutes | C21: =IF('NHS CONSTITUTION SECTION'!D41="","",IF('NHS CONSTITUTION SECTION'!D41<'NHS CONSTITUTION SECTION'!$B41*1,'NHS CONSTITUTION SECTION'!D41,"")) -> 0.6910502656 | D21: =IF('NHS CONSTITUTION SECTION'!E41="","",IF('NHS CONSTITUTION SECTION'!E41<'NHS CONSTITUTION SECTION'!$B41*1,'NHS CONSTITUTION SECTION'!E41,"")) -> 0.6975639967 | E21: =IF('NHS CONSTITUTION SECTION'!F41="","",IF('NHS CONSTITUTION SECTION'!F41<'NHS CONSTITUTION SECTION'!$B41*1,'NHS CONSTITUTION SECTION'!F41,"")) ->  | F21: =IF('NHS CONSTITUTION SECTION'!G41="","",IF('NHS CONSTITUTION SECTION'!G41<'NHS CONSTITUTION SECTION'!$B41*1,'NHS CONSTITUTION SECTION'!G41,"")) -> 
B22: ='NHS CONSTITUTION SECTION'!A42 -> Category A (Red 2) calls resulting in an emergency response arriving within 8 minutes | C22: =IF('NHS CONSTITUTION SECTION'!D42="","",IF('NHS CONSTITUTION SECTION'!D42<'NHS CONSTITUTION SECTION'!$B42*1,'NHS CONSTITUTION SECTION'!D42,"")) -> 0.6949540952 | D22: =IF('NHS CONSTITUTION SECTION'!E42="","",IF('NHS CONSTITUTION SECTION'!E42<'NHS CONSTITUTION SECTION'!$B42*1,'NHS CONSTITUTION SECTION'!E42,"")) -> 0.6962700091 | E22: =IF('NHS CONSTITUTION SECTION'!F42="","",IF('NHS CONSTITUTION SECTION'!F42<'NHS CONSTITUTION SECTION'!$B42*1,'NHS CONSTITUTION SECTION'!F42,"")) ->  | F22: =IF('NHS CONSTITUTION SECTION'!G42="","",IF('NHS CONSTITUTION SECTION'!G42<'NHS CONSTITUTION SECTION'!$B42*1,'NHS CONSTITUTION SECTION'!G42,"")) -> 
B23: ='NHS CONSTITUTION SECTION'!A43 -> Category A calls resulting in an ambulance arriving at the scene within 19 minutes | C23: =IF('NHS CONSTITUTION SECTION'!D43="","",IF('NHS CONSTITUTION SECTION'!D43<'NHS CONSTITUTION SECTION'!$B43*1,'NHS CONSTITUTION SECTION'!D43,"")) ->  | D23: =IF('NHS CONSTITUTION SECTION'!E43="","",IF('NHS CONSTITUTION SECTION'!E43<'NHS CONSTITUTION SECTION'!$B43*1,'NHS CONSTITUTION SECTION'!E43,"")) ->  | E23: =IF('NHS CONSTITUTION SECTION'!F43="","",IF('NHS CONSTITUTION SECTION'!F43<'NHS CONSTITUTION SECTION'!$B43*1,'NHS CONSTITUTION SECTION'!F43,"")) ->  | F23: =IF('NHS CONSTITUTION SECTION'!G43="","",IF('NHS CONSTITUTION SECTION'!G43<'NHS CONSTITUTION SECTION'!$B43*1,'NHS CONSTITUTION SECTION'!G43,"")) -> 

Sheet BREACH REPORT OUTCOME SECTION (hidden)
B1: =CONCATENATE("OUTCOME SECTION - operational standard not achieved - ", 'QUALITY AND OUTCOME SECTION'!B2) -> OUTCOME SECTION - operational standard not achieved - NHS Rotherham CCG
C2: ='QUALITY AND OUTCOME SECTION'!D29 -> QUARTER 1 | D2: ='QUALITY AND OUTCOME SECTION'!E29 -> QUARTER 2 | E2: ='QUALITY AND OUTCOME SECTION'!F29 -> QUARTER 3 | F2: ='QUALITY AND OUTCOME SECTION'!G29 -> QUARTER 4
B3: ='QUALITY AND OUTCOME SECTION'!A38 -> Incidence of healthcare associated infection (HCAI) i) MRSA - Cases which have been assigned to the CCG following a Post Infection Review | C3: =IF(OR('QUALITY AND OUTCOME SECTION'!D39=0,'QUALITY AND OUTCOME SECTION'!D39=""),"",'QUALITY AND OUTCOME SECTION'!D39) ->  | D3: =IF(OR('QUALITY AND OUTCOME SECTION'!E39=0,'QUALITY AND OUTCOME SECTION'!E39=""),"",'QUALITY AND OUTCOME SECTION'!E39) ->  | E3: =IF(OR('QUALITY AND OUTCOME SECTION'!F39=0,'QUALITY AND OUTCOME SECTION'!F39=""),"",'QUALITY AND OUTCOME SECTION'!F39) ->  | F3: =IF(OR('QUALITY AND OUTCOME SECTION'!G39=0,'QUALITY AND OUTCOME SECTION'!G39=""),"",'QUALITY AND OUTCOME SECTION'!G39) ->  | G3: =IF(AND('QUALITY AND OUTCOME SECTION'!L42="RED"),"RED",IF(AND('QUALITY AND OUTCOME SECTION'!L42="GREEN"),"GREEN",IF(AND('QUALITY AND OUTCOME SECTION'!L42="AMBER"),"AMBER"))) -> FALSE
B4: ='QUALITY AND OUTCOME SECTION'!A40 -> Incidence of healthcare associated infection (HCAI) ii) C.difficile (Year-to-date) | C4: =IF('QUALITY AND OUTCOME SECTION'!D41="","",IF('QUALITY AND OUTCOME SECTION'!D41>'QUALITY AND OUTCOME SECTION'!D40,'QUALITY AND OUTCOME SECTION'!D41,"")) -> 24 | D4: =IF('QUALITY AND OUTCOME SECTION'!E41="","",IF('QUALITY AND OUTCOME SECTION'!E41>'QUALITY AND OUTCOME SECTION'!E40,'QUALITY AND OUTCOME SECTION'!E41,"")) -> 37 | E4: =IF('QUALITY AND OUTCOME SECTION'!F41="","",IF('QUALITY AND OUTCOME SECTION'!F41>'QUALITY AND OUTCOME SECTION'!F40,'QUALITY AND OUTCOME SECTION'!F41,"")) ->  | F4: =IF('QUALITY AND OUTCOME SECTION'!G41="","",IF('QUALITY AND OUTCOME SECTION'!G41>'QUALITY AND OUTCOME SECTION'!G40,'QUALITY AND OUTCOME SECTION'!G41,"")) ->  | G4: ='QUALITY AND OUTCOME SECTION'!H41 -> 0
B5: ='QUALITY AND OUTCOME SECTION'!A44 -> Access: the proportion of people entering treatment against the level of need in the general population | C5: =IF('QUALITY AND OUTCOME SECTION'!D45="","",IF('QUALITY AND OUTCOME SECTION'!D45<'QUALITY AND OUTCOME SECTION'!D44,'QUALITY AND OUTCOME SECTION'!D45,"")) -> 0.02596515203 | D5: =IF('QUALITY AND OUTCOME SECTION'!E45="","",IF('QUALITY AND OUTCOME SECTION'!E45<'QUALITY AND OUTCOME SECTION'!E44,'QUALITY AND OUTCOME SECTION'!E45,"")) ->  | E5: =IF('QUALITY AND OUTCOME SECTION'!F45="","",IF('QUALITY AND OUTCOME SECTION'!F45<'QUALITY AND OUTCOME SECTION'!F44,'QUALITY AND OUTCOME SECTION'!F45,"")) ->  | F5: =IF('QUALITY AND OUTCOME SECTION'!G45="","",IF('QUALITY AND OUTCOME SECTION'!G45<'QUALITY AND OUTCOME SECTION'!G44,'QUALITY AND OUTCOME SECTION'!G45,"")) -> 
B6: ='QUALITY AND OUTCOME SECTION'!A44 -> Access: the proportion of people entering treatment against the level of need in the general population | C6: =IF('QUALITY AND OUTCOME SECTION'!D47="","",IF('QUALITY AND OUTCOME SECTION'!D47<'QUALITY AND OUTCOME SECTION'!D46,'QUALITY AND OUTCOME SECTION'!D47,"")) -> 

Sheet BREACH REPORT FINANCE SECTION (hidden)
B1: =CONCATENATE("FINANCE - operational standard not achieved - ",'FINANCE SECTION'!C2) -> FINANCE - operational standard not achieved - NHS Rotherham CCG | C1: ='NHS CONSTITUTION SECTION'!D6 -> QUARTER 1 PERFORMANCE | D1: ='NHS CONSTITUTION SECTION'!E6 -> QUARTER 2 PERFORMANCE | E1: ='NHS CONSTITUTION SECTION'!F6 -> QUARTER 3 PERFORMANCE | F1: ='NHS CONSTITUTION SECTION'!G6 -> QUARTER 4 PERFORMANCE
B2: ='FINANCE SECTION'!A8 -> Plan - year to date (variance to plan as % of YTD allocation) | C2: =IFERROR(VLOOKUP("R",'FINANCE SECTION'!C8,1,FALSE),"") ->  | D2: =IFERROR(VLOOKUP("R",'FINANCE SECTION'!D8,1,FALSE),"") ->  | E2: =IFERROR(VLOOKUP("R",'FINANCE SECTION'!E8,1,FALSE),"") ->  | F2: =IFERROR(VLOOKUP("R",'FINANCE SECTION'!F8,1,FALSE),"") -> 
B3: ='FINANCE SECTION'!A9 -> Plan - full year (variance to plan as % of allocation) | C3: =IFERROR(VLOOKUP("R",'FINANCE SECTION'!C9,1,FALSE),"") ->  | D3: =IFERROR(VLOOKUP("R",'FINANCE SECTION'!D9,1,FALSE),"") ->  | E3: =IFERROR(VLOOKUP("R",'FINANCE SECTION'!E9,1,FALSE),"") ->  | F3: =IFERROR(VLOOKUP("R",'FINANCE SECTION'!F9,1,FALSE),"") -> 
B4: ='FINANCE SECTION'!A10 -> QIPP - year to date delivery | C4: =IFERROR(VLOOKUP("R",'FINANCE SECTION'!C10,1,FALSE),"") ->  | D4: =IFERROR(VLOOKUP("R",'FINANCE SECTION'!D10,1,FALSE),"") ->  | E4: =IFERROR(VLOOKUP("R",'FINANCE SECTION'!E10,1,FALSE),"") ->  | F4: =IFERROR(VLOOKUP("R",'FINANCE SECTION'!F10,1,FALSE),"") -> 
B5: ='FINANCE SECTION'!A11 -> QIPP - full year forecast | C5: =IFERROR(VLOOKUP("R",'FINANCE SECTION'!C11,1,FALSE),"") ->  | D5: =IFERROR(VLOOKUP("R",'FINANCE SECTION'!D11,1,FALSE),"") ->  | E5: =IFERROR(VLOOKUP("R",'FINANCE SECTION'!E11,1,FALSE),"") ->  | F5: =IFERROR(VLOOKUP("R",'FINANCE SECTION'!F11,1,FALSE),"") -> 
B6: ='FINANCE SECTION'!A12 -> Clear identification of risks against financial delivery and mitigations | C6: =IFERROR(VLOOKUP("R",'FINANCE SECTION'!C12,1,FALSE),"") ->  | D6: =IFERROR(VLOOKUP("R",'FINANCE SECTION'!D12,1,FALSE),"") ->  | E6: =IFERROR(VLOOKUP("R",'FINANCE SECTION'!E12,1,FALSE),"") ->  | F6: =IFERROR(VLOOKUP("R",'FINANCE SECTION'!F12,1,FALSE),"") -> 
B7: ='FINANCE SECTION'!A13 -> Running costs | C7: =IFERROR(VLOOKUP("R",'FINANCE SECTION'!C13,1,FALSE),"") ->  | D7: =IFERROR(VLOOKUP("R",'FINANCE SECTION'!D13,1,FALSE),"") ->  | E7: =IFERROR(VLOOKUP("R",'FINANCE SECTION'!E13,1,FALSE),"") ->  | F7: =IFERROR(VLOOKUP("R",'FINANCE SECTION'!F13,1,FALSE),"") -> 
B8: ='FINANCE SECTION'!A14 -> Underlying recurrent surplus on exit of 2014/15 | C8: =IFERROR(VLOOKUP("R",'FINANCE SECTION'!C14,1,FALSE),"") ->  | D8: =IFERROR(VLOOKUP("R",'FINANCE SECTION'!D14,1,FALSE),"") ->  | E8: =IFERROR(VLOOKUP("R",'FINANCE SECTION'!E14,1,FALSE),"") ->  | F8: =IFERROR(VLOOKUP("R",'FINANCE SECTION'!F14,1,FALSE),"") -> 
B9: ='FINANCE SECTION'!A16 -> Financial position meets the 2014/15 surplus planning requirement | C9: =IFERROR(VLOOKUP("R",'FINANCE SECTION'!C16,1,FALSE),"") ->  | D9: =IFERROR(VLOOKUP("R",'FINANCE SECTION'!D16,1,FALSE),"") ->  | E9: =IFERROR(VLOOKUP("R",'FINANCE SECTION'!E16,1,FALSE),"") ->  | F9: =IFERROR(VLOOKUP("R",'FINANCE SECTION'!F16,1,FALSE),"") -> 
B10: ='FINANCE SECTION'!A17 -> Planned usage of non-recurrent headroom funds in line with business rules | C10: =IFERROR(VLOOKUP("R",'FINANCE SECTION'!C17,1,FALSE),"") ->  | D10: =IFERROR(VLOOKUP("R",'FINANCE SECTION'!D17,1,FALSE),"") ->  | E10: =IFERROR(VLOOKUP("R",'FINANCE SECTION'!E17,1,FALSE),"") ->  | F10: =IFERROR(VLOOKUP("R",'FINANCE SECTION'!F17,1,FALSE),"") -> 
B11: ='FINANCE SECTION'!A18 -> BPPC performance - invoices paid within Better Payment Practice Code. | C11: =IFERROR(VLOOKUP("R",'FINANCE SECTION'!C18,1,FALSE),"") ->  | D11: =IFERROR(VLOOKUP("R",'FINANCE SECTION'!D18,1,FALSE),"") ->  | E11: =IFERROR(VLOOKUP("R",'FINANCE SECTION'!E18,1,FALSE),"") ->  | F11: =IFERROR(VLOOKUP("R",'FINANCE SECTION'!F18,1,FALSE),"") -> 
B12: ='FINANCE SECTION'!A19 -> Cash utilisation | C12: =IFERROR(VLOOKUP("R",'FINANCE SECTION'!C19,1,FALSE),"") ->  | D12: =IFERROR(VLOOKUP("R",'FINANCE SECTION'!D19,1,FALSE),"") ->  | E12: =IFERROR(VLOOKUP("R",'FINANCE SECTION'!E19,1,FALSE),"") ->  | F12: =IFERROR(VLOOKUP("R",'FINANCE SECTION'!F19,1,FALSE),"") -> 

Sheet CCG MAPPING TO HWBB (hidden)
D1: Mapped to local authorities
B3: CCG | D3: CCG Name | E3: LA Code | F3: Local Authority | G3: % CCG in LA | H3: Look-up funding from CCG recurrent allocations | I3: Funding from CCG recurrent allocations to each LA
G4: % | H4: £000s | I4: £000s
A5: 1 | B5: 02N | C5: =A5&B5 -> 102N | D5: NHS Airedale, Wharfedale and Craven CCG | E5: E08000032 | F5: Bradford | G5: 0.7010309278 | H5: 6859.255764 | I5: 4808.550432
A6: 2 | B6: 02N | C6: =A6&B6 -> 202N | D6: NHS Airedale, Wharfedale and Craven CCG | E6: E10000023 | F6: North Yorkshire | G6: 0.2989690722 | H6: 6859.255764 | I6: 2050.705331
A7: 1 | B7: 09C | C7: 109C | D7: NHS Ashford CCG | E7: E10000016 | F7: Kent | G7: 1 | H7: 4878.124966 | I7: 4878.124966
A8: 1 | B8: 10Y | C8: 110Y | D8: NHS Aylesbury Vale CCG | E8: E10000002 | F8: Buckinghamshire | G8: 0.96 | H8: 7372.073138 | I8: 7077.190212
A9: 2 | B9: 10Y | C9: 210Y | D9: NHS Aylesbury Vale CCG | E9: E10000025 | F9: Oxfordshire | G9: 0.04 | H9: 7372.073138 | I9: 294.8829255
A10: 1 | B10: 07L | C10: 107L | D10: NHS Barking and Dagenham CCG | E10: E09000002 | F10: Barking and Dagenham | G10: 1 | H10: 8870.245812 | I10: 8870.245812
A11: 1 | B11: 07M | C11: 107M | D11: NHS Barnet CCG | E11: E09000003 | F11: Barnet | G11: 1 | H11: 14905.8749 | I11: 14905.8749
A12: 1 | B12: 02P | C12: 102P | D12: NHS Barnsley CCG | E12: E08000016 | F12: Barnsley | G12: 1 | H12: 12681.63015 | I12: 12681.63015
A13: 1 | B13: 99E | C13: 199E | D13: NHS Basildon and Brentwood CCG | E13: E10000012 | F13: Essex | G13: 1 | H13: 11187.62556 | I13: 11187.62556
A14: 1 | B14: 02Q | C14: 102Q | D14: NHS Bassetlaw CCG | E14: E10000024 | F14: Nottinghamshire | G14: 1 | H14: 5249.551059 | I14: 5249.551059
A15: 1 | B15: 11E | C15: 111E | D15: NHS Bath and North East Somerset CCG | E15: E06000022 | F15: Bath and North East Somerset | G15: 1 | H15: 7746.481562 | I15: 7746.481562
A16: 1 | B16: 06F | C16: 106F | D16: NHS Bedfordshire CCG | E16: E06000055 | F16: Bedford | G16: 0.3961538462 | H16: 16535.48578 | I16: 6550.596288
A17: 2 | B17: 06F | C17: 206F | D17: NHS Bedfordshire CCG | E17: E06000056 | F17: Central Bedfordshire | G17: 0.6038461538 | H17: 16535.48578 | I17: 9984.889488
A18: 1 | B18: 07N | C18: 107N | D18: NHS Bexley CCG | E18: E09000004 | F18: Bexley | G18: 1 | H18: 9452.986295 | I18: 9452.986295
A19: 1 | B19: 13P | C19: 113P | D19: NHS Birmingham CrossCity CCG | E19: E08000025 | F19: Birmingham | G19: 1 | H19: 31453.93678 | I19: 31453.93678
A20: 1 | B20: 04X | C20: 104X | D20: NHS Birmingham South and Central CCG | E20: E08000025 | F20: Birmingham | G20: 1 | H20: 9829.047579 | I20: 9829.047579
A21: 1 | B21: 00Q | C21: 100Q | D21: NHS Blackburn with Darwen CCG | E21: E06000008 | F21: Blackburn with Darwen | G21: 1 | H21: 7302.509346 | I21: 7302.509346
A22: 1 | B22: 00R | C22: 100R | D22: NHS Blackpool CCG | E22: E06000009 | F22: Blackpool | G22: 1 | H22: 8289.912754 | I22: 8289.912754
A23: 1 | B23: 00T | C23: 100T | D23: NHS Bolton CCG | E23: E08000001 | F23: Bolton | G23: 1 | H23: 12589.07007 | I23: 12589.07007
A24: 1 | B24: 10G | C24: 110G | D24: NHS Bracknell and Ascot CCG | E24: E06000036 | F24: Bracknell Forest | G24: 0.8823529412 | H24: 5027.313429 | I24: 4435.86479
A25: 2 | B25: 10G | C25: 210G | D25: NHS Bracknell and Ascot CCG | E25: E06000040 | F25: Windsor and Maidenhead | G25: 0.1176470588 | H25: 5027.313429 | I25: 591.4486387
A26: 1 | B26: 02W | C26: 102W | D26: NHS Bradford City CCG | E26: E08000032 | F26: Bradford | G26: 1 | H26: 4244.756703 | I26: 4244.756703
A27: 1 | B27: 02R | C27: 102R | D27: NHS Bradford Districts CCG | E27: E08000032 | F27: Bradford | G27: 1 | H27: 14555.25327 | I27: 14555.25327
A28: 1 | B28: 07P | C28: 107P | D28: NHS Brent CCG | E28: E09000005 | F28: Brent | G28: 1 | H28: 13676.47143 | I28: 13676.47143
A29: 1 | B29: 09D | C29: 109D | D29: NHS Brighton and Hove CCG | E29: E06000043 | F29: Brighton and Hove | G29: 1 | H29: 12433.23424 | I29: 12433.23424
A30: 1 | B30: 11H | C30: 111H | D30: NHS Bristol CCG | E30: E06000023 | F30: Bristol, City of | G30: 1 | H30: 18627.53776 | I30: 18627.53776
A31: 1 | B31: 07Q | C31: 107Q | D31: NHS Bromley CCG | E31: E09000006 | F31: Bromley | G31: 1 | H31: 13775.71481 | I31: 13775.71481
A32: 1 | B32: 00V | C32: 100V | D32: NHS Bury CCG | E32: E08000002 | F32: Bury | G32: 1 | H32: 7983.954238 | I32: 7983.954238
A33: 1 | B33: 02T | C33: 102T | D33: NHS Calderdale CCG | E33: E08000033 | F33: Calderdale | G33: 1 | H33: 9626.787979 | I33: 9626.787979
A34: 1 | B34: 06H | C34: 106H | D34: NHS Cambridgeshire and Peterborough CCG | E34: E06000031 | F34: Peterborough | G34: 0.2209072978 | H34: 32176.45162 | I34: 7108.012981
A35: 2 | B35: 06H | C35: 206H | D35: NHS Cambridgeshire and Peterborough CCG | E35: E10000003 | F35: Cambridgeshire | G35: 0.7396449704 | H35: 32176.45162 | I35: 23799.1506
A36: 3 | B36: 06H | C36: 306H | D36: NHS Cambridgeshire and Peterborough CCG | E36: E10000015 | F36: Hertfordshire | G36: 0.02169625247 | H36: 32176.45162 | I36: 698.1084177
A37: 4 | B37: 06H | C37: 406H | D37: NHS Cambridgeshire and Peterborough CCG | E37: E10000021 | F37: Northamptonshire | G37: 0.01775147929 | H37: 32176.45162 | I37: 571.1796145
A38: 1 | B38: 07R | C38: 107R | D38: NHS Camden CCG | E38: E09000007 | F38: Camden | G38: 1 | H38: 12276.57198 | I38: 12276.57198
A39: 1 | B39: 04Y | C39: 104Y | D39: NHS Cannock Chase CCG | E39: E10000028 | F39: Staffordshire | G39: 1 | H39: 5527.015729 | I39: 5527.015729
A40: 1 | B40: 09E | C40: 109E | D40: NHS Canterbury and Coastal CCG | E40: E10000016 | F40: Kent | G40: 1 | H40: 8836.290346 | I40: 8836.290346
A41: 1 | B41: 99F | C41: 199F | D41: NHS Castle Point and Rochford CCG | E41: E10000012 | F41: Essex | G41: 1 | H41: 7410.98718 | I41: 7410.98718
A42: 1 | B42: 09A | C42: 109A | D42: NHS Central London (Westminster) CCG | E42: E09000033 | F42: Westminster | G42: 1 | H42: 9099.058945 | I42: 9099.058945
A43: 1 | B43: 00W | C43: 100W | D43: NHS Central Manchester CCG | E43: E08000003 | F43: Manchester | G43: 1 | H43: 8620.412628 | I43: 8620.412628
A44: 1 | B44: 10H | C44: 110H | D44: NHS Chiltern CCG | E44: E10000002 | F44: Buckinghamshire | G44: 1 | H44: 11405.9107 | I44: 11405.9107
A45: 1 | B45: 00X | C45: 100X | D45: NHS Chorley and South Ribble CCG | E45: E10000017 | F45: Lancashire | G45: 1 | H45: 7919.277159 | I45: 7919.277159
A46: 1 | B46: 07T | C46: 107T | D46: NHS City and Hackney CCG | E46: E09000001 | F46: City of London | G46: 0.04 | H46: 12718.42423 | I46: 508.736969
A47: 2 | B47: 07T | C47: 207T | D47: NHS City and Hackney CCG | E47: E09000012 | F47: Hackney | G47: 0.96 | H47: 12718.42423 | I47: 12209.68726
A48: 1 | B48: 09G | C48: 109G | D48: NHS Coastal West Sussex CCG | E48: E10000032 | F48: West Sussex | G48: 1 | H48: 22280.67885 | I48: 22280.67885
A49: 1 | B49: 03V | C49: 103V | D49: NHS Corby CCG | E49: E10000021 | F49: Northamptonshire | G49: 1 | H49: 2912.947849 | I49: 2912.947849
A50: 1 | B50: 05A | C50: 105A | D50: NHS Coventry and Rugby CCG | E50: E08000026 | F50: Coventry | G50: 0.76171875 | H50: 19257.56438 | I50: 14668.84787
A51: 2 | B51: 05A | C51: 205A | D51: NHS Coventry and Rugby CCG | E51: E10000031 | F51: Warwickshire | G51: 0.23828125 | H51: 19257.56438 | I51: 4588.716512
A52: 1 | B52: 09H | C52: 109H | D52: NHS Crawley CCG | E52: E10000032 | F52: West Sussex | G52: 1 | H52: 5265.504739 | I52: 5265.504739
A53: 1 | B53: 07V | C53: 107V | D53: NHS Croydon CCG | E53: E09000008 | F53: Croydon | G53: 1 | H53: 15075.65224 | I53: 15075.65224
A54: 1 | B54: 01H | C54: 101H | D54: NHS Cumbria CCG | E54: E10000006 | F54: Cumbria | G54: 0.9907407407 | H54: 24751.16362 | I54: 24521.98618
A55: 2 | B55: 01H | C55: 201H | D55: NHS Cumbria CCG | E55: E10000023 | F55: North Yorkshire | G55: 0.009259259259 | H55: 24751.16362 | I55: 229.1774409
A56: 1 | B56: 00C | C56: 100C | D56: NHS Darlington CCG | E56: E06000005 | F56: Darlington | G56: 1 | H56: 4877.621922 | I56: 4877.621922
A57: 1 | B57: 09J | C57: 109J | D57: NHS Dartford, Gravesham and Swanley CCG | E57: E10000016 | F57: Kent | G57: 1 | H57: 10154.44515 | I57: 10154.44515
A58: 1 | B58: 02X | C58: 102X | D58: NHS Doncaster CCG | E58: E08000017 | F58: Doncaster | G58: 1 | H58: 15157.54061 | I58: 15157.54061
A59: 1 | B59: 11J | C59: 111J | D59: NHS Dorset CCG | E59: E06000028 | F59: Bournemouth | G59: 0.2433628319 | H59: 33580.08796 | I59: 8172.1453
A60: 2 | B60: 11J | C60: 211J | D60: NHS Dorset CCG | E60: E10000009 | F60: Dorset | G60: 0.5508849558 | H60: 33580.08796 | I60: 18498.76527
A61: 1 | B61: 05C | C61: 105C | D61: NHS Dudley CCG | E61: E08000027 | F61: Dudley | G61: 1 | H61: 13532.45713 | I61: 13532.45713
A62: 1 | B62: 00D | C62: 100D | D62: NHS Durham Dales, Easington and Sedgefield CCG | E62: E06000047 | F62: County Durham | G62: 1 | H62: 14819.96218 | I62: 14819.96218
A63: 1 | B63: 07W | C63: 107W | D63: NHS Ealing CCG | E63: E09000009 | F63: Ealing | G63: 1 | H63: 15786.20182 | I63: 15786.20182
A64: 1 | B64: 06K | C64: 106K | D64: NHS East and North Hertfordshire CCG | E64: E10000015 | F64: Hertfordshire | G64: 1 | H64: 22362.74688 | I64: 22362.74688
A65: 1 | B65: 01A | C65: 101A | D65: NHS East Lancashire CCG | E65: E10000017 | F65: Lancashire | G65: 1 | H65: 17932.15137 | I65: 17932.15137
A66: 1 | B66: 03W | C66: 103W | D66: NHS East Leicestershire and Rutland CCG | E66: E06000017 | F66: Rutland | G66: 0.1197916667 | H66: 11888.43764 | I66: 1424.135759
A67: 2 | B67: 03W | C67: 203W | D67: NHS East Leicestershire and Rutland CCG | E67: E10000018 | F67: Leicestershire | G67: 0.8802083333 | H67: 11888.43764 | I67: 10464.30188
A68: 1 | B68: 02Y | C68: 102Y | D68: NHS East Riding of Yorkshire CCG | E68: E06000011 | F68: East Riding of Yorkshire | G68: 1 | H68: 12995.13433 | I68: 12995.13433
A69: 1 | B69: 05D | C69: =A69&B69 -> 105D | D69: NHS East Staffordshire CCG | E69: E10000028 | F69: Staffordshire | G69: 1 | H69: 5112.687173 | I69: 5112.687173
A70: 1 | B70: 09L | C70: 109L | D70: NHS East Surrey CCG | E70: E10000030 | F70: Surrey | G70: 1 | H70: 6685.094762 | I70: 6685.094762
A71: 1 | B71: 09F | C71: 109F | D71: NHS Eastbourne, Hailsham and Seaford CCG | E71: E10000011 | F71: East Sussex | G71: 1 | H71: 8642.223177 | I71: 8642.223177
A72: 1 | B72: 01C | C72: 101C | D72: NHS Eastern Cheshire CCG | E72: E06000049 | F72: Cheshire East | G72: 1 | H72: 8145.754731 | I72: 8145.754731
A73: 1 | B73: 07X | C73: 107X | D73: NHS Enfield CCG | E73: E09000010 | F73: Enfield | G73: 1 | H73: 12566.28936 | I73: 12566.28936
A74: 1 | B74: 03X | C74: 103X | D74: NHS Erewash CCG | E74: E10000007 | F74: Derbyshire | G74: 1 | H74: 4200.560699 | I74: 4200.560699
A75: 1 | B75: 10K | C75: 110K | D75: NHS Fareham and Gosport CCG | E75: E10000014 | F75: Hampshire | G75: 1 | H75: 7575.949664 | I75: 7575.949664
A76: 1 | B76: 02M | C76: 102M | D76: NHS Fylde and Wyre CCG | E76: E10000017 | F76: Lancashire | G76: 1 | H76: 7281.237773 | I76: 7281.237773
A77: 1 | B77: 00F | C77: 100F | D77: NHS Gateshead CCG | E77: E08000020 | F77: Gateshead | G77: 1 | H77: 10483.68741 | I77: 10483.68741
A78: 1 | B78: 11M | C78: 111M | D78: NHS Gloucestershire CCG | E78: E10000013 | F78: Gloucestershire | G78: 1 | H78: 24393.03226 | I78: 24393.03226
A79: 1 | B79: 06M | C79: 106M | D79: NHS Great Yarmouth and Waveney CCG | E79: E10000020 | F79: Norfolk | G79: 0.4552238806 | H79: 10869.73771 | I79: 4948.164183
A80: 2 | B80: 06M | C80: 206M | D80: NHS Great Yarmouth and Waveney CCG | E80: E10000029 | F80: Suffolk | G80: 0.5447761194 | H80: 10869.73771 | I80: 5921.57353
A81: 1 | B81: 03A | C81: 103A | D81: NHS Greater Huddersfield CCG | E81: E08000034 | F81: Kirklees | G81: 1 | H81: 9957.467512 | I81: 9957.467512
A82: 1 | B82: 01E | C82: 101E | D82: NHS Greater Preston CCG | E82: E10000017 | F82: Lancashire | G82: 1 | H82: 8940.456375 | I82: 8940.456375
A83: 1 | B83: 08A | C83: 108A | D83: NHS Greenwich CCG | E83: E09000011 | F83: Greenwich | G83: 1 | H83: 11913.23052 | I83: 11913.23052
A84: 1 | B84: 09N | C84: 109N | D84: NHS Guildford and Waverley CCG | E84: E10000030 | F84: Surrey | G84: 0.96875 | H84: 8286.499241 | I84: 8027.54614
A85: 2 | B85: 09N | C85: 209N | D85: NHS Guildford and Waverley CCG | E85: E10000032 | F85: West Sussex | G85: 0.03125 | H85: 8286.499241 | I85: 258.9531013
A86: 1 | B86: 01F | C86: 101F | D86: NHS Halton CCG | E86: E06000006 | F86: Halton | G86: 1 | H86: 6521.353957 | I86: 6521.353957
A87: 1 | B87: 03D | C87: 103D | D87: NHS Hambleton, Richmondshire and Whitby CCG | E87: E10000023 | F87: North Yorkshire | G87: 1 | H87: 6322.867187 | I87: 6322.867187
A88: 1 | B88: 08C | C88: 108C | D88: NHS Hammersmith and Fulham CCG | E88: E09000013 | F88: Hammersmith and Fulham | G88: 1 | H88: 8938.551994 | I88: 8938.551994
A89: 1 | B89: 03Y | C89: 103Y | D89: NHS Hardwick CCG | E89: E10000007 | F89: Derbyshire | G89: 1 | H89: 4892.461719 | I89: 4892.461719
A90: 1 | B90: 08D | C90: 108D | D90: NHS Haringey CCG | E90: E09000014 | F90: Haringey | G90: 1 | H90: 11210.26254 | I90: 11210.26254
A91: 1 | B91: 03E | C91: 103E | D91: NHS Harrogate and Rural District CCG | E91: E10000023 | F91: North Yorkshire | G91: 1 | H91: 6460.198185 | I91: 6460.198185
A92: 1 | B92: 08E | C92: 108E | D92: NHS Harrow CCG | E92: E09000015 | F92: Harrow | G92: 1 | H92: 8737.6578 | I92: 8737.6578
A93: 1 | B93: 00K | C93: 100K | D93: NHS Hartlepool and Stockton-on-Tees CCG | E93: E06000001 | F93: Hartlepool | G93: 0.3258426966 | H93: 13362.06896 | I93: 4353.932582
A94: 2 | B94: 00K | C94: 200K | D94: NHS Hartlepool and Stockton-on-Tees CCG | E94: E06000004 | F94: Stockton-on-Tees | G94: 0.6741573034 | H94: 13362.06896 | I94: 9008.136376
A95: 1 | B95: 09P | C95: 109P | D95: NHS Hastings and Rother CCG | E95: E10000011 | F95: East Sussex | G95: 1 | H95: 9189.750583 | I95: 9189.750583
A96: 1 | B96: 08F | C96: 108F | D96: NHS Havering CCG | E96: E09000016 | F96: Havering | G96: 1 | H96: 10885.26021 | I96: 10885.26021
A97: 1 | B97: 05F | C97: 105F | D97: NHS Herefordshire CCG | E97: E06000019 | F97: Herefordshire, County of | G97: 1 | H97: 7658.269213 | I97: 7658.269213
A98: 1 | B98: 06N | C98: 106N | D98: NHS Herts Valleys CCG | E98: E10000015 | F98: Hertfordshire | G98: 1 | H98: 23579.43053 | I98: 23579.43053
A99: 1 | B99: 01D | C99: 101D | D99: NHS Heywood, Middleton and Rochdale CCG | E99: E08000005 | F99: Rochdale | G99: 1 | H99: 10044.67377 | I99: 10044.67377
A100: 1 | B100: 99K | C100: 199K | D100: NHS High Weald Lewes Havens CCG | E100: E10000011 | F100: East Sussex | G100: 1 | H100: 6867.520057 | I100: 6867.520057
A101: 1 | B101: 08G | C101: 108G | D101: NHS Hillingdon CCG | E101: E09000017 | F101: Hillingdon | G101: 1 | H101: 10869.98924 | I101: 10869.98924
A102: 1 | B102: 09X | C102: 109X | D102: NHS Horsham and Mid Sussex CCG | E102: E10000032 | F102: West Sussex | G102: 1 | H102: 8604.0637 | I102: 8604.0637
A103: 1 | B103: 07Y | C103: 107Y | D103: NHS Hounslow CCG | E103: E09000018 | F103: Hounslow | G103: 1 | H103: 10707.93722 | I103: 10707.93722
A104: 1 | B104: 03F | C104: 103F | D104: NHS Hull CCG | E104: E06000010 | F104: Kingston upon Hull, City of | G104: 1 | H104: 13164.94759 | I104: 13164.94759
A105: 1 | B105: 06L | C105: 106L | D105: NHS Ipswich and East Suffolk CCG | E105: E10000029 | F105: Suffolk | G105: 1 | H105: 14817.3751 | I105: 14817.3751
A106: 1 | B106: 10L | C106: 110L | D106: NHS Isle of Wight CCG | E106: E06000046 | F106: Isle of Wight | G106: 1 | H106: 7290.759676 | I106: 7290.759676
A107: 1 | B107: 08H | C107: 108H | D107: NHS Islington CCG | E107: E09000019 | F107: Islington | G107: 1 | H107: 11087.41202 | I107: 11087.41202
A108: 1 | B108: 11N | C108: 111N | D108: NHS Kernow CCG | E108: E06000052 | F108: Cornwall | G108: 0.996941896 | H108: 25109.22311 | I108: 25032.4365
A109: 2 | B109: 11N | C109: 211N | D109: NHS Kernow CCG | E109: E06000053 | F109: Isles of Scilly | G109: 0.003058103976 | H109: 25109.22311 | I109: 76.78661502
A110: 1 | B110: 08J | C110: 108J | D110: NHS Kingston CCG | E110: E09000021 | F110: Kingston upon Thames | G110: 1 | H110: 7255.11542 | I110: 7255.11542
A111: 1 | B111: 01J | C111: 101J | D111: NHS Knowsley CCG | E111: E08000011 | F111: Knowsley | G111: 1 | H111: 8941.749916 | I111: 8941.749916
A112: 1 | B112: 08K | C112: 108K | D112: NHS Lambeth CCG | E112: E09000022 | F112: Lambeth | G112: 1 | H112: 15090.99508 | I112: 15090.99508
A113: 1 | B113: 01K | C113: 101K | D113: NHS Lancashire North CCG | E113: E10000017 | F113: Lancashire | G113: 1 | H113: 7149.835507 | I113: 7149.835507
A114: 1 | B114: 02V | C114: 102V | D114: NHS Leeds North CCG | E114: E08000035 | F114: Leeds | G114: 1 | H114: 8509.778891 | I114: 8509.778891
A115: 1 | B115: 03G | C115: 103G | D115: NHS Leeds South and East CCG | E115: E08000035 | F115: Leeds | G115: 1 | H115: 12471.53744 | I115: 12471.53744
A116: 1 | B116: 03C | C116: 103C | D116: NHS Leeds West CCG | E116: E08000035 | F116: Leeds | G116: 1 | H116: 13966.08101 | I116: 13966.08101
A117: 1 | B117: 04C | C117: 104C | D117: NHS Leicester City CCG | E117: E06000016 | F117: Leicester | G117: 1 | H117: 14171.32294 | I117: 14171.32294
A118: 1 | B118: 08L | C118: 108L | D118: NHS Lewisham CCG | E118: E09000023 | F118: Lewisham | G118: 1 | H118: 13470.18747 | I118: 13470.18747
A119: 1 | B119: 03T | C119: 103T | D119: NHS Lincolnshire East CCG | E119: E10000019 | F119: Lincolnshire | G119: 1 | H119: 11372.13489 | I119: 11372.13489
A120: 1 | B120: 04D | C120: 104D | D120: NHS Lincolnshire West CCG | E120: E10000019 | F120: Lincolnshire | G120: 1 | H120: 9462.11295 | I120: 9462.11295
A121: 1 | B121: 99A | C121: 199A | D121: NHS Liverpool CCG | E121: E08000012 | F121: Liverpool | G121: 1 | H121: 26278.15352 | I121: 26278.15352
A122: 1 | B122: 06P | C122: 106P | D122: NHS Luton CCG | E122: E06000032 | F122: Luton | G122: 1 | H122: 8385.922285 | I122: 8385.922285
A123: 1 | B123: 04E | C123: 104E | D123: NHS Mansfield and Ashfield CCG | E123: E10000024 | F123: Nottinghamshire | G123: 1 | H123: 8481.788089 | I123: 8481.788089
A124: 1 | B124: 09W | C124: 109W | D124: NHS Medway CCG | E124: E06000035 | F124: Medway | G124: 1 | H124: 11580.0717 | I124: 11580.0717
A125: 1 | B125: 08R | C125: 108R | D125: NHS Merton CCG | E125: E09000024 | F125: Merton | G125: 1 | H125: 7826.285892 | I125: 7826.285892
A126: 1 | B126: 06Q | C126: 106Q | D126: NHS Mid Essex CCG | E126: E10000012 | F126: Essex | G126: 1 | H126: 14370.9236 | I126: 14370.9236
A127: 1 | B127: 04F | C127: 104F | D127: NHS Milton Keynes CCG | E127: E06000042 | F127: Milton Keynes | G127: 0.9743589744 | H127: 9529.844224 | I127: 9285.489244
A128: 2 | B128: 04F | C128: 204F | D128: NHS Milton Keynes CCG | E128: E10000002 | F128: Buckinghamshire | G128: 0.02564102564 | H128: 9529.844224 | I128: 244.3549801
A129: 1 | B129: 04G | C129: 104G | D129: NHS Nene CCG | E129: E10000021 | F129: Northamptonshire | G129: 1 | H129: 24665.61021 | I129: 24665.61021
A130: 1 | B130: 04H | C130: 104H | D130: NHS Newark and Sherwood CCG | E130: E10000024 | F130: Nottinghamshire | G130: 1 | H130: 5408.944127 | I130: 5408.944127
A131: 1 | B131: 10M | C131: 110M | D131: NHS Newbury and District CCG | E131: E06000037 | F131: West Berkshire | G131: 1 | H131: 4183.133819 | I131: 4183.133819
A132: 1 | B132: 00G | C132: 100G | D132: NHS Newcastle North and East CCG | E132: E08000021 | F132: Newcastle upon Tyne | G132: 1 | H132: 6350.247151 | I132: 6350.247151
A133: 1 | B133: 00H | C133: =A133&B133 -> 100H | D133: NHS Newcastle West CCG | E133: E08000021 | F133: Newcastle upon Tyne | G133: 1 | H133: 6698.137973 | I133: 6698.137973
A134: 1 | B134: 08M | C134: 108M | D134: NHS Newham CCG | E134: E09000025 | F134: Newham | G134: 1 | H134: 14309.5163 | I134: 14309.5163
A135: 1 | B135: 10N | C135: 110N | D135: NHS North and West Reading CCG | E135: E06000037 | F135: West Berkshire | G135: 0.5 | H135: 4097.328894 | I135: 2048.664447
A136: 2 | B136: 10N | C136: 210N | D136: NHS North and West Reading CCG | E136: E06000038 | F136: Reading | G136: 0.5 | H136: 4097.328894 | I136: 2048.664447
A137: 1 | B137: 04J | C137: 104J | D137: NHS North Derbyshire CCG | E137: E10000007 | F137: Derbyshire | G137: 1 | H137: 13513.70078 | I137: 13513.70078
A138: 1 | B138: 00J | C138: 100J | D138: NHS North Durham CCG | E138: E06000047 | F138: County Durham | G138: 1 | H138: 11436.56045 | I138: 11436.56045
A139: 1 | B139: 06T | C139: 106T | D139: NHS North East Essex CCG | E139: E10000012 | F139: Essex | G139: 1 | H139: 14951.00513 | I139: 14951.00513
A140: 1 | B140: 99M | C140: 199M | D140: NHS North East Hampshire and Farnham CCG | E140: E10000014 | F140: Hampshire | G140: 0.7769230769 | H140: 8300.512608 | I140: 6448.859796
A141: 2 | B141: 99M | C141: 299M | D141: NHS North East Hampshire and Farnham CCG | E141: E10000030 | F141: Surrey | G141: 0.2230769231 | H141: 8300.512608 | I141: 1851.652813
A142: 1 | B142: 03H | C142: 103H | D142: NHS North East Lincolnshire CCG | E142: E06000012 | F142: North East Lincolnshire | G142: 1 | H142: 7672.210716 | I142: 7672.210716
A143: 1 | B143: 10J | C143: 110J | D143: NHS North Hampshire CCG | E143: E10000014 | F143: Hampshire | G143: 1 | H143: 7802.355372 | I143: 7802.355372
A144: 1 | B144: 03J | C144: 103J | D144: NHS North Kirklees CCG | E144: E08000034 | F144: Kirklees | G144: 1 | H144: 8073.244539 | I144: 8073.244539
A145: 1 | B145: 03K | C145: 103K | D145: NHS North Lincolnshire CCG | E145: E06000013 | F145: North Lincolnshire | G145: 1 | H145: 7518.782312 | I145: 7518.782312
A146: 1 | B146: 01M | C146: 101M | D146: NHS North Manchester CCG | E146: E08000003 | F146: Manchester | G146: 1 | H146: 9276.130415 | I146: 9276.130415
A147: 1 | B147: 06V | C147: 106V | D147: NHS North Norfolk CCG | E147: E10000020 | F147: Norfolk | G147: 1 | H147: 7743.607025 | I147: 7743.607025
A148: 1 | B148: 11T | C148: 111T | D148: NHS North Somerset CCG | E148: E06000024 | F148: North Somerset | G148: 1 | H148: 8988.281482 | I148: 8988.281482
A149: 1 | B149: 05G | C149: 105G | D149: NHS North Staffordshire CCG | E149: E10000028 | F149: Staffordshire | G149: 1 | H149: 9278.933089 | I149: 9278.933089
A150: 1 | B150: 99C | C150: 199C | D150: NHS North Tyneside CCG | E150: E08000022 | F150: North Tyneside | G150: 1 | H150: 10507.11489 | I150: 10507.11489
A151: 1 | B151: 09Y | C151: 109Y | D151: NHS North West Surrey CCG | E151: E10000030 | F151: Surrey | G151: 1 | H151: 14333.08751 | I151: 14333.08751
A152: 1 | B152: 99P | C152: 199P | D152: NHS North, East, West Devon CCG | E152: E06000026 | F152: Plymouth | G152: 0.3060836502 | H152: 38761.26098 | I152: 11864.18825
A153: 2 | B153: 99P | C153: 299P | D153: NHS North, East, West Devon CCG | E153: E10000008 | F153: Devon | G153: 0.6939163498 | H153: 38761.26098 | I153: 26897.07273
A154: 1 | B154: 00L | C154: 100L | D154: NHS Northumberland CCG | E154: E06000057 | F154: Northumberland | G154: 1 | H154: 15293.36247 | I154: 15293.36247
A155: 1 | B155: 06W | C155: 106W | D155: NHS Norwich CCG | E155: E10000020 | F155: Norfolk | G155: 1 | H155: 7901.850279 | I155: 7901.850279
A156: 1 | B156: 04K | C156: 104K | D156: NHS Nottingham City CCG | E156: E06000018 | F156: Nottingham | G156: 1 | H156: 14316.95417 | I156: 14316.95417
A157: 1 | B157: 04L | C157: 104L | D157: NHS Nottingham North and East CCG | E157: E10000024 | F157: Nottinghamshire | G157: 1 | H157: 5992.151723 | I157: 5992.151723
A158: 1 | B158: 04M | C158: 104M | D158: NHS Nottingham West CCG | E158: E10000024 | F158: Nottinghamshire | G158: 1 | H158: 3871.030981 | I158: 3871.030981
A159: 1 | B159: 00Y | C159: 100Y | D159: NHS Oldham CCG | E159: E08000004 | F159: Oldham | G159: 1 | H159: 10892.19503 | I159: 10892.19503
A160: 1 | B160: 10Q | C160: 110Q | D160: NHS Oxfordshire CCG | E160: E10000025 | F160: Oxfordshire | G160: 1 | H160: 22849.40597 | I160: 22849.40597
A161: 1 | B161: 10R | C161: 110R | D161: NHS Portsmouth CCG | E161: E06000044 | F161: Portsmouth | G161: 1 | H161: 8970.710875 | I161: 8970.710875
A162: 1 | B162: 08N | C162: 108N | D162: NHS Redbridge CCG | E162: E09000026 | F162: Redbridge | G162: 1 | H162: 10917.02384 | I162: 10917.02384
A163: 1 | B163: 05J | C163: 105J | D163: NHS Redditch and Bromsgrove CCG | E163: E10000034 | F163: Worcestershire | G163: 1 | H163: 6676.075903 | I163: 6676.075903
A164: 1 | B164: 08P | C164: 108P | D164: NHS Richmond CCG | E164: E09000027 | F164: Richmond upon Thames | G164: 1 | H164: 7660.425115 | I164: 7660.425115
A165: 1 | B165: 03L | C165: 103L | D165: NHS Rotherham CCG | E165: E08000018 | F165: Rotherham | G165: 1 | H165: 12183.76037 | I165: 12183.76037
A166: 1 | B166: 04N | C166: 104N | D166: NHS Rushcliffe CCG | E166: E10000024 | F166: Nottinghamshire | G166: 1 | H166: 4568.321757 | I166: 4568.321757
A167: 1 | B167: 01G | C167: 101G | D167: NHS Salford CCG | E167: E08000006 | F167: Salford | G167: 1 | H167: 12040.78809 | I167: 12040.78809
A168: 1 | B168: 05L | C168: 105L | D168: NHS Sandwell and West Birmingham CCG | E168: E08000025 | F168: Birmingham | G168: 0.3309352518 | H168: 22003.6813 | I168: 7281.79381
A169: 2 | B169: 05L | C169: 205L | D169: NHS Sandwell and West Birmingham CCG | E169: E08000028 | F169: Sandwell | G169: 0.6690647482 | H169: 22003.6813 | I169: 14721.88749
A170: 1 | B170: 03M | C170: 103M | D170: NHS Scarborough and Ryedale CCG | E170: E10000023 | F170: North Yorkshire | G170: 1 | H170: 5483.035315 | I170: 5483.035315
A171: 1 | B171: 03N | C171: 103N | D171: NHS Sheffield CCG | E171: E08000019 | F171: Sheffield | G171: 1 | H171: 25383.84918 | I171: 25383.84918
A172: 1 | B172: 05N | C172: 105N | D172: NHS Shropshire CCG | E172: E06000051 | F172: Shropshire | G172: 1 | H172: 12907.2813 | I172: 12907.2813
A173: 1 | B173: 10T | C173: 110T | D173: NHS Slough CCG | E173: E06000039 | F173: Slough | G173: 1 | H173: 5705.560399 | I173: 5705.560399
A174: 1 | B174: 05P | C174: 105P | D174: NHS Solihull CCG | E174: E08000029 | F174: Solihull | G174: 1 | H174: 9730.235374 | I174: 9730.235374
A175: 1 | B175: 11X | C175: 111X | D175: NHS Somerset CCG | E175: E10000027 | F175: Somerset | G175: 1 | H175: 23620.03337 | I175: 23620.03337
A176: 1 | B176: 01R | C176: 101R | D176: NHS South Cheshire CCG | E176: E06000049 | F176: Cheshire East | G176: 1 | H176: 7298.305336 | I176: 7298.305336
A177: 1 | B177: 99Q | C177: 199Q | D177: NHS South Devon and Torbay CCG | E177: E06000027 | F177: Torbay | G177: 0.4917127072 | H177: 13698.60536 | I177: 6735.778326
A178: 2 | B178: 99Q | C178: 299Q | D178: NHS South Devon and Torbay CCG | E178: E10000008 | F178: Devon | G178: 0.5082872928 | H178: 13698.60536 | I178: 6962.827033
A179: 1 | B179: 05Q | C179: 105Q | D179: NHS South East Staffs and Seisdon Peninsular CCG | E179: E10000028 | F179: Staffordshire | G179: 1 | H179: 8098.504531 | I179: 8098.504531
A180: 1 | B180: 10V | C180: 110V | D180: NHS South Eastern Hampshire CCG | E180: E10000014 | F180: Hampshire | G180: 1 | H180: 8133.717608 | I180: 8133.717608
A181: 1 | B181: 12A | C181: 112A | D181: NHS South Gloucestershire CCG | E181: E06000025 | F181: South Gloucestershire | G181: 1 | H181: 9239.192617 | I181: 9239.192617
A182: 1 | B182: 10A | C182: 110A | D182: NHS South Kent Coast CCG | E182: E10000016 | F182: Kent | G182: 1 | H182: 9399.376183 | I182: 9399.376183
A183: 1 | B183: 99D | C183: 199D | D183: NHS South Lincolnshire CCG | E183: E10000019 | F183: Lincolnshire | G183: 1 | H183: 6722.679331 | I183: 6722.679331
A184: 1 | B184: 01N | C184: 101N | D184: NHS South Manchester CCG | E184: E08000003 | F184: Manchester | G184: 1 | H184: 7521.117873 | I184: 7521.117873
A185: 1 | B185: 06Y | C185: 106Y | D185: NHS South Norfolk CCG | E185: E10000020 | F185: Norfolk | G185: 1 | H185: 8822.348842 | I185: 8822.348842
A186: 1 | B186: 10W | C186: 110W | D186: NHS South Reading CCG | E186: E06000038 | F186: Reading | G186: 1 | H186: 4417.121119 | I186: 4417.121119
A187: 1 | B187: 01T | C187: 101T | D187: NHS South Sefton CCG | E187: E08000014 | F187: Sefton | G187: 1 | H187: 8282.115573 | I187: 8282.115573
A188: 1 | B188: 00M | C188: 100M | D188: NHS South Tees CCG | E188: E06000002 | F188: Middlesbrough | G188: 0.4942528736 | H188: 14069.0613 | I188: 6953.673974
A189: 2 | B189: 00M | C189: 200M | D189: NHS South Tees CCG | E189: E06000003 | F189: Redcar and Cleveland | G189: 0.5057471264 | H189: 14069.0613 | I189: 7115.387322
A190: 1 | B190: 00N | C190: 100N | D190: NHS South Tyneside CCG | E190: E08000023 | F190: South Tyneside | G190: 1 | H190: 8320.131322 | I190: 8320.131322
A191: 1 | B191: 05R | C191: 105R | D191: NHS South Warwickshire CCG | E191: E10000031 | F191: Warwickshire | G191: 1 | H191: 10696.76246 | I191: 10696.76246
A192: 1 | B192: 04Q | C192: 104Q | D192: NHS South West Lincolnshire CCG | E192: E10000019 | F192: Lincolnshire | G192: 1 | H192: 5405.925864 | I192: 5405.925864
A193: 1 | B193: 05T | C193: 105T | D193: NHS South Worcestershire CCG | E193: E10000034 | F193: Worcestershire | G193: 1 | H193: 11280.86835 | I193: 11280.86835
A194: 1 | B194: 10X | C194: 110X | D194: NHS Southampton CCG | E194: E06000045 | F194: Southampton | G194: 1 | H194: 10240.07042 | I194: 10240.07042
A195: 1 | B195: 99G | C195: 199G | D195: NHS Southend CCG | E195: E06000033 | F195: Southend-on-Sea | G195: 1 | H195: 7842.562957 | I195: 7842.562957
A196: 1 | B196: 04R | C196: 104R | D196: NHS Southern Derbyshire CCG | E196: E06000015 | F196: Derby | G196: 0.4808917197 | H196: 22045.07463 | I196: 10601.29385
A197: 2 | B197: 04R | C197: =A197&B197 -> 204R | D197: NHS Southern Derbyshire CCG | E197: E10000007 | F197: Derbyshire | G197: 0.5191082803 | H197: 22045.07463 | I197: 11443.78078
A198: 1 | B198: 01V | C198: 101V | D198: NHS Southport and Formby CCG | E198: E08000014 | F198: Sefton | G198: 1 | H198: 5960.891134 | I198: 5960.891134
A199: 1 | B199: 08Q | C199: 108Q | D199: NHS Southwark CCG | E199: E09000028 | F199: Southwark | G199: 1 | H199: 13278.99484 | I199: 13278.99484
A200: 1 | B200: 01X | C200: 101X | D200: NHS St Helens CCG | E200: E08000013 | F200: St. Helens | G200: 1 | H200: 9771.269388 | I200: 9771.269388
A201: 1 | B201: 05V | C201: 105V | D201: NHS Stafford and Surrounds CCG | E201: E10000028 | F201: Staffordshire | G201: 1 | H201: 5656.693272 | I201: 5656.693272
... 46 more rows

Sheet LONG TERM CONDITION (hidden)
A1: Lookup | B1: Period | C1: CCGCode | D1: CCGName | E1: IndicatorValue | F1: AverageHealthStatusForRespondents | G1: Denominator | H1: Numerator
A2: 00C_2013-14 | B2: July 2013 to March 2014 | C2: 00C | D2: NHS Darlington CCG | E2: 0.74 | F2: 0.81 | G2: 933.2 | H2: 680.2
A3: 00D_2013-14 | B3: July 2013 to March 2014 | C3: 00D | D3: NHS Durham Dales, Easington and Sedgefield CCG | E3: 0.67 | F3: 0.77 | G3: 2495.7 | H3: 1658.7
A4: 00F_2013-14 | B4: July 2013 to March 2014 | C4: 00F | D4: NHS Gateshead CCG | E4: 0.71 | F4: 0.79 | G4: 1723.5 | H4: 1191.6
A5: 00G_2013-14 | B5: July 2013 to March 2014 | C5: 00G | D5: NHS Newcastle North and East CCG | E5: 0.72 | F5: 0.8 | G5: 1116.6 | H5: 798.2
A6: 00H_2013-14 | B6: July 2013 to March 2014 | C6: 00H | D6: NHS Newcastle West CCG | E6: 0.68 | F6: 0.78 | G6: 1084.1 | H6: 735.6
A7: 00J_2013-14 | B7: July 2013 to March 2014 | C7: 00J | D7: NHS North Durham CCG | E7: 0.7 | F7: 0.79 | G7: 2099.5 | H7: 1469.9
A8: 00K_2013-14 | B8: July 2013 to March 2014 | C8: 00K | D8: NHS Hartlepool and Stockton-On-Tees CCG | E8: 0.71 | F8: 0.79 | G8: 2454.6 | H8: 1729
A9: 00L_2013-14 | B9: July 2013 to March 2014 | C9: 00L | D9: NHS Northumberland CCG | E9: 0.73 | F9: 0.82 | G9: 2797.1 | H9: 2013.4
A10: 00M_2013-14 | B10: July 2013 to March 2014 | C10: 00M | D10: NHS South Tees CCG | E10: 0.7 | F10: 0.79 | G10: 2446.5 | H10: 1681.8
A11: 00N_2013-14 | B11: July 2013 to March 2014 | C11: 00N | D11: NHS South Tyneside CCG | E11: 0.67 | F11: 0.77 | G11: 1382.5 | H11: 910.4
A12: 00P_2013-14 | B12: July 2013 to March 2014 | C12: 00P | D12: NHS Sunderland CCG | E12: 0.69 | F12: 0.78 | G12: 2454.8 | H12: 1659.6
A13: 00Q_2013-14 | B13: July 2013 to March 2014 | C13: 00Q | D13: NHS Blackburn with Darwen CCG | E13: 0.69 | F13: 0.78 | G13: 1259.6 | H13: 858.1
A14: 00R_2013-14 | B14: July 2013 to March 2014 | C14: 00R | D14: NHS Blackpool CCG | E14: 0.65 | F14: 0.75 | G14: 1649.6 | H14: 1076.6
A15: 00T_2013-14 | B15: July 2013 to March 2014 | C15: 00T | D15: NHS Bolton CCG | E15: 0.71 | F15: 0.79 | G15: 2337.5 | H15: 1642.6
A16: 00V_2013-14 | B16: July 2013 to March 2014 | C16: 00V | D16: NHS Bury CCG | E16: 0.73 | F16: 0.81 | G16: 1535.1 | H16: 1110.2
A17: 00W_2013-14 | B17: July 2013 to March 2014 | C17: 00W | D17: NHS Central Manchester CCG | E17: 0.69 | F17: 0.76 | G17: 1454.2 | H17: 1021.3
A18: 00X_2013-14 | B18: July 2013 to March 2014 | C18: 00X | D18: NHS Chorley and South Ribble CCG | E18: 0.74 | F18: 0.82 | G18: 1494.7 | H18: 1102.1
A19: 00Y_2013-14 | B19: July 2013 to March 2014 | C19: 00Y | D19: NHS Oldham CCG | E19: 0.71 | F19: 0.79 | G19: 1919.5 | H19: 1351.6
A20: 01A_2013-14 | B20: July 2013 to March 2014 | C20: 01A | D20: NHS East Lancashire CCG | E20: 0.71 | F20: 0.8 | G20: 3034.6 | H20: 2147.2
A21: 01C_2013-14 | B21: July 2013 to March 2014 | C21: 01C | D21: NHS Eastern Cheshire CCG | E21: 0.78 | F21: 0.85 | G21: 1643.8 | H21: 1252.4
A22: 01D_2013-14 | B22: July 2013 to March 2014 | C22: 01D | D22: NHS Heywood, Middleton and Rochdale CCG | E22: 0.68 | F22: 0.78 | G22: 1764.4 | H22: 1203.1
A23: 01E_2013-14 | B23: July 2013 to March 2014 | C23: 01E | D23: NHS Greater Preston CCG | E23: 0.72 | F23: 0.81 | G23: 1511.3 | H23: 1080.5
A24: 01F_2013-14 | B24: July 2013 to March 2014 | C24: 01F | D24: NHS Halton CCG | E24: 0.68 | F24: 0.77 | G24: 1121.7 | H24: 760.9
A25: 01G_2013-14 | B25: July 2013 to March 2014 | C25: 01G | D25: NHS Salford CCG | E25: 0.68 | F25: 0.77 | G25: 1986.3 | H25: 1351.1
A26: 01H_2013-14 | B26: July 2013 to March 2014 | C26: 01H | D26: NHS Cumbria CCG | E26: 0.73 | F26: 0.82 | G26: 4449.1 | H26: 3222
A27: 01J_2013-14 | B27: July 2013 to March 2014 | C27: 01J | D27: NHS Knowsley CCG | E27: 0.66 | F27: 0.75 | G27: 1318.1 | H27: 848.7
A28: 01K_2013-14 | B28: July 2013 to March 2014 | C28: 01K | D28: NHS Lancashire North CCG | E28: 0.75 | F28: 0.81 | G28: 1318.4 | H28: 965.7
A29: 01M_2013-14 | B29: July 2013 to March 2014 | C29: 01M | D29: NHS North Manchester CCG | E29: 0.67 | F29: 0.75 | G29: 1373.7 | H29: 908.5
A30: 01N_2013-14 | B30: July 2013 to March 2014 | C30: 01N | D30: NHS South Manchester CCG | E30: 0.72 | F30: 0.79 | G30: 1275.9 | H30: 911.1
A31: 01R_2013-14 | B31: July 2013 to March 2014 | C31: 01R | D31: NHS South Cheshire CCG | E31: 0.75 | F31: 0.82 | G31: 1512.4 | H31: 1118.6
A32: 01T_2013-14 | B32: July 2013 to March 2014 | C32: 01T | D32: NHS South Sefton CCG | E32: 0.69 | F32: 0.78 | G32: 1354.1 | H32: 930
A33: 01V_2013-14 | B33: July 2013 to March 2014 | C33: 01V | D33: NHS Southport and Formby CCG | E33: 0.75 | F33: 0.82 | G33: 1084.4 | H33: 796.3
A34: 01W_2013-14 | B34: July 2013 to March 2014 | C34: 01W | D34: NHS Stockport CCG | E34: 0.73 | F34: 0.82 | G34: 2463.5 | H34: 1803.1
A35: 01X_2013-14 | B35: July 2013 to March 2014 | C35: 01X | D35: NHS St Helens CCG | E35: 0.67 | F35: 0.77 | G35: 1701.9 | H35: 1127.5
A36: 01Y_2013-14 | B36: July 2013 to March 2014 | C36: 01Y | D36: NHS Tameside and Glossop CCG | E36: 0.7 | F36: 0.78 | G36: 2016.7 | H36: 1395.4
A37: 02A_2013-14 | B37: July 2013 to March 2014 | C37: 02A | D37: NHS Trafford CCG | E37: 0.74 | F37: 0.82 | G37: 1785.9 | H37: 1312.5
A38: 02D_2013-14 | B38: July 2013 to March 2014 | C38: 02D | D38: NHS Vale Royal CCG | E38: 0.73 | F38: 0.8 | G38: 907.6 | H38: 657.7
A39: 02E_2013-14 | B39: July 2013 to March 2014 | C39: 02E | D39: NHS Warrington CCG | E39: 0.74 | F39: 0.82 | G39: 1583.7 | H39: 1145.7
A40: 02F_2013-14 | B40: July 2013 to March 2014 | C40: 02F | D40: NHS West Cheshire CCG | E40: 0.74 | F40: 0.82 | G40: 2071.1 | H40: 1513
A41: 02G_2013-14 | B41: July 2013 to March 2014 | C41: 02G | D41: NHS West Lancashire CCG | E41: 0.73 | F41: 0.81 | G41: 927.3 | H41: 670.7
A42: 02H_2013-14 | B42: July 2013 to March 2014 | C42: 02H | D42: NHS Wigan Borough CCG | E42: 0.71 | F42: 0.79 | G42: 2643.7 | H42: 1832
A43: 02M_2013-14 | B43: July 2013 to March 2014 | C43: 02M | D43: NHS Fylde & Wyre CCG | E43: 0.7 | F43: 0.81 | G43: 1312.7 | H43: 912.5
A44: 02N_2013-14 | B44: July 2013 to March 2014 | C44: 02N | D44: NHS Airedale, Wharfdale and Craven CCG | E44: 0.75 | F44: 0.82 | G44: 1302.1 | H44: 974.9
A45: 02P_2013-14 | B45: July 2013 to March 2014 | C45: 02P | D45: NHS Barnsley CCG | E45: 0.68 | F45: 0.78 | G45: 2141.1 | H45: 1449.9
A46: 02Q_2013-14 | B46: July 2013 to March 2014 | C46: 02Q | D46: NHS Bassetlaw CCG | F46: 0.8 | G46: 873.4 | H46: 595.6
A47: 02R_2013-14 | B47: July 2013 to March 2014 | C47: 02R | D47: NHS Bradford Districts CCG | E47: 0.73 | F47: 0.81 | G47: 2476.3 | H47: 1785.2
A48: 02T_2013-14 | B48: July 2013 to March 2014 | C48: 02T | D48: NHS Calderdale CCG | E48: 0.74 | F48: 0.81 | G48: 1706.9 | H48: 1253.2
A49: 02V_2013-14 | B49: July 2013 to March 2014 | C49: 02V | D49: NHS Leeds North CCG | E49: 0.76 | F49: 0.83 | G49: 1514.6 | H49: 1136.7
A50: 02W_2013-14 | B50: July 2013 to March 2014 | C50: 02W | D50: NHS Bradford City CCG | E50: 0.66 | F50: 0.73 | G50: 639.6 | H50: 424.3
A51: 02X_2013-14 | B51: July 2013 to March 2014 | C51: 02X | D51: NHS Doncaster CCG | E51: 0.71 | F51: 0.78 | G51: 2603.1 | H51: 1814.5
A52: 02Y_2013-14 | B52: July 2013 to March 2014 | C52: 02Y | D52: NHS East Riding of Yorkshire CCG | E52: 0.75 | F52: 0.83 | G52: 2536.9 | H52: 1854
A53: 03A_2013-14 | B53: July 2013 to March 2014 | C53: 03A | D53: NHS Greater Huddersfield CCG | E53: 0.73 | F53: 0.81 | G53: 1871.9 | H53: 1357.4
A54: 03C_2013-14 | B54: July 2013 to March 2014 | C54: 03C | D54: NHS Leeds West CCG | E54: 0.75 | F54: 0.82 | G54: 2454 | H54: 1824.3
A55: 03D_2013-14 | B55: July 2013 to March 2014 | C55: 03D | D55: NHS Hambleton, Richmondshire and Whitby CCG | E55: 0.77 | F55: 0.85 | G55: 1178.2 | H55: 896.4
A56: 03E_2013-14 | B56: July 2013 to March 2014 | C56: 03E | D56: NHS Harrogate and Rural District CCG | E56: 0.77 | F56: 0.84 | G56: 1282.9 | H56: 972.5
A57: 03F_2013-14 | B57: July 2013 to March 2014 | C57: 03F | D57: NHS Hull CCG | E57: 0.7 | F57: 0.79 | G57: 2274.4 | H57: 1593.7
A58: 03G_2013-14 | B58: July 2013 to March 2014 | C58: 03G | D58: NHS Leeds South and East CCG | E58: 0.71 | F58: 0.79 | G58: 2035.3 | H58: 1441.4
A59: 03H_2013-14 | B59: July 2013 to March 2014 | C59: 03H | D59: NHS North East Lincolnshire CCG | E59: 0.73 | F59: 0.81 | G59: 1290.6 | H59: 925.2
A60: 03J_2013-14 | B60: July 2013 to March 2014 | C60: 03J | D60: NHS North Kirklees CCG | E60: 0.72 | F60: 0.8 | G60: 1385.6 | H60: 987.3
A61: 03K_2013-14 | B61: July 2013 to March 2014 | C61: 03K | D61: NHS North Lincolnshire CCG | E61: 0.73 | F61: 0.81 | G61: 1439 | H61: 1040.7
A62: 03L_2013-14 | B62: July 2013 to March 2014 | C62: 03L | D62: NHS Rotherham CCG | E62: 0.7 | F62: 0.78 | G62: 2068.3 | H62: 1424.3
A63: 03M_2013-14 | B63: July 2013 to March 2014 | C63: 03M | D63: NHS Scarborough and Ryedale CCG | E63: 0.73 | F63: 0.82 | G63: 1019.9 | H63: 740.3
A64: 03N_2013-14 | B64: July 2013 to March 2014 | C64: 03N | D64: NHS Sheffield CCG | E64: 0.72 | F64: 0.79 | G64: 4384 | H64: 3093.3
A65: 03Q_2013-14 | B65: July 2013 to March 2014 | C65: 03Q | D65: NHS Vale of York CCG | E65: 0.76 | F65: 0.83 | G65: 2556.8 | H65: 1942.3
A66: 03R_2013-14 | B66: July 2013 to March 2014 | C66: 03R | D66: NHS Wakefield CCG | E66: 0.72 | F66: 0.79 | G66: 3011.7 | H66: 2127.8
A67: 03T_2013-14 | B67: July 2013 to March 2014 | C67: 03T | D67: NHS Lincolnshire East CCG | E67: 0.71 | F67: 0.79 | G67: 2200.1 | H67: 1544.9
A68: 03V_2013-14 | B68: July 2013 to March 2014 | C68: 03V | D68: NHS Corby CCG | F68: 0.77 | G68: 500.6 | H68: 339.5
A69: 03W_2013-14 | B69: July 2013 to March 2014 | C69: 03W | D69: NHS East Leicestershire and Rutland CCG | E69: 0.77 | F69: 0.84 | G69: 2584.7 | H69: 1957.7
A70: 03X_2013-14 | B70: July 2013 to March 2014 | C70: 03X | D70: NHS Erewash CCG | E70: 0.74 | F70: 0.81 | G70: 780.5 | H70: 563.9
A71: 03Y_2013-14 | B71: July 2013 to March 2014 | C71: 03Y | D71: NHS Hardwick CCG | E71: 0.68 | F71: 0.77 | G71: 914.1 | H71: 617.8
A72: 04C_2013-14 | B72: July 2013 to March 2014 | C72: 04C | D72: NHS Leicester City CCG | E72: 0.72 | F72: 0.8 | G72: 2405 | H72: 1736.7
A73: 04D_2013-14 | B73: July 2013 to March 2014 | C73: 04D | D73: NHS Lincolnshire West CCG | E73: 0.73 | F73: 0.81 | G73: 1820.4 | H73: 1319.1
A74: 04E_2013-14 | B74: July 2013 to March 2014 | C74: 04E | D74: NHS Mansfield and Ashfield CCG | E74: 0.68 | F74: 0.77 | G74: 1605 | H74: 1081.8
A75: 04F_2013-14 | B75: July 2013 to March 2014 | C75: 04F | D75: NHS Milton Keynes CCG | E75: 0.76 | F75: 0.82 | G75: 1920 | H75: 1448.3
A76: 04G_2013-14 | B76: July 2013 to March 2014 | C76: 04G | D76: NHS Nene CCG | E76: 0.75 | F76: 0.82 | G76: 4936.1 | H76: 3686.7
A77: 04H_2013-14 | B77: July 2013 to March 2014 | C77: 04H | D77: NHS Newark & Sherwood CCG | E77: 0.75 | F77: 0.82 | G77: 1034.2 | H77: 758
A78: 04J_2013-14 | B78: July 2013 to March 2014 | C78: 04J | D78: NHS North Derbyshire CCG | E78: 0.72 | F78: 0.81 | G78: 2477.7 | H78: 1781.8
A79: 04K_2013-14 | B79: July 2013 to March 2014 | C79: 04K | D79: NHS Nottingham City CCG | E79: 0.71 | F79: 0.79 | G79: 2303.1 | H79: 1627.7
A80: 04L_2013-14 | B80: July 2013 to March 2014 | C80: 04L | D80: NHS Nottingham North and East CCG | E80: 0.74 | F80: 0.82 | G80: 1190.5 | H80: 869.7
A81: 04M_2013-14 | B81: July 2013 to March 2014 | C81: 04M | D81: NHS Nottingham West CCG | E81: 0.73 | F81: 0.81 | G81: 799.8 | H81: 580.8
A82: 04N_2013-14 | B82: July 2013 to March 2014 | C82: 04N | D82: NHS Rushcliffe CCG | E82: 0.78 | F82: 0.84 | G82: 906.9 | H82: 676.6
A83: 04Q_2013-14 | B83: July 2013 to March 2014 | C83: 04Q | D83: NHS South West Lincolnshire CCG | E83: 0.77 | F83: 0.83 | G83: 1088.4 | H83: 813.9
A84: 04R_2013-14 | B84: July 2013 to March 2014 | C84: 04R | D84: NHS Southern Derbyshire CCG | E84: 0.73 | F84: 0.81 | G84: 4116.3 | H84: 2973.8
A85: 04V_2013-14 | B85: July 2013 to March 2014 | C85: 04V | D85: NHS West Leicestershire CCG | E85: 0.76 | F85: 0.83 | G85: 2969.3 | H85: 2230.2
A86: 04X_2013-14 | B86: July 2013 to March 2014 | C86: 04X | D86: NHS Birmingham South and Central CCG | E86: 0.71 | F86: 0.79 | G86: 1619.6 | H86: 1139.5
A87: 04Y_2013-14 | B87: July 2013 to March 2014 | C87: 04Y | D87: NHS Cannock Chase CCG | E87: 0.72 | F87: 0.8 | G87: 1107.4 | H87: 780.6
A88: 05A_2013-14 | B88: July 2013 to March 2014 | C88: 05A | D88: NHS Coventry and Rugby CCG | E88: 0.74 | F88: 0.81 | G88: 3680.5 | H88: 2697.3
A89: 05C_2013-14 | B89: July 2013 to March 2014 | C89: 05C | D89: NHS Dudley CCG | E89: 0.72 | F89: 0.8 | G89: 2614.8 | H89: 1868.2
A90: 05D_2013-14 | B90: July 2013 to March 2014 | C90: 05D | D90: NHS East Staffordshire CCG | E90: 0.76 | F90: 0.83 | G90: 1091.2 | H90: 818
A91: 05F_2013-14 | B91: July 2013 to March 2014 | C91: 05F | D91: NHS Herefordshire CCG | E91: 0.75 | F91: 0.83 | G91: 1497.7 | H91: 1110.5
A92: 05G_2013-14 | B92: July 2013 to March 2014 | C92: 05G | D92: NHS North Staffordshire CCG | E92: 0.72 | F92: 0.8 | G92: 1865.6 | H92: 1347.4
A93: 05H_2013-14 | B93: July 2013 to March 2014 | C93: 05H | D93: NHS Warwickshire North CCG | E93: 0.72 | F93: 0.81 | G93: 1489.5 | H93: 1065.7
A94: 05J_2013-14 | B94: July 2013 to March 2014 | C94: 05J | D94: NHS Redditch and Bromsgrove CCG | E94: 0.75 | F94: 0.82 | G94: 1407.2 | H94: 1045
A95: 05L_2013-14 | B95: July 2013 to March 2014 | C95: 05L | D95: NHS Sandwell and West Birmingham CCG | E95: 0.7 | F95: 0.77 | G95: 3951.1 | H95: 2754.2
A96: 05N_2013-14 | B96: July 2013 to March 2014 | C96: 05N | D96: NHS Shropshire CCG | E96: 0.75 | F96: 0.83 | G96: 2442.3 | H96: 1801.5
A97: 05P_2013-14 | B97: July 2013 to March 2014 | C97: 05P | D97: NHS Solihull CCG | E97: 0.75 | F97: 0.83 | G97: 1849.5 | H97: 1376.7
A98: 05Q_2013-14 | B98: July 2013 to March 2014 | C98: 05Q | D98: NHS South East Staffs and Seisdon Peninsular CCG | E98: 0.74 | F98: 0.82 | G98: 1750 | H98: 1278.8
A99: 05R_2013-14 | B99: July 2013 to March 2014 | C99: 05R | D99: NHS South Warwickshire CCG | E99: 0.78 | F99: 0.84 | G99: 2282.9 | H99: 1755.8
A100: 05T_2013-14 | B100: July 2013 to March 2014 | C100: 05T | D100: NHS South Worcestershire CCG | E100: 0.77 | F100: 0.84 | G100: 2476.9 | H100: 1874.9
A101: 05V_2013-14 | B101: July 2013 to March 2014 | C101: 05V | D101: NHS Stafford and Surrounds CCG | F101: 0.82 | G101: 1276.4 | H101: 938.6
A102: 05W_2013-14 | B102: July 2013 to March 2014 | C102: 05W | D102: NHS Stoke on Trent CCG | E102: 0.69 | F102: 0.77 | G102: 2378.7 | H102: 1631.1
A103: 05X_2013-14 | B103: July 2013 to March 2014 | C103: 05X | D103: NHS Telford and Wrekin CCG | E103: 0.73 | F103: 0.79 | G103: 1418.7 | H103: 1015.2
A104: 05Y_2013-14 | B104: July 2013 to March 2014 | C104: 05Y | D104: NHS Walsall CCG | E104: 0.71 | F104: 0.79 | G104: 2104.5 | H104: 1455.6
A105: 06A_2013-14 | B105: July 2013 to March 2014 | C105: 06A | D105: NHS Wolverhampton CCG | E105: 0.7 | F105: 0.79 | G105: 1954.6 | H105: 1341.9
A106: 06D_2013-14 | B106: July 2013 to March 2014 | C106: 06D | D106: NHS Wyre Forest CCG | E106: 0.75 | F106: 0.82 | G106: 982.5 | H106: 729.4
A107: 06F_2013-14 | B107: July 2013 to March 2014 | C107: 06F | D107: NHS Bedfordshire CCG | E107: 0.78 | F107: 0.84 | G107: 3517.2 | H107: 2691.9
A108: 06H_2013-14 | B108: July 2013 to March 2014 | C108: 06H | D108: NHS Cambridgeshire and Peterborough CCG | E108: 0.76 | F108: 0.83 | G108: 6721.4 | H108: 5059.5
A109: 06K_2013-14 | B109: July 2013 to March 2014 | C109: 06K | D109: NHS East and North Hertfordshire CCG | E109: 0.78 | F109: 0.84 | G109: 4362.7 | H109: 3353
A110: 06L_2013-14 | B110: July 2013 to March 2014 | C110: 06L | D110: NHS Ipswich and East Suffolk CCG | E110: 0.77 | F110: 0.83 | G110: 3213.7 | H110: 2438.2
A111: 06M_2013-14 | B111: July 2013 to March 2014 | C111: 06M | D111: NHS Great Yarmouth and Waveney CCG | E111: 0.73 | F111: 0.8 | G111: 2078.3 | H111: 1487.9
A112: 06N_2013-14 | B112: July 2013 to March 2014 | C112: 06N | D112: NHS Herts Valleys CCG | E112: 0.77 | F112: 0.84 | G112: 4534.8 | H112: 3455.8
A113: 06P_2013-14 | B113: July 2013 to March 2014 | C113: 06P | D113: NHS Luton CCG | E113: 0.74 | F113: 0.81 | G113: 1478.9 | H113: 1076.6
A114: 06Q_2013-14 | B114: July 2013 to March 2014 | C114: 06Q | D114: NHS Mid Essex CCG | E114: 0.77 | F114: 0.83 | G114: 3032.7 | H114: 2307.5
A115: 06T_2013-14 | B115: July 2013 to March 2014 | C115: 06T | D115: NHS North East Essex CCG | E115: 0.73 | F115: 0.81 | G115: 2679.2 | H115: 1937.2
A116: 06V_2013-14 | B116: July 2013 to March 2014 | C116: 06V | D116: NHS North Norfolk CCG | E116: 0.75 | F116: 0.83 | G116: 1541.4 | H116: 1142.6
A117: 06W_2013-14 | B117: July 2013 to March 2014 | C117: 06W | D117: NHS Norwich CCG | E117: 0.74 | F117: 0.81 | G117: 1705.5 | H117: 1258.7
A118: 06Y_2013-14 | B118: July 2013 to March 2014 | C118: 06Y | D118: NHS South Norfolk CCG | E118: 0.76 | F118: 0.83 | G118: 1924.1 | H118: 1451.4
A119: 07G_2013-14 | B119: July 2013 to March 2014 | C119: 07G | D119: NHS Thurrock CCG | E119: 0.75 | F119: 0.81 | G119: 1237.1 | H119: 918.2
A120: 07H_2013-14 | B120: July 2013 to March 2014 | C120: 07H | D120: NHS West Essex CCG | E120: 0.77 | F120: 0.84 | G120: 2233.9 | H120: 1692.9
A121: 07J_2013-14 | B121: July 2013 to March 2014 | C121: 07J | D121: NHS West Norfolk CCG | E121: 0.73 | F121: 0.81 | G121: 1505.2 | H121: 1093.5
A122: 07K_2013-14 | B122: July 2013 to March 2014 | C122: 07K | D122: NHS West Suffolk CCG | E122: 0.77 | F122: 0.83 | G122: 2090.6 | H122: 1570.7
A123: 07L_2013-14 | B123: July 2013 to March 2014 | C123: 07L | D123: NHS Barking and Dagenham CCG | E123: 0.72 | F123: 0.79 | G123: 1237.5 | H123: 886.3
A124: 07M_2013-14 | B124: July 2013 to March 2014 | C124: 07M | D124: NHS Barnet CCG | E124: 0.75 | F124: 0.82 | G124: 2519.6 | H124: 1860
A125: 07N_2013-14 | B125: July 2013 to March 2014 | C125: 07N | D125: NHS Bexley CCG | E125: 0.77 | F125: 0.84 | G125: 1522.9 | H125: 1140.4
A126: 07P_2013-14 | B126: July 2013 to March 2014 | C126: 07P | D126: NHS Brent CCG | E126: 0.74 | F126: 0.81 | G126: 2333.6 | H126: 1734.2
A127: 07Q_2013-14 | B127: July 2013 to March 2014 | C127: 07Q | D127: NHS Bromley CCG | E127: 0.78 | F127: 0.85 | G127: 2448.5 | H127: 1884.2
A128: 07R_2013-14 | B128: July 2013 to March 2014 | C128: 07R | D128: NHS Camden CCG | E128: 0.73 | F128: 0.81 | G128: 1491.1 | H128: 1085
A129: 07T_2013-14 | B129: July 2013 to March 2014 | C129: 07T | D129: NHS City and Hackney CCG | E129: 0.69 | F129: 0.78 | G129: 1604.2 | H129: 1125.4
A130: 07V_2013-14 | B130: July 2013 to March 2014 | C130: 07V | D130: NHS Croydon CCG | E130: 0.74 | F130: 0.82 | G130: 2709.8 | H130: 2012.3
A131: 07W_2013-14 | B131: July 2013 to March 2014 | C131: 07W | D131: NHS Ealing CCG | E131: 0.75 | F131: 0.82 | G131: 2520.3 | H131: 1885.7
A132: 07X_2013-14 | B132: July 2013 to March 2014 | C132: 07X | D132: NHS Enfield CCG | E132: 0.74 | F132: 0.82 | G132: 2022.2 | H132: 1477.3
A133: 07Y_2013-14 | B133: July 2013 to March 2014 | C133: 07Y | D133: NHS Hounslow CCG | E133: 0.75 | F133: 0.82 | G133: 1860.7 | H133: 1393
A134: 08A_2013-14 | B134: July 2013 to March 2014 | C134: 08A | D134: NHS Greenwich CCG | E134: 0.72 | F134: 0.81 | G134: 1701.7 | H134: 1229.5
A135: 08C_2013-14 | B135: July 2013 to March 2014 | C135: 08C | D135: NHS Hammersmith and Fulham CCG | E135: 0.73 | F135: 0.81 | G135: 1294.5 | H135: 958.8
A136: 08D_2013-14 | B136: July 2013 to March 2014 | C136: 08D | D136: NHS Haringey CCG | E136: 0.7 | F136: 0.79 | G136: 1862.9 | H136: 1320.7
A137: 08E_2013-14 | B137: July 2013 to March 2014 | C137: 08E | D137: NHS Harrow CCG | E137: 0.75 | F137: 0.83 | G137: 1725.5 | H137: 1288.3
A138: 08F_2013-14 | B138: July 2013 to March 2014 | C138: 08F | D138: NHS Havering CCG | E138: 0.75 | F138: 0.82 | G138: 1848.3 | H138: 1353.1
A139: 08G_2013-14 | B139: July 2013 to March 2014 | C139: 08G | D139: NHS Hillingdon CCG | E139: 0.76 | F139: 0.83 | G139: 1994.8 | H139: 1498.6
A140: 08H_2013-14 | B140: July 2013 to March 2014 | C140: 08H | D140: NHS Islington CCG | E140: 0.7 | F140: 0.79 | G140: 1436.3 | H140: 1023.9
A141: 08J_2013-14 | B141: July 2013 to March 2014 | C141: 08J | D141: NHS Kingston CCG | E141: 0.77 | F141: 0.84 | G141: 1260.6 | H141: 967.3
A142: 08K_2013-14 | B142: July 2013 to March 2014 | C142: 08K | D142: NHS Lambeth CCG | E142: 0.75 | F142: 0.81 | G142: 2276.8 | H142: 1720.5
A143: 08L_2013-14 | B143: July 2013 to March 2014 | C143: 08L | D143: NHS Lewisham CCG | E143: 0.74 | F143: 0.82 | G143: 1873.6 | H143: 1401.1
A144: 08M_2013-14 | B144: July 2013 to March 2014 | C144: 08M | D144: NHS Newham CCG | E144: 0.7 | F144: 0.77 | G144: 2083.9 | H144: 1500.1
A145: 08N_2013-14 | B145: July 2013 to March 2014 | C145: 08N | D145: NHS Redbridge CCG | E145: 0.74 | F145: 0.82 | G145: 1789 | H145: 1319.6
A146: 08P_2013-14 | B146: July 2013 to March 2014 | C146: 08P | D146: NHS Richmond CCG | E146: 0.79 | F146: 0.85 | G146: 1359.4 | H146: 1063.6
A147: 08Q_2013-14 | B147: July 2013 to March 2014 | C147: 08Q | D147: NHS Southwark CCG | E147: 0.73 | F147: 0.8 | G147: 1851.8 | H147: 1352.8
A148: 08R_2013-14 | B148: July 2013 to March 2014 | C148: 08R | D148: NHS Merton CCG | E148: 0.76 | F148: 0.83 | G148: 1383.4 | H148: 1042.8
A149: 08T_2013-14 | B149: July 2013 to March 2014 | C149: 08T | D149: NHS Sutton CCG | E149: 0.76 | F149: 0.84 | G149: 1331.1 | H149: 1012
A150: 08V_2013-14 | B150: July 2013 to March 2014 | C150: 08V | D150: NHS Tower Hamlets CCG | E150: 0.7 | F150: 0.77 | G150: 1597.1 | H150: 1135.5
A151: 08W_2013-14 | B151: July 2013 to March 2014 | C151: 08W | D151: NHS Waltham Forest CCG | E151: 0.74 | F151: 0.81 | G151: 1859.8 | H151: 1376.1
A152: 08X_2013-14 | B152: July 2013 to March 2014 | C152: 08X | D152: NHS Wandsworth CCG | E152: 0.77 | F152: 0.84 | G152: 2123.9 | H152: 1633.2
A153: 08Y_2013-14 | B153: July 2013 to March 2014 | C153: 08Y | D153: NHS West London (K&C & Qpp) CCG | E153: 0.73 | F153: 0.81 | G153: 1540.8 | H153: 1128.2
A154: 09A_2013-14 | B154: July 2013 to March 2014 | C154: 09A | D154: NHS Central London (Westminster) CCG | E154: 0.73 | F154: 0.82 | G154: 1179.7 | H154: 860.3
A155: 09C_2013-14 | B155: July 2013 to March 2014 | C155: 09C | D155: NHS Ashford CCG | E155: 0.72 | F155: 0.81 | G155: 1043.6 | H155: 756.1
A156: 09D_2013-14 | B156: July 2013 to March 2014 | C156: 09D | D156: NHS Brighton and Hove CCG | E156: 0.73 | F156: 0.81 | G156: 2163.7 | H156: 1581
A157: 09E_2013-14 | B157: July 2013 to March 2014 | C157: 09E | D157: NHS Canterbury and Coastal CCG | E157: 0.75 | F157: 0.83 | G157: 1735.8 | H157: 1297.1
A158: 09F_2013-14 | B158: July 2013 to March 2014 | C158: 09F | D158: NHS Eastbourne, Hailsham and Seaford CCG | E158: 0.75 | F158: 0.82 | G158: 1667.4 | H158: 1237.1
A159: 09G_2013-14 | B159: July 2013 to March 2014 | C159: 09G | D159: NHS Coastal West Sussex CCG | E159: 0.76 | F159: 0.83 | G159: 4285.6 | H159: 3196
A160: 09H_2013-14 | B160: July 2013 to March 2014 | C160: 09H | D160: NHS Crawley CCG | E160: 0.77 | F160: 0.82 | G160: 931.4 | H160: 701.6
A161: 09J_2013-14 | B161: July 2013 to March 2014 | C161: 09J | D161: NHS Dartford, Gravesham and Swanley CCG | E161: 0.76 | F161: 0.82 | G161: 1906.8 | H161: 1425
A162: 09L_2013-14 | B162: July 2013 to March 2014 | C162: 09L | D162: NHS East Surrey CCG | E162: 0.76 | F162: 0.84 | G162: 1333.8 | H162: 1021.9
A163: 09N_2013-14 | B163: July 2013 to March 2014 | C163: 09N | D163: NHS Guildford and Waverley CCG | E163: 0.8 | F163: 0.86 | G163: 1584.4 | H163: 1250.7
A164: 09P_2013-14 | B164: July 2013 to March 2014 | C164: 09P | D164: NHS Hastings and Rother CCG | E164: 0.75 | F164: 0.82 | G164: 1663.1 | H164: 1228
A165: 09W_2013-14 | B165: July 2013 to March 2014 | C165: 09W | D165: NHS Medway CCG | E165: 0.73 | F165: 0.81 | G165: 2179 | H165: 1583.3
A166: 09X_2013-14 | B166: July 2013 to March 2014 | C166: 09X | D166: NHS Horsham and Mid Sussex CCG | E166: 0.77 | F166: 0.84 | G166: 1752.1 | H166: 1344.7
A167: 09Y_2013-14 | B167: July 2013 to March 2014 | C167: 09Y | D167: NHS North West Surrey CCG | E167: 0.77 | F167: 0.85 | G167: 2621.6 | H167: 2019.5
A168: 10A_2013-14 | B168: July 2013 to March 2014 | C168: 10A | D168: NHS South Kent Coast CCG | E168: 0.7 | F168: 0.79 | G168: 1796.4 | H168: 1268.2
A169: 10C_2013-14 | B169: July 2013 to March 2014 | C169: 10C | D169: NHS Surrey Heath CCG | E169: 0.78 | F169: 0.85 | G169: 728.1 | H169: 573
A170: 10D_2013-14 | B170: July 2013 to March 2014 | C170: 10D | D170: NHS Swale CCG | E170: 0.7 | F170: 0.8 | G170: 861.1 | H170: 604.5
A171: 10E_2013-14 | B171: July 2013 to March 2014 | C171: 10E | D171: NHS Thanet CCG | E171: 0.72 | F171: 0.79 | G171: 1241.6 | H171: 867.5
A172: 10G_2013-14 | B172: July 2013 to March 2014 | C172: 10G | D172: NHS Bracknell and Ascot CCG | E172: 0.79 | F172: 0.84 | G172: 1019.7 | H172: 797.4
A173: 10H_2013-14 | B173: July 2013 to March 2014 | C173: 10H | D173: NHS Chiltern CCG | E173: 0.78 | F173: 0.85 | G173: 2406.5 | H173: 1864.7
A174: 10J_2013-14 | B174: July 2013 to March 2014 | C174: 10J | D174: NHS North Hampshire CCG | E174: 0.77 | F174: 0.83 | G174: 1662.8 | H174: 1277.5
